Workbook

Sheet Instructions
I2: Validation - Croisement des tables
B3: Instructions:
A4: 1 | B4: Dupliquer votre modèle de détermination avant de passer aux étapes suivantes. | I4: Ovoltotrec | J4: Rapport GTYF | K4: Rapport ECONO
A5: 2 | B5: Coller les OUTPUTs ci-dessous dans votre modèle de détermination. | I5: =VLOOKUP("Ovoltotrec",Output!$C:$AM,8,FALSE) -> 893500 | J5: =VLOOKUP("OVOLTOTREC",GTYF!$C:$AQ,8,FALSE)=I5 -> TRUE | K5: =VLOOKUP("OVOLTOTREC",Econo!$C:$AQ,8,FALSE)=I5 -> TRUE
B6: Outputs pour Cahier_Détermination_2023
A7: 3 | B7: Ajouter l'agrégat FCIMPROD_SNAT au thème 5 de la section LANSCAPE de votre modèle et les courbes SNAT
B8: *AGGREGATE FCIMPROD_SNAT FCxxxx
A9: 4 | B9: Copier coller la syntaxe TARGET_GTYF_DET, TARGET_ECONO, TARGET AREA, TARGET DETAIL (voir plus bas) dans la section "Reports" du scénario de détermination.
B10: *TARGET GTYF_DET.dbf
B11: *TARGET_ECONO.dbf
B12: *TARGET AREA.dbf et *TARGET DETAIL.dbf
A13: 5 | B13: Insérer la syntaxe économique dans les sections Output, Lanscape, …
A14: 6 | B14: Compiler le scénario (Faire une fleche sur vos scénarios)
A15: 7 | B15: Ouvrir vos rapports Output, GTYF et ECONO directement de WS. Contrôle A --> Contrôle C
A16: 8 | B16: Copier/coller vos rapports Output, GTYF et ECONO dans les onglets appropriés. Attention de respecter le nombres de colonnes. Les onglets Output, GTYF et ECONO sont préformatés et contiennent des formules aux colonnes AM à AP.
A17: 9 | B17: Valider que la cellule I5 indique vrai lorsque vous aurez collé vos données dans les onglets "Output", "GTYF" et ÉCONO" pour s'assurer que les données proviennent de la même optimisation.
A18: 10 | B18: Utiliser le fichier DBF pour copier/coller votre calendrier de COS dans l'onglet Cedule_COS et y ajouter les COS absents (COS fermés ou toujours ouverts) et compléter leur calendrier par des "0" ou des "1".
A19: 11 | B19: Compléter toutes les cellules et onglets de couleur | D19: jaune
A20: 12 | B20: Notez que les tableaux 9, 10, 13, 15 et 17 ont des instructions particulières

Sheet Suivi_modif
B2: Modifications apportées au cahier:
B3: Version originale (v1) | C3: Version de départ
B4: Version modifiée 2 novembre 2021 (v2) | C4: Correction du calcul de % de sapin en P0 (cellule O9)
B5: Version modifiée 4 novembre 2021 (v3) | C5: Correction du % récolte volume sur pied destiné à l'aménagement (Tableau - CelluleV59)
B6: Version modifiée 4 novembre 2021 (v3) | C6: Correction des valideurs Vrai/Faux (Tableau - Cellule W101, W102, W103)
B7: Version modifiée 8 novembre 2021 (v4) | C7: Onglet "UTA" - Amélioration de la syntaxe des rechercheV
B8: Version modifiée 8 novembre 2021 (v4) | C8: Tableau 3 - ligne 50: changé la police de caractère pour du Arial
B9: Version modifiée 9 novembre 2021 (v5) | C9: Onglet "Target_ECONO": La syntaxe du rapport a été corrigée.
B10: Version modifiée 11 novembre 2021 (v6) | C10: Tableau 1 - Entente Crie - Correction pour considérer le code "EXEC" pour les UA avec Entente Crie | E10: Intégrée dans ma version V5
B11: Version modifiée 15 novembre 2021 (v7) | C11: Tableau 3 - Ligne 49 en caractère gras - ligne 51 en caractère normal sont corriger dans le cahier. | E11: Intégrée dans ma version V5
B12: Version modifiée 19 novembre 2021 (v8) | C12: Tableau 9 - Dernière ligne du tableau effacée | E12: Intégrée dans ma version V5
B13: Version modifiée 22 novembre 2021 (v9) | C13: Tableau 4 - Première colonne (ha/an) changé la mise en forme pour avoir des 0 ha/an au lieu de "-" Voir figure --> Format: Nombre - Utiliser séparateur de millier - sans décimales | E13: Intégrée dans ma version V5
E16: Vérification 12 nov 2021 PRElo3
E17: output | F17: ok valeur correspond à WS 14_sc_det
F18: ok bon nombre de lignes
E19: gtyf | F19: ok valeur correspond à WS 14_sc_det
F20: ok bon nombre de lignes
E21: econo | F21: ok valeur correspond à WS 14_sc_det
F22: ok bon nombre de lignes
E24: tableau | F24: sup: provient du cahier det de septembre, pas de l'outil d'Éric
F25: tab 1 -3 | G25: valeur de fichier consignation et cahier det de septembre2021
F26: bonne ua d'indiquée ¢ O34
F27: tab 8 | G27: valeur de fichier consignation et cahier det de septembre2021
F28: tab 13 | G28: ??? somme arrondi à 100 m³
E29: figure | F29: aspect visuel ok, échelle ok
F30: fig 6 | G30: ok même que cahier det septembre
F31: fig 9b-c | G31: ok même que cahier det septembre
F32: fig 19 | G32: ok bon nombre UTR
F33: fig 22 | G33: ok pas de seuil
E34: uta | F34: bon nombre d'UTA
F35: pas de délai de restauration

Sheet Tableaux
T1: Instructions : Compléter les cellules oranges | AB1: Avec l'utilisation de l'outil à Éric
B2: PROER1 : vous pouvez utiliser l'outil FoxPro pour compléter les cellules oranges : | T2: 1) Cellule V11 : Inscrire la superficie totale brute de la carte WS
B3: l'outil intérroge la carte Woodstock et met les valeurs dans un fichier Excel | T3: 2) Cellule V15 : Inscrire la superficie WS des GS RP1 et RP2 (ça ne devrait être que du EXEX et EXTI)
B4: interroge_carte_WS_pour cahier_analyse.FXP | T4: 3) Cellule V24 : Inscrire la superficie WS des GS RP3 à RP9 sur INC
B5: T:\Donnees\Courant\CPF_2023-2028\Comite_Vague_2\30_Phase1\32_Sce1\Outils | T5: 4) Cellule V25 : Inscrire la superficie WS des GS SNAT sur INC (qui ne sont pas des RP)
T6: 5) Cellules L20 à S21 : Inscrire la superficie de la carte WS pour chacune des cases oranges
B7: Catégories | I7: Superficie | Z7: Total | AA7: Sup_aff
I8: ha | J8: % | V8: Période | Z8: Total | AA8: Sup_empche
B9: Superficie totale du territoire d'analyse (EXHU exclu) | I9: =V11-V16 -> 319000.1 | J9: =IFERROR(I9/I9,"-") -> 1 | K9: 319000.1 | S9: =LEFT(B$25,10) -> Tableau 1. | T9: Output | U9: Superficie | V9: 0 | Z9: Total | AA9: Sup_ecot
B10: Pertes (emprise chemin, écotone, improductif) | I10: =U20+V20+Y20 -> 6862.6 | J10: =I10/I9 -> 0.02151284592 | K10: 6862.6 | S10: =LEFT(B$25,10) -> Tableau 1. | T10: OSUPTOT | U10: WS | V10: =VLOOKUP(T10,Output!$C:$H,6,FALSE) -> 312137.5 | Z10: INC | AA10: Sup_brivAB
B11: Territoire improductif (EXEX + EXTI) | I11: =SUM(V13:V14) -> 104062.8 | J11: =I11/I9 -> 0.3262155717 | K11: 104062.8 | S11: Tableau 1. | U11: Brute | V11: 319000.1 | X11: Sup_soustraite : | Y11: =T20+U20+V20+Y20+AA20 -> 8355 | Z11: INC | AA11: Sup_brivCD
B12: sans possibilité de remise en production | I12: =I11-I13 -> 104060.8 | J12: - | K12: 104060.8 | S12: Tableau 1. | U12: pertes | V12: =U20+V20+Y20 -> 6862.6 | X12: Sup nette : | Y12: =V11-Y11 -> 310645.1 | Z12: Total | AA12: Sup_impro
B13: avec possibilité de remise en production (RP1 et RP2) | I13: =V15 -> 2 | J13: - | K13: 2 | S13: Tableau 1. | T13: OSUPEXEX | U13: EXEX | V13: =VLOOKUP(T13,Output!$C:$H,6,FALSE) -> 60575.9 | Z13: Total | AA13: Sup_pentf
K14: 0 | S14: Tableau 1. | T14: OSUPEXTI | U14: EXTI | V14: =VLOOKUP(T14,Output!$C:$H,6,FALSE) -> 43486.9 | X14: Superficie | Y14: sup_redu | Z14: INC | AA14: Sup_pentf
B15: Territoire inclus dans l’UA mais exclu des activités d'aménagement (EXIN) | I15: =V17+X16+Y16 -> 26418.8 | J15: =I15/I9 -> 0.0828175289 | K15: 26418.8 | S15: Tableau 1. | U15: RP1/RP2 | V15: 2 | X15: EXEC | Y15: EXEC
B16: pentes abruptes et sommets (codes F et S) --> potentiellement récoltables | I16: =AA21 -> 142.3 | J16: - | K16: 142.3 | S16: Tableau 1. | T16: OSUPEXHU | U16: EXHU | V16: =VLOOKUP(T16,Output!$C:$H,6,FALSE) -> 0 | X16: 0 | Y16: 0
B17: bandes riveraines (densité AB) --> potentiellement récoltables | I17: =W21 -> 6415.1 | J17: - | K17: 6415.1 | S17: Tableau 1. | T17: OSUPEXIN | U17: EXIN | V17: =VLOOKUP(T17,Output!$C:$H,6,FALSE) -> 26418.8
B18: bandes riveraines (densité CD) --> potentiellement récoltables | I18: =X21 -> 8250.9 | J18: - | K18: 8250.9 | S18: Tableau 1. | T18: ↓ | U18: ↓ | V18: ↓ | Y18: ↓ | AA18: ↓
B19: autres | I19: =I15-I16-I17-I18 -> 11610.5 | K19: 11610.5 | S19: Tableau 1. | T19: Sup_aff | U19: Sup_empche | V19: Sup_ecot | W19: Sup_brivAB | X19: Sup_brivCD | Y19: Sup_impro | Z19: Sup_aut | AA19: Sup_pentf
B20: Territoire destiné à l'aménagement forestier (INC) | I20: =V22 -> 181655.9 | J20: =I20/I9 -> 0.5694540535 | K20: 181655.9 | S20: Tableau 1. | T20: 1328.5 | U20: 3487 | V20: 2102.8 | Y20: 1272.8 | AA20: 163.9 | AB20: Total
B21: forestier exploitable | I21: =V22-I22-I23 -> 161599.9 | J21: - | K21: 161599.9 | S21: Tableau 1. | W21: 6415.1 | X21: 8250.9 | AA21: 142.3 | AB21: INC
B22: forestier inexploitable avec possibilité de remise en production (RP3 à RP15) | I22: =V24 -> 4637.4 | J22: - | K22: 4637.4 | S22: Tableau 1. | T22: OSUPINC | U22: INC | V22: =VLOOKUP(T22,Output!$C:$H,6,FALSE) -> 181655.9
B23: forestier inexploitable sans possibilité de remise en production (SNAT) | I23: =V25 -> 15418.6 | J23: - | K23: 15418.6 | S23: Tableau 1.
S24: Tableau 1. | U24: RP3 à RP9 | V24: 4637.4
B25: Tableau 1. Répartition de la superficie de l'unité d'aménagement pas catégorie de territoire | S25: Tableau 1. | U25: SNAT | V25: 15418.6
B26: Catégories | F26: Superficies
F27: Hectares | G27: %
B28: Superficie totale de l’unité d’aménagement | F28: =ROUND(I9,-1) -> 319000 | G28: =F28/F28 -> 1 | H28: 319000
B29: Retraits de superficie
B30: Territoire non forestier | F30: =ROUND(I10+I11,-1) -> 110930 | G30: =F30/F28 -> 0.3477429467 | H30: 110930
B31: Territoire forestier peu productif (30 à 50 m³/ha) | F31: =ROUND(I22+I23,-1) -> 20060 | G31: =F31/F28 -> 0.06288401254 | H31: 20060
B32: Territoire forestier exclu de l’aménagement | F32: =ROUND(F28-F30-F31-F33,-1) -> 26410 | G32: =F32/F28 -> 0.08278996865 | H32: 26410 | N32: À compléter UA : | O32: UA:
B33: Superficie destinée à l’aménagement forestier | F33: =ROUND(I21,-1) -> 161600 | G33: =F33/F28 -> 0.5065830721 | H33: 161600 | O33: 02666 | T33: Légende | U33: Output | V33: P2@P6
S34: =LEFT(B$46,10) -> Tableau 3. | T34: Sepm | U34: OVOLGSEPMREC | V34: =IFERROR(VLOOKUP($U34,Output!$C:$AM,37,FALSE)/5,0) -> 163552.254
S35: Tableau 3.
S36: Tableau 3. | T36: Tho | U36: OVOLTHOREC | V36: =IFERROR(VLOOKUP($U36,Output!$C:$AM,37,FALSE)/5,0) -> 7.746
S37: Tableau 3. | T37: Pru | U37: OVOLPRUREC | V37: =IFERROR(VLOOKUP($U37,Output!$C:$AM,37,FALSE)/5,0) -> 0
S38: Tableau 3. | T38: Pins | U38: OVOLGPINSREC | V38: =IFERROR(VLOOKUP($U38,Output!$C:$AM,37,FALSE)/5,0) -> 0
S39: Tableau 3. | T39: Peu | U39: OVOLGPEUREC | V39: =IFERROR(VLOOKUP($U39,Output!$C:$AM,37,FALSE)/5,0) -> 3367.4652
S40: Tableau 3. | T40: Bop | U40: OVOLGBPREC | V40: =IFERROR(VLOOKUP($U40,Output!$C:$AM,37,FALSE)/5,0) -> 11772.5348
S41: Tableau 3. | T41: Boj | U41: OVOLBOJREC | V41: =IFERROR(VLOOKUP($U41,Output!$C:$AM,37,FALSE)/5,0) -> 0
S42: Tableau 3. | T42: Ers | U42: OVOLERSREC | V42: =IFERROR(VLOOKUP($U42,Output!$C:$AM,37,FALSE)/5,0) -> 0
S43: Tableau 3. | T43: Err | U43: OVOLGEROREC | V43: =IFERROR(VLOOKUP($U43,Output!$C:$AM,37,FALSE)/5,0) -> 0
S44: Tableau 3. | T44: Autre .F. (Auf) | V44: =V47-V42-V41 -> 0
S45: Tableau 3. | T45: résineux | U45: OVOLGRREC | V45: =IFERROR(VLOOKUP($U45,Output!$C:$AM,37,FALSE)/5,0) -> 163560
B46: Tableau 3. Possibilités forestières par essence ou par groupe d’essences et écart avec la période 2018-2023 | S46: Tableau 3. | T46: intolérant | U46: OVOLGFIREC | V46: =IFERROR(VLOOKUP($U46,Output!$C:$AM,37,FALSE)/5,0) -> 15140
B47: Périodes | C47: ="Possibilités forestières (m"&CHAR(179)&" bruts/an)" -> Possibilités forestières (m³ bruts/an) | S47: Tableau 3. | T47: Tolérant | U47: OVOLGFTREC | V47: =IFERROR(VLOOKUP($U47,Output!$C:$AM,37,FALSE)/5,0) -> 0
C48: SEPM | D48: Thuya | E48: Pruche | F48: Pins blanc et rouge | G48: Peupliers | H48: Bouleau à papier | I48: Bouleau jaune | J48: Érables à sucre et rouge | K48: Autres feuillus durs | L48: Total | N48: Possibilité forestière unitaire (PAC / Sup destinée à l'aménagement) | S48: Tableau 3. | T48: Total récoltés | U48: OVOLTOTREC | V48: =IFERROR(VLOOKUP($U48,Output!$C:$AM,37,FALSE)/5,0) -> 178700
B49: 2023-2028 | C49: =ROUND(V$34,-2) -> 163600 | D49: =ROUND(V$36,-2) -> 0 | E49: =ROUND(V$37,-2) -> 0 | F49: =ROUND(V$38,-2) -> 0 | G49: =ROUND(V$39,-2) -> 3400 | H49: =ROUND(V$40,-2) -> 11800 | I49: =ROUND(V$41,-2) -> 0 | J49: =ROUND(V$50,-2) -> 0 | K49: =ROUND(V$44,-2) -> 0 | L49: =SUM(C49:K49) -> 178800 | N49: =V57 -> 1.105816832 | S49: Tableau 3. | T49: FN sur pied | U49: OVOLGFNREC | V49: =IFERROR(VLOOKUP($U49,Output!$C:$AM,37,FALSE)/5,0) -> 0
C50: =C49/$L$49 -> 0.9149888143 | D50: 0 | E50: 0 | F50: 0 | G50: 0.01901565996 | H50: 0.06599552573 | I50: 0 | J50: 0 | K50: 0 | L50: =SUM(C50:K50) -> 1 | S50: Tableau 3. | T50: ER | V50: =V42+V43 -> 0
B51: 2018-2023 | C51: =VLOOKUP($O$33,DataLocal!$A$6:$W$35,13,FALSE) -> 161700 | D51: =VLOOKUP($O$33,DataLocal!$A$6:$W$35,14,FALSE) -> 100 | E51: =VLOOKUP($O$33,DataLocal!$A$6:$W$35,15,FALSE) -> 0 | F51: =VLOOKUP($O$33,DataLocal!$A$6:$W$35,16,FALSE) -> 0 | G51: =VLOOKUP($O$33,DataLocal!$A$6:$W$35,17,FALSE) -> 10500 | H51: =VLOOKUP($O$33,DataLocal!$A$6:$W$35,18,FALSE) -> 10100 | I51: =VLOOKUP($O$33,DataLocal!$A$6:$W$35,19,FALSE) -> 0 | J51: =VLOOKUP($O$33,DataLocal!$A$6:$W$35,20,FALSE) -> 0 | K51: =VLOOKUP($O$33,DataLocal!$A$6:$W$35,21,FALSE) -> 0 | L51: =VLOOKUP($O$33,DataLocal!$A$6:$W$35,23,FALSE) -> 182400 | N51: % du volume sur pied initial | S51: Tableau 3. | U51: OVOLSABREC | V51: =IFERROR(VLOOKUP($U51,Output!$C:$AM,37,FALSE)/5,0) -> 15581.898
B52: Écart | C52: =IFERROR((C49/C$51)-1,0) -> 0.01175015461 | D52: -1 | E52: 0 | F52: 0 | G52: -0.6761904762 | H52: 0.1683168317 | I52: 0 | J52: 0 | K52: 0 | L52: -0.01973684211 | N52: =V59 -> 0.0182027462 | S52: Tableau 3. | U52: OVOLGEPXREC | V52: =IFERROR(VLOOKUP($U52,Output!$C:$AM,37,FALSE)/5,0) -> 112503.2076
B53: ="Répartition de la composante SEPM des possibilités forestières 2023-2028 : sapin ("&IFERROR(ROUND(V51/V34*100,0),0)&"%), épinettes ("&IFERROR(ROUND(V52/V34*100,0),0)&"%), pin gris ("&IFERROR(ROUND(V53/V34*100,0),0)&"%) et mélèzes ("&IFERROR(ROUND(V54/V34*100,0),0)&"%)." -> Répartition de la composante SEPM des possibilités forestières 2023-2028 : sapin (10%), épinettes (69%), pin gris (21%) et mélèzes (0%). | S53: Tableau 3. | U53: OVOLGPGREC | V53: =IFERROR(VLOOKUP($U53,Output!$C:$AM,37,FALSE)/5,0) -> 34691.8432
B54: ="Répartition de la composante Érables à sucre et rouge des possibilités forestières 2023-2028 : érable à sucre("&IFERROR(ROUND(V42/(V42+V43)*100,0),0)&"%) et érable rouge ("&IFERROR(ROUND(V43/(V42+V43)*100,0),0)&"%)." -> Répartition de la composante Érables à sucre et rouge des possibilités forestières 2023-2028 : érable à sucre(0%) et érable rouge (0%). | S54: Tableau 3. | U54: OVOLGMLREC | V54: =IFERROR(VLOOKUP($U54,Output!$C:$AM,37,FALSE)/5,0) -> 775.306
B55: Copier/Coller le tableau ci-dessus avec les lignes 53 et 54 | S55: Tableau 3. | U55: OSUPINC | V55: =IFERROR(VLOOKUP($U55,Output!$C:$AM,6,FALSE),0) -> 181655.9
C56: 163600 | D56: 0 | E56: 0 | F56: 0 | G56: 3400 | H56: 11800 | I56: 0 | J56: 0 | K56: 0 | L56: 178800 | S56: Tableau 3. | U56: OVOLTOTPIEDINC | V56: =IFERROR(VLOOKUP($U56,Output!$C:$AM,7,FALSE),0) -> 9950527.41
C57: 0.01175015461 | D57: - | E57: - | F57: - | G57: -0.6761904762 | H57: 0.1683168317 | I57: - | J57: - | K57: - | L57: -0.01973684211 | S57: Tableau 3. | U57: Possibilité forestière unitaire | V57: =IFERROR(V48/F33,0) -> 1.105816832
S58: Tableau 3. | U58: % récolte volume sur pied
U59: % récolte volume sur pied destiné à l'aménagement | V59: =V48/Figures!V19 -> 0.0182027462
B61: Tableau 4. Répartition des superficies récoltées et des possibilités forestières par grand type de forêt
B62: Grands types de forêt | D62: Superficie récoltée* | H62: Possibilités forestières* | S62: =LEFT(B$61,10) -> Tableau 4. | V62: Output total non arrondi | W62: Écart entre la somme du tableau et le output total
D63: Coupes totales | F63: Coupes partielles | H63: Résineux | J63: Feuillus tolérants | L63: Feuillus intolérants | N63: Total | S63: Tableau 4. | T63: Total | Z63: P2 à P6
D64: ha/an | E64: % | F64: ha/an | G64: % | H64: m³ bruts/an | I64: % | J64: ="m"&CHAR(179)&" bruts/an" -> m³ bruts/an | K64: % | L64: ="m"&CHAR(179)&" bruts/an" -> m³ bruts/an | M64: % | N64: ="m"&CHAR(179)&" bruts/an" -> m³ bruts/an | O64: % | S64: Tableau 4. | T64: ha/an | U64: % | Y64: Famille de courbe | Z64: OSUPINC | AA64: OSUPREALREGAFIN | AB64: OSUPREALREGAPAR | AC64: OSUPREALREGAPRE | AD64: OVOLGRREC | AE64: OVOLGAURREC | AF64: OVOLGFIREC | AG64: OVOLGFTREC | AH64: OVOLTOTREC
B65: Bétulaies blanches | D65: =ROUND(AA65/5,-1) -> 20 | E65: =IFERROR(D65/D$79,0) -> 0.01418439716 | F65: =ROUND(AB65/5,-1) -> 0 | G65: =IFERROR(F65/F$79,0) -> 0 | H65: =ROUND(AD65/5,-2) -> 200 | I65: =IFERROR(H65/H$79,0) -> 0.00122324159 | J65: =ROUND(AG65/5,-2) -> 0 | K65: =IFERROR(J65/J$79,0) -> 0 | L65: =ROUND(AF65/5,-2) -> 2100 | M65: =L65/L$79 -> 0.137254902 | N65: =H65+J65+L65 -> 2300 | O65: =N65/$N$79 -> 0.01286353468 | S65: Tableau 4. | T65: =D65+F65 -> 20 | U65: =IFERROR(T65/T$79,0) -> 0.01298701299 | V65: =(AA65+AB65)/5 -> 19.108 | W65: =T65-V65 -> 0.892 | Y65: (FCTYF_BOP) | Z65: =VLOOKUP(Z$64&$Y65,GTYF!$C:$AP,6,FALSE) -> 2304.7 | AA65: =VLOOKUP(AA$64&$Y65,GTYF!$C:$AP,37,FALSE) -> 95.54 | AB65: =VLOOKUP(AB$64&$Y65,GTYF!$C:$AP,37,FALSE) -> 0 | AC65: =VLOOKUP(AC$64&$Y65,GTYF!$C:$AP,37,FALSE) -> 95.54 | AD65: =VLOOKUP(AD$64&$Y65,GTYF!$C:$AP,37,FALSE) -> 1130.494 | AE65: =VLOOKUP(AE$64&$Y65,GTYF!$C:$AP,37,FALSE) -> 0 | AF65: =VLOOKUP(AF$64&$Y65,GTYF!$C:$AP,37,FALSE) -> 10594.736 | AG65: =VLOOKUP(AG$64&$Y65,GTYF!$C:$AP,37,FALSE) -> 0 | AH65: =VLOOKUP(AH$64&$Y65,GTYF!$C:$AP,37,FALSE) -> 11725.23
B66: Bétulaies blanches à résineux | D66: 40 | E66: =IFERROR(D66/D$79,0) -> 0.02836879433 | F66: 0 | G66: =IFERROR(F66/F$79,0) -> 0 | H66: =ROUND(AD66/5,-2) -> 1300 | I66: =IFERROR(H66/H$79,0) -> 0.007951070336 | J66: =ROUND(AG66/5,-2) -> 0 | K66: 0 | L66: =ROUND(AF66/5,-2) -> 2200 | M66: =L66/L$79 -> 0.1437908497 | N66: =H66+J66+L66 -> 3500 | O66: 0.01957494407 | S66: Tableau 4. | T66: 40 | U66: =IFERROR(T66/T$79,0) -> 0.02597402597 | V66: =(AA66+AB66)/5 -> 35.7036 | W66: 4.2964 | Y66: (FCTYF_BOPR) | Z66: =VLOOKUP(Z$64&$Y66,GTYF!$C:$AP,6,FALSE) -> 3644.5 | AA66: =VLOOKUP(AA$64&$Y66,GTYF!$C:$AP,37,FALSE) -> 178.518 | AB66: =VLOOKUP(AB$64&$Y66,GTYF!$C:$AP,37,FALSE) -> 0 | AC66: =VLOOKUP(AC$64&$Y66,GTYF!$C:$AP,37,FALSE) -> 178.518 | AD66: =VLOOKUP(AD$64&$Y66,GTYF!$C:$AP,37,FALSE) -> 6653.756 | AE66: =VLOOKUP(AE$64&$Y66,GTYF!$C:$AP,37,FALSE) -> 0 | AF66: =VLOOKUP(AF$64&$Y66,GTYF!$C:$AP,37,FALSE) -> 10782.026 | AG66: =VLOOKUP(AG$64&$Y66,GTYF!$C:$AP,37,FALSE) -> 0 | AH66: =VLOOKUP(AH$64&$Y66,GTYF!$C:$AP,37,FALSE) -> 17435.782
B67: Cédrières | D67: 0 | E67: 0 | F67: 0 | G67: 0 | H67: =ROUND(AD67/5,-2) -> 0 | I67: 0 | J67: 0 | K67: 0 | L67: 0 | M67: 0 | N67: 0 | O67: 0 | S67: Tableau 4. | T67: 0 | U67: 0 | V67: =(AA67+AB67)/5 -> 0 | W67: 0 | Y67: (FCTYF_THO) | Z67: =VLOOKUP(Z$64&$Y67,GTYF!$C:$AP,6,FALSE) -> 0 | AA67: =VLOOKUP(AA$64&$Y67,GTYF!$C:$AP,37,FALSE) -> 0 | AB67: =VLOOKUP(AB$64&$Y67,GTYF!$C:$AP,37,FALSE) -> 0 | AC67: =VLOOKUP(AC$64&$Y67,GTYF!$C:$AP,37,FALSE) -> 0 | AD67: =VLOOKUP(AD$64&$Y67,GTYF!$C:$AP,37,FALSE) -> 0 | AE67: =VLOOKUP(AE$64&$Y67,GTYF!$C:$AP,37,FALSE) -> 0 | AF67: =VLOOKUP(AF$64&$Y67,GTYF!$C:$AP,37,FALSE) -> 0 | AG67: =VLOOKUP(AG$64&$Y67,GTYF!$C:$AP,37,FALSE) -> 0 | AH67: =VLOOKUP(AH$64&$Y67,GTYF!$C:$AP,37,FALSE) -> 0
B68: Érablières rouges | D68: 0 | E68: 0 | F68: 0 | G68: 0 | H68: 0 | I68: 0 | J68: 0 | K68: 0 | L68: 0 | M68: 0 | N68: 0 | O68: 0 | S68: Tableau 4. | T68: 0 | U68: 0 | V68: =(AA68+AB68)/5 -> 0 | W68: 0 | Y68: (FCTYF_ERO) | Z68: =VLOOKUP(Z$64&$Y68,GTYF!$C:$AP,6,FALSE) -> 0 | AA68: =VLOOKUP(AA$64&$Y68,GTYF!$C:$AP,37,FALSE) -> 0 | AB68: =VLOOKUP(AB$64&$Y68,GTYF!$C:$AP,37,FALSE) -> 0 | AC68: =VLOOKUP(AC$64&$Y68,GTYF!$C:$AP,37,FALSE) -> 0 | AD68: =VLOOKUP(AD$64&$Y68,GTYF!$C:$AP,37,FALSE) -> 0 | AE68: =VLOOKUP(AE$64&$Y68,GTYF!$C:$AP,37,FALSE) -> 0 | AF68: =VLOOKUP(AF$64&$Y68,GTYF!$C:$AP,37,FALSE) -> 0 | AG68: =VLOOKUP(AG$64&$Y68,GTYF!$C:$AP,37,FALSE) -> 0 | AH68: =VLOOKUP(AH$64&$Y68,GTYF!$C:$AP,37,FALSE) -> 0
B69: Feuillus tolérants | D69: 0 | E69: 0 | F69: 0 | G69: 0 | H69: 0 | I69: 0 | J69: 0 | K69: 0 | L69: 0 | M69: 0 | N69: 0 | O69: 0 | S69: Tableau 4. | T69: 0 | U69: 0 | V69: 0 | W69: 0 | Y69: (FCTYF_FT) | Z69: =VLOOKUP(Z$64&$Y69,GTYF!$C:$AP,6,FALSE) -> 0 | AA69: =VLOOKUP(AA$64&$Y69,GTYF!$C:$AP,37,FALSE) -> 0 | AB69: =VLOOKUP(AB$64&$Y69,GTYF!$C:$AP,37,FALSE) -> 0 | AC69: =VLOOKUP(AC$64&$Y69,GTYF!$C:$AP,37,FALSE) -> 0 | AD69: =VLOOKUP(AD$64&$Y69,GTYF!$C:$AP,37,FALSE) -> 0 | AE69: =VLOOKUP(AE$64&$Y69,GTYF!$C:$AP,37,FALSE) -> 0 | AF69: =VLOOKUP(AF$64&$Y69,GTYF!$C:$AP,37,FALSE) -> 0 | AG69: =VLOOKUP(AG$64&$Y69,GTYF!$C:$AP,37,FALSE) -> 0 | AH69: =VLOOKUP(AH$64&$Y69,GTYF!$C:$AP,37,FALSE) -> 0
B70: Feuillus tolérants à résineux | D70: 0 | E70: 0 | F70: 0 | G70: 0 | H70: 0 | I70: 0 | J70: 0 | K70: 0 | L70: 0 | M70: 0 | N70: 0 | O70: 0 | S70: Tableau 4. | T70: 0 | U70: 0 | V70: 0 | W70: 0 | Y70: (FCTYF_FTR) | Z70: =VLOOKUP(Z$64&$Y70,GTYF!$C:$AP,6,FALSE) -> 0 | AA70: =VLOOKUP(AA$64&$Y70,GTYF!$C:$AP,37,FALSE) -> 0 | AB70: =VLOOKUP(AB$64&$Y70,GTYF!$C:$AP,37,FALSE) -> 0 | AC70: =VLOOKUP(AC$64&$Y70,GTYF!$C:$AP,37,FALSE) -> 0 | AD70: =VLOOKUP(AD$64&$Y70,GTYF!$C:$AP,37,FALSE) -> 0 | AE70: =VLOOKUP(AE$64&$Y70,GTYF!$C:$AP,37,FALSE) -> 0 | AF70: =VLOOKUP(AF$64&$Y70,GTYF!$C:$AP,37,FALSE) -> 0 | AG70: =VLOOKUP(AG$64&$Y70,GTYF!$C:$AP,37,FALSE) -> 0 | AH70: =VLOOKUP(AH$64&$Y70,GTYF!$C:$AP,37,FALSE) -> 0
B71: Pessières | D71: =ROUND(AA71/5,-1) -> 900 | E71: 0.6382978723 | F71: 130 | G71: 1 | H71: 113500 | I71: 0.6941896024 | J71: 0 | K71: 0 | L71: 4600 | M71: 0.3006535948 | N71: 118100 | O71: 0.6605145414 | S71: Tableau 4. | T71: 1030 | U71: 0.6688311688 | V71: 1023.7336 | W71: =T71-V71 -> 6.2664 | Y71: (FCTYF_EPX) | Z71: =VLOOKUP(Z$64&$Y71,GTYF!$C:$AP,6,FALSE) -> 121175 | AA71: =VLOOKUP(AA$64&$Y71,GTYF!$C:$AP,37,FALSE) -> 4484.758 | AB71: =VLOOKUP(AB$64&$Y71,GTYF!$C:$AP,37,FALSE) -> 633.91 | AC71: =VLOOKUP(AC$64&$Y71,GTYF!$C:$AP,37,FALSE) -> 5118.668 | AD71: =VLOOKUP(AD$64&$Y71,GTYF!$C:$AP,37,FALSE) -> 567548.43 | AE71: =VLOOKUP(AE$64&$Y71,GTYF!$C:$AP,37,FALSE) -> 38.73 | AF71: =VLOOKUP(AF$64&$Y71,GTYF!$C:$AP,37,FALSE) -> 22780.7 | AG71: =VLOOKUP(AG$64&$Y71,GTYF!$C:$AP,37,FALSE) -> 0 | AH71: =VLOOKUP(AH$64&$Y71,GTYF!$C:$AP,37,FALSE) -> 590329.128
B72: Peupleraies | D72: 0 | E72: 0 | F72: 0 | G72: 0 | H72: 0 | I72: 0 | J72: 0 | K72: 0 | L72: 0 | M72: 0 | N72: 0 | O72: 0 | S72: Tableau 4. | T72: 0 | U72: 0 | V72: 0 | W72: 0 | Y72: (FCTYF_PEU) | Z72: =VLOOKUP(Z$64&$Y72,GTYF!$C:$AP,6,FALSE) -> 0 | AA72: =VLOOKUP(AA$64&$Y72,GTYF!$C:$AP,37,FALSE) -> 0 | AB72: =VLOOKUP(AB$64&$Y72,GTYF!$C:$AP,37,FALSE) -> 0 | AC72: =VLOOKUP(AC$64&$Y72,GTYF!$C:$AP,37,FALSE) -> 0 | AD72: =VLOOKUP(AD$64&$Y72,GTYF!$C:$AP,37,FALSE) -> 0 | AE72: =VLOOKUP(AE$64&$Y72,GTYF!$C:$AP,37,FALSE) -> 0 | AF72: =VLOOKUP(AF$64&$Y72,GTYF!$C:$AP,37,FALSE) -> 0 | AG72: =VLOOKUP(AG$64&$Y72,GTYF!$C:$AP,37,FALSE) -> 0 | AH72: =VLOOKUP(AH$64&$Y72,GTYF!$C:$AP,37,FALSE) -> 0
B73: Peupleraies à résineux | D73: 0 | E73: 0 | F73: 0 | G73: 0 | H73: 0 | I73: 0 | J73: 0 | K73: 0 | L73: 0 | M73: 0 | N73: 0 | O73: 0 | S73: Tableau 4. | T73: 0 | U73: 0 | V73: 0 | W73: 0 | Y73: (FCTYF_PEUR) | Z73: =VLOOKUP(Z$64&$Y73,GTYF!$C:$AP,6,FALSE) -> 0 | AA73: =VLOOKUP(AA$64&$Y73,GTYF!$C:$AP,37,FALSE) -> 0 | AB73: =VLOOKUP(AB$64&$Y73,GTYF!$C:$AP,37,FALSE) -> 0 | AC73: =VLOOKUP(AC$64&$Y73,GTYF!$C:$AP,37,FALSE) -> 0 | AD73: =VLOOKUP(AD$64&$Y73,GTYF!$C:$AP,37,FALSE) -> 0 | AE73: =VLOOKUP(AE$64&$Y73,GTYF!$C:$AP,37,FALSE) -> 0 | AF73: =VLOOKUP(AF$64&$Y73,GTYF!$C:$AP,37,FALSE) -> 0 | AG73: =VLOOKUP(AG$64&$Y73,GTYF!$C:$AP,37,FALSE) -> 0 | AH73: =VLOOKUP(AH$64&$Y73,GTYF!$C:$AP,37,FALSE) -> 0
B74: Pinèdes blanches | D74: 0 | E74: 0 | F74: 0 | G74: 0 | H74: 0 | I74: 0 | J74: 0 | K74: 0 | L74: 0 | M74: 0 | N74: 0 | O74: 0 | S74: Tableau 4. | T74: 0 | U74: 0 | V74: 0 | W74: 0 | Y74: (FCTYF_PIN) | Z74: =VLOOKUP(Z$64&$Y74,GTYF!$C:$AP,6,FALSE) -> 0 | AA74: =VLOOKUP(AA$64&$Y74,GTYF!$C:$AP,37,FALSE) -> 0 | AB74: =VLOOKUP(AB$64&$Y74,GTYF!$C:$AP,37,FALSE) -> 0 | AC74: =VLOOKUP(AC$64&$Y74,GTYF!$C:$AP,37,FALSE) -> 0 | AD74: =VLOOKUP(AD$64&$Y74,GTYF!$C:$AP,37,FALSE) -> 0 | AE74: =VLOOKUP(AE$64&$Y74,GTYF!$C:$AP,37,FALSE) -> 0 | AF74: =VLOOKUP(AF$64&$Y74,GTYF!$C:$AP,37,FALSE) -> 0 | AG74: =VLOOKUP(AG$64&$Y74,GTYF!$C:$AP,37,FALSE) -> 0 | AH74: =VLOOKUP(AH$64&$Y74,GTYF!$C:$AP,37,FALSE) -> 0
B75: Pinèdes grises | D75: 230 | E75: 0.1631205674 | F75: 0 | G75: 0 | H75: 25600 | I75: 0.1565749235 | J75: 0 | K75: 0 | L75: 700 | M75: 0.04575163399 | N75: 26300 | O75: 0.1470917226 | S75: Tableau 4. | T75: 230 | U75: 0.1493506494 | V75: 229.034 | W75: 0.966 | Y75: (FCTYF_PIG) | Z75: =VLOOKUP(Z$64&$Y75,GTYF!$C:$AP,6,FALSE) -> 9197.1 | AA75: =VLOOKUP(AA$64&$Y75,GTYF!$C:$AP,37,FALSE) -> 1126.17 | AB75: =VLOOKUP(AB$64&$Y75,GTYF!$C:$AP,37,FALSE) -> 19 | AC75: =VLOOKUP(AC$64&$Y75,GTYF!$C:$AP,37,FALSE) -> 1145.17 | AD75: =VLOOKUP(AD$64&$Y75,GTYF!$C:$AP,37,FALSE) -> 128099.848 | AE75: =VLOOKUP(AE$64&$Y75,GTYF!$C:$AP,37,FALSE) -> 0 | AF75: =VLOOKUP(AF$64&$Y75,GTYF!$C:$AP,37,FALSE) -> 3361.608 | AG75: =VLOOKUP(AG$64&$Y75,GTYF!$C:$AP,37,FALSE) -> 0 | AH75: =VLOOKUP(AH$64&$Y75,GTYF!$C:$AP,37,FALSE) -> 131461.454
B76: Prucheraies | D76: 0 | E76: 0 | F76: 0 | G76: 0 | H76: 0 | I76: 0 | J76: 0 | K76: 0 | L76: 0 | M76: 0 | N76: 0 | O76: 0 | S76: Tableau 4. | T76: 0 | U76: 0 | V76: 0 | W76: 0 | Y76: (FCTYF_PRU) | Z76: =VLOOKUP(Z$64&$Y76,GTYF!$C:$AP,6,FALSE) -> 0 | AA76: =VLOOKUP(AA$64&$Y76,GTYF!$C:$AP,37,FALSE) -> 0 | AB76: =VLOOKUP(AB$64&$Y76,GTYF!$C:$AP,37,FALSE) -> 0 | AC76: =VLOOKUP(AC$64&$Y76,GTYF!$C:$AP,37,FALSE) -> 0 | AD76: =VLOOKUP(AD$64&$Y76,GTYF!$C:$AP,37,FALSE) -> 0 | AE76: =VLOOKUP(AE$64&$Y76,GTYF!$C:$AP,37,FALSE) -> 0 | AF76: =VLOOKUP(AF$64&$Y76,GTYF!$C:$AP,37,FALSE) -> 0 | AG76: =VLOOKUP(AG$64&$Y76,GTYF!$C:$AP,37,FALSE) -> 0 | AH76: =VLOOKUP(AH$64&$Y76,GTYF!$C:$AP,37,FALSE) -> 0
B77: Résineux à feuillus | D77: 120 | E77: 0.08510638298 | F77: 0 | G77: 0 | H77: 9900 | I77: 0.06055045872 | J77: 0 | K77: 0 | L77: 4700 | M77: 0.3071895425 | N77: 14600 | O77: 0.08165548098 | S77: Tableau 4. | T77: 120 | U77: 0.07792207792 | V77: 122.8948 | W77: -2.8948 | Y77: (FCTYF_RF) | Z77: =VLOOKUP(Z$64&$Y77,GTYF!$C:$AP,6,FALSE) -> 22098.3 | AA77: =VLOOKUP(AA$64&$Y77,GTYF!$C:$AP,37,FALSE) -> 614.474 | AB77: =VLOOKUP(AB$64&$Y77,GTYF!$C:$AP,37,FALSE) -> 0 | AC77: =VLOOKUP(AC$64&$Y77,GTYF!$C:$AP,37,FALSE) -> 614.474 | AD77: =VLOOKUP(AD$64&$Y77,GTYF!$C:$AP,37,FALSE) -> 49492.89 | AE77: =VLOOKUP(AE$64&$Y77,GTYF!$C:$AP,37,FALSE) -> 0 | AF77: =VLOOKUP(AF$64&$Y77,GTYF!$C:$AP,37,FALSE) -> 23395.124 | AG77: =VLOOKUP(AG$64&$Y77,GTYF!$C:$AP,37,FALSE) -> 0 | AH77: =VLOOKUP(AH$64&$Y77,GTYF!$C:$AP,37,FALSE) -> 72888.012
B78: Sapinières | D78: 100 | E78: 0.07092198582 | F78: 0 | G78: 0 | H78: 13000 | I78: 0.07951070336 | J78: =ROUND(AG78/5,-2) -> 0 | K78: 0 | L78: 1000 | M78: 0.06535947712 | N78: 14000 | O78: 0.07829977629 | S78: Tableau 4. | T78: 100 | U78: 0.06493506494 | V78: 97.048 | W78: 2.952 | Y78: (FCTYF_SAB) | Z78: =VLOOKUP(Z$64&$Y78,GTYF!$C:$AP,6,FALSE) -> 3180.3 | AA78: =VLOOKUP(AA$64&$Y78,GTYF!$C:$AP,37,FALSE) -> 485.24 | AB78: =VLOOKUP(AB$64&$Y78,GTYF!$C:$AP,37,FALSE) -> 0 | AC78: =VLOOKUP(AC$64&$Y78,GTYF!$C:$AP,37,FALSE) -> 485.24 | AD78: =VLOOKUP(AD$64&$Y78,GTYF!$C:$AP,37,FALSE) -> 64874.582 | AE78: =VLOOKUP(AE$64&$Y78,GTYF!$C:$AP,37,FALSE) -> 0 | AF78: =VLOOKUP(AF$64&$Y78,GTYF!$C:$AP,37,FALSE) -> 4785.806 | AG78: =VLOOKUP(AG$64&$Y78,GTYF!$C:$AP,37,FALSE) -> 0 | AH78: =VLOOKUP(AH$64&$Y78,GTYF!$C:$AP,37,FALSE) -> 69660.39
B79: Total | D79: =SUM(D65:D78) -> 1410 | E79: =SUM(E65:E78) -> 1 | F79: =SUM(F65:F78) -> 130 | G79: =SUM(G65:G78) -> 1 | H79: =SUM(H65:H78) -> 163500 | I79: =SUM(I65:I78) -> 1 | J79: 0 | K79: 0 | L79: 15300 | M79: 1 | N79: =SUM(N65:N78) -> 178800 | O79: 1 | S79: Tableau 4. | T79: =SUM(T65:T78) -> 1540 | U79: =SUM(U65:U78) -> 1 | V79: =SUM(V65:V78) -> 1527.522 | W79: 12.478 | Y79: Somme | Z79: =SUM(Z65:Z78) -> 161599.9 | AA79: =SUM(AA65:AA78) -> 6984.7 | AB79: =SUM(AB65:AB78) -> 652.91 | AC79: =SUM(AC65:AC78) -> 7637.61
B80: * Les superficies sont arrondies à la dizaine près et les volumes à la centaine près. Cette opération peut engendrer de légères distorsions sur les sommes | S80: Tableau 4. | Y80: Total (Output) | Z80: =VLOOKUP(Z$64,Output!$C:$AP,6,FALSE) -> 181655.9
Y81: Écart | Z81: =Z79-Z80 -> -20056
N82: Écart de possibilité
N83: =Instructions!I5/5-N79 -> -100 | O83: Valideur
B84: Tableau 8. Traitements commerciaux supportant les possibilités forestières
B85: Traitements commerciaux (récolte) | G85: Superficie annuelle moyenne (ha/an) | H85: Superficie antérieure (ha/an) | I85: Écart (ha/an)
T88: Légende | U88: Name | V88: PERIOD2@6
B89: Coupe avec protection de la régénération et des sols (CPRS) | G89: =IFERROR(ROUND(V89,-1),0)-G90-G91 -> 1400 | H89: =IFERROR(ROUND(VLOOKUP(O33,DataLocal!$A:$BH,37,FALSE),-1),0) -> 2110 | I89: =G89-H89 -> -710 | J89: 1400 | K89: 2110 | S89: =LEFT(B$84,10) -> Tableau 8. | T89: Coupes avec protection de la régénération et des sols (CPRS) | U89: OSUPCT | V89: =IFERROR(VLOOKUP(U89,Output!$C:$AQ,37,FALSE)/5,"0000") -> 1396.9396
B90: Coupe avec protection des petites tiges marchandes (CPPTM) | G90: =IFERROR(ROUND(V90,-1),0) -> 0 | H90: =IFERROR(ROUND(VLOOKUP(O33,DataLocal!$A:$BH,38,FALSE),-1),0) -> 30 | I90: =G90-H90 -> -30 | J90: 0 | K90: 30 | S90: Tableau 8. | T90: Coupe avec protection des petites tiges marchandes (CPPTM) | U90: OSUPREALACPPTM | V90: =IFERROR(VLOOKUP(U90,Output!$C:$AQ,37,FALSE)/5,"0000") -> 0
B91: Coupe avec réserve de semenciers (CRS) | G91: =IFERROR(ROUND(V91,-1),0) -> 0 | H91: =IFERROR(ROUND(VLOOKUP(33,DataLocal!$A:$BH,39,FALSE),-1),0) -> 0 | I91: 0 | J91: 0 | K91: 0 | S91: Tableau 8. | T91: Coupe avec réserve de semenciers (CRS) | U91: OSUPREALACRS | V91: =IFERROR(VLOOKUP(U91,Output!$C:$AQ,37,FALSE)/5,"0000") -> 0
B92: Total des coupes finales | G92: =SUM(G89:G91) -> 1400 | H92: =SUM(H89:H91) -> 2140 | I92: -740 | J92: 1400 | K92: 2140 | S92: Tableau 8.
B93: Éclaircie commerciale | G93: =IFERROR(ROUND(V93,-1),0) -> 20 | H93: =IFERROR(ROUND(VLOOKUP(O33,DataLocal!$A:$BH,40,FALSE),-1),0) -> 40 | I93: -20 | J93: 20 | K93: 40 | S93: Tableau 8. | T93: Éclaircie commerciale (EC) | U93: OSUPEC_SEPM | V93: =IFERROR(VLOOKUP(U93,Output!$C:$AQ,37,FALSE)/5,"0000") -> 15.2
B94: Coupe progressive régulière | G94: =IFERROR(ROUND(V94+V95,-1),0) -> 0 | H94: =IFERROR(ROUND(VLOOKUP(O33,DataLocal!$A:$BH,41,FALSE),-1),0) -> 0 | I94: 0 | J94: 0 | K94: 0 | S94: Tableau 8. | T94: Coupe progressive régulière initiale (CPROG) | U94: OSUPCPROG_INI | V94: =IFERROR(VLOOKUP(U94,Output!$C:$AQ,37,FALSE)/5,"0000") -> 0000
B95: Coupe progressive irrégulière à régénération lente (CPIL) | G95: =IFERROR(ROUND(V96+V97,-1),0) -> 120 | H95: =IFERROR(ROUND(VLOOKUP(O33,DataLocal!$A:$BH,42,FALSE),-1),0) -> 60 | I95: 60 | J95: 120 | K95: 60 | S95: Tableau 8. | T95: Coupe progressive régulière finale (CPROG) | U95: OSUPCPROG_FIN | V95: =IFERROR(VLOOKUP(U95,Output!$C:$AQ,37,FALSE)/5,"0000") -> 0000
B96: Coupe progressive irrégulière à couvert permanent (CPICP) | G96: =IFERROR(ROUND(V98,-1),0) -> 0 | H96: =IFERROR(ROUND(VLOOKUP(O33,DataLocal!$A:$BH,43,FALSE),-1),0) -> 0 | I96: 0 | J96: 0 | K96: 0 | S96: Tableau 8. | T96: Coupe progessive irrégulière initiale (CPIRL) | U96: OSUPCPIRL_INI | V96: =IFERROR(VLOOKUP(U96,Output!$C:$AQ,37,FALSE)/5,"0000") -> 115.382
B97: Coupes de jardinage ou d'amélioration | G97: =IFERROR(ROUND(V99,-1),0) -> 0 | H97: =IFERROR(ROUND(VLOOKUP(O33,DataLocal!$A:$BH,44,FALSE),-1),0) -> 0 | I97: 0 | J97: 0 | K97: 0 | T97: Coupe progessive irrégulière finale (CPIRL) | U97: OSUPCPIRL_FIN | V97: =IFERROR(VLOOKUP(U97,Output!$C:$AQ,37,FALSE)/5,"0000") -> 0
B98: Total des coupes partielles | G98: =SUM(G93:G97) -> 140 | H98: =SUM(H93:H97) -> 100 | I98: 40 | J98: 140 | K98: 100 | S98: =LEFT(B$84,10) -> Tableau 8. | T98: Coupe à couvert permanent (CPICP) | U98: OSUPCPICP | V98: =IFERROR(VLOOKUP(U98,Output!$C:$AQ,37,FALSE)/5,"0000") -> 0000
B99: Total des activités de récolte | G99: =G92+G98 -> 1540 | H99: =H98+H92 -> 2240 | I99: -700 | J99: 1540 | K99: 2240 | S99: =LEFT(B$84,10) -> Tableau 8. | T99: Coupe de jardinage (CJ) | U99: OSUPCJ | V99: =IFERROR(VLOOKUP(U99,Output!$C:$AQ,37,FALSE)/5,"0000") -> 0000
B100: % des coupes totales / récolte | G100: =IFERROR(G92/G99,0) -> 0.9090909091 | H100: =IFERROR(H92/H99,0) -> 0.9553571429 | I100: =ROUND(G100-H100,2) -> -0.05 | J100: 0.9090909091 | K100: 0.9553571429 | W100: Valideur
B101: % des coupes partielles / récolte | G101: =IFERROR(G98/G99,0) -> 0.09090909091 | H101: =IFERROR(H98/H99,0) -> 0.04464285714 | I101: =ROUND(G101-H101,2) -> 0.05 | J101: 0.09090909091 | K101: 0.04464285714 | S101: =LEFT(B$84,10) -> Tableau 8. | U101: OSUPREALREGAPAR | V101: =VLOOKUP(U101,Output!$C:$AQ,37,FALSE)/5 -> 130.582 | W101: =ROUND(SUM(V93:V99),0)=ROUND(V101,0) -> TRUE
B102: Coupes partielles de peuplements résineux | G102: =ROUND((AB67+AB71+AB75+AB76+AB77+AB78)/5,-1) -> 130 | H102: =IFERROR(ROUND(VLOOKUP(O33,DataLocal!$A:$BH,45,FALSE),-1),0) -> 110 | I102: 20 | S102: =LEFT(B$84,10) -> Tableau 8. | U102: OSUPREALREGAFIN | V102: =VLOOKUP(U102,Output!$C:$AQ,37,FALSE)/5 -> 1396.9396 | W102: =ROUND((V89),0)=ROUND(V102,0) -> TRUE
B103: Coupes partielles de peuplements de feuillus tolérants et de pins | G103: =ROUND((AB69+AB70+AB74)/5,-1) -> 0 | H103: =IFERROR(ROUND(VLOOKUP(O33,DataLocal!$A:$BH,46,FALSE),-1),0) -> 0 | I103: 0 | S103: =LEFT(B$84,10) -> Tableau 8. | U103: OSUPREALREGAPRE | V103: =VLOOKUP(U103,Output!$C:$AQ,37,FALSE)/5 -> 1527.5216 | W103: =ROUND(V89+SUM(V93:V99),0)=ROUND(V103,0) -> TRUE
B109: Tableau 9. Variables descriptives reliées aux coupes partielles et totales par grand type de forêt | L109: La CRV est-elle compabilisée avec les coupes partielles (regaPar)?
B110: Grands types de forêt | E110: Coupes partielles | H110: Coupes totales | L110: Si Oui - Remplacer alors les valeurs (colonne H et I) par celles-ci
E111: Rotation moyenne | F111: Prélèvement moyen | G111: Surface terrière moyenne avant coupe | H111: Âge moyen des peuplements | I111: Volume moyen toutes essences | J111: Dimension des bois SEPM | M111: Âge moyen des peuplements | N111: Volume moyen toutes essences
S113: Référence Tableau 63 du cahier d'analyse VF
E115: Années | F115: ="m"&CHAR(179)&"/ha" -> m³/ha | G115: ="m"&CHAR(178)&"/ha" -> m²/ha | H115: Années | I115: ="m"&CHAR(179)&"/an" -> m³/an | J115: ="dcm"&CHAR(179)&"/tige" -> dcm³/tige | M115: Années | N115: ="m"&CHAR(179)&"/an" -> m³/an | S115: =LEFT(B$109,10) -> Tableau 9. | V115: OSUPREALREGAPRE | W115: OSUPINC | X115: OVOLGSEPMRECREGAFIN | Y115: ONBTGSEPMRECREGAFIN | Z115: OVOLTOTRECACT | AA115: OVOLTOTRECACFP | AB115: OVOLTOTRECACRS | AC115: OVOLTOTRECACPPTM | AD115: OSUPREALREGAFIN | AE115: OVOLTOTRECACRV | AF115: OAGETOTRECACT | AG115: OAGETOTRECACFP | AH115: OAGETOTRECACRS | AI115: OAGETOTRECACPPTM | AJ115: OSUPREALREGAFIN | AK115: OAGETOTRECACRV | AM115: OVOLTOTRECaEC | AN115: OVOLTOTRECaEC2 | AO115: OVOLTOTRECaEC3 | AP115: OVOLTOTRECaCA | AQ115: OVOLTOTRECaCA2 | AR115: OVOLTOTRECaCPROG | AS115: OVOLTOTRECaCPIL | AT115: OVOLTOTRECaCPIP | AU115: OVOLTOTRECaCPFORT | AV115: OVOLTOTRECaCPFAIBL | AW115: OVOLTOTRECaCP | AX115: OVOLTOTRECaCPJ | AY115: OVOLTOTRECaCJ | AZ115: SOMME | BA115: OSUPREALREGAPAR
B116: =T116 -> Bétulaies blanches | E116: - | F116: =IFERROR($AZ116/$BA116,"-") -> - | G116: - | H116: =IFERROR(($AF116+$AG116+$AH116+$AI116+$AK116)/$AJ116*5,"-") -> 87.56206824 | I116: =IFERROR(($Z116+$AA116+$AB116+$AC116+$AE116)/$AD116,"-") -> 122.725874 | J116: =(IFERROR(X116/Y116*1000,"-")) -> 115.7391548 | M116: =IFERROR(($AF116+$AG116+$AH116+$AI116)/$AJ116*5,"-") -> 87.56206824 | N116: =IFERROR(($Z116+$AA116+$AB116+$AC116)/$AD116,"-") -> 122.725874 | S116: =LEFT(B$109,10) -> Tableau 9. | T116: Bétulaies blanches | U116: (FCTYF_BOP) | V116: =VLOOKUP(V$115&$U116,GTYF!$C:$AQ,37,FALSE) -> 95.54 | W116: =VLOOKUP(W$115&$U116,GTYF!$C:$AQ,6,FALSE) -> 2304.7 | X116: =VLOOKUP(X$115&$U116,GTYF!$C:$AQ,37,FALSE) -> 1130.494 | Y116: =VLOOKUP(Y$115&$U116,GTYF!$C:$AQ,37,FALSE) -> 9767.602 | Z116: =VLOOKUP(Z$115&$U116,GTYF!$C:$AQ,37,FALSE) -> 11725.23 | AA116: =VLOOKUP(AA$115&$U116,GTYF!$C:$AQ,37,FALSE) -> 0 | AB116: =VLOOKUP(AB$115&$U116,GTYF!$C:$AQ,37,FALSE) -> 0 | AC116: =VLOOKUP(AC$115&$U116,GTYF!$C:$AQ,37,FALSE) -> 0 | AD116: =VLOOKUP(AD$115&$U116,GTYF!$C:$AQ,37,FALSE) -> 95.54 | AE116: =VLOOKUP(AE$115&$U116,GTYF!$C:$AQ,37,FALSE) -> 0 | AF116: =VLOOKUP(AF$115&$U116,GTYF!$C:$AQ,37,FALSE) -> 1673.136 | AG116: =VLOOKUP(AG$115&$U116,GTYF!$C:$AQ,37,FALSE) -> 0 | AH116: =VLOOKUP(AH$115&$U116,GTYF!$C:$AQ,37,FALSE) -> 0 | AI116: =VLOOKUP(AI$115&$U116,GTYF!$C:$AQ,37,FALSE) -> 0 | AJ116: =VLOOKUP(AJ$115&$U116,GTYF!$C:$AQ,37,FALSE) -> 95.54 | AK116: =VLOOKUP(AK$115&$U116,GTYF!$C:$AQ,37,FALSE) -> 0 | AM116: =VLOOKUP(AM$115&$U116,GTYF!$C:$AQ,37,FALSE) -> 0 | AN116: =VLOOKUP(AN$115&$U116,GTYF!$C:$AQ,37,FALSE) -> 0 | AO116: =VLOOKUP(AO$115&$U116,GTYF!$C:$AQ,37,FALSE) -> 0 | AP116: =VLOOKUP(AP$115&$U116,GTYF!$C:$AQ,37,FALSE) -> 0 | AQ116: =VLOOKUP(AQ$115&$U116,GTYF!$C:$AQ,37,FALSE) -> 0 | AR116: =VLOOKUP(AR$115&$U116,GTYF!$C:$AQ,37,FALSE) -> 0 | AS116: =VLOOKUP(AS$115&$U116,GTYF!$C:$AQ,37,FALSE) -> 0 | AT116: =VLOOKUP(AT$115&$U116,GTYF!$C:$AQ,37,FALSE) -> 0 | AU116: =VLOOKUP(AU$115&$U116,GTYF!$C:$AQ,37,FALSE) -> 0 | AV116: =VLOOKUP(AV$115&$U116,GTYF!$C:$AQ,37,FALSE) -> 0 | AW116: =VLOOKUP(AW$115&$U116,GTYF!$C:$AQ,37,FALSE) -> 0 | AX116: =VLOOKUP(AX$115&$U116,GTYF!$C:$AQ,37,FALSE) -> 0 | AY116: =VLOOKUP(AY$115&$U116,GTYF!$C:$AQ,37,FALSE) -> 0 | AZ116: =SUM(AM116:AY116) -> 0 | BA116: =VLOOKUP(BA$115&$U116,GTYF!$C:$AQ,37,FALSE) -> 0
B117: Bétulaies blanches à résineux | E117: - | F117: - | G117: - | H117: =IFERROR(($AF117+$AG117+$AH117+$AI117+$AK117)/$AJ117*5,"-") -> 79.97882566 | I117: =IFERROR(($Z117+$AA117+$AB117+$AC117+$AE117)/$AD117,"-") -> 97.66960194 | J117: =(IFERROR(X117/Y117*1000,"-")) -> 130.959877 | M117: =IFERROR(($AF117+$AG117+$AH117+$AI117)/$AJ117*5,"-") -> 79.97882566 | N117: =IFERROR(($Z117+$AA117+$AB117+$AC117)/$AD117,"-") -> 97.66960194 | S117: Tableau 9. | T117: Bétulaies blanches à résineux | U117: (FCTYF_BOPR) | V117: =VLOOKUP(V$115&$U117,GTYF!$C:$AQ,37,FALSE) -> 178.518 | W117: =VLOOKUP(W$115&$U117,GTYF!$C:$AQ,6,FALSE) -> 3644.5 | X117: =VLOOKUP(X$115&$U117,GTYF!$C:$AQ,37,FALSE) -> 6653.756 | Y117: =VLOOKUP(Y$115&$U117,GTYF!$C:$AQ,37,FALSE) -> 50807.592 | Z117: =VLOOKUP(Z$115&$U117,GTYF!$C:$AQ,37,FALSE) -> 17435.782 | AA117: =VLOOKUP(AA$115&$U117,GTYF!$C:$AQ,37,FALSE) -> 0 | AB117: =VLOOKUP(AB$115&$U117,GTYF!$C:$AQ,37,FALSE) -> 0 | AC117: =VLOOKUP(AC$115&$U117,GTYF!$C:$AQ,37,FALSE) -> 0 | AD117: =VLOOKUP(AD$115&$U117,GTYF!$C:$AQ,37,FALSE) -> 178.518 | AE117: =VLOOKUP(AE$115&$U117,GTYF!$C:$AQ,37,FALSE) -> 0 | AF117: =VLOOKUP(AF$115&$U117,GTYF!$C:$AQ,37,FALSE) -> 2855.532 | AG117: =VLOOKUP(AG$115&$U117,GTYF!$C:$AQ,37,FALSE) -> 0 | AH117: =VLOOKUP(AH$115&$U117,GTYF!$C:$AQ,37,FALSE) -> 0 | AI117: =VLOOKUP(AI$115&$U117,GTYF!$C:$AQ,37,FALSE) -> 0 | AJ117: =VLOOKUP(AJ$115&$U117,GTYF!$C:$AQ,37,FALSE) -> 178.518 | AK117: =VLOOKUP(AK$115&$U117,GTYF!$C:$AQ,37,FALSE) -> 0 | AM117: =VLOOKUP(AM$115&$U117,GTYF!$C:$AQ,37,FALSE) -> 0 | AN117: =VLOOKUP(AN$115&$U117,GTYF!$C:$AQ,37,FALSE) -> 0 | AO117: =VLOOKUP(AO$115&$U117,GTYF!$C:$AQ,37,FALSE) -> 0 | AP117: =VLOOKUP(AP$115&$U117,GTYF!$C:$AQ,37,FALSE) -> 0 | AQ117: =VLOOKUP(AQ$115&$U117,GTYF!$C:$AQ,37,FALSE) -> 0 | AR117: =VLOOKUP(AR$115&$U117,GTYF!$C:$AQ,37,FALSE) -> 0 | AS117: =VLOOKUP(AS$115&$U117,GTYF!$C:$AQ,37,FALSE) -> 0 | AT117: =VLOOKUP(AT$115&$U117,GTYF!$C:$AQ,37,FALSE) -> 0 | AU117: =VLOOKUP(AU$115&$U117,GTYF!$C:$AQ,37,FALSE) -> 0 | AV117: =VLOOKUP(AV$115&$U117,GTYF!$C:$AQ,37,FALSE) -> 0 | AW117: =VLOOKUP(AW$115&$U117,GTYF!$C:$AQ,37,FALSE) -> 0 | AX117: =VLOOKUP(AX$115&$U117,GTYF!$C:$AQ,37,FALSE) -> 0 | AY117: =VLOOKUP(AY$115&$U117,GTYF!$C:$AQ,37,FALSE) -> 0 | AZ117: =SUM(AM117:AY117) -> 0 | BA117: =VLOOKUP(BA$115&$U117,GTYF!$C:$AQ,37,FALSE) -> 0
B118: Cédrières | E118: - | F118: - | G118: - | H118: =IFERROR(($AF118+$AG118+$AH118+$AI118+$AK118)/$AJ118*5,"-") -> - | I118: - | J118: =(IFERROR(X118/Y118*1000,"-")) -> - | M118: - | N118: - | S118: Tableau 9. | T118: Cédrières | U118: (FCTYF_THO) | V118: =VLOOKUP(V$115&$U118,GTYF!$C:$AQ,37,FALSE) -> 0 | W118: =VLOOKUP(W$115&$U118,GTYF!$C:$AQ,6,FALSE) -> 0 | X118: =VLOOKUP(X$115&$U118,GTYF!$C:$AQ,37,FALSE) -> 0 | Y118: =VLOOKUP(Y$115&$U118,GTYF!$C:$AQ,37,FALSE) -> 0 | Z118: =VLOOKUP(Z$115&$U118,GTYF!$C:$AQ,37,FALSE) -> 0 | AA118: =VLOOKUP(AA$115&$U118,GTYF!$C:$AQ,37,FALSE) -> 0 | AB118: =VLOOKUP(AB$115&$U118,GTYF!$C:$AQ,37,FALSE) -> 0 | AC118: =VLOOKUP(AC$115&$U118,GTYF!$C:$AQ,37,FALSE) -> 0 | AD118: =VLOOKUP(AD$115&$U118,GTYF!$C:$AQ,37,FALSE) -> 0 | AE118: =VLOOKUP(AE$115&$U118,GTYF!$C:$AQ,37,FALSE) -> 0 | AF118: =VLOOKUP(AF$115&$U118,GTYF!$C:$AQ,37,FALSE) -> 0 | AG118: =VLOOKUP(AG$115&$U118,GTYF!$C:$AQ,37,FALSE) -> 0 | AH118: =VLOOKUP(AH$115&$U118,GTYF!$C:$AQ,37,FALSE) -> 0 | AI118: =VLOOKUP(AI$115&$U118,GTYF!$C:$AQ,37,FALSE) -> 0 | AJ118: =VLOOKUP(AJ$115&$U118,GTYF!$C:$AQ,37,FALSE) -> 0 | AK118: =VLOOKUP(AK$115&$U118,GTYF!$C:$AQ,37,FALSE) -> 0 | AM118: =VLOOKUP(AM$115&$U118,GTYF!$C:$AQ,37,FALSE) -> 0 | AN118: =VLOOKUP(AN$115&$U118,GTYF!$C:$AQ,37,FALSE) -> 0 | AO118: =VLOOKUP(AO$115&$U118,GTYF!$C:$AQ,37,FALSE) -> 0 | AP118: =VLOOKUP(AP$115&$U118,GTYF!$C:$AQ,37,FALSE) -> 0 | AQ118: =VLOOKUP(AQ$115&$U118,GTYF!$C:$AQ,37,FALSE) -> 0 | AR118: =VLOOKUP(AR$115&$U118,GTYF!$C:$AQ,37,FALSE) -> 0 | AS118: =VLOOKUP(AS$115&$U118,GTYF!$C:$AQ,37,FALSE) -> 0 | AT118: =VLOOKUP(AT$115&$U118,GTYF!$C:$AQ,37,FALSE) -> 0 | AU118: =VLOOKUP(AU$115&$U118,GTYF!$C:$AQ,37,FALSE) -> 0 | AV118: =VLOOKUP(AV$115&$U118,GTYF!$C:$AQ,37,FALSE) -> 0 | AW118: =VLOOKUP(AW$115&$U118,GTYF!$C:$AQ,37,FALSE) -> 0 | AX118: =VLOOKUP(AX$115&$U118,GTYF!$C:$AQ,37,FALSE) -> 0 | AY118: =VLOOKUP(AY$115&$U118,GTYF!$C:$AQ,37,FALSE) -> 0 | AZ118: 0 | BA118: =VLOOKUP(BA$115&$U118,GTYF!$C:$AQ,37,FALSE) -> 0
B119: Érablières rouges | E119: - | F119: - | G119: - | H119: - | I119: - | J119: - | M119: - | N119: - | S119: Tableau 9. | T119: Érablières rouges | U119: (FCTYF_ERO) | V119: =VLOOKUP(V$115&$U119,GTYF!$C:$AQ,37,FALSE) -> 0 | W119: =VLOOKUP(W$115&$U119,GTYF!$C:$AQ,6,FALSE) -> 0 | X119: =VLOOKUP(X$115&$U119,GTYF!$C:$AQ,37,FALSE) -> 0 | Y119: =VLOOKUP(Y$115&$U119,GTYF!$C:$AQ,37,FALSE) -> 0 | Z119: =VLOOKUP(Z$115&$U119,GTYF!$C:$AQ,37,FALSE) -> 0 | AA119: =VLOOKUP(AA$115&$U119,GTYF!$C:$AQ,37,FALSE) -> 0 | AB119: =VLOOKUP(AB$115&$U119,GTYF!$C:$AQ,37,FALSE) -> 0 | AC119: =VLOOKUP(AC$115&$U119,GTYF!$C:$AQ,37,FALSE) -> 0 | AD119: =VLOOKUP(AD$115&$U119,GTYF!$C:$AQ,37,FALSE) -> 0 | AE119: =VLOOKUP(AE$115&$U119,GTYF!$C:$AQ,37,FALSE) -> 0 | AF119: =VLOOKUP(AF$115&$U119,GTYF!$C:$AQ,37,FALSE) -> 0 | AG119: =VLOOKUP(AG$115&$U119,GTYF!$C:$AQ,37,FALSE) -> 0 | AH119: =VLOOKUP(AH$115&$U119,GTYF!$C:$AQ,37,FALSE) -> 0 | AI119: =VLOOKUP(AI$115&$U119,GTYF!$C:$AQ,37,FALSE) -> 0 | AJ119: =VLOOKUP(AJ$115&$U119,GTYF!$C:$AQ,37,FALSE) -> 0 | AK119: =VLOOKUP(AK$115&$U119,GTYF!$C:$AQ,37,FALSE) -> 0 | AM119: =VLOOKUP(AM$115&$U119,GTYF!$C:$AQ,37,FALSE) -> 0 | AN119: =VLOOKUP(AN$115&$U119,GTYF!$C:$AQ,37,FALSE) -> 0 | AO119: =VLOOKUP(AO$115&$U119,GTYF!$C:$AQ,37,FALSE) -> 0 | AP119: =VLOOKUP(AP$115&$U119,GTYF!$C:$AQ,37,FALSE) -> 0 | AQ119: =VLOOKUP(AQ$115&$U119,GTYF!$C:$AQ,37,FALSE) -> 0 | AR119: =VLOOKUP(AR$115&$U119,GTYF!$C:$AQ,37,FALSE) -> 0 | AS119: =VLOOKUP(AS$115&$U119,GTYF!$C:$AQ,37,FALSE) -> 0 | AT119: =VLOOKUP(AT$115&$U119,GTYF!$C:$AQ,37,FALSE) -> 0 | AU119: =VLOOKUP(AU$115&$U119,GTYF!$C:$AQ,37,FALSE) -> 0 | AV119: =VLOOKUP(AV$115&$U119,GTYF!$C:$AQ,37,FALSE) -> 0 | AW119: =VLOOKUP(AW$115&$U119,GTYF!$C:$AQ,37,FALSE) -> 0 | AX119: =VLOOKUP(AX$115&$U119,GTYF!$C:$AQ,37,FALSE) -> 0 | AY119: =VLOOKUP(AY$115&$U119,GTYF!$C:$AQ,37,FALSE) -> 0 | AZ119: 0 | BA119: =VLOOKUP(BA$115&$U119,GTYF!$C:$AQ,37,FALSE) -> 0
B120: Feuillus tolérants | E120: - | F120: - | G120: - | H120: - | I120: - | J120: - | M120: - | N120: - | S120: Tableau 9. | T120: Feuillus tolérants | U120: (FCTYF_FT) | V120: =VLOOKUP(V$115&$U120,GTYF!$C:$AQ,37,FALSE) -> 0 | W120: =VLOOKUP(W$115&$U120,GTYF!$C:$AQ,6,FALSE) -> 0 | X120: =VLOOKUP(X$115&$U120,GTYF!$C:$AQ,37,FALSE) -> 0 | Y120: =VLOOKUP(Y$115&$U120,GTYF!$C:$AQ,37,FALSE) -> 0 | Z120: =VLOOKUP(Z$115&$U120,GTYF!$C:$AQ,37,FALSE) -> 0 | AA120: =VLOOKUP(AA$115&$U120,GTYF!$C:$AQ,37,FALSE) -> 0 | AB120: =VLOOKUP(AB$115&$U120,GTYF!$C:$AQ,37,FALSE) -> 0 | AC120: =VLOOKUP(AC$115&$U120,GTYF!$C:$AQ,37,FALSE) -> 0 | AD120: =VLOOKUP(AD$115&$U120,GTYF!$C:$AQ,37,FALSE) -> 0 | AE120: =VLOOKUP(AE$115&$U120,GTYF!$C:$AQ,37,FALSE) -> 0 | AF120: =VLOOKUP(AF$115&$U120,GTYF!$C:$AQ,37,FALSE) -> 0 | AG120: =VLOOKUP(AG$115&$U120,GTYF!$C:$AQ,37,FALSE) -> 0 | AH120: =VLOOKUP(AH$115&$U120,GTYF!$C:$AQ,37,FALSE) -> 0 | AI120: =VLOOKUP(AI$115&$U120,GTYF!$C:$AQ,37,FALSE) -> 0 | AJ120: =VLOOKUP(AJ$115&$U120,GTYF!$C:$AQ,37,FALSE) -> 0 | AK120: =VLOOKUP(AK$115&$U120,GTYF!$C:$AQ,37,FALSE) -> 0 | AM120: =VLOOKUP(AM$115&$U120,GTYF!$C:$AQ,37,FALSE) -> 0 | AN120: =VLOOKUP(AN$115&$U120,GTYF!$C:$AQ,37,FALSE) -> 0 | AO120: =VLOOKUP(AO$115&$U120,GTYF!$C:$AQ,37,FALSE) -> 0 | AP120: =VLOOKUP(AP$115&$U120,GTYF!$C:$AQ,37,FALSE) -> 0 | AQ120: =VLOOKUP(AQ$115&$U120,GTYF!$C:$AQ,37,FALSE) -> 0 | AR120: =VLOOKUP(AR$115&$U120,GTYF!$C:$AQ,37,FALSE) -> 0 | AS120: =VLOOKUP(AS$115&$U120,GTYF!$C:$AQ,37,FALSE) -> 0 | AT120: =VLOOKUP(AT$115&$U120,GTYF!$C:$AQ,37,FALSE) -> 0 | AU120: =VLOOKUP(AU$115&$U120,GTYF!$C:$AQ,37,FALSE) -> 0 | AV120: =VLOOKUP(AV$115&$U120,GTYF!$C:$AQ,37,FALSE) -> 0 | AW120: =VLOOKUP(AW$115&$U120,GTYF!$C:$AQ,37,FALSE) -> 0 | AX120: =VLOOKUP(AX$115&$U120,GTYF!$C:$AQ,37,FALSE) -> 0 | AY120: =VLOOKUP(AY$115&$U120,GTYF!$C:$AQ,37,FALSE) -> 0 | AZ120: 0 | BA120: =VLOOKUP(BA$115&$U120,GTYF!$C:$AQ,37,FALSE) -> 0
B121: Feuillus tolérants à résineux | E121: - | F121: =IFERROR($AZ121/$BA121,"-") -> - | G121: - | H121: - | I121: - | J121: - | M121: - | N121: - | S121: Tableau 9. | T121: Feuillus tolérants à résineux | U121: (FCTYF_FTR) | V121: =VLOOKUP(V$115&$U121,GTYF!$C:$AQ,37,FALSE) -> 0 | W121: =VLOOKUP(W$115&$U121,GTYF!$C:$AQ,6,FALSE) -> 0 | X121: =VLOOKUP(X$115&$U121,GTYF!$C:$AQ,37,FALSE) -> 0 | Y121: =VLOOKUP(Y$115&$U121,GTYF!$C:$AQ,37,FALSE) -> 0 | Z121: =VLOOKUP(Z$115&$U121,GTYF!$C:$AQ,37,FALSE) -> 0 | AA121: =VLOOKUP(AA$115&$U121,GTYF!$C:$AQ,37,FALSE) -> 0 | AB121: =VLOOKUP(AB$115&$U121,GTYF!$C:$AQ,37,FALSE) -> 0 | AC121: =VLOOKUP(AC$115&$U121,GTYF!$C:$AQ,37,FALSE) -> 0 | AD121: =VLOOKUP(AD$115&$U121,GTYF!$C:$AQ,37,FALSE) -> 0 | AE121: =VLOOKUP(AE$115&$U121,GTYF!$C:$AQ,37,FALSE) -> 0 | AF121: =VLOOKUP(AF$115&$U121,GTYF!$C:$AQ,37,FALSE) -> 0 | AG121: =VLOOKUP(AG$115&$U121,GTYF!$C:$AQ,37,FALSE) -> 0 | AH121: =VLOOKUP(AH$115&$U121,GTYF!$C:$AQ,37,FALSE) -> 0 | AI121: =VLOOKUP(AI$115&$U121,GTYF!$C:$AQ,37,FALSE) -> 0 | AJ121: =VLOOKUP(AJ$115&$U121,GTYF!$C:$AQ,37,FALSE) -> 0 | AK121: =VLOOKUP(AK$115&$U121,GTYF!$C:$AQ,37,FALSE) -> 0 | AM121: =VLOOKUP(AM$115&$U121,GTYF!$C:$AQ,37,FALSE) -> 0 | AN121: =VLOOKUP(AN$115&$U121,GTYF!$C:$AQ,37,FALSE) -> 0 | AO121: =VLOOKUP(AO$115&$U121,GTYF!$C:$AQ,37,FALSE) -> 0 | AP121: =VLOOKUP(AP$115&$U121,GTYF!$C:$AQ,37,FALSE) -> 0 | AQ121: =VLOOKUP(AQ$115&$U121,GTYF!$C:$AQ,37,FALSE) -> 0 | AR121: =VLOOKUP(AR$115&$U121,GTYF!$C:$AQ,37,FALSE) -> 0 | AS121: =VLOOKUP(AS$115&$U121,GTYF!$C:$AQ,37,FALSE) -> 0 | AT121: =VLOOKUP(AT$115&$U121,GTYF!$C:$AQ,37,FALSE) -> 0 | AU121: =VLOOKUP(AU$115&$U121,GTYF!$C:$AQ,37,FALSE) -> 0 | AV121: =VLOOKUP(AV$115&$U121,GTYF!$C:$AQ,37,FALSE) -> 0 | AW121: =VLOOKUP(AW$115&$U121,GTYF!$C:$AQ,37,FALSE) -> 0 | AX121: =VLOOKUP(AX$115&$U121,GTYF!$C:$AQ,37,FALSE) -> 0 | AY121: =VLOOKUP(AY$115&$U121,GTYF!$C:$AQ,37,FALSE) -> 0 | AZ121: =SUM(AM121:AY121) -> 0 | BA121: =VLOOKUP(BA$115&$U121,GTYF!$C:$AQ,37,FALSE) -> 0
B122: Pessières | E122: 35 | F122: 72.23237999 | G122: 27 | H122: 113.0344291 | I122: 121.4202193 | J122: 108.1760579 | M122: 113.0344291 | N122: 121.4202193 | S122: Tableau 9. | T122: Pessières | U122: (FCTYF_EPX) | V122: =VLOOKUP(V$115&$U122,GTYF!$C:$AQ,37,FALSE) -> 5118.668 | W122: =VLOOKUP(W$115&$U122,GTYF!$C:$AQ,6,FALSE) -> 121175 | X122: =VLOOKUP(X$115&$U122,GTYF!$C:$AQ,37,FALSE) -> 522984.914 | Y122: =VLOOKUP(Y$115&$U122,GTYF!$C:$AQ,37,FALSE) -> 4834571.754 | Z122: =VLOOKUP(Z$115&$U122,GTYF!$C:$AQ,37,FALSE) -> 539552.224 | AA122: =VLOOKUP(AA$115&$U122,GTYF!$C:$AQ,37,FALSE) -> 4988.076 | AB122: =VLOOKUP(AB$115&$U122,GTYF!$C:$AQ,37,FALSE) -> 0 | AC122: =VLOOKUP(AC$115&$U122,GTYF!$C:$AQ,37,FALSE) -> 0 | AD122: =VLOOKUP(AD$115&$U122,GTYF!$C:$AQ,37,FALSE) -> 4484.758 | AE122: =VLOOKUP(AE$115&$U122,GTYF!$C:$AQ,37,FALSE) -> 0 | AF122: =VLOOKUP(AF$115&$U122,GTYF!$C:$AQ,37,FALSE) -> 100274.034 | AG122: =VLOOKUP(AG$115&$U122,GTYF!$C:$AQ,37,FALSE) -> 1112.378 | AH122: =VLOOKUP(AH$115&$U122,GTYF!$C:$AQ,37,FALSE) -> 0 | AI122: =VLOOKUP(AI$115&$U122,GTYF!$C:$AQ,37,FALSE) -> 0 | AJ122: =VLOOKUP(AJ$115&$U122,GTYF!$C:$AQ,37,FALSE) -> 4484.758 | AK122: =VLOOKUP(AK$115&$U122,GTYF!$C:$AQ,37,FALSE) -> 0 | AM122: =VLOOKUP(AM$115&$U122,GTYF!$C:$AQ,37,FALSE) -> 1638.75 | AN122: =VLOOKUP(AN$115&$U122,GTYF!$C:$AQ,37,FALSE) -> 0 | AO122: =VLOOKUP(AO$115&$U122,GTYF!$C:$AQ,37,FALSE) -> 0 | AP122: =VLOOKUP(AP$115&$U122,GTYF!$C:$AQ,37,FALSE) -> 0 | AQ122: =VLOOKUP(AQ$115&$U122,GTYF!$C:$AQ,37,FALSE) -> 0 | AR122: =VLOOKUP(AR$115&$U122,GTYF!$C:$AQ,37,FALSE) -> 0 | AS122: =VLOOKUP(AS$115&$U122,GTYF!$C:$AQ,37,FALSE) -> 44150.078 | AT122: =VLOOKUP(AT$115&$U122,GTYF!$C:$AQ,37,FALSE) -> 0 | AU122: =VLOOKUP(AU$115&$U122,GTYF!$C:$AQ,37,FALSE) -> 0 | AV122: =VLOOKUP(AV$115&$U122,GTYF!$C:$AQ,37,FALSE) -> 0 | AW122: =VLOOKUP(AW$115&$U122,GTYF!$C:$AQ,37,FALSE) -> 0 | AX122: =VLOOKUP(AX$115&$U122,GTYF!$C:$AQ,37,FALSE) -> 0 | AY122: =VLOOKUP(AY$115&$U122,GTYF!$C:$AQ,37,FALSE) -> 0 | AZ122: 45788.828 | BA122: =VLOOKUP(BA$115&$U122,GTYF!$C:$AQ,37,FALSE) -> 633.91
B123: Peupleraies | E123: - | F123: - | G123: - | H123: - | I123: - | J123: - | M123: - | N123: - | S123: Tableau 9. | T123: Peupleraies | U123: (FCTYF_PEU) | V123: =VLOOKUP(V$115&$U123,GTYF!$C:$AQ,37,FALSE) -> 0 | W123: =VLOOKUP(W$115&$U123,GTYF!$C:$AQ,6,FALSE) -> 0 | X123: =VLOOKUP(X$115&$U123,GTYF!$C:$AQ,37,FALSE) -> 0 | Y123: =VLOOKUP(Y$115&$U123,GTYF!$C:$AQ,37,FALSE) -> 0 | Z123: =VLOOKUP(Z$115&$U123,GTYF!$C:$AQ,37,FALSE) -> 0 | AA123: =VLOOKUP(AA$115&$U123,GTYF!$C:$AQ,37,FALSE) -> 0 | AB123: =VLOOKUP(AB$115&$U123,GTYF!$C:$AQ,37,FALSE) -> 0 | AC123: =VLOOKUP(AC$115&$U123,GTYF!$C:$AQ,37,FALSE) -> 0 | AD123: =VLOOKUP(AD$115&$U123,GTYF!$C:$AQ,37,FALSE) -> 0 | AE123: =VLOOKUP(AE$115&$U123,GTYF!$C:$AQ,37,FALSE) -> 0 | AF123: =VLOOKUP(AF$115&$U123,GTYF!$C:$AQ,37,FALSE) -> 0 | AG123: =VLOOKUP(AG$115&$U123,GTYF!$C:$AQ,37,FALSE) -> 0 | AH123: =VLOOKUP(AH$115&$U123,GTYF!$C:$AQ,37,FALSE) -> 0 | AI123: =VLOOKUP(AI$115&$U123,GTYF!$C:$AQ,37,FALSE) -> 0 | AJ123: =VLOOKUP(AJ$115&$U123,GTYF!$C:$AQ,37,FALSE) -> 0 | AK123: =VLOOKUP(AK$115&$U123,GTYF!$C:$AQ,37,FALSE) -> 0 | AM123: =VLOOKUP(AM$115&$U123,GTYF!$C:$AQ,37,FALSE) -> 0 | AN123: =VLOOKUP(AN$115&$U123,GTYF!$C:$AQ,37,FALSE) -> 0 | AO123: =VLOOKUP(AO$115&$U123,GTYF!$C:$AQ,37,FALSE) -> 0 | AP123: =VLOOKUP(AP$115&$U123,GTYF!$C:$AQ,37,FALSE) -> 0 | AQ123: =VLOOKUP(AQ$115&$U123,GTYF!$C:$AQ,37,FALSE) -> 0 | AR123: =VLOOKUP(AR$115&$U123,GTYF!$C:$AQ,37,FALSE) -> 0 | AS123: =VLOOKUP(AS$115&$U123,GTYF!$C:$AQ,37,FALSE) -> 0 | AT123: =VLOOKUP(AT$115&$U123,GTYF!$C:$AQ,37,FALSE) -> 0 | AU123: =VLOOKUP(AU$115&$U123,GTYF!$C:$AQ,37,FALSE) -> 0 | AV123: =VLOOKUP(AV$115&$U123,GTYF!$C:$AQ,37,FALSE) -> 0 | AW123: =VLOOKUP(AW$115&$U123,GTYF!$C:$AQ,37,FALSE) -> 0 | AX123: =VLOOKUP(AX$115&$U123,GTYF!$C:$AQ,37,FALSE) -> 0 | AY123: =VLOOKUP(AY$115&$U123,GTYF!$C:$AQ,37,FALSE) -> 0 | AZ123: 0 | BA123: =VLOOKUP(BA$115&$U123,GTYF!$C:$AQ,37,FALSE) -> 0
B124: Peupleraies à résineux | E124: - | F124: - | G124: - | H124: - | I124: - | J124: - | M124: - | N124: - | S124: Tableau 9. | T124: Peupleraies à résineux | U124: (FCTYF_PEUR) | V124: =VLOOKUP(V$115&$U124,GTYF!$C:$AQ,37,FALSE) -> 0 | W124: =VLOOKUP(W$115&$U124,GTYF!$C:$AQ,6,FALSE) -> 0 | X124: =VLOOKUP(X$115&$U124,GTYF!$C:$AQ,37,FALSE) -> 0 | Y124: =VLOOKUP(Y$115&$U124,GTYF!$C:$AQ,37,FALSE) -> 0 | Z124: =VLOOKUP(Z$115&$U124,GTYF!$C:$AQ,37,FALSE) -> 0 | AA124: =VLOOKUP(AA$115&$U124,GTYF!$C:$AQ,37,FALSE) -> 0 | AB124: =VLOOKUP(AB$115&$U124,GTYF!$C:$AQ,37,FALSE) -> 0 | AC124: =VLOOKUP(AC$115&$U124,GTYF!$C:$AQ,37,FALSE) -> 0 | AD124: =VLOOKUP(AD$115&$U124,GTYF!$C:$AQ,37,FALSE) -> 0 | AE124: =VLOOKUP(AE$115&$U124,GTYF!$C:$AQ,37,FALSE) -> 0 | AF124: =VLOOKUP(AF$115&$U124,GTYF!$C:$AQ,37,FALSE) -> 0 | AG124: =VLOOKUP(AG$115&$U124,GTYF!$C:$AQ,37,FALSE) -> 0 | AH124: =VLOOKUP(AH$115&$U124,GTYF!$C:$AQ,37,FALSE) -> 0 | AI124: =VLOOKUP(AI$115&$U124,GTYF!$C:$AQ,37,FALSE) -> 0 | AJ124: =VLOOKUP(AJ$115&$U124,GTYF!$C:$AQ,37,FALSE) -> 0 | AK124: =VLOOKUP(AK$115&$U124,GTYF!$C:$AQ,37,FALSE) -> 0 | AM124: =VLOOKUP(AM$115&$U124,GTYF!$C:$AQ,37,FALSE) -> 0 | AN124: =VLOOKUP(AN$115&$U124,GTYF!$C:$AQ,37,FALSE) -> 0 | AO124: =VLOOKUP(AO$115&$U124,GTYF!$C:$AQ,37,FALSE) -> 0 | AP124: =VLOOKUP(AP$115&$U124,GTYF!$C:$AQ,37,FALSE) -> 0 | AQ124: =VLOOKUP(AQ$115&$U124,GTYF!$C:$AQ,37,FALSE) -> 0 | AR124: =VLOOKUP(AR$115&$U124,GTYF!$C:$AQ,37,FALSE) -> 0 | AS124: =VLOOKUP(AS$115&$U124,GTYF!$C:$AQ,37,FALSE) -> 0 | AT124: =VLOOKUP(AT$115&$U124,GTYF!$C:$AQ,37,FALSE) -> 0 | AU124: =VLOOKUP(AU$115&$U124,GTYF!$C:$AQ,37,FALSE) -> 0 | AV124: =VLOOKUP(AV$115&$U124,GTYF!$C:$AQ,37,FALSE) -> 0 | AW124: =VLOOKUP(AW$115&$U124,GTYF!$C:$AQ,37,FALSE) -> 0 | AX124: =VLOOKUP(AX$115&$U124,GTYF!$C:$AQ,37,FALSE) -> 0 | AY124: =VLOOKUP(AY$115&$U124,GTYF!$C:$AQ,37,FALSE) -> 0 | AZ124: 0 | BA124: =VLOOKUP(BA$115&$U124,GTYF!$C:$AQ,37,FALSE) -> 0
B125: Pinèdes blanches | E125: - | F125: - | G125: - | H125: - | I125: - | J125: - | M125: - | N125: - | S125: Tableau 9. | T125: Pinèdes blanches | U125: (FCTYF_PIN) | V125: =VLOOKUP(V$115&$U125,GTYF!$C:$AQ,37,FALSE) -> 0 | W125: =VLOOKUP(W$115&$U125,GTYF!$C:$AQ,6,FALSE) -> 0 | X125: =VLOOKUP(X$115&$U125,GTYF!$C:$AQ,37,FALSE) -> 0 | Y125: =VLOOKUP(Y$115&$U125,GTYF!$C:$AQ,37,FALSE) -> 0 | Z125: =VLOOKUP(Z$115&$U125,GTYF!$C:$AQ,37,FALSE) -> 0 | AA125: =VLOOKUP(AA$115&$U125,GTYF!$C:$AQ,37,FALSE) -> 0 | AB125: =VLOOKUP(AB$115&$U125,GTYF!$C:$AQ,37,FALSE) -> 0 | AC125: =VLOOKUP(AC$115&$U125,GTYF!$C:$AQ,37,FALSE) -> 0 | AD125: =VLOOKUP(AD$115&$U125,GTYF!$C:$AQ,37,FALSE) -> 0 | AE125: =VLOOKUP(AE$115&$U125,GTYF!$C:$AQ,37,FALSE) -> 0 | AF125: =VLOOKUP(AF$115&$U125,GTYF!$C:$AQ,37,FALSE) -> 0 | AG125: =VLOOKUP(AG$115&$U125,GTYF!$C:$AQ,37,FALSE) -> 0 | AH125: =VLOOKUP(AH$115&$U125,GTYF!$C:$AQ,37,FALSE) -> 0 | AI125: =VLOOKUP(AI$115&$U125,GTYF!$C:$AQ,37,FALSE) -> 0 | AJ125: =VLOOKUP(AJ$115&$U125,GTYF!$C:$AQ,37,FALSE) -> 0 | AK125: =VLOOKUP(AK$115&$U125,GTYF!$C:$AQ,37,FALSE) -> 0 | AM125: =VLOOKUP(AM$115&$U125,GTYF!$C:$AQ,37,FALSE) -> 0 | AN125: =VLOOKUP(AN$115&$U125,GTYF!$C:$AQ,37,FALSE) -> 0 | AO125: =VLOOKUP(AO$115&$U125,GTYF!$C:$AQ,37,FALSE) -> 0 | AP125: =VLOOKUP(AP$115&$U125,GTYF!$C:$AQ,37,FALSE) -> 0 | AQ125: =VLOOKUP(AQ$115&$U125,GTYF!$C:$AQ,37,FALSE) -> 0 | AR125: =VLOOKUP(AR$115&$U125,GTYF!$C:$AQ,37,FALSE) -> 0 | AS125: =VLOOKUP(AS$115&$U125,GTYF!$C:$AQ,37,FALSE) -> 0 | AT125: =VLOOKUP(AT$115&$U125,GTYF!$C:$AQ,37,FALSE) -> 0 | AU125: =VLOOKUP(AU$115&$U125,GTYF!$C:$AQ,37,FALSE) -> 0 | AV125: =VLOOKUP(AV$115&$U125,GTYF!$C:$AQ,37,FALSE) -> 0 | AW125: =VLOOKUP(AW$115&$U125,GTYF!$C:$AQ,37,FALSE) -> 0 | AX125: =VLOOKUP(AX$115&$U125,GTYF!$C:$AQ,37,FALSE) -> 0 | AY125: =VLOOKUP(AY$115&$U125,GTYF!$C:$AQ,37,FALSE) -> 0 | AZ125: 0 | BA125: =VLOOKUP(BA$115&$U125,GTYF!$C:$AQ,37,FALSE) -> 0
B126: Pinèdes grises | E126: - | F126: - | G126: - | H126: 100.6309438 | I126: 116.0546578 | J126: 121.7353578 | M126: 100.6309438 | N126: 116.0546578 | S126: Tableau 9. | T126: Pinèdes grises | U126: (FCTYF_PIG) | V126: =VLOOKUP(V$115&$U126,GTYF!$C:$AQ,37,FALSE) -> 1145.17 | W126: =VLOOKUP(W$115&$U126,GTYF!$C:$AQ,6,FALSE) -> 9197.1 | X126: =VLOOKUP(X$115&$U126,GTYF!$C:$AQ,37,FALSE) -> 127367.208 | Y126: =VLOOKUP(Y$115&$U126,GTYF!$C:$AQ,37,FALSE) -> 1046263.06 | Z126: =VLOOKUP(Z$115&$U126,GTYF!$C:$AQ,37,FALSE) -> 125286.204 | AA126: =VLOOKUP(AA$115&$U126,GTYF!$C:$AQ,37,FALSE) -> 5411.07 | AB126: =VLOOKUP(AB$115&$U126,GTYF!$C:$AQ,37,FALSE) -> 0 | AC126: =VLOOKUP(AC$115&$U126,GTYF!$C:$AQ,37,FALSE) -> 0 | AD126: =VLOOKUP(AD$115&$U126,GTYF!$C:$AQ,37,FALSE) -> 1126.17 | AE126: =VLOOKUP(AE$115&$U126,GTYF!$C:$AQ,37,FALSE) -> 0 | AF126: =VLOOKUP(AF$115&$U126,GTYF!$C:$AQ,37,FALSE) -> 22178.52 | AG126: =VLOOKUP(AG$115&$U126,GTYF!$C:$AQ,37,FALSE) -> 486.99 | AH126: =VLOOKUP(AH$115&$U126,GTYF!$C:$AQ,37,FALSE) -> 0 | AI126: =VLOOKUP(AI$115&$U126,GTYF!$C:$AQ,37,FALSE) -> 0 | AJ126: =VLOOKUP(AJ$115&$U126,GTYF!$C:$AQ,37,FALSE) -> 1126.17 | AK126: =VLOOKUP(AK$115&$U126,GTYF!$C:$AQ,37,FALSE) -> 0 | AM126: =VLOOKUP(AM$115&$U126,GTYF!$C:$AQ,37,FALSE) -> 764.18 | AN126: =VLOOKUP(AN$115&$U126,GTYF!$C:$AQ,37,FALSE) -> 0 | AO126: =VLOOKUP(AO$115&$U126,GTYF!$C:$AQ,37,FALSE) -> 0 | AP126: =VLOOKUP(AP$115&$U126,GTYF!$C:$AQ,37,FALSE) -> 0 | AQ126: =VLOOKUP(AQ$115&$U126,GTYF!$C:$AQ,37,FALSE) -> 0 | AR126: =VLOOKUP(AR$115&$U126,GTYF!$C:$AQ,37,FALSE) -> 0 | AS126: =VLOOKUP(AS$115&$U126,GTYF!$C:$AQ,37,FALSE) -> 0 | AT126: =VLOOKUP(AT$115&$U126,GTYF!$C:$AQ,37,FALSE) -> 0 | AU126: =VLOOKUP(AU$115&$U126,GTYF!$C:$AQ,37,FALSE) -> 0 | AV126: =VLOOKUP(AV$115&$U126,GTYF!$C:$AQ,37,FALSE) -> 0 | AW126: =VLOOKUP(AW$115&$U126,GTYF!$C:$AQ,37,FALSE) -> 0 | AX126: =VLOOKUP(AX$115&$U126,GTYF!$C:$AQ,37,FALSE) -> 0 | AY126: =VLOOKUP(AY$115&$U126,GTYF!$C:$AQ,37,FALSE) -> 0 | AZ126: 764.18 | BA126: =VLOOKUP(BA$115&$U126,GTYF!$C:$AQ,37,FALSE) -> 19
B127: Prucheraies | E127: - | F127: - | G127: - | H127: - | I127: - | J127: - | M127: - | N127: - | S127: Tableau 9. | T127: Prucheraies | U127: (FCTYF_PRU) | V127: =VLOOKUP(V$115&$U127,GTYF!$C:$AQ,37,FALSE) -> 0 | W127: =VLOOKUP(W$115&$U127,GTYF!$C:$AQ,6,FALSE) -> 0 | X127: =VLOOKUP(X$115&$U127,GTYF!$C:$AQ,37,FALSE) -> 0 | Y127: =VLOOKUP(Y$115&$U127,GTYF!$C:$AQ,37,FALSE) -> 0 | Z127: =VLOOKUP(Z$115&$U127,GTYF!$C:$AQ,37,FALSE) -> 0 | AA127: =VLOOKUP(AA$115&$U127,GTYF!$C:$AQ,37,FALSE) -> 0 | AB127: =VLOOKUP(AB$115&$U127,GTYF!$C:$AQ,37,FALSE) -> 0 | AC127: =VLOOKUP(AC$115&$U127,GTYF!$C:$AQ,37,FALSE) -> 0 | AD127: =VLOOKUP(AD$115&$U127,GTYF!$C:$AQ,37,FALSE) -> 0 | AE127: =VLOOKUP(AE$115&$U127,GTYF!$C:$AQ,37,FALSE) -> 0 | AF127: =VLOOKUP(AF$115&$U127,GTYF!$C:$AQ,37,FALSE) -> 0 | AG127: =VLOOKUP(AG$115&$U127,GTYF!$C:$AQ,37,FALSE) -> 0 | AH127: =VLOOKUP(AH$115&$U127,GTYF!$C:$AQ,37,FALSE) -> 0 | AI127: =VLOOKUP(AI$115&$U127,GTYF!$C:$AQ,37,FALSE) -> 0 | AJ127: =VLOOKUP(AJ$115&$U127,GTYF!$C:$AQ,37,FALSE) -> 0 | AK127: =VLOOKUP(AK$115&$U127,GTYF!$C:$AQ,37,FALSE) -> 0 | AM127: =VLOOKUP(AM$115&$U127,GTYF!$C:$AQ,37,FALSE) -> 0 | AN127: =VLOOKUP(AN$115&$U127,GTYF!$C:$AQ,37,FALSE) -> 0 | AO127: =VLOOKUP(AO$115&$U127,GTYF!$C:$AQ,37,FALSE) -> 0 | AP127: =VLOOKUP(AP$115&$U127,GTYF!$C:$AQ,37,FALSE) -> 0 | AQ127: =VLOOKUP(AQ$115&$U127,GTYF!$C:$AQ,37,FALSE) -> 0 | AR127: =VLOOKUP(AR$115&$U127,GTYF!$C:$AQ,37,FALSE) -> 0 | AS127: =VLOOKUP(AS$115&$U127,GTYF!$C:$AQ,37,FALSE) -> 0 | AT127: =VLOOKUP(AT$115&$U127,GTYF!$C:$AQ,37,FALSE) -> 0 | AU127: =VLOOKUP(AU$115&$U127,GTYF!$C:$AQ,37,FALSE) -> 0 | AV127: =VLOOKUP(AV$115&$U127,GTYF!$C:$AQ,37,FALSE) -> 0 | AW127: =VLOOKUP(AW$115&$U127,GTYF!$C:$AQ,37,FALSE) -> 0 | AX127: =VLOOKUP(AX$115&$U127,GTYF!$C:$AQ,37,FALSE) -> 0 | AY127: =VLOOKUP(AY$115&$U127,GTYF!$C:$AQ,37,FALSE) -> 0 | AZ127: 0 | BA127: =VLOOKUP(BA$115&$U127,GTYF!$C:$AQ,37,FALSE) -> 0
B128: Résineux à feuillus | E128: - | F128: - | G128: - | H128: 104.5241621 | I128: 118.6185388 | J128: 128.43237 | M128: 104.5241621 | N128: 118.6185388 | S128: Tableau 9. | T128: Résineux à feuillus | U128: (FCTYF_RF) | V128: =VLOOKUP(V$115&$U128,GTYF!$C:$AQ,37,FALSE) -> 614.474 | W128: =VLOOKUP(W$115&$U128,GTYF!$C:$AQ,6,FALSE) -> 22098.3 | X128: =VLOOKUP(X$115&$U128,GTYF!$C:$AQ,37,FALSE) -> 49492.89 | Y128: =VLOOKUP(Y$115&$U128,GTYF!$C:$AQ,37,FALSE) -> 385361.494 | Z128: =VLOOKUP(Z$115&$U128,GTYF!$C:$AQ,37,FALSE) -> 66717.052 | AA128: =VLOOKUP(AA$115&$U128,GTYF!$C:$AQ,37,FALSE) -> 6170.956 | AB128: =VLOOKUP(AB$115&$U128,GTYF!$C:$AQ,37,FALSE) -> 0 | AC128: =VLOOKUP(AC$115&$U128,GTYF!$C:$AQ,37,FALSE) -> 0 | AD128: =VLOOKUP(AD$115&$U128,GTYF!$C:$AQ,37,FALSE) -> 614.474 | AE128: =VLOOKUP(AE$115&$U128,GTYF!$C:$AQ,37,FALSE) -> 0 | AF128: =VLOOKUP(AF$115&$U128,GTYF!$C:$AQ,37,FALSE) -> 12254.516 | AG128: =VLOOKUP(AG$115&$U128,GTYF!$C:$AQ,37,FALSE) -> 590.96 | AH128: =VLOOKUP(AH$115&$U128,GTYF!$C:$AQ,37,FALSE) -> 0 | AI128: =VLOOKUP(AI$115&$U128,GTYF!$C:$AQ,37,FALSE) -> 0 | AJ128: =VLOOKUP(AJ$115&$U128,GTYF!$C:$AQ,37,FALSE) -> 614.474 | AK128: =VLOOKUP(AK$115&$U128,GTYF!$C:$AQ,37,FALSE) -> 0 | AM128: =VLOOKUP(AM$115&$U128,GTYF!$C:$AQ,37,FALSE) -> 0 | AN128: =VLOOKUP(AN$115&$U128,GTYF!$C:$AQ,37,FALSE) -> 0 | AO128: =VLOOKUP(AO$115&$U128,GTYF!$C:$AQ,37,FALSE) -> 0 | AP128: =VLOOKUP(AP$115&$U128,GTYF!$C:$AQ,37,FALSE) -> 0 | AQ128: =VLOOKUP(AQ$115&$U128,GTYF!$C:$AQ,37,FALSE) -> 0 | AR128: =VLOOKUP(AR$115&$U128,GTYF!$C:$AQ,37,FALSE) -> 0 | AS128: =VLOOKUP(AS$115&$U128,GTYF!$C:$AQ,37,FALSE) -> 0 | AT128: =VLOOKUP(AT$115&$U128,GTYF!$C:$AQ,37,FALSE) -> 0 | AU128: =VLOOKUP(AU$115&$U128,GTYF!$C:$AQ,37,FALSE) -> 0 | AV128: =VLOOKUP(AV$115&$U128,GTYF!$C:$AQ,37,FALSE) -> 0 | AW128: =VLOOKUP(AW$115&$U128,GTYF!$C:$AQ,37,FALSE) -> 0 | AX128: =VLOOKUP(AX$115&$U128,GTYF!$C:$AQ,37,FALSE) -> 0 | AY128: =VLOOKUP(AY$115&$U128,GTYF!$C:$AQ,37,FALSE) -> 0 | AZ128: 0 | BA128: =VLOOKUP(BA$115&$U128,GTYF!$C:$AQ,37,FALSE) -> 0
B129: Sapinières | E129: - | F129: - | G129: - | H129: 75.1069986 | I129: 143.5586308 | J129: 104.1703657 | M129: =IFERROR(($AF129+$AG129+$AH129+$AI129)/$AJ129*5,"-") -> 75.1069986 | N129: 143.5586308 | S129: Tableau 9. | T129: Sapinières | U129: (FCTYF_SAB) | V129: =VLOOKUP(V$115&$U129,GTYF!$C:$AQ,37,FALSE) -> 485.24 | W129: =VLOOKUP(W$115&$U129,GTYF!$C:$AQ,6,FALSE) -> 3180.3 | X129: =VLOOKUP(X$115&$U129,GTYF!$C:$AQ,37,FALSE) -> 64874.582 | Y129: =VLOOKUP(Y$115&$U129,GTYF!$C:$AQ,37,FALSE) -> 622773.872 | Z129: =VLOOKUP(Z$115&$U129,GTYF!$C:$AQ,37,FALSE) -> 69660.39 | AA129: =VLOOKUP(AA$115&$U129,GTYF!$C:$AQ,37,FALSE) -> 0 | AB129: =VLOOKUP(AB$115&$U129,GTYF!$C:$AQ,37,FALSE) -> 0 | AC129: =VLOOKUP(AC$115&$U129,GTYF!$C:$AQ,37,FALSE) -> 0 | AD129: =VLOOKUP(AD$115&$U129,GTYF!$C:$AQ,37,FALSE) -> 485.24 | AE129: =VLOOKUP(AE$115&$U129,GTYF!$C:$AQ,37,FALSE) -> 0 | AF129: =VLOOKUP(AF$115&$U129,GTYF!$C:$AQ,37,FALSE) -> 7288.984 | AG129: =VLOOKUP(AG$115&$U129,GTYF!$C:$AQ,37,FALSE) -> 0 | AH129: =VLOOKUP(AH$115&$U129,GTYF!$C:$AQ,37,FALSE) -> 0 | AI129: =VLOOKUP(AI$115&$U129,GTYF!$C:$AQ,37,FALSE) -> 0 | AJ129: =VLOOKUP(AJ$115&$U129,GTYF!$C:$AQ,37,FALSE) -> 485.24 | AK129: =VLOOKUP(AK$115&$U129,GTYF!$C:$AQ,37,FALSE) -> 0 | AM129: =VLOOKUP(AM$115&$U129,GTYF!$C:$AQ,37,FALSE) -> 0 | AN129: =VLOOKUP(AN$115&$U129,GTYF!$C:$AQ,37,FALSE) -> 0 | AO129: =VLOOKUP(AO$115&$U129,GTYF!$C:$AQ,37,FALSE) -> 0 | AP129: =VLOOKUP(AP$115&$U129,GTYF!$C:$AQ,37,FALSE) -> 0 | AQ129: =VLOOKUP(AQ$115&$U129,GTYF!$C:$AQ,37,FALSE) -> 0 | AR129: =VLOOKUP(AR$115&$U129,GTYF!$C:$AQ,37,FALSE) -> 0 | AS129: =VLOOKUP(AS$115&$U129,GTYF!$C:$AQ,37,FALSE) -> 0 | AT129: =VLOOKUP(AT$115&$U129,GTYF!$C:$AQ,37,FALSE) -> 0 | AU129: =VLOOKUP(AU$115&$U129,GTYF!$C:$AQ,37,FALSE) -> 0 | AV129: =VLOOKUP(AV$115&$U129,GTYF!$C:$AQ,37,FALSE) -> 0 | AW129: =VLOOKUP(AW$115&$U129,GTYF!$C:$AQ,37,FALSE) -> 0 | AX129: =VLOOKUP(AX$115&$U129,GTYF!$C:$AQ,37,FALSE) -> 0 | AY129: =VLOOKUP(AY$115&$U129,GTYF!$C:$AQ,37,FALSE) -> 0 | AZ129: 0 | BA129: =VLOOKUP(BA$115&$U129,GTYF!$C:$AQ,37,FALSE) -> 0
S130: Tableau 9. | T130: Tous les GTYF | V130: =SUM(V116:V129) -> 7637.61 | W130: =SUM(W116:W129) -> 161599.9 | X130: 772503.844 | Y130: 6949545.374 | Z130: 830376.882 | AA130: 16570.102 | AB130: 0 | AC130: 0 | AD130: 6984.7 | AE130: 0 | AF130: 146524.722 | AG130: 2190.328 | AH130: 0 | AI130: 0 | AJ130: 6984.7 | AK130: 0
L131: Les statistiques portants sur les coupes partielles proviennent d'un Script R et sont disponibles ici:
L132: T:\Donnees\02_Courant\01_CPF\01_UA\0XXXX\70_Determination\72_Rapport\01_Cahier_DET\Tableau_9
B133: Tableau 10. Traitements non commerciaux supportant les possibilités forestières
B134: Traitements non commerciaux | F134: Superficie annuelle moyenne (ha/an) | G134: Superficie antérieure (ha/an) | H134: Écart (ha/an)
X135: Exemple U03772
B138: Ligniculture (essences à croissance rapide) | F138: =ROUND(V139,-1) -> 0 | G138: =IFERROR(ROUND(VLOOKUP(O33,DataLocal!$A:$BH,47,FALSE),-1),0) -> 0 | H138: =F138-G138 -> 0 | I138: 0 | J138: 0 | K138: Le texte en rouge demande à l'analyste de valider la nature exacte du traitement et les superficies - variable selon la vague et l'UA - veuillez ensuite mettre en noir et supprimer la remarque si elle ne s'applique pas (si DEG_1 ne contient pas de regarni)
B139: Plantation intensive (2 000 plants/ha) | F139: =ROUND(V140,-1) -> 20 | G139: =IFERROR(ROUND(VLOOKUP(O33,DataLocal!$A:$BH,48,FALSE),-1),0) -> 100 | H139: =F139-G139 -> -80 | I139: 20 | J139: 100 | S139: =LEFT(B$133,11) -> Tableau 10. | T139: Plantation ligniculture (pins, feuillus) | U139: OSUPPL_PPF | V139: =IFERROR(VLOOKUP(U139,Output!C:AQ,37,FALSE),0)/5 -> 0
B140: Plantation de base (1 600 plants/ha) | F140: =ROUND(V141,-1) -> 550 | G140: =IFERROR(ROUND(VLOOKUP(O33,DataLocal!$A:$BH,49,FALSE),-1),0) -> 780 | H140: -230 | I140: 550 | J140: 780 | S140: Tableau 10. | T140: Plantation intensive | U140: OSUPPL_SEPM_I | V140: =IFERROR(VLOOKUP(U140,Output!C:AQ,37,FALSE),0)/5 -> 16.39
B141: Regarni | F141: =ROUND(V142,-1) -> 0 | G141: =IFERROR(ROUND(VLOOKUP(O33,DataLocal!$A:$BH,50,FALSE),-1),0) -> 0 | H141: 0 | I141: 0 | J141: 0 | S141: Tableau 10. | T141: Plantation de base | U141: OSUPPL_SEPM_E | V141: =IFERROR(VLOOKUP(U141,Output!C:AQ,37,FALSE),0)/5 -> 553.9928
B142: % des plantations dans les coupes totales | F142: =IFERROR(SUM(F138:F140)/G92,0) -> 0.4071428571 | G142: =IFERROR(SUM(G138:G140)/H92,0) -> 0.4112149533 | H142: 0 | I142: 0.4071428571 | J142: 0.4112149533 | S142: Tableau 10. | T142: Regarni | U142: OSUPREG | V142: =IFERROR(VLOOKUP(U142,Output!C:AQ,37,FALSE),0)/5 -> 0
B143: Total des travaux de reboisement | F143: =ROUND(SUM(F138:F141),-1) -> 570 | G143: =ROUND(SUM(G138:G141),-1) -> 880 | H143: -310 | I143: 570 | J143: 880 | S143: Tableau 10.
B144: Nettoiement (régénération naturelle et plantation) | F144: =ROUND(V145,-1) -> 20 | G144: =IFERROR(ROUND(VLOOKUP(O33,DataLocal!$A:$BH,51,FALSE),-1),0) -> 50 | H144: -30 | I144: 20 | J144: 50 | S144: Tableau 10.
B145: Éclaircie précommerciale | F145: =ROUND(V146,-1) -> 0 | G145: =IFERROR(ROUND(VLOOKUP(O33,DataLocal!$A:$BH,52,FALSE),-1),0) -> 0 | H145: 0 | I145: 0 | J145: 0 | S145: Tableau 10. | T145: Nettoiement | U145: OSUPREALNET | V145: =IFERROR(VLOOKUP(U145,Output!C:AQ,37,FALSE),0)/5 -> 19
B146: Dégagement de la régénération naturelle (et regarni) | F146: =ROUND(V147,-1) -> 0 | G146: =IFERROR(ROUND(VLOOKUP(O33,DataLocal!$A:$BH,53,FALSE),-1),0) -> 0 | H146: 0 | I146: 0 | J146: 0 | S146: Tableau 10. | T146: Éclaircie précommerciale de la régénération naturelle | U146: OSUPREALEPC | V146: =IFERROR(VLOOKUP(U146,Output!C:AQ,37,FALSE),0)/5 -> 0 | X146: Exemple U09751
B147: Dégagement des plantations | F147: =ROUND(V148,-1) -> 30 | G147: =IFERROR(ROUND(VLOOKUP(O33,DataLocal!$A:$BH,54,FALSE),-1),0) -> 110 | H147: -80 | I147: 30 | J147: 110 | S147: Tableau 10. | T147: Dégagement de la régénération naturelle | U147: OSUPDEG_2 | V147: =IFERROR(VLOOKUP(U147,Output!C:AQ,37,FALSE),0)/5 -> 0
B148: Élagage | F148: =ROUND(V149,-1) -> 0 | G148: =IFERROR(ROUND(VLOOKUP(O33,DataLocal!$A:$BN,66,FALSE),-1),0) -> 0 | H148: 0 | I148: 0 | J148: 0 | S148: Tableau 10. | T148: Dégagement de plantation | U148: OSUPDEG_1 | V148: =IFERROR(VLOOKUP(U148,Output!C:AQ,37,FALSE),0)/5 -> 28.6
B149: Total des travaux d'éducation | F149: =SUM(F144:F148) -> 50 | G149: =SUM(G144:G148) -> 160 | H149: -110 | I149: 50 | J149: 160 | S149: Tableau 10. | T149: Élagage (plantation) | U149: OSUPELAG | V149: =IFERROR(VLOOKUP(U149,Output!C:AQ,37,FALSE),0)/5 -> 0
B150: Scarifiage partiel | F150: =ROUND(V152,-1) -> 60 | G150: =IFERROR(ROUND(VLOOKUP(O33,DataLocal!$A:$BH,58,FALSE),-1),0) -> 60 | H150: 0 | I150: 60 | J150: 60 | S150: Tableau 10. | U150: OSUPSCA_LIGN | V150: =IFERROR(VLOOKUP(U150,Output!C:AQ,37,FALSE),0)/5 -> 0
B151: Scarifiage en plein | F151: =ROUND(V153+V150+V151,-1) -> 570 | G151: =IFERROR(ROUND(VLOOKUP(O33,DataLocal!$A:$BH,59,FALSE),-1),0) -> 880 | H151: -310 | I151: 570 | J151: 880 | S151: Tableau 10. | U151: OSUPSCA_LRD | V151: =IFERROR(VLOOKUP(U151,Output!C:AQ,37,FALSE),0)/5 -> 0
B152: Total de la préparation de terrain | F152: =IFERROR(SUM(F150:F151),0) -> 630 | G152: =IFERROR(SUM(G150:G151),0) -> 940 | H152: -310 | I152: 630 | J152: 940 | S152: Tableau 10. | U152: OSUPSCA_PART | V152: =IFERROR(VLOOKUP(U152,Output!C:AQ,37,FALSE),0)/5 -> 57.6908
B153: Total des travaux sans récolte | F153: =F152+F149+F143 -> 1250 | G153: =G152+G149+G143 -> 1980 | H153: -730 | I153: 1250 | J153: 1980 | S153: Tableau 10. | U153: OSUPSCA_REG | V153: =IFERROR(VLOOKUP(U153,Output!C:AQ,37,FALSE),0)/5 -> 570.3828
B154: * Peut aussi comprendre du dégagement de regarni
B159: Tableau 13 : Variation du volume sur pied à court, moyen et long terme
B160: Essences | C160: Volume moyen sur pied (m3) | G160: Volume moyen sur pied (%) | L160: % du volume total | U160: colonne | V160: 37 | W160: 38 | X160: 39 | Y160: 40 | AF160: 37 | AG160: 38 | AH160: 39 | AI160: 40
C161: 2023 à 2048 | D161: 2048 à 2073 | E161: 2073 à 2118 | F161: 2118 à 2168 | G161: =C161 -> 2023 à 2048 | H161: =D161 -> 2048 à 2073 | I161: 2073 à 2118 | J161: 2118 à 2168 | V161: Volume moyen sur pied (m3) | Z161: Volume moyen sur pied (%) | AF161: Volume dans courbe SNAT
B162: =T163 -> Sapin baumier | C162: =ROUND(V163-AF163,-2) -> 548400 | D162: =ROUND(W163-AG163,-2) -> 478500 | E162: 409800 | F162: 376700 | G162: =C162/C$176 -> 0.0543950485 | H162: =D162/D$176 -> 0.04566449717 | I162: =E162/E$176 -> 0.03994424571 | J162: =F162/F$176 -> 0.03733140416 | L162: 2023 à 2048 | T162: Légende | U162: Name | V162: p 2 à 6 | W162: p 7 à 11 | X162: p 12 à 20 | Y162: p 21 à 30 | Z162: p 2 à 6 | AA162: p 7 à 11 | AB162: p 12 à 20 | AC162: p 21 à 30 | AE162: Name | AF162: p 2 à 6 | AG162: p 7 à 11 | AH162: p 12 à 20 | AI162: p 21 à 30
B163: =T164 -> Épinettes | C163: =ROUND(V164-AF164,-2) -> 6741500 | D163: 6776700 | E163: 6393800 | F163: 6301900 | G163: 0.668680196 | H163: 0.646718073 | I163: 0.6232199078 | J163: 0.6245255532 | L163: =C162/C$176 -> 0.0543950485 | S163: =LEFT(B$159,11) -> Tableau 13 | T163: Sapin baumier | U163: OVOLSABPIEDINC | V163: =VLOOKUP($U163,Output!$C:$AQ,V$160,FALSE) -> 553947.838 | W163: =VLOOKUP($U163,Output!$C:$AQ,W$160,FALSE) -> 480608.296 | X163: =VLOOKUP($U163,Output!$C:$AQ,X$160,FALSE) -> 414676.4722 | Y163: =VLOOKUP($U163,Output!$C:$AQ,Y$160,FALSE) -> 386747.92 | Z163: =V163/V$178 -> 0.05356899163 | AA163: =W163/W$178 -> 0.04469906799 | AB163: =X163/X$178 -> 0.0385670659 | AC163: =Y163/Y$178 -> 0.03596956547 | AE163: OVOLSABPIEDSNAT | AF163: =VLOOKUP($AE163,Output!$C:$AQ,AF$160,FALSE) -> 5513.806 | AG163: =VLOOKUP($AE163,Output!$C:$AQ,AG$160,FALSE) -> 2132.186 | AH163: =VLOOKUP($AE163,Output!$C:$AQ,AH$160,FALSE) -> 4893.175556 | AI163: =VLOOKUP($AE163,Output!$C:$AQ,AI$160,FALSE) -> 10052.813
B164: =T165 -> Pin gris | C164: 1520200 | D164: 1852500 | E164: 2252000 | F164: 2271000 | G164: 0.1507865659 | H164: 0.176788884 | I164: 0.2195081536 | J164: 0.2250587174 | L164: 0.668680196 | S164: Tableau 13 | T164: Épinettes | U164: OVOLgEpxPIEDINC | V164: =VLOOKUP($U164,Output!$C:$AQ,V$160,FALSE) -> 6974778.778 | W164: =VLOOKUP($U164,Output!$C:$AQ,W$160,FALSE) -> 7025856.526 | X164: =VLOOKUP($U164,Output!$C:$AQ,X$160,FALSE) -> 6839476.438 | Y164: =VLOOKUP($U164,Output!$C:$AQ,Y$160,FALSE) -> 6899993.007 | Z164: 0.6744892576 | AA164: 0.6534411519 | AB164: 0.6361068355 | AC164: 0.6417351908 | AE164: OVOLgEpxPIEDSNAT | AF164: =VLOOKUP($AE164,Output!$C:$AQ,AF$160,FALSE) -> 233247.18 | AG164: =VLOOKUP($AE164,Output!$C:$AQ,AG$160,FALSE) -> 249128.84 | AH164: =VLOOKUP($AE164,Output!$C:$AQ,AH$160,FALSE) -> 445665.6256 | AI164: =VLOOKUP($AE164,Output!$C:$AQ,AI$160,FALSE) -> 598117.104
B165: =T166 -> Mélèzes | C165: 53300 | D165: 63800 | E165: 88800 | F165: 85800 | G165: 0.005286754349 | H165: 0.006088599622 | I165: 0.008655561296 | J165: 0.008502878888 | L165: 0.1507865659 | S165: Tableau 13 | T165: Pin gris | U165: OVOLgPgPIEDINC | V165: =VLOOKUP($U165,Output!$C:$AQ,V$160,FALSE) -> 1535784.182 | W165: =VLOOKUP($U165,Output!$C:$AQ,W$160,FALSE) -> 1869827.988 | X165: =VLOOKUP($U165,Output!$C:$AQ,X$160,FALSE) -> 2284867.887 | Y165: =VLOOKUP($U165,Output!$C:$AQ,Y$160,FALSE) -> 2312163.921 | Z165: 0.1485165287 | AA165: 0.1739037155 | AB165: 0.2125045819 | AC165: 0.2150432549 | AE165: OVOLgPgPIEDSNAT | AF165: =VLOOKUP($AE165,Output!$C:$AQ,AF$160,FALSE) -> 15617.522 | AG165: =VLOOKUP($AE165,Output!$C:$AQ,AG$160,FALSE) -> 17298.434 | AH165: =VLOOKUP($AE165,Output!$C:$AQ,AH$160,FALSE) -> 32854.02111 | AI165: =VLOOKUP($AE165,Output!$C:$AQ,AI$160,FALSE) -> 41130.582
B166: Thuya | C166: =ROUND(V167-AF167,-2) -> 200 | D166: 100 | E166: 100 | F166: 0 | G166: 1.983772739e-05 | H166: 9.543259596e-06 | I166: 9.747253711e-06 | J166: 0 | L166: 0.005286754349 | S166: Tableau 13 | T166: Mélèzes | U166: OVOLgMlPIEDINC | V166: =VLOOKUP($U166,Output!$C:$AQ,V$160,FALSE) -> 57581.454 | W166: =VLOOKUP($U166,Output!$C:$AQ,W$160,FALSE) -> 68512.902 | X166: =VLOOKUP($U166,Output!$C:$AQ,X$160,FALSE) -> 97722.50333 | Y166: =VLOOKUP($U166,Output!$C:$AQ,Y$160,FALSE) -> 96994.699 | Z166: 0.005568358997 | AA166: 0.006372055768 | AB166: 0.009088700418 | AC166: 0.009021010834 | AE166: OVOLGMlPIEDSNAT | AF166: =VLOOKUP($AE166,Output!$C:$AQ,AF$160,FALSE) -> 4259.236 | AG166: =VLOOKUP($AE166,Output!$C:$AQ,AG$160,FALSE) -> 4713.296 | AH166: =VLOOKUP($AE166,Output!$C:$AQ,AH$160,FALSE) -> 8947.461111 | AI166: =VLOOKUP($AE166,Output!$C:$AQ,AI$160,FALSE) -> 11203.499
B167: Pruche | C167: 0 | D167: 0 | E167: 0 | F167: 0 | G167: 0 | H167: 0 | I167: 0 | J167: 0 | L167: 1.983772739e-05 | S167: Tableau 13 | T167: Thuya | U167: OVOLTHOPIEDINC | V167: =VLOOKUP($U167,Output!$C:$AQ,V$160,FALSE) -> 237.212 | W167: =VLOOKUP($U167,Output!$C:$AQ,W$160,FALSE) -> 140.3 | X167: =VLOOKUP($U167,Output!$C:$AQ,X$160,FALSE) -> 68.98111111 | Y167: =VLOOKUP($U167,Output!$C:$AQ,Y$160,FALSE) -> 0 | Z167: 2.293935777e-05 | AA167: 1.304862877e-05 | AB167: 6.415601647e-06 | AC167: 0 | AE167: OVOLTHOPIEDSNAT | AF167: =VLOOKUP($AE167,Output!$C:$AQ,AF$160,FALSE) -> 0 | AG167: =VLOOKUP($AE167,Output!$C:$AQ,AG$160,FALSE) -> 0 | AH167: =VLOOKUP($AE167,Output!$C:$AQ,AH$160,FALSE) -> 0 | AI167: =VLOOKUP($AE167,Output!$C:$AQ,AI$160,FALSE) -> 0
B168: Pins blanc et rouge | C168: 0 | D168: 0 | E168: 0 | F168: 0 | G168: 0 | H168: 0 | I168: 0 | J168: 0 | L168: 0 | S168: Tableau 13 | T168: Pruche | U168: OVOLPRUPIEDINC | V168: =VLOOKUP($U168,Output!$C:$AQ,V$160,FALSE) -> 0 | W168: =VLOOKUP($U168,Output!$C:$AQ,W$160,FALSE) -> 0 | X168: =VLOOKUP($U168,Output!$C:$AQ,X$160,FALSE) -> 0 | Y168: =VLOOKUP($U168,Output!$C:$AQ,Y$160,FALSE) -> 0 | Z168: 0 | AA168: 0 | AB168: 0 | AC168: 0 | AE168: OVOLPRUPIEDSNAT | AF168: =VLOOKUP($AE168,Output!$C:$AQ,AF$160,FALSE) -> 0 | AG168: =VLOOKUP($AE168,Output!$C:$AQ,AG$160,FALSE) -> 0 | AH168: =VLOOKUP($AE168,Output!$C:$AQ,AH$160,FALSE) -> 0 | AI168: =VLOOKUP($AE168,Output!$C:$AQ,AI$160,FALSE) -> 0
B169: Peupliers | C169: 374100 | D169: 416600 | E169: 275600 | F169: 272200 | G169: 0.03710646908 | H169: 0.03975721948 | I169: 0.02686343123 | J169: 0.02697533372 | L169: 0 | S169: Tableau 13 | T169: Pins blanc et rouge | U169: OVOLGPINSPIEDINC | V169: =VLOOKUP($U169,Output!$C:$AQ,V$160,FALSE) -> 0 | W169: =VLOOKUP($U169,Output!$C:$AQ,W$160,FALSE) -> 0 | X169: =VLOOKUP($U169,Output!$C:$AQ,X$160,FALSE) -> 0 | Y169: =VLOOKUP($U169,Output!$C:$AQ,Y$160,FALSE) -> 0 | Z169: 0 | AA169: 0 | AB169: 0 | AC169: 0 | AE169: OVOLGPINSCPIEDSNAT | AF169: =VLOOKUP($AE169,Output!$C:$AQ,AF$160,FALSE) -> 0 | AG169: =VLOOKUP($AE169,Output!$C:$AQ,AG$160,FALSE) -> 0 | AH169: =VLOOKUP($AE169,Output!$C:$AQ,AH$160,FALSE) -> 0 | AI169: =VLOOKUP($AE169,Output!$C:$AQ,AI$160,FALSE) -> 0
B170: Bouleau à papier | C170: 844000 | D170: 890300 | E170: 839200 | F170: 783100 | G170: 0.08371520959 | H170: 0.08496364018 | I170: 0.08179895314 | J170: 0.07760611256 | L170: 0.03710646908 | S170: Tableau 13 | T170: Peupliers | U170: OVOLGPEUPIEDINC | V170: =VLOOKUP($U170,Output!$C:$AQ,V$160,FALSE) -> 374208.786 | W170: =VLOOKUP($U170,Output!$C:$AQ,W$160,FALSE) -> 416699.074 | X170: =VLOOKUP($U170,Output!$C:$AQ,X$160,FALSE) -> 275800.8167 | Y170: =VLOOKUP($U170,Output!$C:$AQ,Y$160,FALSE) -> 272484.56 | Z170: 0.03618749989 | AA170: 0.03875517837 | AB170: 0.02565090856 | AC170: 0.02534247947 | AE170: OVOLPEUPIEDSNAT | AF170: =VLOOKUP($AE170,Output!$C:$AQ,AF$160,FALSE) -> 122.228 | AG170: =VLOOKUP($AE170,Output!$C:$AQ,AG$160,FALSE) -> 81.482 | AH170: =VLOOKUP($AE170,Output!$C:$AQ,AH$160,FALSE) -> 153.2988889 | AI170: =VLOOKUP($AE170,Output!$C:$AQ,AI$160,FALSE) -> 268.572
B171: Bouleau jaune | C171: 0 | D171: 0 | E171: 0 | F171: 0 | G171: 0 | H171: 0 | I171: 0 | J171: 0 | L171: 0.08371520959 | S171: Tableau 13 | T171: Bouleau à papier | U171: OVOLgBpPIEDINC | V171: =VLOOKUP($U171,Output!$C:$AQ,V$160,FALSE) -> 844291.798 | W171: =VLOOKUP($U171,Output!$C:$AQ,W$160,FALSE) -> 890442.546 | X171: =VLOOKUP($U171,Output!$C:$AQ,X$160,FALSE) -> 839474.5344 | Y171: =VLOOKUP($U171,Output!$C:$AQ,Y$160,FALSE) -> 783703.523 | Z171: 0.08164642438 | AA171: 0.08281578207 | AB171: 0.07807549225 | AC171: 0.07288849849 | AE171: OVOLgBpPIEDSNAT | AF171: =VLOOKUP($AE171,Output!$C:$AQ,AF$160,FALSE) -> 244.458 | AG171: =VLOOKUP($AE171,Output!$C:$AQ,AG$160,FALSE) -> 169.266 | AH171: =VLOOKUP($AE171,Output!$C:$AQ,AH$160,FALSE) -> 268.0377778 | AI171: =VLOOKUP($AE171,Output!$C:$AQ,AI$160,FALSE) -> 567.097
B172: Érable rouge | C172: 0 | D172: 0 | E172: 0 | F172: 0 | G172: 0 | H172: 0 | I172: 0 | J172: 0 | L172: 0 | S172: Tableau 13 | T172: Bouleau jaune | U172: OVOLBOJPIEDINC | V172: =VLOOKUP($U172,Output!$C:$AQ,V$160,FALSE) -> 0 | W172: =VLOOKUP($U172,Output!$C:$AQ,W$160,FALSE) -> 0 | X172: =VLOOKUP($U172,Output!$C:$AQ,X$160,FALSE) -> 0 | Y172: =VLOOKUP($U172,Output!$C:$AQ,Y$160,FALSE) -> 0 | Z172: 0 | AA172: 0 | AB172: 0 | AC172: 0 | AE172: OVOLBOJPIEDSNAT | AF172: =VLOOKUP($AE172,Output!$C:$AQ,AF$160,FALSE) -> 0 | AG172: =VLOOKUP($AE172,Output!$C:$AQ,AG$160,FALSE) -> 0 | AH172: =VLOOKUP($AE172,Output!$C:$AQ,AH$160,FALSE) -> 0 | AI172: =VLOOKUP($AE172,Output!$C:$AQ,AI$160,FALSE) -> 0
B173: Érable à sucre | C173: 0 | D173: 0 | E173: 0 | F173: 0 | G173: 0 | H173: 0 | I173: 0 | J173: 0 | L173: 0 | S173: Tableau 13 | T173: Érable rouge | U173: OVOLgEroPIEDINC | V173: =VLOOKUP($U173,Output!$C:$AQ,V$160,FALSE) -> 0 | W173: =VLOOKUP($U173,Output!$C:$AQ,W$160,FALSE) -> 0 | X173: =VLOOKUP($U173,Output!$C:$AQ,X$160,FALSE) -> 0 | Y173: =VLOOKUP($U173,Output!$C:$AQ,Y$160,FALSE) -> 0 | Z173: 0 | AA173: 0 | AB173: 0 | AC173: 0 | AE173: OVOLgEroPIEDSNAT | AF173: =VLOOKUP($AE173,Output!$C:$AQ,AF$160,FALSE) -> 0 | AG173: =VLOOKUP($AE173,Output!$C:$AQ,AG$160,FALSE) -> 0 | AH173: =VLOOKUP($AE173,Output!$C:$AQ,AH$160,FALSE) -> 0 | AI173: =VLOOKUP($AE173,Output!$C:$AQ,AI$160,FALSE) -> 0
B174: Autres feuillus durs | C174: =ROUND(V175-AF175,-2) -> 0 | D174: 0 | E174: 0 | F174: 0 | G174: 0 | H174: 0 | I174: 0 | J174: 0 | L174: 0 | S174: Tableau 13 | T174: Érable à sucre | U174: OVOLERSPIEDINC | V174: =VLOOKUP($U174,Output!$C:$AQ,V$160,FALSE) -> 0 | W174: =VLOOKUP($U174,Output!$C:$AQ,W$160,FALSE) -> 0 | X174: =VLOOKUP($U174,Output!$C:$AQ,X$160,FALSE) -> 0 | Y174: =VLOOKUP($U174,Output!$C:$AQ,Y$160,FALSE) -> 0 | Z174: 0 | AA174: 0 | AB174: 0 | AC174: 0 | AE174: OVOLERSPIEDSNAT | AF174: =VLOOKUP($AE174,Output!$C:$AQ,AF$160,FALSE) -> 0 | AG174: =VLOOKUP($AE174,Output!$C:$AQ,AG$160,FALSE) -> 0 | AH174: =VLOOKUP($AE174,Output!$C:$AQ,AH$160,FALSE) -> 0 | AI174: =VLOOKUP($AE174,Output!$C:$AQ,AI$160,FALSE) -> 0
B175: Autres essences | C175: =IF($L$163<0.0095,C162,0)+IF($L$164<0.0095,C163,0)+IF($L$165<0.0095,C164,0)+IF($L$166<0.0095,C165,0)+IF($L$167<0.0095,C166,0)+IF($L$168<0.0095,C167,0)+IF($L$169<0.0095,C168,0)+IF($L$170<0.0095,C169,0)+IF($L$171<0.0095,C170,0)+IF($L$172<0.0095,C171,0)+IF($L$173<0.0095,C172,0)+IF($L$174<0.0095,C173+0)+IF($L$175<0.0095,C174,0) -> 53500 | D175: =IF($L$163<0.0095,D162,0)+IF($L$164<0.0095,D163,0)+IF($L$165<0.0095,D164,0)+IF($L$166<0.0095,D165,0)+IF($L$167<0.0095,D166,0)+IF($L$168<0.0095,D167,0)+IF($L$169<0.0095,D168,0)+IF($L$170<0.0095,D169,0)+IF($L$171<0.0095,D170,0)+IF($L$172<0.0095,D171,0)+IF($L$173<0.0095,D172,0)+IF($L$174<0.0095,D173+0)+IF($L$175<0.0095,D174,0) -> 63900 | E175: =IF($L$163<0.0095,E162,0)+IF($L$164<0.0095,E163,0)+IF($L$165<0.0095,E164,0)+IF($L$166<0.0095,E165,0)+IF($L$167<0.0095,E166,0)+IF($L$168<0.0095,E167,0)+IF($L$169<0.0095,E168,0)+IF($L$170<0.0095,E169,0)+IF($L$171<0.0095,E170,0)+IF($L$172<0.0095,E171,0)+IF($L$173<0.0095,E172,0)+IF($L$174<0.0095,E173+0)+IF($L$175<0.0095,E174,0) -> 88900 | F175: =IF($L$163<0.0095,F162,0)+IF($L$164<0.0095,F163,0)+IF($L$165<0.0095,F164,0)+IF($L$166<0.0095,F165,0)+IF($L$167<0.0095,F166,0)+IF($L$168<0.0095,F167,0)+IF($L$169<0.0095,F168,0)+IF($L$170<0.0095,F169,0)+IF($L$171<0.0095,F170,0)+IF($L$172<0.0095,F171,0)+IF($L$173<0.0095,F172,0)+IF($L$174<0.0095,F173+0)+IF($L$175<0.0095,F174,0) -> 85800 | G175: 0.005306592077 | H175: 0.006098142882 | I175: 0.008665308549 | J175: 0.008502878888 | L175: 0 | S175: Tableau 13 | T175: Autres feuillus durs | V175: =V178-V176-V174-V173-V172-V171-V170-V169-V168-V167 -> -0.002000000096 | W175: =W178-W176-W174-W173-W172-W171-W170-W169-W168-W167 -> 0.002000000142 | X175: =X178-X176-X174-X173-X172-X171-X170-X169-X168-X167 -> -0.0011111095 | Y175: =Y178-Y176-Y174-Y173-Y172-Y171-Y170-Y169-Y168-Y167 -> 0.0009999988251 | Z175: -1.934080811e-10 | AA175: 1.860104019e-10 | AB175: -1.03338955e-10 | AC175: 9.300508511e-11 | AE175: Autres feuillus durs | AF175: =AF178-AF176-AF174-AF173-AF172-AF171-AF170-AF169-AF168-AF167 -> -0.006000000007 | AG175: =AG178-AG176-AG174-AG173-AG172-AG171-AG170-AG169-AG168-AG167 -> 0.00399999992 | AH175: =AH178-AH176-AH174-AH173-AH172-AH171-AH170-AH169-AH168-AH167 -> -0.003333333353 | AI175: =AI178-AI176-AI174-AI173-AI172-AI171-AI170-AI169-AI168-AI167 -> 0.003000000021
B176: Total | C176: =ROUND(V178-AF178,-2) -> 10081800 | D176: =ROUND(W178-AG178,-2) -> 10478600 | E176: =ROUND(X178-AH178,-2) -> 10259300 | F176: =ROUND(Y178-AI178,-2) -> 10090700 | G176: 1 | H176: 1 | I176: 1 | J176: 1 | L176: 0.005306592077 | S176: Tableau 13 | T176: SEPM | U176: OVOLGSEPMPIEDINC | V176: =VLOOKUP($U176,Output!$C:$AQ,V$160,FALSE) -> 9122092.248 | W176: =VLOOKUP($U176,Output!$C:$AQ,W$160,FALSE) -> 9444805.708 | X176: =VLOOKUP($U176,Output!$C:$AQ,X$160,FALSE) -> 9636743.299 | Y176: =VLOOKUP($U176,Output!$C:$AQ,Y$160,FALSE) -> 9695899.546 | Z176: 0.8821431366 | AA176: 0.8784159907 | AB176: 0.8962671837 | AC176: 0.9017690219 | AE176: OVOLgSEPMPIEDSNAT | AF176: =VLOOKUP($AE176,Output!$C:$AQ,AF$160,FALSE) -> 258637.74 | AG176: =VLOOKUP($AE176,Output!$C:$AQ,AG$160,FALSE) -> 273272.75 | AH176: =VLOOKUP($AE176,Output!$C:$AQ,AH$160,FALSE) -> 492360.2844 | AI176: =VLOOKUP($AE176,Output!$C:$AQ,AI$160,FALSE) -> 660503.999
S177: Tableau 13 | T177: FN - ERS BOJ | U177: OVOLGFNPIEDINC | V177: =VLOOKUP($U177,Output!$C:$AQ,V$160,FALSE) -> 0 | W177: =VLOOKUP($U177,Output!$C:$AQ,W$160,FALSE) -> 0 | X177: =VLOOKUP($U177,Output!$C:$AQ,X$160,FALSE) -> 0 | Y177: =VLOOKUP($U177,Output!$C:$AQ,Y$160,FALSE) -> 0 | Z177: 0 | AA177: 0 | AB177: 0 | AC177: 0 | AE177: OVOLgFnPIEDSNAT | AF177: =VLOOKUP($AE177,Output!$C:$AQ,AF$160,FALSE) -> 0 | AG177: =VLOOKUP($AE177,Output!$C:$AQ,AG$160,FALSE) -> 0 | AH177: =VLOOKUP($AE177,Output!$C:$AQ,AH$160,FALSE) -> 0 | AI177: =VLOOKUP($AE177,Output!$C:$AQ,AI$160,FALSE) -> 0
C178: arrondi 100m³ ? | L178: Masquer les essences du tableau qui sont en surbrillance (< 1%) | S178: Tableau 13 | T178: TOT sur pied | U178: OVOLTOTPIEDINC | V178: =VLOOKUP($U178,Output!$C:$AQ,V$160,FALSE) -> 10340830.04 | W178: =VLOOKUP($U178,Output!$C:$AQ,W$160,FALSE) -> 10752087.63 | X178: =VLOOKUP($U178,Output!$C:$AQ,X$160,FALSE) -> 10752087.63 | Y178: =VLOOKUP($U178,Output!$C:$AQ,Y$160,FALSE) -> 10752087.63 | Z178: 1 | AA178: 1 | AB178: 1 | AC178: 1 | AE178: OVOLTOTPIEDSNAT | AF178: =VLOOKUP($AE178,Output!$C:$AQ,AF$160,FALSE) -> 259004.42 | AG178: =VLOOKUP($AE178,Output!$C:$AQ,AG$160,FALSE) -> 273523.502 | AH178: =VLOOKUP($AE178,Output!$C:$AQ,AH$160,FALSE) -> 492781.6178 | AI178: =VLOOKUP($AE178,Output!$C:$AQ,AI$160,FALSE) -> 661339.671
L179: Ces volumes sont comptabilisés dans "Autres essences" | S179: Tableau 13 | T179: Érables à sucre et rouge
D181: P2 | E181: P3 | F181: P4 | G181: P5 | H181: P6
B182: Tableau 15 Statistiques sur les compartiments d’organisation spatiale admissibles à la récolte par période
B183: Compartiments d'organisation spatiale | D183: 2023-2028 | E183: 2028-2033 | F183: 2033-2038 | G183: 2038-2043 | H183: 2043-2048
B184: Nombre total | D184: =Cedule_COS!G6 -> 0
B185: En pessière | D185: =COUNTIF(Cedule_COS!$A$10:$A$1009,"<S*") -> 0 | J185: Fait la sommation automatique des COS débutant par la lettre "P" ou par "C", valider et corriger si nécessaire
B186: En sapinière | D186: =COUNTIF(Cedule_COS!$A$10:$A$1009,"S*") -> 0 | J186: Fait la sommation automatique des COS débutant par la lettre "S", valider et corriger si nécessaire
B187: Admissibles à la récolte | D187: =Cedule_COS!C7 -> 0 | E187: =Cedule_COS!D7 -> 0 | F187: =Cedule_COS!E7 -> 0 | G187: =Cedule_COS!F7 -> 0 | H187: =Cedule_COS!G7 -> 0
B188: % de compartiments admissibles | D188: =Cedule_COS!C8 ->  | E188: =Cedule_COS!D8 ->  | F188: =Cedule_COS!E8 ->  | G188: =Cedule_COS!F8 ->  | H188: =Cedule_COS!G8 -> 
B192: Tableau 17 Superficies considérées pour l'analyse de la mortalité d'ici la période 2023-2028
F193: ha | G193: % | S193: =LEFT(B$192,11) -> Tableau 17 | T193: Légende | V193: Output | W193: Valeur | X193: Période | Y193: Année
B194: Épidémie sévère confirmée à la photo-interprétation | G194: =F194/W$194 -> 0 | J194: Faire une sélection sur le thème 8 = "INC" et seulement les années correspondant à l'épidémie actuelle | S194: =LEFT(B$192,11) -> Tableau 17 | T194: Incluses aux activités de récolte | V194: OSUPINC | W194: =VLOOKUP($V194,Output!$C:$AQ,6,FALSE) -> 181655.9 | X194: P0 | Y194: 2018
B195: Défoliation cumulative (cote ≥ 15) | F195: =ROUND(W196,-1) ->  | G195: =F195/W$194 ->  | J195: Des champs avaient été ajoutés par l'analyste à la fin de table d'attribut de la carte woodstock | S195: =LEFT(B$192,11) -> Tableau 17 | T195: Épidémie sévère confirmée à la photo-interprétation | V195: Requete dans la table d'attribut
B196: Mortalité projetée | F196: =ROUND(SUM(W197:W198),-1) ->  | G196: =F196/W$194 ->  | J196: et c'est sur ces derniers que doivent se réaliser les requêtes | S196: =LEFT(B$192,11) -> Tableau 17 | T196: Défoliation cumulative projetée 2023 ≥ 15 | V196: OSUPINC15+ | W196: =VLOOKUP($V196,Output!$C:$AQ,7,FALSE) ->  | X196: P1 | Y196: 2023
B197: Récupération prévue 2018-2023 | F197: =-ROUND(W199,-1) ->  | G197: =F197/W$194 ->  | S197: =LEFT(B$192,11) -> Tableau 17 | T197: Mortalité projetée (sommation des 2 actions) | V197: osupaTBEmort | W197: =VLOOKUP($V197,Output!$C:$AQ,8,FALSE) -> 0 | X197: P2 | Y197: 2028
V198: Osupactiontberetard | W198: =VLOOKUP($V198,Output!$C:$AQ,8,FALSE) ->  | X198: P2 | Y198: 2028
S199: =LEFT(B$192,11) -> Tableau 17 | T199: Récolte prévue à court terme (récupération) | V199: osuprealregapre_15+ | W199: =VLOOKUP($V199,Output!$C:$AQ,7,FALSE) ->  | X199: P1 | Y199: 2023

Sheet Figures
B2: Figure 2. Répartition du volume de bois marchand sur pied en début de calcul (m3). | N2: Volume sur pied en P0 | S2: Source: CahierDetermination_2018-2023 | V2: Volume sur pied en P0 - volume en SNAT | Z2: Volume dans courbe SNAT
L3: Conserver les GTYF même s'ils sont absents de l'UA | S3: Intrants | T3: Légende | U3: Name | V3: PERIOD0 | W3: % | X3: PERIOD0 | Z3: Name | AB3: PERIOD0
N4: Total | O4: =V19 -> 9817200 | S4: =LEFT(B$2,10) -> Figure 2. | T4: Autres feuillus durs | V4: =ROUND(V19-V17-V11-V12-V10-V8-V9-V6-V5-V7,-2) -> 100 | W4: =IFERROR(V4/$V$19,0) -> 1.018620381e-05 | X4: =X19-X17-X11-X12-X10-X8-X9-X6-X5-X7 -> 7.566995919e-10 | Z4: Autres feuillus durs | AB4: =ROUND(AB19-AB17-AB11-AB12-AB10-AB8-AB9-AB6-AB5-AB7,-2) -> 0
N5: % R | O5: =(V17+V12+V11+V10)/V19 -> 0.9069286558 | S5: Figure 2. | T5: Érable à sucre | U5: OVOLERSPIEDINC | V5: =ROUND(X5-AB5,-2) -> 0 | W5: 0 | X5: =VLOOKUP(U5,Output!$C:$AQ,6,FALSE) -> 0 | Z5: OVOLERSPIEDSNAT | AB5: =VLOOKUP(Z5,Output!$C:$AQ,6,FALSE) -> 0
N6: %SEPM | O6: =V17/V19 -> 0.906887911 | S6: Figure 2. | T6: Érable rouge | U6: OVOLgEroPIEDINC | V6: 0 | W6: 0 | X6: =VLOOKUP(U6,Output!$C:$AQ,6,FALSE) -> 0 | Z6: OVOLgEroPIEDSNAT | AB6: =VLOOKUP(Z6,Output!$C:$AQ,6,FALSE) -> 0
N7: % Fi | O7: =W21 -> 0.09307134417 | P7: =O7*O4 -> 913700 | S7: Figure 2. | T7: Bouleau jaune | U7: OVOLBOJPIEDINC | V7: 0 | W7: 0 | X7: =VLOOKUP(U7,Output!$C:$AQ,6,FALSE) -> 0 | Z7: OVOLBOJPIEDSNAT | AB7: =VLOOKUP(Z7,Output!$C:$AQ,6,FALSE) -> 0
N8: % FT | O8: =W22 -> 0 | S8: Figure 2. | T8: Bouleau à papier | U8: OVOLgBpPIEDINC | V8: 686400 | W8: 0.06991810292 | X8: =VLOOKUP(U8,Output!$C:$AQ,6,FALSE) -> 686712.7 | Z8: OVOLgBpPIEDSNAT | AB8: =VLOOKUP(Z8,Output!$C:$AQ,6,FALSE) -> 271.62
N9: %Sapin | O9: =V16/V17 -> 0.06243892577 | S9: Figure 2. | T9: Peupliers | U9: OVOLGPEUPIEDINC | V9: 227200 | W9: 0.02314305505 | X9: =VLOOKUP(U9,Output!$C:$AQ,6,FALSE) -> 227377.07 | Z9: OVOLPEUPIEDSNAT | AB9: =VLOOKUP(Z9,Output!$C:$AQ,6,FALSE) -> 135.81
N10: %ERR | O10: =IFERROR(V6/(V5+V6),0) -> 0 | S10: Figure 2. | T10: Pins blanc et rouge | U10: OVOLGPINSPIEDINC | V10: 0 | W10: 0 | X10: =VLOOKUP(U10,Output!$C:$AQ,6,FALSE) -> 0 | Z10: OVOLGPINSCPIEDSNAT | AB10: =VLOOKUP(Z10,Output!$C:$AQ,6,FALSE) -> 0
S11: Figure 2. | T11: Pruche | U11: OVOLPRUPIEDINC | V11: 0 | W11: 0 | X11: =VLOOKUP(U11,Output!$C:$AQ,6,FALSE) -> 0 | Z11: OVOLPRUPIEDSNAT | AB11: =VLOOKUP(Z11,Output!$C:$AQ,6,FALSE) -> 0
N12: Volume sur pied au calcul 2015-2018 | P12: UA | S12: Figure 2. | T12: Thuya | U12: OVOLTHOPIEDINC | V12: 400 | W12: 4.074481522e-05 | X12: =VLOOKUP(U12,Output!$C:$AQ,6,FALSE) -> 363.78 | Z12: OVOLTHOPIEDSNAT | AB12: =VLOOKUP(Z12,Output!$C:$AQ,6,FALSE) -> 0
P13: =Tableaux!O33 -> 02666 | S13: Figure 2. | T13: Mélèzes | U13: OVOLgMlPIEDINC | V13: 56900 | W13: 0.005795949965 | X13: =VLOOKUP(U13,Output!$C:$AQ,6,FALSE) -> 60625.64 | Z13: OVOLGMlPIEDSNAT | AB13: =VLOOKUP(Z13,Output!$C:$AQ,6,FALSE) -> 3734.72
N14: Total | O14: =VLOOKUP(P13,DataLocal!$A:$BM,61,FALSE) -> 10181500 | S14: Figure 2. | T14: Pin gris | U14: OVOLgPgPIEDINC | V14: 1433600 | W14: 0.1460294178 | X14: =VLOOKUP(U14,Output!$C:$AQ,6,FALSE) -> 1447272.08 | Z14: OVOLgPgPIEDSNAT | AB14: =VLOOKUP(Z14,Output!$C:$AQ,6,FALSE) -> 13716.61
N15: % R | O15: =VLOOKUP(P13,DataLocal!$A:$BM,62,FALSE) -> 0.9 | S15: Figure 2. | T15: Épinettes | U15: OVOLgEpxPIEDINC | V15: 6856700 | W15: 0.6984374363 | X15: =VLOOKUP(U15,Output!$C:$AQ,6,FALSE) -> 7078563.11 | Z15: OVOLgEpxPIEDSNAT | AB15: =VLOOKUP(Z15,Output!$C:$AQ,6,FALSE) -> 221827
N16: % SEPM | O16: =VLOOKUP(P13,DataLocal!$A:$BM,63,FALSE) -> 0.9 | S16: Figure 2. | T16: Sapin baumier | U16: OVOLSABPIEDINC | V16: =ROUND(X16-AB16,-2) -> 555900 | W16: 0.05662510696 | X16: =VLOOKUP(U16,Output!$C:$AQ,6,FALSE) -> 561856.94 | Z16: OVOLSABPIEDSNAT | AB16: =VLOOKUP(Z16,Output!$C:$AQ,6,FALSE) -> 5907.65
N17: % Fi | O17: =VLOOKUP(P13,DataLocal!$A:$BM,64,FALSE) -> 0.1 | S17: Figure 2. | T17: SEPM | U17: OVOLGSEPMPIEDINC | V17: =ROUND(X17-AB17,-2) -> 8903100 | W17: =IFERROR(V17/$V$19,0) -> 0.906887911 | X17: =VLOOKUP(U17,Output!$C:$AQ,6,FALSE) -> 9148317.77 | Z17: OVOLgSEPMPIEDSNAT | AB17: =VLOOKUP(Z17,Output!$C:$AQ,6,FALSE) -> 245185.98
N18: % Ft | O18: =VLOOKUP(P13,DataLocal!$A:$BM,65,FALSE) -> 0 | S18: Figure 2. | T18: FN - ERS BOJ | U18: OVOLGFNPIEDINC | V18: 0 | W18: 0 | X18: =VLOOKUP(U18,Output!$C:$AQ,6,FALSE) -> 0 | Z18: OVOLgFnPIEDSNAT | AB18: =VLOOKUP(Z18,Output!$C:$AQ,6,FALSE) -> 0
S19: Figure 2. | T19: TOT sur pied | U19: OVOLTOTPIEDINC | V19: =ROUND(X19-AB19,-2) -> 9817200 | W19: 1 | X19: =VLOOKUP(U19,Output!$C:$AQ,6,FALSE) -> 10062771.32 | Z19: OVOLTOTPIEDSNAT | AB19: =VLOOKUP(Z19,Output!$C:$AQ,6,FALSE) -> 245593.4
N20: Vol R | O20: =ROUND(O15*$O$14,-2) -> 9163400 | T20: Érables à sucre et rouge | U20: Érables à sucre et rouge | V20: =V5+V6 -> 0 | W20: 0 | X20: =X5+X6 -> 0 | Z20: Érables à sucre et rouge | AB20: =AB5+AB6 -> 0
N21: Vol SEPM | O21: =ROUND(O16*$O$14,-2) -> 9163400 | P21: Traduits en m3 | T21: gFi | U21: OVOLgFiPIEDINC | V21: =ROUND(X21-AB21,-2) -> 913700 | W21: 0.09307134417 | X21: =VLOOKUP(U21,Output!$C:$AQ,6,FALSE) -> 914089.77 | Z21: OVOLgFiPIEDSNAT | AB21: =VLOOKUP(Z21,Output!$C:$AQ,6,FALSE) -> 407.42
N22: Vol Fi | O22: =ROUND(O17*$O$14,-2) -> 1018200 | P22: approximativement | T22: gFt | U22: OVOLgFtPIEDINC | V22: 0 | W22: 0 | X22: =VLOOKUP(U22,Output!$C:$AQ,6,FALSE) -> 0 | Z22: OVOLgFtPIEDSNAT | AB22: =VLOOKUP(Z22,Output!$C:$AQ,6,FALSE) -> 0
N23: Vol Ft | O23: =ROUND(O18*$O$14,-2) -> 0
B27: Type de couvert : | C27: =#REF! -> 
B28: Figure 3. Répartition de la superficie par grand type de forêt en début de calcul (ha). | S28: Intrants | T28: Légende | V28: PERIOD0 | W28: % | X28: PERIOD0
S29: =LEFT(B$28,10) -> Figure 3. | T29: Sapinières | U29: (FCTYF_SAB) | V29: =ROUND(X29,-1) -> 3180 | W29: =V29/V$44 -> 0.0175540758 | X29: =VLOOKUP("OSUPINC"&$U29,GTYF!$C:$AP,6,FALSE) -> 3180.3
S30: Figure 3. | T30: Résineux à feuillus | U30: (FCTYF_RF) | V30: =ROUND(X30,-1) -> 22100 | W30: 0.1219953067 | X30: =VLOOKUP("OSUPINC"&$U30,GTYF!$C:$AP,6,FALSE) -> 22098.3
S31: Figure 3. | T31: Prucheraies | U31: (FCTYF_PRU) | V31: 0 | W31: 0 | X31: =VLOOKUP("OSUPINC"&$U31,GTYF!$C:$AP,6,FALSE) -> 0
S32: Figure 3. | T32: Pinèdes grises | U32: (FCTYF_PIG) | V32: 9200 | W32: 0.05078537653 | X32: =VLOOKUP("OSUPINC"&$U32,GTYF!$C:$AP,6,FALSE) -> 9197.1
L33: Conserver les GTYF même s'ils sont absents de l'UA | S33: Figure 3. | T33: Pinèdes blanches | U33: (FCTYF_PIN) | V33: 0 | W33: 0 | X33: =VLOOKUP("OSUPINC"&$U33,GTYF!$C:$AP,6,FALSE) -> 0
S34: Figure 3. | T34: Peupleraies à résineux | U34: (FCTYF_PEUR) | V34: 0 | W34: 0 | X34: =VLOOKUP("OSUPINC"&$U34,GTYF!$C:$AP,6,FALSE) -> 0
S35: Figure 3. | T35: Peupleraies | U35: (FCTYF_PEU) | V35: 0 | W35: 0 | X35: =VLOOKUP("OSUPINC"&$U35,GTYF!$C:$AP,6,FALSE) -> 0
S36: Figure 3. | T36: Pessières | U36: (FCTYF_EPX) | V36: 121180 | W36: 0.6689317313 | X36: =VLOOKUP("OSUPINC"&$U36,GTYF!$C:$AP,6,FALSE) -> 121175
S37: Figure 3. | T37: Feuillus tolérants à résineux | U37: (FCTYF_FTR) | V37: 0 | W37: 0 | X37: =VLOOKUP("OSUPINC"&$U37,GTYF!$C:$AP,6,FALSE) -> 0
S38: Figure 3. | T38: Feuillus tolérants | U38: (FCTYF_FT) | V38: 0 | W38: 0 | X38: =VLOOKUP("OSUPINC"&$U38,GTYF!$C:$AP,6,FALSE) -> 0
S39: Figure 3. | T39: Érablières rouges | U39: (FCTYF_ERO) | V39: 0 | W39: 0 | X39: =VLOOKUP("OSUPINC"&$U39,GTYF!$C:$AP,6,FALSE) -> 0
S40: Figure 3. | T40: Cédrières | U40: (FCTYF_THO) | V40: 0 | W40: 0 | X40: =VLOOKUP("OSUPINC"&$U40,GTYF!$C:$AP,6,FALSE) -> 0
S41: Figure 3. | T41: Bétulaies blanches à résineux | U41: (FCTYF_BOPR) | V41: 3640 | W41: 0.02009334463 | X41: =VLOOKUP("OSUPINC"&$U41,GTYF!$C:$AP,6,FALSE) -> 3644.5
S42: Figure 3. | T42: Bétulaies blanches | U42: (FCTYF_BOP) | V42: 2300 | W42: 0.01269634413 | X42: =VLOOKUP("OSUPINC"&$U42,GTYF!$C:$AP,6,FALSE) -> 2304.7
U43: Somme: | V43: =SUM(V29:V42) -> 161600 | X43: =SUM(X29:X42) -> 161599.9
T44: OSUPINC | U44: Tous | V44: =VLOOKUP("OSUPINC",Output!$C:$AP,7,FALSE) -> 181154.51
V45: =V43-V44 -> -19554.51 | W45: Écart
V49: 2018
B50: Figure 4. Superficie destinée à l'aménagement forestier par classe d'âge en début de calcul (ha). | S50: Intrants | U50: Name | V50: PERIOD0 | X50: Classe d'âge | Y50: OUTPUT | Z50: Superficie (ha) | AA50: Pourcentage (%)
S51: =LEFT(B$50,10) -> Figure 4. | T51: 10 ans | U51: OSUP_INC_CLASSEAGEFCAGEAGE1 | V51: =VLOOKUP(U51,Output!$C:$AQ,6,FALSE) -> 8643.6 | X51: 10 | Z51: =ROUND(SUM(V51:V54),-1) -> 33120 | AA51: =IFERROR(Z51/$V$89,0) -> 0.1823227322
S52: Figure 4. | T52: 10 ans | U52: OSUP_INC_CLASSEAGEFCAGEAGE2 | V52: =VLOOKUP(U52,Output!$C:$AQ,6,FALSE) -> 4353.1 | X52: 30 | Z52: =ROUND(SUM(V55:V58),-1) -> 63340 | AA52: 0.3486812154
S53: Figure 4. | T53: 10 ans | U53: OSUP_INC_CLASSEAGEFCAGEAGE3 | V53: =VLOOKUP(U53,Output!$C:$AQ,6,FALSE) -> 11211.3 | X53: 50 | Z53: =ROUND(SUM(V59:V62),-1) -> 9670 | AA53: 0.05323251268
S54: Figure 4. | T54: 10 ans | U54: OSUP_INC_CLASSEAGEFCAGEAGE4 | V54: =VLOOKUP(U54,Output!$C:$AQ,6,FALSE) -> 8915.5 | X54: 70 | Z54: =ROUND(SUM(V63:V66),-1) -> 8360 | AA54: 0.04602107611
S55: Figure 4. | T55: 30 ans | U55: OSUP_INC_CLASSEAGEFCAGEAGE5 | V55: =VLOOKUP(U55,Output!$C:$AQ,6,FALSE) -> 19568.5 | X55: 90 | Z55: =ROUND(SUM(V67:V70),-1) -> 31210 | AA55: 0.1718083475
S56: Figure 4. | T56: 30 ans | U56: OSUP_INC_CLASSEAGEFCAGEAGE6 | V56: =VLOOKUP(U56,Output!$C:$AQ,6,FALSE) -> 18828.4 | X56: 120 et plus | Z56: =ROUND(SUM(V71:V80),-1) -> 35950 | AA56: 0.1979016371
S57: Figure 4. | T57: 30 ans | U57: OSUP_INC_CLASSEAGEFCAGEAGE7 | V57: =VLOOKUP(U57,Output!$C:$AQ,6,FALSE) -> 20599.1
S58: Figure 4. | T58: 30 ans | U58: OSUP_INC_CLASSEAGEFCAGEAGE8 | V58: =VLOOKUP(U58,Output!$C:$AQ,6,FALSE) -> 4342.5
S59: Figure 4. | T59: 50 ans | U59: OSUP_INC_CLASSEAGEFCAGEAGE9 | V59: =VLOOKUP(U59,Output!$C:$AQ,6,FALSE) -> 3488.9
S60: Figure 4. | T60: 50 ans | U60: OSUP_INC_CLASSEAGEFCAGEAGE10 | V60: =VLOOKUP(U60,Output!$C:$AQ,6,FALSE) -> 2236.4
S61: Figure 4. | T61: 50 ans | U61: OSUP_INC_CLASSEAGEFCAGEAGE11 | V61: =VLOOKUP(U61,Output!$C:$AQ,6,FALSE) -> 2460.1
N62: Proportion de la superficie dont l'évolution est suivi en âge: | S62: Figure 4. | T62: 50 ans | U62: OSUP_INC_CLASSEAGEFCAGEAGE12 | V62: =VLOOKUP(U62,Output!$C:$AQ,6,FALSE) -> 1487.7
N63: =IF(AND($W$81>=99.5%,$W$81<100%),"> 99%",IF(AND($W$81>=0.1%,$W$81<0.5%),"< 1%",$W$81)) -> 1 | S63: Figure 4. | T63: 70 ans | U63: OSUP_INC_CLASSEAGEFCAGEAGE13 | V63: =VLOOKUP(U63,Output!$C:$AQ,6,FALSE) -> 655.9
S64: Figure 4. | T64: 70 ans | U64: OSUP_INC_CLASSEAGEFCAGEAGE14 | V64: =VLOOKUP(U64,Output!$C:$AQ,6,FALSE) -> 1942.3
S65: Figure 4. | T65: 70 ans | U65: OSUP_INC_CLASSEAGEFCAGEAGE15 | V65: =VLOOKUP(U65,Output!$C:$AQ,6,FALSE) -> 1616.6
S66: Figure 4. | T66: 70 ans | U66: OSUP_INC_CLASSEAGEFCAGEAGE16 | V66: =VLOOKUP(U66,Output!$C:$AQ,6,FALSE) -> 4142.8
S67: Figure 4. | T67: 90 ans | U67: OSUP_INC_CLASSEAGEFCAGEAGE17 | V67: =VLOOKUP(U67,Output!$C:$AQ,6,FALSE) -> 7582.6
S68: Figure 4. | T68: 90 ans | U68: OSUP_INC_CLASSEAGEFCAGEAGE18 | V68: =VLOOKUP(U68,Output!$C:$AQ,6,FALSE) -> 6495.1
B69: Figure 5. Superficie destinée à l'aménagement forestier par classe de surface terrière en début de calcul (ha) | S69: Figure 4. | T69: 90 ans | U69: OSUP_INC_CLASSEAGEFCAGEAGE19 | V69: =VLOOKUP(U69,Output!$C:$AQ,6,FALSE) -> 7390.8
S70: Figure 4. | T70: 90 ans | U70: OSUP_INC_CLASSEAGEFCAGEAGE20 | V70: =VLOOKUP(U70,Output!$C:$AQ,6,FALSE) -> 9742
S71: Figure 4. | T71: 120 et plus | U71: OSUP_INC_CLASSEAGEFCAGEAGE21 | V71: =VLOOKUP(U71,Output!$C:$AQ,6,FALSE) -> 3153.8
S72: Figure 4. | T72: 120 et plus | U72: OSUP_INC_CLASSEAGEFCAGEAGE22 | V72: =VLOOKUP(U72,Output!$C:$AQ,6,FALSE) -> 3445.6
S73: Figure 4. | T73: 120 et plus | U73: OSUP_INC_CLASSEAGEFCAGEAGE23 | V73: =VLOOKUP(U73,Output!$C:$AQ,6,FALSE) -> 1677.7
S74: Figure 4. | T74: 120 et plus | U74: OSUP_INC_CLASSEAGEFCAGEAGE24 | V74: =VLOOKUP(U74,Output!$C:$AQ,6,FALSE) -> 1767.8
S75: Figure 4. | T75: 120 et plus | U75: OSUP_INC_CLASSEAGEFCAGEAGE25 | V75: =VLOOKUP(U75,Output!$C:$AQ,6,FALSE) -> 3864.6
N76: Proportion de la superficie dont l'évolution est suivi en surface terrière: | S76: Figure 4. | T76: 120 et plus | U76: OSUP_INC_CLASSEAGEFCAGEAGE26 | V76: =VLOOKUP(U76,Output!$C:$AQ,6,FALSE) -> 0
N77: =IF(AND($W$88>=99.5%,$W$88<100%),"> 99%",IF(AND($W$88>=0.1%,$W$88<0.5%),"< 1%",$W$88)) -> 0 | S77: Figure 4. | T77: 120 et plus | U77: OSUP_INC_CLASSEAGEFCAGEAGE27 | V77: =VLOOKUP(U77,Output!$C:$AQ,6,FALSE) -> 3676.6
S78: Figure 4. | T78: 120 et plus | U78: OSUP_INC_CLASSEAGEFCAGEAGE28 | V78: =VLOOKUP(U78,Output!$C:$AQ,6,FALSE) -> 480.3
S79: Figure 4. | T79: 120 et plus | U79: OSUP_INC_CLASSEAGEFCAGEAGE29 | V79: =VLOOKUP(U79,Output!$C:$AQ,6,FALSE) -> 1217
S80: Figure 4. | T80: 120 et plus | U80: OSUP_INC_CLASSEAGEFCAGEAGE30+ | V80: =VLOOKUP(U80,Output!$C:$AQ,6,FALSE) -> 16669.3
U81: Sous-total | V81: =SUM(V51:V80) -> 181655.9 | W81: =V81/V89 -> 1
S82: =LEFT(B$69,10) -> Figure 5. | T82: <16 | U82: OSUPINC_ST016(FCST) | V82: =VLOOKUP(U82,GTYF!$C:$AQ,6,FALSE) -> 0 | W82: =IFERROR(V82/$V$88,0) -> 0
S83: Figure 5. | T83: 16 à 18 | U83: OSUPINC_ST1619(FCST) | V83: =VLOOKUP(U83,GTYF!$C:$AQ,6,FALSE) -> 0 | W83: 0
S84: Figure 5. | T84: 19 à 21 | U84: OSUPINC_ST1922(FCST) | V84: =VLOOKUP(U84,GTYF!$C:$AQ,6,FALSE) -> 0 | W84: 0
S85: Figure 5. | T85: 22 à 24 | U85: OSUPINC_ST2225(FCST) | V85: =VLOOKUP(U85,GTYF!$C:$AQ,6,FALSE) -> 0 | W85: 0
S86: Figure 5. | T86: 25 à 28 | U86: OSUPINC_ST2528(FCST) | V86: =VLOOKUP(U86,GTYF!$C:$AQ,6,FALSE) -> 0 | W86: 0
S87: Figure 5. | T87: 29+ | U87: OSUPINC_ST29+(FCST) | V87: =VLOOKUP(U87,GTYF!$C:$AQ,6,FALSE) -> 0 | W87: 0
S88: Figure 5. | T88: Total 0-29+ | U88: Sous-total | V88: =SUM(V82:V87) -> 0 | W88: =V88/V89 -> 0
U89: OSUPINC | V89: =VLOOKUP(U89,Output!$C:$AQ,6,FALSE) -> 181655.9
A91: 80 | B91: Figure 6. Évolution des volumes et des possibilités forestières à rendement non-décroissant
U93: Période | V93: P0 | W93: P1 | X93: P2 | Y93: P3 | Z93: P4 | AA93: P5 | AB93: P6 | AC93: P7 | AD93: P8 | AE93: P9 | AF93: P10 | AG93: P11 | AH93: P12 | AI93: P13 | AJ93: P14 | AK93: P15 | AL93: P16 | AM93: P17 | AN93: P18 | AO93: P19 | AP93: P20 | AQ93: P21 | AR93: P22 | AS93: P23 | AT93: P24 | AU93: P25 | AV93: P26 | AW93: P27 | AX93: P28 | AY93: P29 | AZ93: P30
U94: Colonne | V94: 6 | W94: 7 | X94: 8 | Y94: 9 | Z94: 10 | AA94: 11 | AB94: 12 | AC94: 13 | AD94: 14 | AE94: 15 | AF94: 16 | AG94: 17 | AH94: 18 | AI94: 19 | AJ94: 20 | AK94: 21 | AL94: 22 | AM94: 23 | AN94: 24 | AO94: 25 | AP94: 26 | AQ94: 27 | AR94: 28 | AS94: 29 | AT94: 30 | AU94: 31 | AV94: 32 | AW94: 33 | AX94: 34 | AY94: 35 | AZ94: 36
S95: =LEFT(B$91,10) -> Figure 6. | T95: Légende | U95: Axe des "X" Début de période | W95: 2018 | X95: 2023 | Y95: 2028 | Z95: 2033 | AA95: 2038 | AB95: 2043 | AC95: 2048 | AD95: 2053 | AE95: 2058 | AF95: 2063 | AG95: 2068 | AH95: 2073 | AI95: 2078 | AJ95: 2083 | AK95: 2088 | AL95: 2093 | AM95: 2098 | AN95: 2103 | AO95: 2108 | AP95: 2113 | AQ95: 2118 | AR95: 2123 | AS95: 2128 | AT95: 2133 | AU95: 2138 | AV95: 2143 | AW95: 2148 | AX95: 2153 | AY95: 2158 | AZ95: 2163
S96: =LEFT(B$91,10) -> Figure 6. | T96: Possibilités forestières quinquennales | U96: OVOLTOTREC | V96: =VLOOKUP($U96,Output!$C:$AM,V$94,FALSE) -> 0 | W96: =VLOOKUP($U96,Output!$C:$AM,W$94,FALSE) -> 1004976.37 | X96: =VLOOKUP($U96,Output!$C:$AM,X$94,FALSE) -> 893500 | Y96: =VLOOKUP($U96,Output!$C:$AM,Y$94,FALSE) -> 893500 | Z96: =VLOOKUP($U96,Output!$C:$AM,Z$94,FALSE) -> 893500 | AA96: =VLOOKUP($U96,Output!$C:$AM,AA$94,FALSE) -> 893500 | AB96: =VLOOKUP($U96,Output!$C:$AM,AB$94,FALSE) -> 893500 | AC96: =VLOOKUP($U96,Output!$C:$AM,AC$94,FALSE) -> 1268385.22 | AD96: =VLOOKUP($U96,Output!$C:$AM,AD$94,FALSE) -> 1340173.97 | AE96: =VLOOKUP($U96,Output!$C:$AM,AE$94,FALSE) -> 1340173.97 | AF96: =VLOOKUP($U96,Output!$C:$AM,AF$94,FALSE) -> 1340173.97 | AG96: =VLOOKUP($U96,Output!$C:$AM,AG$94,FALSE) -> 1340184.11 | AH96: =VLOOKUP($U96,Output!$C:$AM,AH$94,FALSE) -> 1385808.15 | AI96: =VLOOKUP($U96,Output!$C:$AM,AI$94,FALSE) -> 1385808.15 | AJ96: =VLOOKUP($U96,Output!$C:$AM,AJ$94,FALSE) -> 1385810.84 | AK96: =VLOOKUP($U96,Output!$C:$AM,AK$94,FALSE) -> 1403275.48 | AL96: =VLOOKUP($U96,Output!$C:$AM,AL$94,FALSE) -> 1421116 | AM96: =VLOOKUP($U96,Output!$C:$AM,AM$94,FALSE) -> 1421129.46 | AN96: =VLOOKUP($U96,Output!$C:$AM,AN$94,FALSE) -> 1421132.73 | AO96: =VLOOKUP($U96,Output!$C:$AM,AO$94,FALSE) -> 1421132.73 | AP96: =VLOOKUP($U96,Output!$C:$AM,AP$94,FALSE) -> 1429978.89 | AQ96: =VLOOKUP($U96,Output!$C:$AM,AQ$94,FALSE) -> 1429978.89 | AR96: =VLOOKUP($U96,Output!$C:$AM,AR$94,FALSE) -> 1438210.83 | AS96: =VLOOKUP($U96,Output!$C:$AM,AS$94,FALSE) -> 1448938.23 | AT96: =VLOOKUP($U96,Output!$C:$AM,AT$94,FALSE) -> 1448938.23 | AU96: =VLOOKUP($U96,Output!$C:$AM,AU$94,FALSE) -> 1448938.23 | AV96: =VLOOKUP($U96,Output!$C:$AM,AV$94,FALSE) -> 1448938.23 | AW96: =VLOOKUP($U96,Output!$C:$AM,AW$94,FALSE) -> 1448938.23 | AX96: =VLOOKUP($U96,Output!$C:$AM,AX$94,FALSE) -> 1487274.75 | AY96: =VLOOKUP($U96,Output!$C:$AM,AY$94,FALSE) -> 1489736.26 | AZ96: =VLOOKUP($U96,Output!$C:$AM,AZ$94,FALSE) -> 1489736.26
S97: =LEFT(B$91,10) -> Figure 6. | T97: Volume à maturité | U97: OVOLMATUREADM | V97: =VLOOKUP($U97,Output!$C:$AM,V$94,FALSE) -> 6591776.65 | W97: =VLOOKUP($U97,Output!$C:$AM,W$94,FALSE) -> 6469662.91 | X97: =VLOOKUP($U97,Output!$C:$AM,X$94,FALSE) -> 6122132.94 | Y97: =VLOOKUP($U97,Output!$C:$AM,Y$94,FALSE) -> 5384574.67 | Z97: =VLOOKUP($U97,Output!$C:$AM,Z$94,FALSE) -> 5078885.83 | AA97: =VLOOKUP($U97,Output!$C:$AM,AA$94,FALSE) -> 5792809.41 | AB97: =VLOOKUP($U97,Output!$C:$AM,AB$94,FALSE) -> 5854320.15 | AC97: =VLOOKUP($U97,Output!$C:$AM,AC$94,FALSE) -> 6502760.17 | AD97: =VLOOKUP($U97,Output!$C:$AM,AD$94,FALSE) -> 6781721.24 | AE97: =VLOOKUP($U97,Output!$C:$AM,AE$94,FALSE) -> 6290624.62 | AF97: =VLOOKUP($U97,Output!$C:$AM,AF$94,FALSE) -> 5956646.97 | AG97: =VLOOKUP($U97,Output!$C:$AM,AG$94,FALSE) -> 5680899.39 | AH97: =VLOOKUP($U97,Output!$C:$AM,AH$94,FALSE) -> 5601990.91 | AI97: =VLOOKUP($U97,Output!$C:$AM,AI$94,FALSE) -> 5663281.34 | AJ97: =VLOOKUP($U97,Output!$C:$AM,AJ$94,FALSE) -> 5693937.48 | AK97: =VLOOKUP($U97,Output!$C:$AM,AK$94,FALSE) -> 5461947.26 | AL97: =VLOOKUP($U97,Output!$C:$AM,AL$94,FALSE) -> 5198833.34 | AM97: =VLOOKUP($U97,Output!$C:$AM,AM$94,FALSE) -> 5083983.84 | AN97: =VLOOKUP($U97,Output!$C:$AM,AN$94,FALSE) -> 4963202.89 | AO97: =VLOOKUP($U97,Output!$C:$AM,AO$94,FALSE) -> 5065832.16 | AP97: =VLOOKUP($U97,Output!$C:$AM,AP$94,FALSE) -> 5068334.01 | AQ97: =VLOOKUP($U97,Output!$C:$AM,AQ$94,FALSE) -> 5042516.85 | AR97: =VLOOKUP($U97,Output!$C:$AM,AR$94,FALSE) -> 4866529.56 | AS97: =VLOOKUP($U97,Output!$C:$AM,AS$94,FALSE) -> 5095491.92 | AT97: =VLOOKUP($U97,Output!$C:$AM,AT$94,FALSE) -> 5254243.41 | AU97: =VLOOKUP($U97,Output!$C:$AM,AU$94,FALSE) -> 5579553.3 | AV97: =VLOOKUP($U97,Output!$C:$AM,AV$94,FALSE) -> 5811064.58 | AW97: =VLOOKUP($U97,Output!$C:$AM,AW$94,FALSE) -> 6037837.95 | AX97: =VLOOKUP($U97,Output!$C:$AM,AX$94,FALSE) -> 5716802.24 | AY97: =VLOOKUP($U97,Output!$C:$AM,AY$94,FALSE) -> 5473395.53 | AZ97: =VLOOKUP($U97,Output!$C:$AM,AZ$94,FALSE) -> 4789891.51
S98: =LEFT(B$91,10) -> Figure 6. | T98: Volume sur pied | U98: OVOLTOTPIEDINC | V98: =VLOOKUP($U98,Output!$C:$AM,V$94,FALSE) -> 10062771.32 | W98: =VLOOKUP($U98,Output!$C:$AM,W$94,FALSE) -> 9950527.41 | X98: =VLOOKUP($U98,Output!$C:$AM,X$94,FALSE) -> 9990308.23 | Y98: =VLOOKUP($U98,Output!$C:$AM,Y$94,FALSE) -> 10124208.89 | Z98: =VLOOKUP($U98,Output!$C:$AM,Z$94,FALSE) -> 10304646.68 | AA98: =VLOOKUP($U98,Output!$C:$AM,AA$94,FALSE) -> 10532898.78 | AB98: =VLOOKUP($U98,Output!$C:$AM,AB$94,FALSE) -> 10752087.63 | AC98: =VLOOKUP($U98,Output!$C:$AM,AC$94,FALSE) -> 10752087.63 | AD98: =VLOOKUP($U98,Output!$C:$AM,AD$94,FALSE) -> 10752087.63 | AE98: =VLOOKUP($U98,Output!$C:$AM,AE$94,FALSE) -> 10752087.63 | AF98: =VLOOKUP($U98,Output!$C:$AM,AF$94,FALSE) -> 10752087.63 | AG98: =VLOOKUP($U98,Output!$C:$AM,AG$94,FALSE) -> 10752087.63 | AH98: =VLOOKUP($U98,Output!$C:$AM,AH$94,FALSE) -> 10752087.63 | AI98: =VLOOKUP($U98,Output!$C:$AM,AI$94,FALSE) -> 10752087.63 | AJ98: =VLOOKUP($U98,Output!$C:$AM,AJ$94,FALSE) -> 10752087.63 | AK98: =VLOOKUP($U98,Output!$C:$AM,AK$94,FALSE) -> 10752087.63 | AL98: =VLOOKUP($U98,Output!$C:$AM,AL$94,FALSE) -> 10752087.63 | AM98: =VLOOKUP($U98,Output!$C:$AM,AM$94,FALSE) -> 10752087.63 | AN98: =VLOOKUP($U98,Output!$C:$AM,AN$94,FALSE) -> 10752087.63 | AO98: =VLOOKUP($U98,Output!$C:$AM,AO$94,FALSE) -> 10752087.63 | AP98: =VLOOKUP($U98,Output!$C:$AM,AP$94,FALSE) -> 10752087.63 | AQ98: =VLOOKUP($U98,Output!$C:$AM,AQ$94,FALSE) -> 10752087.63 | AR98: =VLOOKUP($U98,Output!$C:$AM,AR$94,FALSE) -> 10752087.63 | AS98: =VLOOKUP($U98,Output!$C:$AM,AS$94,FALSE) -> 10752087.63 | AT98: =VLOOKUP($U98,Output!$C:$AM,AT$94,FALSE) -> 10752087.63 | AU98: =VLOOKUP($U98,Output!$C:$AM,AU$94,FALSE) -> 10752087.63 | AV98: =VLOOKUP($U98,Output!$C:$AM,AV$94,FALSE) -> 10752087.63 | AW98: =VLOOKUP($U98,Output!$C:$AM,AW$94,FALSE) -> 10752087.63 | AX98: =VLOOKUP($U98,Output!$C:$AM,AX$94,FALSE) -> 10752087.63 | AY98: =VLOOKUP($U98,Output!$C:$AM,AY$94,FALSE) -> 10752087.63 | AZ98: =VLOOKUP($U98,Output!$C:$AM,AZ$94,FALSE) -> 10752087.63
S99: =LEFT(B$91,10) -> Figure 6. | T99: Volume récoltable | U99: OVOLTOTADMREGAPRE | V99: =VLOOKUP($U99,Output!$C:$AM,V$94,FALSE) -> 0 | W99: =VLOOKUP($U99,Output!$C:$AM,W$94,FALSE) -> 5148784.99 | X99: =VLOOKUP($U99,Output!$C:$AM,X$94,FALSE) -> 4945765.36 | Y99: =VLOOKUP($U99,Output!$C:$AM,Y$94,FALSE) -> 4771522.05 | Z99: =VLOOKUP($U99,Output!$C:$AM,Z$94,FALSE) -> 4547390.63 | AA99: =VLOOKUP($U99,Output!$C:$AM,AA$94,FALSE) -> 4963723.88 | AB99: =VLOOKUP($U99,Output!$C:$AM,AB$94,FALSE) -> 5467996.42 | AC99: =VLOOKUP($U99,Output!$C:$AM,AC$94,FALSE) -> 5309782.6 | AD99: =VLOOKUP($U99,Output!$C:$AM,AD$94,FALSE) -> 5924118.25 | AE99: =VLOOKUP($U99,Output!$C:$AM,AE$94,FALSE) -> 6404144.53 | AF99: =VLOOKUP($U99,Output!$C:$AM,AF$94,FALSE) -> 5997548.4 | AG99: =VLOOKUP($U99,Output!$C:$AM,AG$94,FALSE) -> 5543285.88 | AH99: =VLOOKUP($U99,Output!$C:$AM,AH$94,FALSE) -> 5198599.45 | AI99: =VLOOKUP($U99,Output!$C:$AM,AI$94,FALSE) -> 5185245.96 | AJ99: =VLOOKUP($U99,Output!$C:$AM,AJ$94,FALSE) -> 5166261.43 | AK99: =VLOOKUP($U99,Output!$C:$AM,AK$94,FALSE) -> 5287152.14 | AL99: =VLOOKUP($U99,Output!$C:$AM,AL$94,FALSE) -> 5025083.11 | AM99: =VLOOKUP($U99,Output!$C:$AM,AM$94,FALSE) -> 4767297.91 | AN99: =VLOOKUP($U99,Output!$C:$AM,AN$94,FALSE) -> 4644530.85 | AO99: =VLOOKUP($U99,Output!$C:$AM,AO$94,FALSE) -> 4529624.75 | AP99: =VLOOKUP($U99,Output!$C:$AM,AP$94,FALSE) -> 4592305.73 | AQ99: =VLOOKUP($U99,Output!$C:$AM,AQ$94,FALSE) -> 4581050.3 | AR99: =VLOOKUP($U99,Output!$C:$AM,AR$94,FALSE) -> 4540131.69 | AS99: =VLOOKUP($U99,Output!$C:$AM,AS$94,FALSE) -> 4376099.99 | AT99: =VLOOKUP($U99,Output!$C:$AM,AT$94,FALSE) -> 4455497.3 | AU99: =VLOOKUP($U99,Output!$C:$AM,AU$94,FALSE) -> 4168632 | AV99: =VLOOKUP($U99,Output!$C:$AM,AV$94,FALSE) -> 4360878.47 | AW99: =VLOOKUP($U99,Output!$C:$AM,AW$94,FALSE) -> 4569743.49 | AX99: =VLOOKUP($U99,Output!$C:$AM,AX$94,FALSE) -> 4714292.23 | AY99: =VLOOKUP($U99,Output!$C:$AM,AY$94,FALSE) -> 4308731.76 | AZ99: =VLOOKUP($U99,Output!$C:$AM,AZ$94,FALSE) -> 3908587.95
T116: * Source: Cahier_analyse, Tableau 13, onglet Budget | X116: Moyenne P2 à P6
B117: Figure 7. Répartition du budget annuel par familles de traitements prévus à la stratégie d’aménagement et coût moyen à l’hectare par famille de traitements
S118: =LEFT(B$117,10) -> Figure 7. | T118: Légende | U118: Output taux | V118: Output superficie | W118: $/ha | X118: ha | Y118: $
S119: =LEFT(B$117,10) -> Figure 7. | T119: Coupes avec protection de la régénération et des sols (CPRS) | U119: OTAUXCT_100 | V119: OSUPCT | W119: =IFERROR(VLOOKUP(U119,Output!$C:$AQ,37,FALSE),0) -> 0 | X119: =IFERROR(VLOOKUP(V119,Output!$C:$AQ,37,FALSE),"0000")/5 -> 1396.9396 | Y119: =W119*X119 -> 0
S120: =LEFT(B$117,10) -> Figure 7. | T120: Coupe avec protection des petites tiges marchandes (CPPTM) | V120: OSUPREALaCPPTM | W120: =IFERROR(VLOOKUP(U120,Output!$C:$AQ,8,FALSE),0) -> 0 | X120: =IFERROR(VLOOKUP(V120,Output!$C:$AQ,37,FALSE),"0000")/5 -> 0 | Y120: =W120*X120 -> 0
S121: =LEFT(B$117,10) -> Figure 7. | T121: Coupe avec réserve de semenciers (CRS) | V121: OSUPREALaCRS | W121: =IFERROR(VLOOKUP(U121,Output!$C:$AQ,8,FALSE),0) -> 0 | X121: =IFERROR(VLOOKUP(V121,Output!$C:$AQ,37,FALSE),"0000")/5 -> 0 | Y121: 0
T122: Coupe à rétention variable (CRV, CPPTM, CPPTM, CPHR, CDL)
S123: =LEFT(B$117,10) -> Figure 7. | T123: Coupes finales | W123: =(ROUND(Y123/X123,0))&"$/ha" -> 0$/ha | X123: =SUM(X119:X121) -> 1396.9396 | Y123: =SUM(Y119:Y121) -> 0
S124: Figure 7. | T124: Éclaircie commerciale (EC) | U124: OTAUXEC_SEPM_100 | V124: OSUPEC_SEPM | W124: =IFERROR(VLOOKUP(U124,Output!$C:$AQ,37,FALSE),0) -> 1370 | X124: =IFERROR(VLOOKUP(V124,Output!$C:$AQ,37,FALSE),"0000")/5 -> 15.2 | Y124: 20824
S125: Figure 7. | T125: Coupe progressive régulière initiale (CPROG) | U125: OTAUXCPROG_INI_100 | V125: OSUPCPROG_INI | W125: =IFERROR(VLOOKUP(U125,Output!$C:$AQ,37,FALSE),0) -> 400 | X125: =IFERROR(VLOOKUP(V125,Output!$C:$AQ,37,FALSE),"0000")/5 -> 0 | Y125: 0
S126: Figure 7. | T126: Coupe progressive régulière finale (CPROG) | U126: OTAUXCPROG_FIN_100 | V126: OSUPCPROG_FIN | W126: =IFERROR(VLOOKUP(U126,Output!$C:$AQ,37,FALSE),0) -> 0 | X126: =IFERROR(VLOOKUP(V126,Output!$C:$AQ,37,FALSE),"0000")/5 -> 0 | Y126: 0
S127: Figure 7. | T127: Coupe progessive irrégulière initiale (CPIRL) | U127: OTAUXCPIRL_INI_100 | V127: OSUPCPIRL_INI | W127: =IFERROR(VLOOKUP(U127,Output!$C:$AQ,37,FALSE),0) -> 530 | X127: =IFERROR(VLOOKUP(V127,Output!$C:$AQ,37,FALSE),"0000")/5 -> 115.382 | Y127: 61152.46
S128: Figure 7. | T128: Coupe progessive irrégulière finale (CPIRL) | U128: OTAUXCPIRL_FIN_100 | V128: OSUPCPIRL_FIN | W128: =IFERROR(VLOOKUP(U128,Output!$C:$AQ,37,FALSE),0) -> 0 | X128: =IFERROR(VLOOKUP(V128,Output!$C:$AQ,37,FALSE),"0000")/5 -> 0 | Y128: 0
S129: Figure 7. | T129: Coupe à couvert permanent (CPICP) | U129: OTAUXCPICP_100 | V129: OSUPCPICP | W129: =IFERROR(VLOOKUP(U129,Output!$C:$AQ,37,FALSE),0) -> 210 | X129: =IFERROR(VLOOKUP(V129,Output!$C:$AQ,37,FALSE),"0000")/5 -> 0 | Y129: 0
S130: Figure 7. | T130: Coupe de jardinage (CJ) | U130: OTAUXCJ_100 | V130: OSUPCJ | W130: =IFERROR(VLOOKUP(U130,Output!$C:$AQ,37,FALSE),0) -> 673.45 | X130: =IFERROR(VLOOKUP(V130,Output!$C:$AQ,37,FALSE),"0000")/5 -> 0 | Y130: 0
S131: Figure 7. | T131: Coupes partielles | W131: =(ROUND(Y131/X131,0))&"$/ha" -> 628$/ha | X131: =SUM(X124:X130) -> 130.582 | Y131: =SUM(Y124:Y130) -> 81976.46
S132: Figure 7. | T132: Plantation ligniculture (pins, feuillus) | U132: OTAUXPL_PPF_100 | V132: OSUPPL_PPF | W132: =IFERROR(VLOOKUP(U132,Output!$C:$AQ,37,FALSE),0) -> 1640 | X132: =IFERROR(VLOOKUP(V132,Output!$C:$AQ,37,FALSE),"0000")/5 -> 0 | Y132: 0
S133: Figure 7. | T133: Plantation intensive | U133: OTAUXPL_SEPM_I_100 | V133: OSUPPL_SEPM_I | W133: =IFERROR(VLOOKUP(U133,Output!$C:$AQ,37,FALSE),0) -> 1300 | X133: =IFERROR(VLOOKUP(V133,Output!$C:$AQ,37,FALSE),"0000")/5 -> 16.39 | Y133: 21307
S134: Figure 7. | T134: Plantation de base | U134: OTAUXPL_SEPM_E_100 | V134: OSUPPL_SEPM_E | W134: =IFERROR(VLOOKUP(U134,Output!$C:$AQ,37,FALSE),0) -> 1040 | X134: =IFERROR(VLOOKUP(V134,Output!$C:$AQ,37,FALSE),"0000")/5 -> 553.9928 | Y134: 576152.512
S135: Figure 7. | T135: Regarni | U135: OTAUXREG_100 | V135: OSUPREG | W135: =IFERROR(VLOOKUP(U135,Output!$C:$AQ,37,FALSE),0) -> 470 | X135: =IFERROR(VLOOKUP(V135,Output!$C:$AQ,37,FALSE),"0000")/5 -> 0 | Y135: 0
S136: Figure 7. | T136: Ensemencement (ENS) | U136: OTAUXENS_100 | V136: OSUPENS | W136: =IFERROR(VLOOKUP(U136,Output!$C:$AQ,37,FALSE),0) -> 130 | X136: =IFERROR(VLOOKUP(V136,Output!$C:$AQ,37,FALSE),"0000")/5 -> 0 | Y136: =W136*X136 -> 0
S137: Figure 7. | T137: Reboisement | W137: =(ROUND(Y137/X137,0))&"$/ha" -> 1047$/ha | X137: =SUM(X132:X136) -> 570.3828 | Y137: =SUM(Y132:Y136) -> 597459.512
S138: Figure 7. | T138: Dégagement de la régénération naturelle | U138: OTAUXDEG_2_100 | V138: OSUPDEG_2 | W138: =IFERROR(VLOOKUP(U138,Output!$C:$AQ,37,FALSE),0) -> 1290 | X138: =IFERROR(VLOOKUP(V138,Output!$C:$AQ,37,FALSE),"0000")/5 -> 0 | Y138: 0
S139: Figure 7. | T139: Dégagement de plantation | U139: OTAUXDEG_1_100 | V139: OSUPDEG_1 | W139: =IFERROR(VLOOKUP(U139,Output!$C:$AQ,37,FALSE),0) -> 1290 | X139: =IFERROR(VLOOKUP(V139,Output!$C:$AQ,37,FALSE),"0000")/5 -> 28.6 | Y139: 36894
S140: Figure 7. | T140: Nettoiement de la régénération naturelle | U140: OTAUXNETT_100 | V140: OSUPREALNET | W140: =IFERROR(VLOOKUP(U140,Output!$C:$AQ,37,FALSE),0) -> 1140 | X140: =IFERROR(VLOOKUP(V140,Output!$C:$AQ,37,FALSE),"0000")/5-X141 -> 19 | Y140: 21660
C141: $ /m3 | E141: $ /ha | S141: Figure 7. | T141: Nettoiement de plantation | U141: OTAUXNETT_100 | V141: OSUPTCADNETT_T100% | W141: =IFERROR(VLOOKUP(U141,Output!$C:$AQ,37,FALSE),0) -> 1140 | X141: =IFERROR(VLOOKUP(V141,Output!$C:$AQ,37,FALSE),"0000")/5 -> 0 | Y141: 0
C142: =Y151/(Instructions!I5/5) -> 5.612758814 | E142: =Y151/Tableaux!F33 -> 6.206683168 | S142: Figure 7. | T142: Éclaircie précommerciale (EPC_1) | U142: OTAUXEPC_1_100 | V142: OSUPEPC_1 | W142: =IFERROR(VLOOKUP(U142,Output!$C:$AQ,37,FALSE),0) -> 1380 | X142: =IFERROR(VLOOKUP(V142,Output!$C:$AQ,37,FALSE),"0000")/5 -> 0 | Y142: 0
S143: Figure 7. | T143: Éclaircie précommerciale (EPC_2) | U143: OTAUXEPC_2_100 | V143: OSUPEPC_2 | W143: =IFERROR(VLOOKUP(U143,Output!$C:$AQ,37,FALSE),0) -> 1380 | X143: =IFERROR(VLOOKUP(V143,Output!$C:$AQ,37,FALSE),"0000")/5 -> 0 | Y143: 0
S144: Figure 7. | T144: Éclaircie précommerciale de la régénération naturelle | V144: OSUPREALEPC | W144: =IFERROR(VLOOKUP(U144,Output!$C:$AQ,37,FALSE),0) -> 0 | X144: =IFERROR(VLOOKUP(V144,Output!$C:$AQ,37,FALSE),"0000")/5 -> 0 | Y144: 0
S145: Figure 7. | T145: Élagage (plantation) | U145: OTAUXELAG_100 | V145: OSUPELAG | W145: =IFERROR(VLOOKUP(U145,Output!$C:$AQ,37,FALSE),0) -> 1630 | X145: =IFERROR(VLOOKUP(V145,Output!$C:$AQ,37,FALSE),"0000")/5 -> 0 | Y145: 0
S146: Figure 7. | T146: Travaux d'éducation | W146: =(ROUND(Y146/X146,0))&"$/ha" -> 1230$/ha | X146: =SUM(X138:X143)+X145 -> 47.6 | Y146: =SUM(Y138:Y143)+Y145 -> 58554
S147: Figure 7. | T147: Préparation terrain lignicult. + ferti + élagage (SCA_LIGN) | U147: OTAUXSCA_LIGN_100 | V147: OSUPSCA_LIGN | W147: =IFERROR(VLOOKUP(U147,Output!$C:$AQ,37,FALSE),0) -> 1510 | X147: =IFERROR(VLOOKUP(V147,Output!$C:$AQ,37,FALSE),"0000")/5 -> 0 | Y147: 0
S148: Figure 7. | T148: Préparation de terrain partielle (SCA_PART) | U148: OTAUXSCA_PART_100 | V148: OSUPSCA_PART | W148: =IFERROR(VLOOKUP(U148,Output!$C:$AQ,37,FALSE),0) -> 540 | X148: =IFERROR(VLOOKUP(V148,Output!$C:$AQ,37,FALSE),"0000")/5 -> 57.6908 | Y148: 31153.032
S149: Figure 7. | T149: Préparation de terrain régulière, 1 passage (SCA_REG) | U149: OTAUXSCA_REG_100 | V149: OSUPSCA_REG | W149: =IFERROR(VLOOKUP(U149,Output!$C:$AQ,37,FALSE),0) -> 410 | X149: =IFERROR(VLOOKUP(V149,Output!$C:$AQ,37,FALSE),"0000")/5 -> 570.3828 | Y149: 233856.948 | AA149: Valideur
B150: Figure 9b Évolution de la superficie des vieilles forêts selon leur degré d'altération | S150: Figure 7. | T150: Préparation de terrain | W150: =(ROUND(Y150/X150,0))&"$/ha" -> 422$/ha | X150: =SUM(X147:X149) -> 628.0736 | Y150: =SUM(Y147:Y149) -> 265009.98 | Z150: =Y123+Y131+Y137+Y146+Y150 -> 1002999.952 | AA150: =Y151-Z150 -> 0.04799999995
S151: Figure 7. | T151: Investissement sylvicole annuel (O$INVESTISTS)* | V151: O$INVESTISTS | Y151: =IFERROR(VLOOKUP(V151,Output!$C:$AQ,37,FALSE),"0000")/5 -> 1003000
S155: =LEFT(B$117,10) -> Figure 7. | T155: =T123 -> Coupes finales | U155: =Y123 -> 0 | V155: =W123 -> 0$/ha
S156: =LEFT(B$117,10) -> Figure 7. | T156: =T131 -> Coupes partielles | U156: =Y131 -> 81976.46 | V156: =W131 -> 628$/ha
S157: =LEFT(B$117,10) -> Figure 7. | T157: =T137 -> Reboisement | U157: =Y137 -> 597459.512 | V157: =W137 -> 1047$/ha
S158: =LEFT(B$117,10) -> Figure 7. | T158: =T146 -> Travaux d'éducation | U158: =Y146 -> 58554 | V158: =W146 -> 1230$/ha
S159: =LEFT(B$117,10) -> Figure 7. | T159: =T150 -> Préparation de terrain | U159: =Y150 -> 265009.98 | V159: =W150 -> 422$/ha
U161: Période | V161: P0 | W161: P1 | X161: P2 | Y161: P3 | Z161: P4 | AA161: P5 | AB161: P6 | AC161: P7 | AD161: P8 | AE161: P9 | AF161: P10 | AG161: P11 | AH161: P12 | AI161: P13 | AJ161: P14 | AK161: P15 | AL161: P16 | AM161: P17 | AN161: P18 | AO161: P19 | AP161: P20 | AQ161: P21 | AR161: P22 | AS161: P23 | AT161: P24 | AU161: P25 | AV161: P26 | AW161: P27 | AX161: P28 | AY161: P29 | AZ161: P30
S162: =LEFT(B$150,10) -> Figure 9b | U162: Axe des "X" Fin de période | V162: 2018 | W162: 2023 | X162: 2028 | Y162: 2033 | Z162: 2038 | AA162: 2043 | AB162: 2048 | AC162: 2053 | AD162: 2058 | AE162: 2063 | AF162: 2068 | AG162: 2073 | AH162: 2078 | AI162: 2083 | AJ162: 2088 | AK162: 2093 | AL162: 2098 | AM162: 2103 | AN162: 2108 | AO162: 2113 | AP162: 2118 | AQ162: 2123 | AR162: 2128 | AS162: 2133 | AT162: 2138 | AU162: 2143 | AV162: 2148 | AW162: 2153 | AX162: 2158 | AY162: 2163 | AZ162: 2168
S163: Figure 9b | U163: Colonne | V163: 6 | W163: 7 | X163: 8 | Y163: 9 | Z163: 10 | AA163: 11 | AB163: 12 | AC163: 13 | AD163: 14 | AE163: 15 | AF163: 16 | AG163: 17 | AH163: 18 | AI163: 19 | AJ163: 20 | AK163: 21 | AL163: 22 | AM163: 23 | AN163: 24 | AO163: 25 | AP163: 26 | AQ163: 27 | AR163: 28 | AS163: 29 | AT163: 30 | AU163: 31 | AV163: 32 | AW163: 33 | AX163: 34 | AY163: 35 | AZ163: 36
S164: Figure 9b | U164: OSUPREGECO | V164: =VLOOKUP($U164,Output!$C:$AL,V$163,FALSE) -> 208074.7 | W164: =VLOOKUP($U164,Output!$C:$AL,W$163,FALSE) -> 207573.31 | X164: =VLOOKUP($U164,Output!$C:$AL,X$163,FALSE) -> 207248.8 | Y164: =VLOOKUP($U164,Output!$C:$AL,Y$163,FALSE) -> 206897.79 | Z164: =VLOOKUP($U164,Output!$C:$AL,Z$163,FALSE) -> 206540.14 | AA164: =VLOOKUP($U164,Output!$C:$AL,AA$163,FALSE) -> 206282.17 | AB164: =VLOOKUP($U164,Output!$C:$AL,AB$163,FALSE) -> 206135.8 | AC164: =VLOOKUP($U164,Output!$C:$AL,AC$163,FALSE) -> 205704.91 | AD164: =VLOOKUP($U164,Output!$C:$AL,AD$163,FALSE) -> 205440.86 | AE164: =VLOOKUP($U164,Output!$C:$AL,AE$163,FALSE) -> 205289.05 | AF164: =VLOOKUP($U164,Output!$C:$AL,AF$163,FALSE) -> 205238.8 | AG164: =VLOOKUP($U164,Output!$C:$AL,AG$163,FALSE) -> 205172.87 | AH164: =VLOOKUP($U164,Output!$C:$AL,AH$163,FALSE) -> 204959.81 | AI164: =VLOOKUP($U164,Output!$C:$AL,AI$163,FALSE) -> 204809.81 | AJ164: =VLOOKUP($U164,Output!$C:$AL,AJ$163,FALSE) -> 204775.1 | AK164: =VLOOKUP($U164,Output!$C:$AL,AK$163,FALSE) -> 204762.16 | AL164: =VLOOKUP($U164,Output!$C:$AL,AL$163,FALSE) -> 204761.89 | AM164: =VLOOKUP($U164,Output!$C:$AL,AM$163,FALSE) -> 204758.93 | AN164: =VLOOKUP($U164,Output!$C:$AL,AN$163,FALSE) -> 204753.52 | AO164: =VLOOKUP($U164,Output!$C:$AL,AO$163,FALSE) -> 204751.2 | AP164: =VLOOKUP($U164,Output!$C:$AL,AP$163,FALSE) -> 204748.58 | AQ164: =VLOOKUP($U164,Output!$C:$AL,AQ$163,FALSE) -> 204747.9 | AR164: =VLOOKUP($U164,Output!$C:$AL,AR$163,FALSE) -> 204747.9 | AS164: =VLOOKUP($U164,Output!$C:$AL,AS$163,FALSE) -> 204743.19 | AT164: =VLOOKUP($U164,Output!$C:$AL,AT$163,FALSE) -> 204737.18 | AU164: =VLOOKUP($U164,Output!$C:$AL,AU$163,FALSE) -> 204736.51 | AV164: =VLOOKUP($U164,Output!$C:$AL,AV$163,FALSE) -> 204735.53 | AW164: =VLOOKUP($U164,Output!$C:$AL,AW$163,FALSE) -> 204735.53 | AX164: =VLOOKUP($U164,Output!$C:$AL,AX$163,FALSE) -> 204735.53 | AY164: =VLOOKUP($U164,Output!$C:$AL,AY$163,FALSE) -> 204735.53 | AZ164: =VLOOKUP($U164,Output!$C:$AL,AZ$163,FALSE) -> 204735.53
S165: Figure 9b | T165: Élevé | U165: OSUPVIEUXALERTEREGECO | V165: =VLOOKUP($U165,Output!$C:$AL,V$163,FALSE) -> 30586.98 | W165: =VLOOKUP($U165,Output!$C:$AL,W$163,FALSE) -> 30513.28 | X165: =VLOOKUP($U165,Output!$C:$AL,X$163,FALSE) -> 30465.57 | Y165: =VLOOKUP($U165,Output!$C:$AL,Y$163,FALSE) -> 30413.98 | Z165: =VLOOKUP($U165,Output!$C:$AL,Z$163,FALSE) -> 30361.4 | AA165: =VLOOKUP($U165,Output!$C:$AL,AA$163,FALSE) -> 30323.48 | AB165: =VLOOKUP($U165,Output!$C:$AL,AB$163,FALSE) -> 30301.96 | AC165: =VLOOKUP($U165,Output!$C:$AL,AC$163,FALSE) -> 30238.62 | AD165: =VLOOKUP($U165,Output!$C:$AL,AD$163,FALSE) -> 30199.81 | AE165: =VLOOKUP($U165,Output!$C:$AL,AE$163,FALSE) -> 30177.49 | AF165: =VLOOKUP($U165,Output!$C:$AL,AF$163,FALSE) -> 30170.1 | AG165: =VLOOKUP($U165,Output!$C:$AL,AG$163,FALSE) -> 30160.41 | AH165: =VLOOKUP($U165,Output!$C:$AL,AH$163,FALSE) -> 30129.09 | AI165: =VLOOKUP($U165,Output!$C:$AL,AI$163,FALSE) -> 30107.04 | AJ165: =VLOOKUP($U165,Output!$C:$AL,AJ$163,FALSE) -> 30101.94 | AK165: =VLOOKUP($U165,Output!$C:$AL,AK$163,FALSE) -> 30100.04 | AL165: =VLOOKUP($U165,Output!$C:$AL,AL$163,FALSE) -> 30100 | AM165: =VLOOKUP($U165,Output!$C:$AL,AM$163,FALSE) -> 30099.56 | AN165: =VLOOKUP($U165,Output!$C:$AL,AN$163,FALSE) -> 30098.77 | AO165: =VLOOKUP($U165,Output!$C:$AL,AO$163,FALSE) -> 30098.43 | AP165: =VLOOKUP($U165,Output!$C:$AL,AP$163,FALSE) -> 30098.04 | AQ165: =VLOOKUP($U165,Output!$C:$AL,AQ$163,FALSE) -> 30097.94 | AR165: =VLOOKUP($U165,Output!$C:$AL,AR$163,FALSE) -> 30097.94 | AS165: =VLOOKUP($U165,Output!$C:$AL,AS$163,FALSE) -> 30097.25 | AT165: =VLOOKUP($U165,Output!$C:$AL,AT$163,FALSE) -> 30096.37 | AU165: =VLOOKUP($U165,Output!$C:$AL,AU$163,FALSE) -> 30096.27 | AV165: =VLOOKUP($U165,Output!$C:$AL,AV$163,FALSE) -> 30096.12 | AW165: =VLOOKUP($U165,Output!$C:$AL,AW$163,FALSE) -> 30096.12 | AX165: =VLOOKUP($U165,Output!$C:$AL,AX$163,FALSE) -> 30096.12 | AY165: =VLOOKUP($U165,Output!$C:$AL,AY$163,FALSE) -> 30096.12 | AZ165: =VLOOKUP($U165,Output!$C:$AL,AZ$163,FALSE) -> 30096.12
S166: Figure 9b | U166: OSUPVIEUXACCEPTREGECO | V166: =VLOOKUP($U166,Output!$C:$AL,V$163,FALSE) -> 50978.3 | W166: =VLOOKUP($U166,Output!$C:$AL,W$163,FALSE) -> 50855.46 | X166: =VLOOKUP($U166,Output!$C:$AL,X$163,FALSE) -> 50775.96 | Y166: =VLOOKUP($U166,Output!$C:$AL,Y$163,FALSE) -> 50689.96 | Z166: =VLOOKUP($U166,Output!$C:$AL,Z$163,FALSE) -> 50602.33 | AA166: =VLOOKUP($U166,Output!$C:$AL,AA$163,FALSE) -> 50539.13 | AB166: =VLOOKUP($U166,Output!$C:$AL,AB$163,FALSE) -> 50503.27 | AC166: =VLOOKUP($U166,Output!$C:$AL,AC$163,FALSE) -> 50397.7 | AD166: =VLOOKUP($U166,Output!$C:$AL,AD$163,FALSE) -> 50333.01 | AE166: =VLOOKUP($U166,Output!$C:$AL,AE$163,FALSE) -> 50295.82 | AF166: =VLOOKUP($U166,Output!$C:$AL,AF$163,FALSE) -> 50283.51 | AG166: =VLOOKUP($U166,Output!$C:$AL,AG$163,FALSE) -> 50267.35 | AH166: =VLOOKUP($U166,Output!$C:$AL,AH$163,FALSE) -> 50215.15 | AI166: =VLOOKUP($U166,Output!$C:$AL,AI$163,FALSE) -> 50178.4 | AJ166: =VLOOKUP($U166,Output!$C:$AL,AJ$163,FALSE) -> 50169.9 | AK166: =VLOOKUP($U166,Output!$C:$AL,AK$163,FALSE) -> 50166.73 | AL166: =VLOOKUP($U166,Output!$C:$AL,AL$163,FALSE) -> 50166.66 | AM166: =VLOOKUP($U166,Output!$C:$AL,AM$163,FALSE) -> 50165.94 | AN166: =VLOOKUP($U166,Output!$C:$AL,AN$163,FALSE) -> 50164.61 | AO166: =VLOOKUP($U166,Output!$C:$AL,AO$163,FALSE) -> 50164.04 | AP166: =VLOOKUP($U166,Output!$C:$AL,AP$163,FALSE) -> 50163.4 | AQ166: =VLOOKUP($U166,Output!$C:$AL,AQ$163,FALSE) -> 50163.24 | AR166: =VLOOKUP($U166,Output!$C:$AL,AR$163,FALSE) -> 50163.24 | AS166: =VLOOKUP($U166,Output!$C:$AL,AS$163,FALSE) -> 50162.08 | AT166: =VLOOKUP($U166,Output!$C:$AL,AT$163,FALSE) -> 50160.61 | AU166: =VLOOKUP($U166,Output!$C:$AL,AU$163,FALSE) -> 50160.44 | AV166: =VLOOKUP($U166,Output!$C:$AL,AV$163,FALSE) -> 50160.21 | AW166: =VLOOKUP($U166,Output!$C:$AL,AW$163,FALSE) -> 50160.21 | AX166: =VLOOKUP($U166,Output!$C:$AL,AX$163,FALSE) -> 50160.21 | AY166: =VLOOKUP($U166,Output!$C:$AL,AY$163,FALSE) -> 50160.21 | AZ166: =VLOOKUP($U166,Output!$C:$AL,AZ$163,FALSE) -> 50160.21
S167: Figure 9b | T167: Moyen | V167: =V166-V165 -> 20391.32 | W167: =W166-W165 -> 20342.18 | X167: 20310.39 | Y167: 20275.98 | Z167: 20240.93 | AA167: 20215.65 | AB167: 20201.31 | AC167: 20159.08 | AD167: 20133.2 | AE167: 20118.33 | AF167: 20113.41 | AG167: 20106.94 | AH167: 20086.06 | AI167: 20071.36 | AJ167: 20067.96 | AK167: 20066.69 | AL167: 20066.66 | AM167: 20066.38 | AN167: 20065.84 | AO167: 20065.61 | AP167: 20065.36 | AQ167: 20065.3 | AR167: 20065.3 | AS167: 20064.83 | AT167: 20064.24 | AU167: 20064.17 | AV167: 20064.09 | AW167: 20064.09 | AX167: 20064.09 | AY167: 20064.09 | AZ167: 20064.09
S168: Figure 9b | T168: Faible | V168: =$V$164-V165-V167 -> 157096.4 | W168: 157219.24 | X168: 157298.74 | Y168: 157384.74 | Z168: 157472.37 | AA168: 157535.57 | AB168: 157571.43 | AC168: 157677 | AD168: 157741.69 | AE168: 157778.88 | AF168: 157791.19 | AG168: 157807.35 | AH168: 157859.55 | AI168: 157896.3 | AJ168: 157904.8 | AK168: 157907.97 | AL168: 157908.04 | AM168: 157908.76 | AN168: 157910.09 | AO168: 157910.66 | AP168: 157911.3 | AQ168: 157911.46 | AR168: 157911.46 | AS168: 157912.62 | AT168: 157914.09 | AU168: 157914.26 | AV168: 157914.49 | AW168: 157914.49 | AX168: 157914.49 | AY168: 157914.49 | AZ168: 157914.49
S169: Figure 9b | T169: Niveau prédit | U169: OSUPVIEUXTOTREGECO | V169: =VLOOKUP($U169,Output!$C:$AL,V$163,FALSE) -> 57148.2 | W169: =VLOOKUP($U169,Output!$C:$AL,W$163,FALSE) -> 55840.82 | X169: =VLOOKUP($U169,Output!$C:$AL,X$163,FALSE) -> 59598.6 | Y169: =VLOOKUP($U169,Output!$C:$AL,Y$163,FALSE) -> 62768.98 | Z169: =VLOOKUP($U169,Output!$C:$AL,Z$163,FALSE) -> 59627.46 | AA169: =VLOOKUP($U169,Output!$C:$AL,AA$163,FALSE) -> 57396.44 | AB169: =VLOOKUP($U169,Output!$C:$AL,AB$163,FALSE) -> 56761.98 | AC169: =VLOOKUP($U169,Output!$C:$AL,AC$163,FALSE) -> 49079.05 | AD169: =VLOOKUP($U169,Output!$C:$AL,AD$163,FALSE) -> 44588.82 | AE169: =VLOOKUP($U169,Output!$C:$AL,AE$163,FALSE) -> 42757.9 | AF169: =VLOOKUP($U169,Output!$C:$AL,AF$163,FALSE) -> 42605.68 | AG169: =VLOOKUP($U169,Output!$C:$AL,AG$163,FALSE) -> 43032.23 | AH169: =VLOOKUP($U169,Output!$C:$AL,AH$163,FALSE) -> 39008.26 | AI169: =VLOOKUP($U169,Output!$C:$AL,AI$163,FALSE) -> 49540.18 | AJ169: =VLOOKUP($U169,Output!$C:$AL,AJ$163,FALSE) -> 60687.97 | AK169: =VLOOKUP($U169,Output!$C:$AL,AK$163,FALSE) -> 63510.61 | AL169: =VLOOKUP($U169,Output!$C:$AL,AL$163,FALSE) -> 65166.15 | AM169: =VLOOKUP($U169,Output!$C:$AL,AM$163,FALSE) -> 66588.14 | AN169: =VLOOKUP($U169,Output!$C:$AL,AN$163,FALSE) -> 68636.97 | AO169: =VLOOKUP($U169,Output!$C:$AL,AO$163,FALSE) -> 69838.64 | AP169: =VLOOKUP($U169,Output!$C:$AL,AP$163,FALSE) -> 71164.91 | AQ169: =VLOOKUP($U169,Output!$C:$AL,AQ$163,FALSE) -> 69738.39 | AR169: =VLOOKUP($U169,Output!$C:$AL,AR$163,FALSE) -> 68322.69 | AS169: =VLOOKUP($U169,Output!$C:$AL,AS$163,FALSE) -> 65342.76 | AT169: =VLOOKUP($U169,Output!$C:$AL,AT$163,FALSE) -> 62619.56 | AU169: =VLOOKUP($U169,Output!$C:$AL,AU$163,FALSE) -> 60289.22 | AV169: =VLOOKUP($U169,Output!$C:$AL,AV$163,FALSE) -> 63092.99 | AW169: =VLOOKUP($U169,Output!$C:$AL,AW$163,FALSE) -> 65919.89 | AX169: =VLOOKUP($U169,Output!$C:$AL,AX$163,FALSE) -> 61620.1 | AY169: =VLOOKUP($U169,Output!$C:$AL,AY$163,FALSE) -> 60356.42 | AZ169: =VLOOKUP($U169,Output!$C:$AL,AZ$163,FALSE) -> 60365.78
S170: Figure 9b | T170: Portrait préindustriel
B176: Figure 9c Évolution de la superficie des peuplements en régénération selon leur degré d'altération
U177: Période | V177: P0 | W177: P1 | X177: P2 | Y177: P3 | Z177: P4 | AA177: P5 | AB177: P6 | AC177: P7 | AD177: P8 | AE177: P9 | AF177: P10 | AG177: P11 | AH177: P12 | AI177: P13 | AJ177: P14 | AK177: P15 | AL177: P16 | AM177: P17 | AN177: P18 | AO177: P19 | AP177: P20 | AQ177: P21 | AR177: P22 | AS177: P23 | AT177: P24 | AU177: P25 | AV177: P26 | AW177: P27 | AX177: P28 | AY177: P29 | AZ177: P30
U178: Axe des "X" Fin de période | V178: 2018 | W178: 2023 | X178: 2028 | Y178: 2033 | Z178: 2038 | AA178: 2043 | AB178: 2048 | AC178: 2053 | AD178: 2058 | AE178: 2063 | AF178: 2068 | AG178: 2073 | AH178: 2078 | AI178: 2083 | AJ178: 2088 | AK178: 2093 | AL178: 2098 | AM178: 2103 | AN178: 2108 | AO178: 2113 | AP178: 2118 | AQ178: 2123 | AR178: 2128 | AS178: 2133 | AT178: 2138 | AU178: 2143 | AV178: 2148 | AW178: 2153 | AX178: 2158 | AY178: 2163 | AZ178: 2168
S179: =LEFT(B$176,10) -> Figure 9c | U179: Colonne | V179: 6 | W179: 7 | X179: 8 | Y179: 9 | Z179: 10 | AA179: 11 | AB179: 12 | AC179: 13 | AD179: 14 | AE179: 15 | AF179: 16 | AG179: 17 | AH179: 18 | AI179: 19 | AJ179: 20 | AK179: 21 | AL179: 22 | AM179: 23 | AN179: 24 | AO179: 25 | AP179: 26 | AQ179: 27 | AR179: 28 | AS179: 29 | AT179: 30 | AU179: 31 | AV179: 32 | AW179: 33 | AX179: 34 | AY179: 35 | AZ179: 36
S180: Figure 9c | T180: Niveau prédit | U180: OSUPJEUNEREGECO | V180: =VLOOKUP($U180,Output!$C:$AL,V$179,FALSE) -> 35304.6 | W180: =VLOOKUP($U180,Output!$C:$AL,W$179,FALSE) -> 36489.31 | X180: =VLOOKUP($U180,Output!$C:$AL,X$179,FALSE) -> 31131.99 | Y180: =VLOOKUP($U180,Output!$C:$AL,Y$179,FALSE) -> 32999.19 | Z180: =VLOOKUP($U180,Output!$C:$AL,Z$179,FALSE) -> 31801.71 | AA180: =VLOOKUP($U180,Output!$C:$AL,AA$179,FALSE) -> 27229.22 | AB180: =VLOOKUP($U180,Output!$C:$AL,AB$179,FALSE) -> 27292.53 | AC180: =VLOOKUP($U180,Output!$C:$AL,AC$179,FALSE) -> 30215.77 | AD180: =VLOOKUP($U180,Output!$C:$AL,AD$179,FALSE) -> 31793.18 | AE180: =VLOOKUP($U180,Output!$C:$AL,AE$179,FALSE) -> 34198.93 | AF180: =VLOOKUP($U180,Output!$C:$AL,AF$179,FALSE) -> 35823.28 | AG180: =VLOOKUP($U180,Output!$C:$AL,AG$179,FALSE) -> 34789.32 | AH180: =VLOOKUP($U180,Output!$C:$AL,AH$179,FALSE) -> 35208.02 | AI180: =VLOOKUP($U180,Output!$C:$AL,AI$179,FALSE) -> 36536.03 | AJ180: =VLOOKUP($U180,Output!$C:$AL,AJ$179,FALSE) -> 36786.26 | AK180: =VLOOKUP($U180,Output!$C:$AL,AK$179,FALSE) -> 36316.92 | AL180: =VLOOKUP($U180,Output!$C:$AL,AL$179,FALSE) -> 35132.09 | AM180: =VLOOKUP($U180,Output!$C:$AL,AM$179,FALSE) -> 32808.21 | AN180: =VLOOKUP($U180,Output!$C:$AL,AN$179,FALSE) -> 32956.37 | AO180: =VLOOKUP($U180,Output!$C:$AL,AO$179,FALSE) -> 32898.59 | AP180: =VLOOKUP($U180,Output!$C:$AL,AP$179,FALSE) -> 33829.57 | AQ180: =VLOOKUP($U180,Output!$C:$AL,AQ$179,FALSE) -> 35946.93 | AR180: =VLOOKUP($U180,Output!$C:$AL,AR$179,FALSE) -> 37798.51 | AS180: =VLOOKUP($U180,Output!$C:$AL,AS$179,FALSE) -> 40390.35 | AT180: =VLOOKUP($U180,Output!$C:$AL,AT$179,FALSE) -> 40925.1 | AU180: =VLOOKUP($U180,Output!$C:$AL,AU$179,FALSE) -> 40983.52 | AV180: =VLOOKUP($U180,Output!$C:$AL,AV$179,FALSE) -> 40710.09 | AW180: =VLOOKUP($U180,Output!$C:$AL,AW$179,FALSE) -> 39378.95 | AX180: =VLOOKUP($U180,Output!$C:$AL,AX$179,FALSE) -> 40716.41 | AY180: =VLOOKUP($U180,Output!$C:$AL,AY$179,FALSE) -> 41060.53 | AZ180: =VLOOKUP($U180,Output!$C:$AL,AZ$179,FALSE) -> 40304.33
S181: Figure 9c | U181: OSUPREGECO | V181: =VLOOKUP($U181,Output!$C:$AL,V$179,FALSE) -> 208074.7 | W181: =VLOOKUP($U181,Output!$C:$AL,W$179,FALSE) -> 207573.31 | X181: =VLOOKUP($U181,Output!$C:$AL,X$179,FALSE) -> 207248.8 | Y181: =VLOOKUP($U181,Output!$C:$AL,Y$179,FALSE) -> 206897.79 | Z181: =VLOOKUP($U181,Output!$C:$AL,Z$179,FALSE) -> 206540.14 | AA181: =VLOOKUP($U181,Output!$C:$AL,AA$179,FALSE) -> 206282.17 | AB181: =VLOOKUP($U181,Output!$C:$AL,AB$179,FALSE) -> 206135.8 | AC181: =VLOOKUP($U181,Output!$C:$AL,AC$179,FALSE) -> 205704.91 | AD181: =VLOOKUP($U181,Output!$C:$AL,AD$179,FALSE) -> 205440.86 | AE181: =VLOOKUP($U181,Output!$C:$AL,AE$179,FALSE) -> 205289.05 | AF181: =VLOOKUP($U181,Output!$C:$AL,AF$179,FALSE) -> 205238.8 | AG181: =VLOOKUP($U181,Output!$C:$AL,AG$179,FALSE) -> 205172.87 | AH181: =VLOOKUP($U181,Output!$C:$AL,AH$179,FALSE) -> 204959.81 | AI181: =VLOOKUP($U181,Output!$C:$AL,AI$179,FALSE) -> 204809.81 | AJ181: =VLOOKUP($U181,Output!$C:$AL,AJ$179,FALSE) -> 204775.1 | AK181: =VLOOKUP($U181,Output!$C:$AL,AK$179,FALSE) -> 204762.16 | AL181: =VLOOKUP($U181,Output!$C:$AL,AL$179,FALSE) -> 204761.89 | AM181: =VLOOKUP($U181,Output!$C:$AL,AM$179,FALSE) -> 204758.93 | AN181: =VLOOKUP($U181,Output!$C:$AL,AN$179,FALSE) -> 204753.52 | AO181: =VLOOKUP($U181,Output!$C:$AL,AO$179,FALSE) -> 204751.2 | AP181: =VLOOKUP($U181,Output!$C:$AL,AP$179,FALSE) -> 204748.58 | AQ181: =VLOOKUP($U181,Output!$C:$AL,AQ$179,FALSE) -> 204747.9 | AR181: =VLOOKUP($U181,Output!$C:$AL,AR$179,FALSE) -> 204747.9 | AS181: =VLOOKUP($U181,Output!$C:$AL,AS$179,FALSE) -> 204743.19 | AT181: =VLOOKUP($U181,Output!$C:$AL,AT$179,FALSE) -> 204737.18 | AU181: =VLOOKUP($U181,Output!$C:$AL,AU$179,FALSE) -> 204736.51 | AV181: =VLOOKUP($U181,Output!$C:$AL,AV$179,FALSE) -> 204735.53 | AW181: =VLOOKUP($U181,Output!$C:$AL,AW$179,FALSE) -> 204735.53 | AX181: =VLOOKUP($U181,Output!$C:$AL,AX$179,FALSE) -> 204735.53 | AY181: =VLOOKUP($U181,Output!$C:$AL,AY$179,FALSE) -> 204735.53 | AZ181: =VLOOKUP($U181,Output!$C:$AL,AZ$179,FALSE) -> 204735.53
S182: Figure 9c | V182: =IFERROR(V180/V181,"0000") -> 0.1696727185 | W182: 0.1757899896 | X182: 0.150215538 | Y182: 0.1594951304 | Z182: 0.1539735085 | AA182: 0.1319998718 | AB182: 0.1324007281 | AC182: 0.1468889099 | AD182: 0.1547558748 | AE182: 0.1665891581 | AF182: 0.1745443844 | AG182: 0.1695610146 | AH182: 0.1717801163 | AI182: 0.178390039 | AJ182: 0.1796422514 | AK182: 0.1773614812 | AL182: 0.1715753356 | AM182: 0.1602284696 | AN182: 0.1609563049 | AO182: 0.1606759325 | AP182: 0.165224931 | AQ182: 0.1755667824 | AR182: 0.1846100009 | AS182: 0.197273228 | AT182: 0.199890904 | AU182: 0.2001769005 | AV182: 0.1988423309 | AW182: 0.1923405771 | AX182: 0.1988732 | AY182: 0.2005540025 | AZ182: 0.196860457
S183: Figure 9c
S184: Figure 9c | U184: OSUPJEUNEALERTEREGECO | V184: =VLOOKUP($U184,Output!$C:$AL,V$179,FALSE) -> 72826.14 | W184: =VLOOKUP($U184,Output!$C:$AL,W$179,FALSE) -> 72650.66 | X184: =VLOOKUP($U184,Output!$C:$AL,X$179,FALSE) -> 72537.08 | Y184: =VLOOKUP($U184,Output!$C:$AL,Y$179,FALSE) -> 72414.23 | Z184: =VLOOKUP($U184,Output!$C:$AL,Z$179,FALSE) -> 72289.05 | AA184: =VLOOKUP($U184,Output!$C:$AL,AA$179,FALSE) -> 72198.76 | AB184: =VLOOKUP($U184,Output!$C:$AL,AB$179,FALSE) -> 72147.53 | AC184: =VLOOKUP($U184,Output!$C:$AL,AC$179,FALSE) -> 71996.72 | AD184: =VLOOKUP($U184,Output!$C:$AL,AD$179,FALSE) -> 71904.3 | AE184: =VLOOKUP($U184,Output!$C:$AL,AE$179,FALSE) -> 71851.17 | AF184: =VLOOKUP($U184,Output!$C:$AL,AF$179,FALSE) -> 71833.58 | AG184: =VLOOKUP($U184,Output!$C:$AL,AG$179,FALSE) -> 71810.5 | AH184: =VLOOKUP($U184,Output!$C:$AL,AH$179,FALSE) -> 71735.93 | AI184: =VLOOKUP($U184,Output!$C:$AL,AI$179,FALSE) -> 71683.43 | AJ184: =VLOOKUP($U184,Output!$C:$AL,AJ$179,FALSE) -> 71671.29 | AK184: =VLOOKUP($U184,Output!$C:$AL,AK$179,FALSE) -> 71666.76 | AL184: =VLOOKUP($U184,Output!$C:$AL,AL$179,FALSE) -> 71666.66 | AM184: =VLOOKUP($U184,Output!$C:$AL,AM$179,FALSE) -> 71665.63 | AN184: =VLOOKUP($U184,Output!$C:$AL,AN$179,FALSE) -> 71663.73 | AO184: =VLOOKUP($U184,Output!$C:$AL,AO$179,FALSE) -> 71662.92 | AP184: =VLOOKUP($U184,Output!$C:$AL,AP$179,FALSE) -> 71662 | AQ184: =VLOOKUP($U184,Output!$C:$AL,AQ$179,FALSE) -> 71661.77 | AR184: =VLOOKUP($U184,Output!$C:$AL,AR$179,FALSE) -> 71661.77 | AS184: =VLOOKUP($U184,Output!$C:$AL,AS$179,FALSE) -> 71660.12 | AT184: =VLOOKUP($U184,Output!$C:$AL,AT$179,FALSE) -> 71658.01 | AU184: =VLOOKUP($U184,Output!$C:$AL,AU$179,FALSE) -> 71657.78 | AV184: =VLOOKUP($U184,Output!$C:$AL,AV$179,FALSE) -> 71657.44 | AW184: =VLOOKUP($U184,Output!$C:$AL,AW$179,FALSE) -> 71657.44 | AX184: =VLOOKUP($U184,Output!$C:$AL,AX$179,FALSE) -> 71657.44 | AY184: =VLOOKUP($U184,Output!$C:$AL,AY$179,FALSE) -> 71657.44 | AZ184: =VLOOKUP($U184,Output!$C:$AL,AZ$179,FALSE) -> 71657.44
S185: Figure 9c | T185: Faible | U185: OSUPJEUNEACCEPTREGECO | V185: =VLOOKUP($U185,Output!$C:$AL,V$179,FALSE) -> 52018.67 | W185: =VLOOKUP($U185,Output!$C:$AL,W$179,FALSE) -> 51893.33 | X185: =VLOOKUP($U185,Output!$C:$AL,X$179,FALSE) -> 51812.2 | Y185: =VLOOKUP($U185,Output!$C:$AL,Y$179,FALSE) -> 51724.45 | Z185: =VLOOKUP($U185,Output!$C:$AL,Z$179,FALSE) -> 51635.03 | AA185: =VLOOKUP($U185,Output!$C:$AL,AA$179,FALSE) -> 51570.54 | AB185: =VLOOKUP($U185,Output!$C:$AL,AB$179,FALSE) -> 51533.95 | AC185: =VLOOKUP($U185,Output!$C:$AL,AC$179,FALSE) -> 51426.23 | AD185: =VLOOKUP($U185,Output!$C:$AL,AD$179,FALSE) -> 51360.22 | AE185: =VLOOKUP($U185,Output!$C:$AL,AE$179,FALSE) -> 51322.26 | AF185: =VLOOKUP($U185,Output!$C:$AL,AF$179,FALSE) -> 51309.7 | AG185: =VLOOKUP($U185,Output!$C:$AL,AG$179,FALSE) -> 51293.22 | AH185: =VLOOKUP($U185,Output!$C:$AL,AH$179,FALSE) -> 51239.95 | AI185: =VLOOKUP($U185,Output!$C:$AL,AI$179,FALSE) -> 51202.45 | AJ185: =VLOOKUP($U185,Output!$C:$AL,AJ$179,FALSE) -> 51193.78 | AK185: =VLOOKUP($U185,Output!$C:$AL,AK$179,FALSE) -> 51190.54 | AL185: =VLOOKUP($U185,Output!$C:$AL,AL$179,FALSE) -> 51190.47 | AM185: =VLOOKUP($U185,Output!$C:$AL,AM$179,FALSE) -> 51189.73 | AN185: =VLOOKUP($U185,Output!$C:$AL,AN$179,FALSE) -> 51188.38 | AO185: =VLOOKUP($U185,Output!$C:$AL,AO$179,FALSE) -> 51187.8 | AP185: =VLOOKUP($U185,Output!$C:$AL,AP$179,FALSE) -> 51187.14 | AQ185: =VLOOKUP($U185,Output!$C:$AL,AQ$179,FALSE) -> 51186.98 | AR185: =VLOOKUP($U185,Output!$C:$AL,AR$179,FALSE) -> 51186.98 | AS185: =VLOOKUP($U185,Output!$C:$AL,AS$179,FALSE) -> 51185.8 | AT185: =VLOOKUP($U185,Output!$C:$AL,AT$179,FALSE) -> 51184.3 | AU185: =VLOOKUP($U185,Output!$C:$AL,AU$179,FALSE) -> 51184.13 | AV185: =VLOOKUP($U185,Output!$C:$AL,AV$179,FALSE) -> 51183.88 | AW185: =VLOOKUP($U185,Output!$C:$AL,AW$179,FALSE) -> 51183.88 | AX185: =VLOOKUP($U185,Output!$C:$AL,AX$179,FALSE) -> 51183.88 | AY185: =VLOOKUP($U185,Output!$C:$AL,AY$179,FALSE) -> 51183.88 | AZ185: =VLOOKUP($U185,Output!$C:$AL,AZ$179,FALSE) -> 51183.88
S186: Figure 9c | T186: Moyen | V186: =V184-V185 -> 20807.47 | W186: 20757.33 | X186: 20724.88 | Y186: 20689.78 | Z186: 20654.02 | AA186: 20628.22 | AB186: 20613.58 | AC186: 20570.49 | AD186: 20544.08 | AE186: 20528.91 | AF186: 20523.88 | AG186: 20517.28 | AH186: 20495.98 | AI186: 20480.98 | AJ186: 20477.51 | AK186: 20476.22 | AL186: 20476.19 | AM186: 20475.9 | AN186: 20475.35 | AO186: 20475.12 | AP186: 20474.86 | AQ186: 20474.79 | AR186: 20474.79 | AS186: 20474.32 | AT186: 20473.71 | AU186: 20473.65 | AV186: 20473.56 | AW186: 20473.56 | AX186: 20473.56 | AY186: 20473.56 | AZ186: 20473.56
S187: Figure 9c | T187: Élevé | V187: =$V$181-V184 -> 135248.56 | W187: 135424.04 | X187: 135537.62 | Y187: 135660.47 | Z187: 135785.65 | AA187: 135875.94 | AB187: 135927.17 | AC187: 136077.98 | AD187: 136170.4 | AE187: 136223.53 | AF187: 136241.12 | AG187: 136264.2 | AH187: 136338.77 | AI187: 136391.27 | AJ187: 136403.41 | AK187: 136407.94 | AL187: 136408.04 | AM187: 136409.07 | AN187: 136410.97 | AO187: 136411.78 | AP187: 136412.7 | AQ187: 136412.93 | AR187: 136412.93 | AS187: 136414.58 | AT187: 136416.69 | AU187: 136416.92 | AV187: 136417.26 | AW187: 136417.26 | AX187: 136417.26 | AY187: 136417.26 | AZ187: 136417.26
U199: Période | V199: P0 | W199: P1 | X199: P2 | Y199: P3 | Z199: P4 | AA199: P5 | AB199: P6 | AC199: P7 | AD199: P8 | AE199: P9 | AF199: P10 | AG199: P11 | AH199: P12 | AI199: P13 | AJ199: P14 | AK199: P15 | AL199: P16 | AM199: P17 | AN199: P18 | AO199: P19 | AP199: P20 | AQ199: P21 | AR199: P22 | AS199: P23 | AT199: P24 | AU199: P25 | AV199: P26 | AW199: P27 | AX199: P28 | AY199: P29 | AZ199: P30
U200: Axe des "X" Fin de période | V200: 2018 | W200: 2023 | X200: 2028 | Y200: 2033 | Z200: 2038 | AA200: 2043 | AB200: 2048 | AC200: 2053 | AD200: 2058 | AE200: 2063 | AF200: 2068 | AG200: 2073 | AH200: 2078 | AI200: 2083 | AJ200: 2088 | AK200: 2093 | AL200: 2098 | AM200: 2103 | AN200: 2108 | AO200: 2113 | AP200: 2118 | AQ200: 2123 | AR200: 2128 | AS200: 2133 | AT200: 2138 | AU200: 2143 | AV200: 2148 | AW200: 2153 | AX200: 2158 | AY200: 2163 | AZ200: 2168
U201: Colonne | V201: 6 | W201: 7 | X201: 8 | Y201: 9 | Z201: 10 | AA201: 11 | AB201: 12 | AC201: 13 | AD201: 14 | AE201: 15 | AF201: 16 | AG201: 17 | AH201: 18 | AI201: 19 | AJ201: 20 | AK201: 21 | AL201: 22 | AM201: 23 | AN201: 24 | AO201: 25 | AP201: 26 | AQ201: 27 | AR201: 28 | AS201: 29 | AT201: 30 | AU201: 31 | AV201: 32 | AW201: 33 | AX201: 34 | AY201: 35 | AZ201: 36
B202: Figure 10a Évolution de la superficie selon le type de couvert | S202: =LEFT(B$202,10) -> Figure 10a | U202: OSUPINC
S203: Figure 10a | U203: Résineux | V203: =SUM(V214,V220,V221,V222,V224,V225) -> 133552.4 | W203: =SUM(W214,W220,W221,W222,W224,W225) -> 133202.32 | X203: 133111.43 | Y203: 132936.79 | Z203: 132725.13 | AA203: 132686.5 | AB203: 132638.67 | AC203: 132426 | AD203: 132150.44 | AE203: 131380.27 | AF203: 129366 | AG203: 128243.48 | AH203: 127067.2 | AI203: 127097.71 | AJ203: 126072.11 | AK203: 126054.82 | AL203: 126047.65 | AM203: 126029.62 | AN203: 126266.55 | AO203: 126393.12 | AP203: 126502.45 | AQ203: 126596.78 | AR203: 126691.78 | AS203: 126782.07 | AT203: 126680.71 | AU203: 126670.04 | AV203: 126733.19 | AW203: 126793.69 | AX203: 126896.75 | AY203: 127452.23 | AZ203: 127664.13
S204: Figure 10a | U204: Mixtes résineux | V204: =V223 -> 22098.3 | W204: =W223 -> 21980.06 | X204: 21756.97 | Y204: 21590.43 | Z204: 21448.51 | AA204: 21229.17 | AB204: 21130.63 | AC204: 20928.1 | AD204: 20943.23 | AE204: 21561.59 | AF204: 23526.11 | AG204: 24582.7 | AH204: 25546 | AI204: 25365.5 | AJ204: 26356.39 | AK204: 26360.74 | AL204: 26367.63 | AM204: 26382.71 | AN204: 26144.63 | AO204: 26015.74 | AP204: 25903.78 | AQ204: 25808.78 | AR204: 25713.78 | AS204: 25618.78 | AT204: 25714.12 | AU204: 25724.12 | AV204: 25660 | AW204: 25599.49 | AX204: 25496.44 | AY204: 24940.95 | AZ204: 24729.05
S205: Figure 10a | U205: Mixtes feuillus intolérants | V205: =V213+V219 -> 3644.5 | W205: =W213+W219 -> 3634.42 | X205: =X213+X219 -> 3624.57 | Y205: =Y213+Y219 -> 3615.45 | Z205: 3612.71 | AA205: 3612.71 | AB205: 3612.71 | AC205: 3599.22 | AD205: 3598.85 | AE205: 3598.85 | AF205: 3598.39 | AG205: 3598.39 | AH205: 3598.33 | AI205: 3598.33 | AJ205: 3598.33 | AK205: 3598.33 | AL205: 3598.33 | AM205: 3598.33 | AN205: 3598.33 | AO205: 3598.33 | AP205: 3598.33 | AQ205: 3598.33 | AR205: 3598.33 | AS205: 3598.33 | AT205: 3598.33 | AU205: 3598.33 | AV205: 3598.33 | AW205: 3598.33 | AX205: 3598.33 | AY205: 3598.33 | AZ205: 3598.33
S206: Figure 10a | U206: Mixtes feuillus tolérants | V206: =V217 -> 0 | W206: =W217 -> 0 | X206: 0 | Y206: 0 | Z206: 0 | AA206: 0 | AB206: 0 | AC206: 0 | AD206: 0 | AE206: 0 | AF206: 0 | AG206: 0 | AH206: 0 | AI206: 0 | AJ206: 0 | AK206: 0 | AL206: 0 | AM206: 0 | AN206: 0 | AO206: 0 | AP206: 0 | AQ206: 0 | AR206: 0 | AS206: 0 | AT206: 0 | AU206: 0 | AV206: 0 | AW206: 0 | AX206: 0 | AY206: 0 | AZ206: 0
S207: Figure 10a | U207: Feuillus intolérants | V207: =V212+V215+V218 -> 2304.7 | W207: =W212+W215+W218 -> 2281.71 | X207: =X212+X215+X218 -> 2281.03 | Y207: 2280.33 | Z207: 2278.99 | AA207: 2278.99 | AB207: 2278.99 | AC207: 2276.8 | AD207: 2273.55 | AE207: 2273.55 | AF207: 2273.48 | AG207: 2273.48 | AH207: 2273.48 | AI207: 2273.48 | AJ207: 2273.48 | AK207: 2273.48 | AL207: 2273.48 | AM207: 2273.48 | AN207: 2269.22 | AO207: 2269.22 | AP207: 2269.22 | AQ207: 2269.22 | AR207: 2269.22 | AS207: 2269.22 | AT207: 2269.22 | AU207: 2269.22 | AV207: 2269.22 | AW207: 2269.22 | AX207: 2269.22 | AY207: 2269.22 | AZ207: 2269.22
S208: Figure 10a | U208: Feuillus tolérants | V208: =V216 -> 0 | W208: =W216 -> 0 | X208: 0 | Y208: 0 | Z208: 0 | AA208: 0 | AB208: 0 | AC208: 0 | AD208: 0 | AE208: 0 | AF208: 0 | AG208: 0 | AH208: 0 | AI208: 0 | AJ208: 0 | AK208: 0 | AL208: 0 | AM208: 0 | AN208: 0 | AO208: 0 | AP208: 0 | AQ208: 0 | AR208: 0 | AS208: 0 | AT208: 0 | AU208: 0 | AV208: 0 | AW208: 0 | AX208: 0 | AY208: 0 | AZ208: 0
S209: Figure 10a | U209: Total | V209: =SUM(V203:V208) -> 161599.9 | W209: =SUM(W203:W208) -> 161098.51 | X209: =SUM(X203:X208) -> 160774 | Y209: 160423 | Z209: 160065.34 | AA209: 159807.37 | AB209: 159661 | AC209: 159230.12 | AD209: 158966.07 | AE209: 158814.26 | AF209: 158763.98 | AG209: 158698.05 | AH209: 158485.01 | AI209: 158335.02 | AJ209: 158300.31 | AK209: 158287.37 | AL209: 158287.09 | AM209: 158284.14 | AN209: 158278.73 | AO209: 158276.41 | AP209: 158273.78 | AQ209: 158273.11 | AR209: 158273.11 | AS209: 158268.4 | AT209: 158262.38 | AU209: 158261.71 | AV209: 158260.74 | AW209: 158260.73 | AX209: 158260.74 | AY209: 158260.73 | AZ209: 158260.73
S210: Figure 10a
S211: Figure 10a
S212: Figure 10a | T212: Bétulaies blanches | U212: (FCTYF_BOP) | V212: =VLOOKUP($U$202&$U212,GTYF!$C:$AP,V$201,FALSE) -> 2304.7 | W212: =VLOOKUP($U$202&$U212,GTYF!$C:$AP,W$201,FALSE) -> 2281.71 | X212: =VLOOKUP($U$202&$U212,GTYF!$C:$AP,X$201,FALSE) -> 2281.03 | Y212: =VLOOKUP($U$202&$U212,GTYF!$C:$AP,Y$201,FALSE) -> 2280.33 | Z212: =VLOOKUP($U$202&$U212,GTYF!$C:$AP,Z$201,FALSE) -> 2278.99 | AA212: =VLOOKUP($U$202&$U212,GTYF!$C:$AP,AA$201,FALSE) -> 2278.99 | AB212: =VLOOKUP($U$202&$U212,GTYF!$C:$AP,AB$201,FALSE) -> 2278.99 | AC212: =VLOOKUP($U$202&$U212,GTYF!$C:$AP,AC$201,FALSE) -> 2276.8 | AD212: =VLOOKUP($U$202&$U212,GTYF!$C:$AP,AD$201,FALSE) -> 2273.55 | AE212: =VLOOKUP($U$202&$U212,GTYF!$C:$AP,AE$201,FALSE) -> 2273.55 | AF212: =VLOOKUP($U$202&$U212,GTYF!$C:$AP,AF$201,FALSE) -> 2273.48 | AG212: =VLOOKUP($U$202&$U212,GTYF!$C:$AP,AG$201,FALSE) -> 2273.48 | AH212: =VLOOKUP($U$202&$U212,GTYF!$C:$AP,AH$201,FALSE) -> 2273.48 | AI212: =VLOOKUP($U$202&$U212,GTYF!$C:$AP,AI$201,FALSE) -> 2273.48 | AJ212: =VLOOKUP($U$202&$U212,GTYF!$C:$AP,AJ$201,FALSE) -> 2273.48 | AK212: =VLOOKUP($U$202&$U212,GTYF!$C:$AP,AK$201,FALSE) -> 2273.48 | AL212: =VLOOKUP($U$202&$U212,GTYF!$C:$AP,AL$201,FALSE) -> 2273.48 | AM212: =VLOOKUP($U$202&$U212,GTYF!$C:$AP,AM$201,FALSE) -> 2273.48 | AN212: =VLOOKUP($U$202&$U212,GTYF!$C:$AP,AN$201,FALSE) -> 2269.22 | AO212: =VLOOKUP($U$202&$U212,GTYF!$C:$AP,AO$201,FALSE) -> 2269.22 | AP212: =VLOOKUP($U$202&$U212,GTYF!$C:$AP,AP$201,FALSE) -> 2269.22 | AQ212: =VLOOKUP($U$202&$U212,GTYF!$C:$AP,AQ$201,FALSE) -> 2269.22 | AR212: =VLOOKUP($U$202&$U212,GTYF!$C:$AP,AR$201,FALSE) -> 2269.22 | AS212: =VLOOKUP($U$202&$U212,GTYF!$C:$AP,AS$201,FALSE) -> 2269.22 | AT212: =VLOOKUP($U$202&$U212,GTYF!$C:$AP,AT$201,FALSE) -> 2269.22 | AU212: =VLOOKUP($U$202&$U212,GTYF!$C:$AP,AU$201,FALSE) -> 2269.22 | AV212: =VLOOKUP($U$202&$U212,GTYF!$C:$AP,AV$201,FALSE) -> 2269.22 | AW212: =VLOOKUP($U$202&$U212,GTYF!$C:$AP,AW$201,FALSE) -> 2269.22 | AX212: =VLOOKUP($U$202&$U212,GTYF!$C:$AP,AX$201,FALSE) -> 2269.22 | AY212: =VLOOKUP($U$202&$U212,GTYF!$C:$AP,AY$201,FALSE) -> 2269.22 | AZ212: =VLOOKUP($U$202&$U212,GTYF!$C:$AP,AZ$201,FALSE) -> 2269.22
S213: Figure 10a | T213: Bétulaies blanches à résineux | U213: (FCTYF_BOPR) | V213: =VLOOKUP($U$202&$U213,GTYF!$C:$AP,V$201,FALSE) -> 3644.5 | W213: =VLOOKUP($U$202&$U213,GTYF!$C:$AP,W$201,FALSE) -> 3634.42 | X213: =VLOOKUP($U$202&$U213,GTYF!$C:$AP,X$201,FALSE) -> 3624.57 | Y213: =VLOOKUP($U$202&$U213,GTYF!$C:$AP,Y$201,FALSE) -> 3615.45 | Z213: =VLOOKUP($U$202&$U213,GTYF!$C:$AP,Z$201,FALSE) -> 3612.71 | AA213: =VLOOKUP($U$202&$U213,GTYF!$C:$AP,AA$201,FALSE) -> 3612.71 | AB213: =VLOOKUP($U$202&$U213,GTYF!$C:$AP,AB$201,FALSE) -> 3612.71 | AC213: =VLOOKUP($U$202&$U213,GTYF!$C:$AP,AC$201,FALSE) -> 3599.22 | AD213: =VLOOKUP($U$202&$U213,GTYF!$C:$AP,AD$201,FALSE) -> 3598.85 | AE213: =VLOOKUP($U$202&$U213,GTYF!$C:$AP,AE$201,FALSE) -> 3598.85 | AF213: =VLOOKUP($U$202&$U213,GTYF!$C:$AP,AF$201,FALSE) -> 3598.39 | AG213: =VLOOKUP($U$202&$U213,GTYF!$C:$AP,AG$201,FALSE) -> 3598.39 | AH213: =VLOOKUP($U$202&$U213,GTYF!$C:$AP,AH$201,FALSE) -> 3598.33 | AI213: =VLOOKUP($U$202&$U213,GTYF!$C:$AP,AI$201,FALSE) -> 3598.33 | AJ213: =VLOOKUP($U$202&$U213,GTYF!$C:$AP,AJ$201,FALSE) -> 3598.33 | AK213: =VLOOKUP($U$202&$U213,GTYF!$C:$AP,AK$201,FALSE) -> 3598.33 | AL213: =VLOOKUP($U$202&$U213,GTYF!$C:$AP,AL$201,FALSE) -> 3598.33 | AM213: =VLOOKUP($U$202&$U213,GTYF!$C:$AP,AM$201,FALSE) -> 3598.33 | AN213: =VLOOKUP($U$202&$U213,GTYF!$C:$AP,AN$201,FALSE) -> 3598.33 | AO213: =VLOOKUP($U$202&$U213,GTYF!$C:$AP,AO$201,FALSE) -> 3598.33 | AP213: =VLOOKUP($U$202&$U213,GTYF!$C:$AP,AP$201,FALSE) -> 3598.33 | AQ213: =VLOOKUP($U$202&$U213,GTYF!$C:$AP,AQ$201,FALSE) -> 3598.33 | AR213: =VLOOKUP($U$202&$U213,GTYF!$C:$AP,AR$201,FALSE) -> 3598.33 | AS213: =VLOOKUP($U$202&$U213,GTYF!$C:$AP,AS$201,FALSE) -> 3598.33 | AT213: =VLOOKUP($U$202&$U213,GTYF!$C:$AP,AT$201,FALSE) -> 3598.33 | AU213: =VLOOKUP($U$202&$U213,GTYF!$C:$AP,AU$201,FALSE) -> 3598.33 | AV213: =VLOOKUP($U$202&$U213,GTYF!$C:$AP,AV$201,FALSE) -> 3598.33 | AW213: =VLOOKUP($U$202&$U213,GTYF!$C:$AP,AW$201,FALSE) -> 3598.33 | AX213: =VLOOKUP($U$202&$U213,GTYF!$C:$AP,AX$201,FALSE) -> 3598.33 | AY213: =VLOOKUP($U$202&$U213,GTYF!$C:$AP,AY$201,FALSE) -> 3598.33 | AZ213: =VLOOKUP($U$202&$U213,GTYF!$C:$AP,AZ$201,FALSE) -> 3598.33
S214: Figure 10a | T214: Pessières | U214: (FCTYF_EPX) | V214: =VLOOKUP($U$202&$U214,GTYF!$C:$AP,V$201,FALSE) -> 121175 | W214: =VLOOKUP($U$202&$U214,GTYF!$C:$AP,W$201,FALSE) -> 120855.94 | X214: =VLOOKUP($U$202&$U214,GTYF!$C:$AP,X$201,FALSE) -> 120800.78 | Y214: =VLOOKUP($U$202&$U214,GTYF!$C:$AP,Y$201,FALSE) -> 120683.53 | Z214: =VLOOKUP($U$202&$U214,GTYF!$C:$AP,Z$201,FALSE) -> 120539.8 | AA214: =VLOOKUP($U$202&$U214,GTYF!$C:$AP,AA$201,FALSE) -> 120498.81 | AB214: =VLOOKUP($U$202&$U214,GTYF!$C:$AP,AB$201,FALSE) -> 120411.89 | AC214: =VLOOKUP($U$202&$U214,GTYF!$C:$AP,AC$201,FALSE) -> 120108.44 | AD214: =VLOOKUP($U$202&$U214,GTYF!$C:$AP,AD$201,FALSE) -> 119743.11 | AE214: =VLOOKUP($U$202&$U214,GTYF!$C:$AP,AE$201,FALSE) -> 118867.94 | AF214: =VLOOKUP($U$202&$U214,GTYF!$C:$AP,AF$201,FALSE) -> 116791.26 | AG214: =VLOOKUP($U$202&$U214,GTYF!$C:$AP,AG$201,FALSE) -> 115582.94 | AH214: =VLOOKUP($U$202&$U214,GTYF!$C:$AP,AH$201,FALSE) -> 114386.3 | AI214: =VLOOKUP($U$202&$U214,GTYF!$C:$AP,AI$201,FALSE) -> 114654.07 | AJ214: =VLOOKUP($U$202&$U214,GTYF!$C:$AP,AJ$201,FALSE) -> 113723.47 | AK214: =VLOOKUP($U$202&$U214,GTYF!$C:$AP,AK$201,FALSE) -> 113764.38 | AL214: =VLOOKUP($U$202&$U214,GTYF!$C:$AP,AL$201,FALSE) -> 113757.21 | AM214: =VLOOKUP($U$202&$U214,GTYF!$C:$AP,AM$201,FALSE) -> 113759.18 | AN214: =VLOOKUP($U$202&$U214,GTYF!$C:$AP,AN$201,FALSE) -> 114113.83 | AO214: =VLOOKUP($U$202&$U214,GTYF!$C:$AP,AO$201,FALSE) -> 114304.18 | AP214: =VLOOKUP($U$202&$U214,GTYF!$C:$AP,AP$201,FALSE) -> 114506.67 | AQ214: =VLOOKUP($U$202&$U214,GTYF!$C:$AP,AQ$201,FALSE) -> 114601 | AR214: =VLOOKUP($U$202&$U214,GTYF!$C:$AP,AR$201,FALSE) -> 114696 | AS214: =VLOOKUP($U$202&$U214,GTYF!$C:$AP,AS$201,FALSE) -> 114786.29 | AT214: =VLOOKUP($U$202&$U214,GTYF!$C:$AP,AT$201,FALSE) -> 114684.93 | AU214: =VLOOKUP($U$202&$U214,GTYF!$C:$AP,AU$201,FALSE) -> 114674.26 | AV214: =VLOOKUP($U$202&$U214,GTYF!$C:$AP,AV$201,FALSE) -> 114737.41 | AW214: =VLOOKUP($U$202&$U214,GTYF!$C:$AP,AW$201,FALSE) -> 114797.91 | AX214: =VLOOKUP($U$202&$U214,GTYF!$C:$AP,AX$201,FALSE) -> 114900.97 | AY214: =VLOOKUP($U$202&$U214,GTYF!$C:$AP,AY$201,FALSE) -> 115748.37 | AZ214: =VLOOKUP($U$202&$U214,GTYF!$C:$AP,AZ$201,FALSE) -> 116780.15
S215: Figure 10a | T215: Érablières rouges | U215: (FCTYF_ERO) | V215: =VLOOKUP($U$202&$U215,GTYF!$C:$AP,V$201,FALSE) -> 0 | W215: =VLOOKUP($U$202&$U215,GTYF!$C:$AP,W$201,FALSE) -> 0 | X215: =VLOOKUP($U$202&$U215,GTYF!$C:$AP,X$201,FALSE) -> 0 | Y215: =VLOOKUP($U$202&$U215,GTYF!$C:$AP,Y$201,FALSE) -> 0 | Z215: =VLOOKUP($U$202&$U215,GTYF!$C:$AP,Z$201,FALSE) -> 0 | AA215: =VLOOKUP($U$202&$U215,GTYF!$C:$AP,AA$201,FALSE) -> 0 | AB215: =VLOOKUP($U$202&$U215,GTYF!$C:$AP,AB$201,FALSE) -> 0 | AC215: =VLOOKUP($U$202&$U215,GTYF!$C:$AP,AC$201,FALSE) -> 0 | AD215: =VLOOKUP($U$202&$U215,GTYF!$C:$AP,AD$201,FALSE) -> 0 | AE215: =VLOOKUP($U$202&$U215,GTYF!$C:$AP,AE$201,FALSE) -> 0 | AF215: =VLOOKUP($U$202&$U215,GTYF!$C:$AP,AF$201,FALSE) -> 0 | AG215: =VLOOKUP($U$202&$U215,GTYF!$C:$AP,AG$201,FALSE) -> 0 | AH215: =VLOOKUP($U$202&$U215,GTYF!$C:$AP,AH$201,FALSE) -> 0 | AI215: =VLOOKUP($U$202&$U215,GTYF!$C:$AP,AI$201,FALSE) -> 0 | AJ215: =VLOOKUP($U$202&$U215,GTYF!$C:$AP,AJ$201,FALSE) -> 0 | AK215: =VLOOKUP($U$202&$U215,GTYF!$C:$AP,AK$201,FALSE) -> 0 | AL215: =VLOOKUP($U$202&$U215,GTYF!$C:$AP,AL$201,FALSE) -> 0 | AM215: =VLOOKUP($U$202&$U215,GTYF!$C:$AP,AM$201,FALSE) -> 0 | AN215: =VLOOKUP($U$202&$U215,GTYF!$C:$AP,AN$201,FALSE) -> 0 | AO215: =VLOOKUP($U$202&$U215,GTYF!$C:$AP,AO$201,FALSE) -> 0 | AP215: =VLOOKUP($U$202&$U215,GTYF!$C:$AP,AP$201,FALSE) -> 0 | AQ215: =VLOOKUP($U$202&$U215,GTYF!$C:$AP,AQ$201,FALSE) -> 0 | AR215: =VLOOKUP($U$202&$U215,GTYF!$C:$AP,AR$201,FALSE) -> 0 | AS215: =VLOOKUP($U$202&$U215,GTYF!$C:$AP,AS$201,FALSE) -> 0 | AT215: =VLOOKUP($U$202&$U215,GTYF!$C:$AP,AT$201,FALSE) -> 0 | AU215: =VLOOKUP($U$202&$U215,GTYF!$C:$AP,AU$201,FALSE) -> 0 | AV215: =VLOOKUP($U$202&$U215,GTYF!$C:$AP,AV$201,FALSE) -> 0 | AW215: =VLOOKUP($U$202&$U215,GTYF!$C:$AP,AW$201,FALSE) -> 0 | AX215: =VLOOKUP($U$202&$U215,GTYF!$C:$AP,AX$201,FALSE) -> 0 | AY215: =VLOOKUP($U$202&$U215,GTYF!$C:$AP,AY$201,FALSE) -> 0 | AZ215: =VLOOKUP($U$202&$U215,GTYF!$C:$AP,AZ$201,FALSE) -> 0
S216: Figure 10a | T216: Feuillus tolérants | U216: (FCTYF_FT) | V216: =VLOOKUP($U$202&$U216,GTYF!$C:$AP,V$201,FALSE) -> 0 | W216: =VLOOKUP($U$202&$U216,GTYF!$C:$AP,W$201,FALSE) -> 0 | X216: =VLOOKUP($U$202&$U216,GTYF!$C:$AP,X$201,FALSE) -> 0 | Y216: =VLOOKUP($U$202&$U216,GTYF!$C:$AP,Y$201,FALSE) -> 0 | Z216: =VLOOKUP($U$202&$U216,GTYF!$C:$AP,Z$201,FALSE) -> 0 | AA216: =VLOOKUP($U$202&$U216,GTYF!$C:$AP,AA$201,FALSE) -> 0 | AB216: =VLOOKUP($U$202&$U216,GTYF!$C:$AP,AB$201,FALSE) -> 0 | AC216: =VLOOKUP($U$202&$U216,GTYF!$C:$AP,AC$201,FALSE) -> 0 | AD216: =VLOOKUP($U$202&$U216,GTYF!$C:$AP,AD$201,FALSE) -> 0 | AE216: =VLOOKUP($U$202&$U216,GTYF!$C:$AP,AE$201,FALSE) -> 0 | AF216: =VLOOKUP($U$202&$U216,GTYF!$C:$AP,AF$201,FALSE) -> 0 | AG216: =VLOOKUP($U$202&$U216,GTYF!$C:$AP,AG$201,FALSE) -> 0 | AH216: =VLOOKUP($U$202&$U216,GTYF!$C:$AP,AH$201,FALSE) -> 0 | AI216: =VLOOKUP($U$202&$U216,GTYF!$C:$AP,AI$201,FALSE) -> 0 | AJ216: =VLOOKUP($U$202&$U216,GTYF!$C:$AP,AJ$201,FALSE) -> 0 | AK216: =VLOOKUP($U$202&$U216,GTYF!$C:$AP,AK$201,FALSE) -> 0 | AL216: =VLOOKUP($U$202&$U216,GTYF!$C:$AP,AL$201,FALSE) -> 0 | AM216: =VLOOKUP($U$202&$U216,GTYF!$C:$AP,AM$201,FALSE) -> 0 | AN216: =VLOOKUP($U$202&$U216,GTYF!$C:$AP,AN$201,FALSE) -> 0 | AO216: =VLOOKUP($U$202&$U216,GTYF!$C:$AP,AO$201,FALSE) -> 0 | AP216: =VLOOKUP($U$202&$U216,GTYF!$C:$AP,AP$201,FALSE) -> 0 | AQ216: =VLOOKUP($U$202&$U216,GTYF!$C:$AP,AQ$201,FALSE) -> 0 | AR216: =VLOOKUP($U$202&$U216,GTYF!$C:$AP,AR$201,FALSE) -> 0 | AS216: =VLOOKUP($U$202&$U216,GTYF!$C:$AP,AS$201,FALSE) -> 0 | AT216: =VLOOKUP($U$202&$U216,GTYF!$C:$AP,AT$201,FALSE) -> 0 | AU216: =VLOOKUP($U$202&$U216,GTYF!$C:$AP,AU$201,FALSE) -> 0 | AV216: =VLOOKUP($U$202&$U216,GTYF!$C:$AP,AV$201,FALSE) -> 0 | AW216: =VLOOKUP($U$202&$U216,GTYF!$C:$AP,AW$201,FALSE) -> 0 | AX216: =VLOOKUP($U$202&$U216,GTYF!$C:$AP,AX$201,FALSE) -> 0 | AY216: =VLOOKUP($U$202&$U216,GTYF!$C:$AP,AY$201,FALSE) -> 0 | AZ216: =VLOOKUP($U$202&$U216,GTYF!$C:$AP,AZ$201,FALSE) -> 0
S217: Figure 10a | T217: Feuillus tolérants à résineux | U217: (FCTYF_FTR) | V217: =VLOOKUP($U$202&$U217,GTYF!$C:$AP,V$201,FALSE) -> 0 | W217: =VLOOKUP($U$202&$U217,GTYF!$C:$AP,W$201,FALSE) -> 0 | X217: =VLOOKUP($U$202&$U217,GTYF!$C:$AP,X$201,FALSE) -> 0 | Y217: =VLOOKUP($U$202&$U217,GTYF!$C:$AP,Y$201,FALSE) -> 0 | Z217: =VLOOKUP($U$202&$U217,GTYF!$C:$AP,Z$201,FALSE) -> 0 | AA217: =VLOOKUP($U$202&$U217,GTYF!$C:$AP,AA$201,FALSE) -> 0 | AB217: =VLOOKUP($U$202&$U217,GTYF!$C:$AP,AB$201,FALSE) -> 0 | AC217: =VLOOKUP($U$202&$U217,GTYF!$C:$AP,AC$201,FALSE) -> 0 | AD217: =VLOOKUP($U$202&$U217,GTYF!$C:$AP,AD$201,FALSE) -> 0 | AE217: =VLOOKUP($U$202&$U217,GTYF!$C:$AP,AE$201,FALSE) -> 0 | AF217: =VLOOKUP($U$202&$U217,GTYF!$C:$AP,AF$201,FALSE) -> 0 | AG217: =VLOOKUP($U$202&$U217,GTYF!$C:$AP,AG$201,FALSE) -> 0 | AH217: =VLOOKUP($U$202&$U217,GTYF!$C:$AP,AH$201,FALSE) -> 0 | AI217: =VLOOKUP($U$202&$U217,GTYF!$C:$AP,AI$201,FALSE) -> 0 | AJ217: =VLOOKUP($U$202&$U217,GTYF!$C:$AP,AJ$201,FALSE) -> 0 | AK217: =VLOOKUP($U$202&$U217,GTYF!$C:$AP,AK$201,FALSE) -> 0 | AL217: =VLOOKUP($U$202&$U217,GTYF!$C:$AP,AL$201,FALSE) -> 0 | AM217: =VLOOKUP($U$202&$U217,GTYF!$C:$AP,AM$201,FALSE) -> 0 | AN217: =VLOOKUP($U$202&$U217,GTYF!$C:$AP,AN$201,FALSE) -> 0 | AO217: =VLOOKUP($U$202&$U217,GTYF!$C:$AP,AO$201,FALSE) -> 0 | AP217: =VLOOKUP($U$202&$U217,GTYF!$C:$AP,AP$201,FALSE) -> 0 | AQ217: =VLOOKUP($U$202&$U217,GTYF!$C:$AP,AQ$201,FALSE) -> 0 | AR217: =VLOOKUP($U$202&$U217,GTYF!$C:$AP,AR$201,FALSE) -> 0 | AS217: =VLOOKUP($U$202&$U217,GTYF!$C:$AP,AS$201,FALSE) -> 0 | AT217: =VLOOKUP($U$202&$U217,GTYF!$C:$AP,AT$201,FALSE) -> 0 | AU217: =VLOOKUP($U$202&$U217,GTYF!$C:$AP,AU$201,FALSE) -> 0 | AV217: =VLOOKUP($U$202&$U217,GTYF!$C:$AP,AV$201,FALSE) -> 0 | AW217: =VLOOKUP($U$202&$U217,GTYF!$C:$AP,AW$201,FALSE) -> 0 | AX217: =VLOOKUP($U$202&$U217,GTYF!$C:$AP,AX$201,FALSE) -> 0 | AY217: =VLOOKUP($U$202&$U217,GTYF!$C:$AP,AY$201,FALSE) -> 0 | AZ217: =VLOOKUP($U$202&$U217,GTYF!$C:$AP,AZ$201,FALSE) -> 0
S218: Figure 10a | T218: Peupleraies | U218: (FCTYF_PEU) | V218: =VLOOKUP($U$202&$U218,GTYF!$C:$AP,V$201,FALSE) -> 0 | W218: =VLOOKUP($U$202&$U218,GTYF!$C:$AP,W$201,FALSE) -> 0 | X218: =VLOOKUP($U$202&$U218,GTYF!$C:$AP,X$201,FALSE) -> 0 | Y218: =VLOOKUP($U$202&$U218,GTYF!$C:$AP,Y$201,FALSE) -> 0 | Z218: =VLOOKUP($U$202&$U218,GTYF!$C:$AP,Z$201,FALSE) -> 0 | AA218: =VLOOKUP($U$202&$U218,GTYF!$C:$AP,AA$201,FALSE) -> 0 | AB218: =VLOOKUP($U$202&$U218,GTYF!$C:$AP,AB$201,FALSE) -> 0 | AC218: =VLOOKUP($U$202&$U218,GTYF!$C:$AP,AC$201,FALSE) -> 0 | AD218: =VLOOKUP($U$202&$U218,GTYF!$C:$AP,AD$201,FALSE) -> 0 | AE218: =VLOOKUP($U$202&$U218,GTYF!$C:$AP,AE$201,FALSE) -> 0 | AF218: =VLOOKUP($U$202&$U218,GTYF!$C:$AP,AF$201,FALSE) -> 0 | AG218: =VLOOKUP($U$202&$U218,GTYF!$C:$AP,AG$201,FALSE) -> 0 | AH218: =VLOOKUP($U$202&$U218,GTYF!$C:$AP,AH$201,FALSE) -> 0 | AI218: =VLOOKUP($U$202&$U218,GTYF!$C:$AP,AI$201,FALSE) -> 0 | AJ218: =VLOOKUP($U$202&$U218,GTYF!$C:$AP,AJ$201,FALSE) -> 0 | AK218: =VLOOKUP($U$202&$U218,GTYF!$C:$AP,AK$201,FALSE) -> 0 | AL218: =VLOOKUP($U$202&$U218,GTYF!$C:$AP,AL$201,FALSE) -> 0 | AM218: =VLOOKUP($U$202&$U218,GTYF!$C:$AP,AM$201,FALSE) -> 0 | AN218: =VLOOKUP($U$202&$U218,GTYF!$C:$AP,AN$201,FALSE) -> 0 | AO218: =VLOOKUP($U$202&$U218,GTYF!$C:$AP,AO$201,FALSE) -> 0 | AP218: =VLOOKUP($U$202&$U218,GTYF!$C:$AP,AP$201,FALSE) -> 0 | AQ218: =VLOOKUP($U$202&$U218,GTYF!$C:$AP,AQ$201,FALSE) -> 0 | AR218: =VLOOKUP($U$202&$U218,GTYF!$C:$AP,AR$201,FALSE) -> 0 | AS218: =VLOOKUP($U$202&$U218,GTYF!$C:$AP,AS$201,FALSE) -> 0 | AT218: =VLOOKUP($U$202&$U218,GTYF!$C:$AP,AT$201,FALSE) -> 0 | AU218: =VLOOKUP($U$202&$U218,GTYF!$C:$AP,AU$201,FALSE) -> 0 | AV218: =VLOOKUP($U$202&$U218,GTYF!$C:$AP,AV$201,FALSE) -> 0 | AW218: =VLOOKUP($U$202&$U218,GTYF!$C:$AP,AW$201,FALSE) -> 0 | AX218: =VLOOKUP($U$202&$U218,GTYF!$C:$AP,AX$201,FALSE) -> 0 | AY218: =VLOOKUP($U$202&$U218,GTYF!$C:$AP,AY$201,FALSE) -> 0 | AZ218: =VLOOKUP($U$202&$U218,GTYF!$C:$AP,AZ$201,FALSE) -> 0
S219: Figure 10a | T219: Peupleraies à résineux | U219: (FCTYF_PEUR) | V219: =VLOOKUP($U$202&$U219,GTYF!$C:$AP,V$201,FALSE) -> 0 | W219: =VLOOKUP($U$202&$U219,GTYF!$C:$AP,W$201,FALSE) -> 0 | X219: =VLOOKUP($U$202&$U219,GTYF!$C:$AP,X$201,FALSE) -> 0 | Y219: =VLOOKUP($U$202&$U219,GTYF!$C:$AP,Y$201,FALSE) -> 0 | Z219: =VLOOKUP($U$202&$U219,GTYF!$C:$AP,Z$201,FALSE) -> 0 | AA219: =VLOOKUP($U$202&$U219,GTYF!$C:$AP,AA$201,FALSE) -> 0 | AB219: =VLOOKUP($U$202&$U219,GTYF!$C:$AP,AB$201,FALSE) -> 0 | AC219: =VLOOKUP($U$202&$U219,GTYF!$C:$AP,AC$201,FALSE) -> 0 | AD219: =VLOOKUP($U$202&$U219,GTYF!$C:$AP,AD$201,FALSE) -> 0 | AE219: =VLOOKUP($U$202&$U219,GTYF!$C:$AP,AE$201,FALSE) -> 0 | AF219: =VLOOKUP($U$202&$U219,GTYF!$C:$AP,AF$201,FALSE) -> 0 | AG219: =VLOOKUP($U$202&$U219,GTYF!$C:$AP,AG$201,FALSE) -> 0 | AH219: =VLOOKUP($U$202&$U219,GTYF!$C:$AP,AH$201,FALSE) -> 0 | AI219: =VLOOKUP($U$202&$U219,GTYF!$C:$AP,AI$201,FALSE) -> 0 | AJ219: =VLOOKUP($U$202&$U219,GTYF!$C:$AP,AJ$201,FALSE) -> 0 | AK219: =VLOOKUP($U$202&$U219,GTYF!$C:$AP,AK$201,FALSE) -> 0 | AL219: =VLOOKUP($U$202&$U219,GTYF!$C:$AP,AL$201,FALSE) -> 0 | AM219: =VLOOKUP($U$202&$U219,GTYF!$C:$AP,AM$201,FALSE) -> 0 | AN219: =VLOOKUP($U$202&$U219,GTYF!$C:$AP,AN$201,FALSE) -> 0 | AO219: =VLOOKUP($U$202&$U219,GTYF!$C:$AP,AO$201,FALSE) -> 0 | AP219: =VLOOKUP($U$202&$U219,GTYF!$C:$AP,AP$201,FALSE) -> 0 | AQ219: =VLOOKUP($U$202&$U219,GTYF!$C:$AP,AQ$201,FALSE) -> 0 | AR219: =VLOOKUP($U$202&$U219,GTYF!$C:$AP,AR$201,FALSE) -> 0 | AS219: =VLOOKUP($U$202&$U219,GTYF!$C:$AP,AS$201,FALSE) -> 0 | AT219: =VLOOKUP($U$202&$U219,GTYF!$C:$AP,AT$201,FALSE) -> 0 | AU219: =VLOOKUP($U$202&$U219,GTYF!$C:$AP,AU$201,FALSE) -> 0 | AV219: =VLOOKUP($U$202&$U219,GTYF!$C:$AP,AV$201,FALSE) -> 0 | AW219: =VLOOKUP($U$202&$U219,GTYF!$C:$AP,AW$201,FALSE) -> 0 | AX219: =VLOOKUP($U$202&$U219,GTYF!$C:$AP,AX$201,FALSE) -> 0 | AY219: =VLOOKUP($U$202&$U219,GTYF!$C:$AP,AY$201,FALSE) -> 0 | AZ219: =VLOOKUP($U$202&$U219,GTYF!$C:$AP,AZ$201,FALSE) -> 0
S220: Figure 10a | T220: Pinèdes grises | U220: (FCTYF_PIG) | V220: =VLOOKUP($U$202&$U220,GTYF!$C:$AP,V$201,FALSE) -> 9197.1 | W220: =VLOOKUP($U$202&$U220,GTYF!$C:$AP,W$201,FALSE) -> 9166.08 | X220: =VLOOKUP($U$202&$U220,GTYF!$C:$AP,X$201,FALSE) -> 9148.42 | Y220: =VLOOKUP($U$202&$U220,GTYF!$C:$AP,Y$201,FALSE) -> 9112.39 | Z220: =VLOOKUP($U$202&$U220,GTYF!$C:$AP,Z$201,FALSE) -> 9058.63 | AA220: =VLOOKUP($U$202&$U220,GTYF!$C:$AP,AA$201,FALSE) -> 9003.21 | AB220: =VLOOKUP($U$202&$U220,GTYF!$C:$AP,AB$201,FALSE) -> 8947.3 | AC220: =VLOOKUP($U$202&$U220,GTYF!$C:$AP,AC$201,FALSE) -> 8943.08 | AD220: =VLOOKUP($U$202&$U220,GTYF!$C:$AP,AD$201,FALSE) -> 8938.08 | AE220: =VLOOKUP($U$202&$U220,GTYF!$C:$AP,AE$201,FALSE) -> 8938.08 | AF220: =VLOOKUP($U$202&$U220,GTYF!$C:$AP,AF$201,FALSE) -> 8937.77 | AG220: =VLOOKUP($U$202&$U220,GTYF!$C:$AP,AG$201,FALSE) -> 8937.77 | AH220: =VLOOKUP($U$202&$U220,GTYF!$C:$AP,AH$201,FALSE) -> 8937.69 | AI220: =VLOOKUP($U$202&$U220,GTYF!$C:$AP,AI$201,FALSE) -> 8936.94 | AJ220: =VLOOKUP($U$202&$U220,GTYF!$C:$AP,AJ$201,FALSE) -> 8936.94 | AK220: =VLOOKUP($U$202&$U220,GTYF!$C:$AP,AK$201,FALSE) -> 8908.74 | AL220: =VLOOKUP($U$202&$U220,GTYF!$C:$AP,AL$201,FALSE) -> 8908.74 | AM220: =VLOOKUP($U$202&$U220,GTYF!$C:$AP,AM$201,FALSE) -> 8908.74 | AN220: =VLOOKUP($U$202&$U220,GTYF!$C:$AP,AN$201,FALSE) -> 8908.74 | AO220: =VLOOKUP($U$202&$U220,GTYF!$C:$AP,AO$201,FALSE) -> 8908.74 | AP220: =VLOOKUP($U$202&$U220,GTYF!$C:$AP,AP$201,FALSE) -> 8908.74 | AQ220: =VLOOKUP($U$202&$U220,GTYF!$C:$AP,AQ$201,FALSE) -> 8908.74 | AR220: =VLOOKUP($U$202&$U220,GTYF!$C:$AP,AR$201,FALSE) -> 8908.74 | AS220: =VLOOKUP($U$202&$U220,GTYF!$C:$AP,AS$201,FALSE) -> 8908.74 | AT220: =VLOOKUP($U$202&$U220,GTYF!$C:$AP,AT$201,FALSE) -> 8908.74 | AU220: =VLOOKUP($U$202&$U220,GTYF!$C:$AP,AU$201,FALSE) -> 8908.74 | AV220: =VLOOKUP($U$202&$U220,GTYF!$C:$AP,AV$201,FALSE) -> 8908.74 | AW220: =VLOOKUP($U$202&$U220,GTYF!$C:$AP,AW$201,FALSE) -> 8908.74 | AX220: =VLOOKUP($U$202&$U220,GTYF!$C:$AP,AX$201,FALSE) -> 8908.74 | AY220: =VLOOKUP($U$202&$U220,GTYF!$C:$AP,AY$201,FALSE) -> 8616.82 | AZ220: =VLOOKUP($U$202&$U220,GTYF!$C:$AP,AZ$201,FALSE) -> 7796.94
S221: Figure 10a | T221: Pinèdes blanches | U221: (FCTYF_PIN) | V221: =VLOOKUP($U$202&$U221,GTYF!$C:$AP,V$201,FALSE) -> 0 | W221: =VLOOKUP($U$202&$U221,GTYF!$C:$AP,W$201,FALSE) -> 0 | X221: =VLOOKUP($U$202&$U221,GTYF!$C:$AP,X$201,FALSE) -> 0 | Y221: =VLOOKUP($U$202&$U221,GTYF!$C:$AP,Y$201,FALSE) -> 0 | Z221: =VLOOKUP($U$202&$U221,GTYF!$C:$AP,Z$201,FALSE) -> 0 | AA221: =VLOOKUP($U$202&$U221,GTYF!$C:$AP,AA$201,FALSE) -> 0 | AB221: =VLOOKUP($U$202&$U221,GTYF!$C:$AP,AB$201,FALSE) -> 0 | AC221: =VLOOKUP($U$202&$U221,GTYF!$C:$AP,AC$201,FALSE) -> 0 | AD221: =VLOOKUP($U$202&$U221,GTYF!$C:$AP,AD$201,FALSE) -> 0 | AE221: =VLOOKUP($U$202&$U221,GTYF!$C:$AP,AE$201,FALSE) -> 0 | AF221: =VLOOKUP($U$202&$U221,GTYF!$C:$AP,AF$201,FALSE) -> 0 | AG221: =VLOOKUP($U$202&$U221,GTYF!$C:$AP,AG$201,FALSE) -> 0 | AH221: =VLOOKUP($U$202&$U221,GTYF!$C:$AP,AH$201,FALSE) -> 0 | AI221: =VLOOKUP($U$202&$U221,GTYF!$C:$AP,AI$201,FALSE) -> 0 | AJ221: =VLOOKUP($U$202&$U221,GTYF!$C:$AP,AJ$201,FALSE) -> 0 | AK221: =VLOOKUP($U$202&$U221,GTYF!$C:$AP,AK$201,FALSE) -> 0 | AL221: =VLOOKUP($U$202&$U221,GTYF!$C:$AP,AL$201,FALSE) -> 0 | AM221: =VLOOKUP($U$202&$U221,GTYF!$C:$AP,AM$201,FALSE) -> 0 | AN221: =VLOOKUP($U$202&$U221,GTYF!$C:$AP,AN$201,FALSE) -> 0 | AO221: =VLOOKUP($U$202&$U221,GTYF!$C:$AP,AO$201,FALSE) -> 0 | AP221: =VLOOKUP($U$202&$U221,GTYF!$C:$AP,AP$201,FALSE) -> 0 | AQ221: =VLOOKUP($U$202&$U221,GTYF!$C:$AP,AQ$201,FALSE) -> 0 | AR221: =VLOOKUP($U$202&$U221,GTYF!$C:$AP,AR$201,FALSE) -> 0 | AS221: =VLOOKUP($U$202&$U221,GTYF!$C:$AP,AS$201,FALSE) -> 0 | AT221: =VLOOKUP($U$202&$U221,GTYF!$C:$AP,AT$201,FALSE) -> 0 | AU221: =VLOOKUP($U$202&$U221,GTYF!$C:$AP,AU$201,FALSE) -> 0 | AV221: =VLOOKUP($U$202&$U221,GTYF!$C:$AP,AV$201,FALSE) -> 0 | AW221: =VLOOKUP($U$202&$U221,GTYF!$C:$AP,AW$201,FALSE) -> 0 | AX221: =VLOOKUP($U$202&$U221,GTYF!$C:$AP,AX$201,FALSE) -> 0 | AY221: =VLOOKUP($U$202&$U221,GTYF!$C:$AP,AY$201,FALSE) -> 0 | AZ221: =VLOOKUP($U$202&$U221,GTYF!$C:$AP,AZ$201,FALSE) -> 0
S222: Figure 10a | T222: Prucheraies | U222: (FCTYF_PRU) | V222: =VLOOKUP($U$202&$U222,GTYF!$C:$AP,V$201,FALSE) -> 0 | W222: =VLOOKUP($U$202&$U222,GTYF!$C:$AP,W$201,FALSE) -> 0 | X222: =VLOOKUP($U$202&$U222,GTYF!$C:$AP,X$201,FALSE) -> 0 | Y222: =VLOOKUP($U$202&$U222,GTYF!$C:$AP,Y$201,FALSE) -> 0 | Z222: =VLOOKUP($U$202&$U222,GTYF!$C:$AP,Z$201,FALSE) -> 0 | AA222: =VLOOKUP($U$202&$U222,GTYF!$C:$AP,AA$201,FALSE) -> 0 | AB222: =VLOOKUP($U$202&$U222,GTYF!$C:$AP,AB$201,FALSE) -> 0 | AC222: =VLOOKUP($U$202&$U222,GTYF!$C:$AP,AC$201,FALSE) -> 0 | AD222: =VLOOKUP($U$202&$U222,GTYF!$C:$AP,AD$201,FALSE) -> 0 | AE222: =VLOOKUP($U$202&$U222,GTYF!$C:$AP,AE$201,FALSE) -> 0 | AF222: =VLOOKUP($U$202&$U222,GTYF!$C:$AP,AF$201,FALSE) -> 0 | AG222: =VLOOKUP($U$202&$U222,GTYF!$C:$AP,AG$201,FALSE) -> 0 | AH222: =VLOOKUP($U$202&$U222,GTYF!$C:$AP,AH$201,FALSE) -> 0 | AI222: =VLOOKUP($U$202&$U222,GTYF!$C:$AP,AI$201,FALSE) -> 0 | AJ222: =VLOOKUP($U$202&$U222,GTYF!$C:$AP,AJ$201,FALSE) -> 0 | AK222: =VLOOKUP($U$202&$U222,GTYF!$C:$AP,AK$201,FALSE) -> 0 | AL222: =VLOOKUP($U$202&$U222,GTYF!$C:$AP,AL$201,FALSE) -> 0 | AM222: =VLOOKUP($U$202&$U222,GTYF!$C:$AP,AM$201,FALSE) -> 0 | AN222: =VLOOKUP($U$202&$U222,GTYF!$C:$AP,AN$201,FALSE) -> 0 | AO222: =VLOOKUP($U$202&$U222,GTYF!$C:$AP,AO$201,FALSE) -> 0 | AP222: =VLOOKUP($U$202&$U222,GTYF!$C:$AP,AP$201,FALSE) -> 0 | AQ222: =VLOOKUP($U$202&$U222,GTYF!$C:$AP,AQ$201,FALSE) -> 0 | AR222: =VLOOKUP($U$202&$U222,GTYF!$C:$AP,AR$201,FALSE) -> 0 | AS222: =VLOOKUP($U$202&$U222,GTYF!$C:$AP,AS$201,FALSE) -> 0 | AT222: =VLOOKUP($U$202&$U222,GTYF!$C:$AP,AT$201,FALSE) -> 0 | AU222: =VLOOKUP($U$202&$U222,GTYF!$C:$AP,AU$201,FALSE) -> 0 | AV222: =VLOOKUP($U$202&$U222,GTYF!$C:$AP,AV$201,FALSE) -> 0 | AW222: =VLOOKUP($U$202&$U222,GTYF!$C:$AP,AW$201,FALSE) -> 0 | AX222: =VLOOKUP($U$202&$U222,GTYF!$C:$AP,AX$201,FALSE) -> 0 | AY222: =VLOOKUP($U$202&$U222,GTYF!$C:$AP,AY$201,FALSE) -> 0 | AZ222: =VLOOKUP($U$202&$U222,GTYF!$C:$AP,AZ$201,FALSE) -> 0
S223: Figure 10a | T223: Résineux à feuillus | U223: (FCTYF_RF) | V223: =VLOOKUP($U$202&$U223,GTYF!$C:$AP,V$201,FALSE) -> 22098.3 | W223: =VLOOKUP($U$202&$U223,GTYF!$C:$AP,W$201,FALSE) -> 21980.06 | X223: =VLOOKUP($U$202&$U223,GTYF!$C:$AP,X$201,FALSE) -> 21756.97 | Y223: =VLOOKUP($U$202&$U223,GTYF!$C:$AP,Y$201,FALSE) -> 21590.43 | Z223: =VLOOKUP($U$202&$U223,GTYF!$C:$AP,Z$201,FALSE) -> 21448.51 | AA223: =VLOOKUP($U$202&$U223,GTYF!$C:$AP,AA$201,FALSE) -> 21229.17 | AB223: =VLOOKUP($U$202&$U223,GTYF!$C:$AP,AB$201,FALSE) -> 21130.63 | AC223: =VLOOKUP($U$202&$U223,GTYF!$C:$AP,AC$201,FALSE) -> 20928.1 | AD223: =VLOOKUP($U$202&$U223,GTYF!$C:$AP,AD$201,FALSE) -> 20943.23 | AE223: =VLOOKUP($U$202&$U223,GTYF!$C:$AP,AE$201,FALSE) -> 21561.59 | AF223: =VLOOKUP($U$202&$U223,GTYF!$C:$AP,AF$201,FALSE) -> 23526.11 | AG223: =VLOOKUP($U$202&$U223,GTYF!$C:$AP,AG$201,FALSE) -> 24582.7 | AH223: =VLOOKUP($U$202&$U223,GTYF!$C:$AP,AH$201,FALSE) -> 25546 | AI223: =VLOOKUP($U$202&$U223,GTYF!$C:$AP,AI$201,FALSE) -> 25365.5 | AJ223: =VLOOKUP($U$202&$U223,GTYF!$C:$AP,AJ$201,FALSE) -> 26356.39 | AK223: =VLOOKUP($U$202&$U223,GTYF!$C:$AP,AK$201,FALSE) -> 26360.74 | AL223: =VLOOKUP($U$202&$U223,GTYF!$C:$AP,AL$201,FALSE) -> 26367.63 | AM223: =VLOOKUP($U$202&$U223,GTYF!$C:$AP,AM$201,FALSE) -> 26382.71 | AN223: =VLOOKUP($U$202&$U223,GTYF!$C:$AP,AN$201,FALSE) -> 26144.63 | AO223: =VLOOKUP($U$202&$U223,GTYF!$C:$AP,AO$201,FALSE) -> 26015.74 | AP223: =VLOOKUP($U$202&$U223,GTYF!$C:$AP,AP$201,FALSE) -> 25903.78 | AQ223: =VLOOKUP($U$202&$U223,GTYF!$C:$AP,AQ$201,FALSE) -> 25808.78 | AR223: =VLOOKUP($U$202&$U223,GTYF!$C:$AP,AR$201,FALSE) -> 25713.78 | AS223: =VLOOKUP($U$202&$U223,GTYF!$C:$AP,AS$201,FALSE) -> 25618.78 | AT223: =VLOOKUP($U$202&$U223,GTYF!$C:$AP,AT$201,FALSE) -> 25714.12 | AU223: =VLOOKUP($U$202&$U223,GTYF!$C:$AP,AU$201,FALSE) -> 25724.12 | AV223: =VLOOKUP($U$202&$U223,GTYF!$C:$AP,AV$201,FALSE) -> 25660 | AW223: =VLOOKUP($U$202&$U223,GTYF!$C:$AP,AW$201,FALSE) -> 25599.49 | AX223: =VLOOKUP($U$202&$U223,GTYF!$C:$AP,AX$201,FALSE) -> 25496.44 | AY223: =VLOOKUP($U$202&$U223,GTYF!$C:$AP,AY$201,FALSE) -> 24940.95 | AZ223: =VLOOKUP($U$202&$U223,GTYF!$C:$AP,AZ$201,FALSE) -> 24729.05
S224: Figure 10a | T224: Sapinières | U224: (FCTYF_SAB) | V224: =VLOOKUP($U$202&$U224,GTYF!$C:$AP,V$201,FALSE) -> 3180.3 | W224: =VLOOKUP($U$202&$U224,GTYF!$C:$AP,W$201,FALSE) -> 3180.3 | X224: =VLOOKUP($U$202&$U224,GTYF!$C:$AP,X$201,FALSE) -> 3162.23 | Y224: =VLOOKUP($U$202&$U224,GTYF!$C:$AP,Y$201,FALSE) -> 3140.87 | Z224: =VLOOKUP($U$202&$U224,GTYF!$C:$AP,Z$201,FALSE) -> 3126.7 | AA224: =VLOOKUP($U$202&$U224,GTYF!$C:$AP,AA$201,FALSE) -> 3184.48 | AB224: =VLOOKUP($U$202&$U224,GTYF!$C:$AP,AB$201,FALSE) -> 3279.48 | AC224: =VLOOKUP($U$202&$U224,GTYF!$C:$AP,AC$201,FALSE) -> 3374.48 | AD224: =VLOOKUP($U$202&$U224,GTYF!$C:$AP,AD$201,FALSE) -> 3469.25 | AE224: =VLOOKUP($U$202&$U224,GTYF!$C:$AP,AE$201,FALSE) -> 3574.25 | AF224: =VLOOKUP($U$202&$U224,GTYF!$C:$AP,AF$201,FALSE) -> 3636.97 | AG224: =VLOOKUP($U$202&$U224,GTYF!$C:$AP,AG$201,FALSE) -> 3722.77 | AH224: =VLOOKUP($U$202&$U224,GTYF!$C:$AP,AH$201,FALSE) -> 3743.21 | AI224: =VLOOKUP($U$202&$U224,GTYF!$C:$AP,AI$201,FALSE) -> 3506.7 | AJ224: =VLOOKUP($U$202&$U224,GTYF!$C:$AP,AJ$201,FALSE) -> 3411.7 | AK224: =VLOOKUP($U$202&$U224,GTYF!$C:$AP,AK$201,FALSE) -> 3381.7 | AL224: =VLOOKUP($U$202&$U224,GTYF!$C:$AP,AL$201,FALSE) -> 3381.7 | AM224: =VLOOKUP($U$202&$U224,GTYF!$C:$AP,AM$201,FALSE) -> 3361.7 | AN224: =VLOOKUP($U$202&$U224,GTYF!$C:$AP,AN$201,FALSE) -> 3243.98 | AO224: =VLOOKUP($U$202&$U224,GTYF!$C:$AP,AO$201,FALSE) -> 3180.2 | AP224: =VLOOKUP($U$202&$U224,GTYF!$C:$AP,AP$201,FALSE) -> 3087.04 | AQ224: =VLOOKUP($U$202&$U224,GTYF!$C:$AP,AQ$201,FALSE) -> 3087.04 | AR224: =VLOOKUP($U$202&$U224,GTYF!$C:$AP,AR$201,FALSE) -> 3087.04 | AS224: =VLOOKUP($U$202&$U224,GTYF!$C:$AP,AS$201,FALSE) -> 3087.04 | AT224: =VLOOKUP($U$202&$U224,GTYF!$C:$AP,AT$201,FALSE) -> 3087.04 | AU224: =VLOOKUP($U$202&$U224,GTYF!$C:$AP,AU$201,FALSE) -> 3087.04 | AV224: =VLOOKUP($U$202&$U224,GTYF!$C:$AP,AV$201,FALSE) -> 3087.04 | AW224: =VLOOKUP($U$202&$U224,GTYF!$C:$AP,AW$201,FALSE) -> 3087.04 | AX224: =VLOOKUP($U$202&$U224,GTYF!$C:$AP,AX$201,FALSE) -> 3087.04 | AY224: =VLOOKUP($U$202&$U224,GTYF!$C:$AP,AY$201,FALSE) -> 3087.04 | AZ224: =VLOOKUP($U$202&$U224,GTYF!$C:$AP,AZ$201,FALSE) -> 3087.04
B225: * Attention, étant donné que le graphique fait appel aux GTYF, certains TYF ne paraissent pas dans les bons types de couvert (ex: EoRx, PbFx, PuFx, ToFx) | S225: Figure 10a | T225: Cédrières | U225: (FCTYF_THO) | V225: =VLOOKUP($U$202&$U225,GTYF!$C:$AP,V$201,FALSE) -> 0 | W225: =VLOOKUP($U$202&$U225,GTYF!$C:$AP,W$201,FALSE) -> 0 | X225: =VLOOKUP($U$202&$U225,GTYF!$C:$AP,X$201,FALSE) -> 0 | Y225: =VLOOKUP($U$202&$U225,GTYF!$C:$AP,Y$201,FALSE) -> 0 | Z225: =VLOOKUP($U$202&$U225,GTYF!$C:$AP,Z$201,FALSE) -> 0 | AA225: =VLOOKUP($U$202&$U225,GTYF!$C:$AP,AA$201,FALSE) -> 0 | AB225: =VLOOKUP($U$202&$U225,GTYF!$C:$AP,AB$201,FALSE) -> 0 | AC225: =VLOOKUP($U$202&$U225,GTYF!$C:$AP,AC$201,FALSE) -> 0 | AD225: =VLOOKUP($U$202&$U225,GTYF!$C:$AP,AD$201,FALSE) -> 0 | AE225: =VLOOKUP($U$202&$U225,GTYF!$C:$AP,AE$201,FALSE) -> 0 | AF225: =VLOOKUP($U$202&$U225,GTYF!$C:$AP,AF$201,FALSE) -> 0 | AG225: =VLOOKUP($U$202&$U225,GTYF!$C:$AP,AG$201,FALSE) -> 0 | AH225: =VLOOKUP($U$202&$U225,GTYF!$C:$AP,AH$201,FALSE) -> 0 | AI225: =VLOOKUP($U$202&$U225,GTYF!$C:$AP,AI$201,FALSE) -> 0 | AJ225: =VLOOKUP($U$202&$U225,GTYF!$C:$AP,AJ$201,FALSE) -> 0 | AK225: =VLOOKUP($U$202&$U225,GTYF!$C:$AP,AK$201,FALSE) -> 0 | AL225: =VLOOKUP($U$202&$U225,GTYF!$C:$AP,AL$201,FALSE) -> 0 | AM225: =VLOOKUP($U$202&$U225,GTYF!$C:$AP,AM$201,FALSE) -> 0 | AN225: =VLOOKUP($U$202&$U225,GTYF!$C:$AP,AN$201,FALSE) -> 0 | AO225: =VLOOKUP($U$202&$U225,GTYF!$C:$AP,AO$201,FALSE) -> 0 | AP225: =VLOOKUP($U$202&$U225,GTYF!$C:$AP,AP$201,FALSE) -> 0 | AQ225: =VLOOKUP($U$202&$U225,GTYF!$C:$AP,AQ$201,FALSE) -> 0 | AR225: =VLOOKUP($U$202&$U225,GTYF!$C:$AP,AR$201,FALSE) -> 0 | AS225: =VLOOKUP($U$202&$U225,GTYF!$C:$AP,AS$201,FALSE) -> 0 | AT225: =VLOOKUP($U$202&$U225,GTYF!$C:$AP,AT$201,FALSE) -> 0 | AU225: =VLOOKUP($U$202&$U225,GTYF!$C:$AP,AU$201,FALSE) -> 0 | AV225: =VLOOKUP($U$202&$U225,GTYF!$C:$AP,AV$201,FALSE) -> 0 | AW225: =VLOOKUP($U$202&$U225,GTYF!$C:$AP,AW$201,FALSE) -> 0 | AX225: =VLOOKUP($U$202&$U225,GTYF!$C:$AP,AX$201,FALSE) -> 0 | AY225: =VLOOKUP($U$202&$U225,GTYF!$C:$AP,AY$201,FALSE) -> 0 | AZ225: =VLOOKUP($U$202&$U225,GTYF!$C:$AP,AZ$201,FALSE) -> 0
U228: Colonne | V228: 6 | W228: 7 | X228: 8 | Y228: 9 | Z228: 10 | AA228: 11 | AB228: 12 | AC228: 13 | AD228: 14 | AE228: 15 | AF228: 16 | AG228: 17 | AH228: 18 | AI228: 19 | AJ228: 20 | AK228: 21 | AL228: 22 | AM228: 23 | AN228: 24 | AO228: 25 | AP228: 26 | AQ228: 27 | AR228: 28 | AS228: 29 | AT228: 30 | AU228: 31 | AV228: 32 | AW228: 33 | AX228: 34 | AY228: 35 | AZ228: 36
B229: Figure 10c Évolution des superficies de hêtraie et d'érablière à hêtre | U229: Période | V229: P0 | W229: P1 | X229: P2 | Y229: P3 | Z229: P4 | AA229: P5 | AB229: P6 | AC229: P7 | AD229: P8 | AE229: P9 | AF229: P10 | AG229: P11 | AH229: P12 | AI229: P13 | AJ229: P14 | AK229: P15 | AL229: P16 | AM229: P17 | AN229: P18 | AO229: P19 | AP229: P20 | AQ229: P21 | AR229: P22 | AS229: P23 | AT229: P24 | AU229: P25 | AV229: P26 | AW229: P27 | AX229: P28 | AY229: P29 | AZ229: P30
U230: Axe des "X" Fin de période | V230: 2018 | W230: 2023 | X230: 2028 | Y230: 2033 | Z230: 2038 | AA230: 2043 | AB230: 2048 | AC230: 2053 | AD230: 2058 | AE230: 2063 | AF230: 2068 | AG230: 2073 | AH230: 2078 | AI230: 2083 | AJ230: 2088 | AK230: 2093 | AL230: 2098 | AM230: 2103 | AN230: 2108 | AO230: 2113 | AP230: 2118 | AQ230: 2123 | AR230: 2128 | AS230: 2133 | AT230: 2138 | AU230: 2143 | AV230: 2148 | AW230: 2153 | AX230: 2158 | AY230: 2163 | AZ230: 2168
S231: =LEFT(B$229,10) -> Figure 10c | T231: Hêtraie | U231: OSUPESHG_FX | V231: =VLOOKUP($U231,Output!$C:$AQ,V$228,FALSE) ->  | W231: =VLOOKUP($U231,Output!$C:$AQ,W$228,FALSE) ->  | X231: =VLOOKUP($U231,Output!$C:$AQ,X$228,FALSE) ->  | Y231: =VLOOKUP($U231,Output!$C:$AQ,Y$228,FALSE) ->  | Z231: =VLOOKUP($U231,Output!$C:$AQ,Z$228,FALSE) ->  | AA231: =VLOOKUP($U231,Output!$C:$AQ,AA$228,FALSE) ->  | AB231: =VLOOKUP($U231,Output!$C:$AQ,AB$228,FALSE) ->  | AC231: =VLOOKUP($U231,Output!$C:$AQ,AC$228,FALSE) ->  | AD231: =VLOOKUP($U231,Output!$C:$AQ,AD$228,FALSE) ->  | AE231: =VLOOKUP($U231,Output!$C:$AQ,AE$228,FALSE) ->  | AF231: =VLOOKUP($U231,Output!$C:$AQ,AF$228,FALSE) ->  | AG231: =VLOOKUP($U231,Output!$C:$AQ,AG$228,FALSE) ->  | AH231: =VLOOKUP($U231,Output!$C:$AQ,AH$228,FALSE) ->  | AI231: =VLOOKUP($U231,Output!$C:$AQ,AI$228,FALSE) ->  | AJ231: =VLOOKUP($U231,Output!$C:$AQ,AJ$228,FALSE) ->  | AK231: =VLOOKUP($U231,Output!$C:$AQ,AK$228,FALSE) ->  | AL231: =VLOOKUP($U231,Output!$C:$AQ,AL$228,FALSE) ->  | AM231: =VLOOKUP($U231,Output!$C:$AQ,AM$228,FALSE) ->  | AN231: =VLOOKUP($U231,Output!$C:$AQ,AN$228,FALSE) ->  | AO231: =VLOOKUP($U231,Output!$C:$AQ,AO$228,FALSE) ->  | AP231: =VLOOKUP($U231,Output!$C:$AQ,AP$228,FALSE) ->  | AQ231: =VLOOKUP($U231,Output!$C:$AQ,AQ$228,FALSE) ->  | AR231: =VLOOKUP($U231,Output!$C:$AQ,AR$228,FALSE) ->  | AS231: =VLOOKUP($U231,Output!$C:$AQ,AS$228,FALSE) ->  | AT231: =VLOOKUP($U231,Output!$C:$AQ,AT$228,FALSE) ->  | AU231: =VLOOKUP($U231,Output!$C:$AQ,AU$228,FALSE) ->  | AV231: =VLOOKUP($U231,Output!$C:$AQ,AV$228,FALSE) ->  | AW231: =VLOOKUP($U231,Output!$C:$AQ,AW$228,FALSE) ->  | AX231: =VLOOKUP($U231,Output!$C:$AQ,AX$228,FALSE) ->  | AY231: =VLOOKUP($U231,Output!$C:$AQ,AY$228,FALSE) ->  | AZ231: =VLOOKUP($U231,Output!$C:$AQ,AZ$228,FALSE) -> 
S232: =LEFT(B$229,10) -> Figure 10c | T232: Érablière à hêtre | U232: OSUPESHG | V232: =VLOOKUP($U232,Output!$C:$AQ,V$228,FALSE) ->  | W232: =VLOOKUP($U232,Output!$C:$AQ,W$228,FALSE) ->  | X232: =VLOOKUP($U232,Output!$C:$AQ,X$228,FALSE) ->  | Y232: =VLOOKUP($U232,Output!$C:$AQ,Y$228,FALSE) ->  | Z232: =VLOOKUP($U232,Output!$C:$AQ,Z$228,FALSE) ->  | AA232: =VLOOKUP($U232,Output!$C:$AQ,AA$228,FALSE) ->  | AB232: =VLOOKUP($U232,Output!$C:$AQ,AB$228,FALSE) ->  | AC232: =VLOOKUP($U232,Output!$C:$AQ,AC$228,FALSE) ->  | AD232: =VLOOKUP($U232,Output!$C:$AQ,AD$228,FALSE) ->  | AE232: =VLOOKUP($U232,Output!$C:$AQ,AE$228,FALSE) ->  | AF232: =VLOOKUP($U232,Output!$C:$AQ,AF$228,FALSE) ->  | AG232: =VLOOKUP($U232,Output!$C:$AQ,AG$228,FALSE) ->  | AH232: =VLOOKUP($U232,Output!$C:$AQ,AH$228,FALSE) ->  | AI232: =VLOOKUP($U232,Output!$C:$AQ,AI$228,FALSE) ->  | AJ232: =VLOOKUP($U232,Output!$C:$AQ,AJ$228,FALSE) ->  | AK232: =VLOOKUP($U232,Output!$C:$AQ,AK$228,FALSE) ->  | AL232: =VLOOKUP($U232,Output!$C:$AQ,AL$228,FALSE) ->  | AM232: =VLOOKUP($U232,Output!$C:$AQ,AM$228,FALSE) ->  | AN232: =VLOOKUP($U232,Output!$C:$AQ,AN$228,FALSE) ->  | AO232: =VLOOKUP($U232,Output!$C:$AQ,AO$228,FALSE) ->  | AP232: =VLOOKUP($U232,Output!$C:$AQ,AP$228,FALSE) ->  | AQ232: =VLOOKUP($U232,Output!$C:$AQ,AQ$228,FALSE) ->  | AR232: =VLOOKUP($U232,Output!$C:$AQ,AR$228,FALSE) ->  | AS232: =VLOOKUP($U232,Output!$C:$AQ,AS$228,FALSE) ->  | AT232: =VLOOKUP($U232,Output!$C:$AQ,AT$228,FALSE) ->  | AU232: =VLOOKUP($U232,Output!$C:$AQ,AU$228,FALSE) ->  | AV232: =VLOOKUP($U232,Output!$C:$AQ,AV$228,FALSE) ->  | AW232: =VLOOKUP($U232,Output!$C:$AQ,AW$228,FALSE) ->  | AX232: =VLOOKUP($U232,Output!$C:$AQ,AX$228,FALSE) ->  | AY232: =VLOOKUP($U232,Output!$C:$AQ,AY$228,FALSE) ->  | AZ232: =VLOOKUP($U232,Output!$C:$AQ,AZ$228,FALSE) -> 
S233: =LEFT(B$229,10) -> Figure 10c | T233: Total | U233: Total | V233: =SUM(V231:V232) ->  | W233: =SUM(W231:W232) -> 
B255: Figure 11b Évolution du volume de sapin et d'épinettes sur pied dans la composante SEPM
U262: Colonne | V262: 6 | W262: 7 | X262: 8 | Y262: 9 | Z262: 10 | AA262: 11 | AB262: 12 | AC262: 13 | AD262: 14 | AE262: 15 | AF262: 16 | AG262: 17 | AH262: 18 | AI262: 19 | AJ262: 20 | AK262: 21 | AL262: 22 | AM262: 23 | AN262: 24 | AO262: 25 | AP262: 26 | AQ262: 27 | AR262: 28 | AS262: 29 | AT262: 30 | AU262: 31 | AV262: 32 | AW262: 33 | AX262: 34 | AY262: 35 | AZ262: 36
U263: Axe des "X" Fin de période | V263: 2018 | W263: 2023 | X263: 2028 | Y263: 2033 | Z263: 2038 | AA263: 2043 | AB263: 2048 | AC263: 2053 | AD263: 2058 | AE263: 2063 | AF263: 2068 | AG263: 2073 | AH263: 2078 | AI263: 2083 | AJ263: 2088 | AK263: 2093 | AL263: 2098 | AM263: 2103 | AN263: 2108 | AO263: 2113 | AP263: 2118 | AQ263: 2123 | AR263: 2128 | AS263: 2133 | AT263: 2138 | AU263: 2143 | AV263: 2148 | AW263: 2153 | AX263: 2158 | AY263: 2163 | AZ263: 2168
S264: =LEFT(B$255,10) -> Figure 11b | U264: Période | V264: P0 | W264: P1 | X264: P2 | Y264: P3 | Z264: P4 | AA264: P5 | AB264: P6 | AC264: P7 | AD264: P8 | AE264: P9 | AF264: P10 | AG264: P11 | AH264: P12 | AI264: P13 | AJ264: P14 | AK264: P15 | AL264: P16 | AM264: P17 | AN264: P18 | AO264: P19 | AP264: P20 | AQ264: P21 | AR264: P22 | AS264: P23 | AT264: P24 | AU264: P25 | AV264: P26 | AW264: P27 | AX264: P28 | AY264: P29 | AZ264: P30
S265: Figure 11b | T265: Légende | Y265: PERIOD3 | Z265: PERIOD4 | AA265: PERIOD5 | AB265: PERIOD6 | AC265: PERIOD7 | AD265: PERIOD8 | AE265: PERIOD9 | AF265: PERIOD10 | AG265: PERIOD11 | AH265: PERIOD12 | AI265: PERIOD13 | AJ265: PERIOD14 | AK265: PERIOD15 | AL265: PERIOD16 | AM265: PERIOD17 | AN265: PERIOD18 | AO265: PERIOD19 | AP265: PERIOD20 | AQ265: PERIOD21 | AR265: PERIOD22 | AS265: PERIOD23 | AT265: PERIOD24 | AU265: PERIOD25 | AV265: PERIOD26 | AW265: PERIOD27 | AX265: PERIOD28 | AY265: PERIOD29 | AZ265: PERIOD30
S266: Figure 11b | T266: Volume Sapin | U266: OVOLSABPIEDINC(FCTYF_SEPM) | V266: =VLOOKUP($U266,GTYF!$C:$AL,Figures!V$262,FALSE) -> 433733.43 | W266: =VLOOKUP($U266,GTYF!$C:$AL,Figures!W$262,FALSE) -> 461785.6 | X266: =VLOOKUP($U266,GTYF!$C:$AL,Figures!X$262,FALSE) -> 462781.49 | Y266: =VLOOKUP($U266,GTYF!$C:$AL,Figures!Y$262,FALSE) -> 450951.21 | Z266: =VLOOKUP($U266,GTYF!$C:$AL,Figures!Z$262,FALSE) -> 439889.66 | AA266: =VLOOKUP($U266,GTYF!$C:$AL,Figures!AA$262,FALSE) -> 387443.93 | AB266: =VLOOKUP($U266,GTYF!$C:$AL,Figures!AB$262,FALSE) -> 417913.43 | AC266: =VLOOKUP($U266,GTYF!$C:$AL,Figures!AC$262,FALSE) -> 402656.71 | AD266: =VLOOKUP($U266,GTYF!$C:$AL,Figures!AD$262,FALSE) -> 354577.37 | AE266: =VLOOKUP($U266,GTYF!$C:$AL,Figures!AE$262,FALSE) -> 340603.32 | AF266: =VLOOKUP($U266,GTYF!$C:$AL,Figures!AF$262,FALSE) -> 297451.26 | AG266: =VLOOKUP($U266,GTYF!$C:$AL,Figures!AG$262,FALSE) -> 329711.68 | AH266: =VLOOKUP($U266,GTYF!$C:$AL,Figures!AH$262,FALSE) -> 334009.91 | AI266: =VLOOKUP($U266,GTYF!$C:$AL,Figures!AI$262,FALSE) -> 335259.64 | AJ266: =VLOOKUP($U266,GTYF!$C:$AL,Figures!AJ$262,FALSE) -> 351675 | AK266: =VLOOKUP($U266,GTYF!$C:$AL,Figures!AK$262,FALSE) -> 340106.43 | AL266: =VLOOKUP($U266,GTYF!$C:$AL,Figures!AL$262,FALSE) -> 356437.12 | AM266: =VLOOKUP($U266,GTYF!$C:$AL,Figures!AM$262,FALSE) -> 316360.28 | AN266: =VLOOKUP($U266,GTYF!$C:$AL,Figures!AN$262,FALSE) -> 277230.62 | AO266: =VLOOKUP($U266,GTYF!$C:$AL,Figures!AO$262,FALSE) -> 260709.33 | AP266: =VLOOKUP($U266,GTYF!$C:$AL,Figures!AP$262,FALSE) -> 245029.29 | AQ266: =VLOOKUP($U266,GTYF!$C:$AL,Figures!AQ$262,FALSE) -> 260392.19 | AR266: =VLOOKUP($U266,GTYF!$C:$AL,Figures!AR$262,FALSE) -> 286219.6 | AS266: =VLOOKUP($U266,GTYF!$C:$AL,Figures!AS$262,FALSE) -> 296774.79 | AT266: =VLOOKUP($U266,GTYF!$C:$AL,Figures!AT$262,FALSE) -> 322341.98 | AU266: =VLOOKUP($U266,GTYF!$C:$AL,Figures!AU$262,FALSE) -> 348644.05 | AV266: =VLOOKUP($U266,GTYF!$C:$AL,Figures!AV$262,FALSE) -> 364547.9 | AW266: =VLOOKUP($U266,GTYF!$C:$AL,Figures!AW$262,FALSE) -> 342929.56 | AX266: =VLOOKUP($U266,GTYF!$C:$AL,Figures!AX$262,FALSE) -> 320133.07 | AY266: =VLOOKUP($U266,GTYF!$C:$AL,Figures!AY$262,FALSE) -> 327248.66 | AZ266: =VLOOKUP($U266,GTYF!$C:$AL,Figures!AZ$262,FALSE) -> 237059.99
S267: Figure 11b | T267: Volume Épinettes | U267: OVOLGEPXPIEDINC(FCTYF_SEPM) | V267: =VLOOKUP($U267,GTYF!$C:$AL,Figures!V$262,FALSE) -> 6400986.9 | W267: =VLOOKUP($U267,GTYF!$C:$AL,Figures!W$262,FALSE) -> 6096081.6 | X267: =VLOOKUP($U267,GTYF!$C:$AL,Figures!X$262,FALSE) -> 5918562.08 | Y267: =VLOOKUP($U267,GTYF!$C:$AL,Figures!Y$262,FALSE) -> 5854094.24 | Z267: =VLOOKUP($U267,GTYF!$C:$AL,Figures!Z$262,FALSE) -> 5895226.7 | AA267: =VLOOKUP($U267,GTYF!$C:$AL,Figures!AA$262,FALSE) -> 5994530.15 | AB267: =VLOOKUP($U267,GTYF!$C:$AL,Figures!AB$262,FALSE) -> 6093632.79 | AC267: =VLOOKUP($U267,GTYF!$C:$AL,Figures!AC$262,FALSE) -> 5830026.46 | AD267: =VLOOKUP($U267,GTYF!$C:$AL,Figures!AD$262,FALSE) -> 5646110.91 | AE267: =VLOOKUP($U267,GTYF!$C:$AL,Figures!AE$262,FALSE) -> 5562498.68 | AF267: =VLOOKUP($U267,GTYF!$C:$AL,Figures!AF$262,FALSE) -> 5368931.99 | AG267: =VLOOKUP($U267,GTYF!$C:$AL,Figures!AG$262,FALSE) -> 5361537.4 | AH267: =VLOOKUP($U267,GTYF!$C:$AL,Figures!AH$262,FALSE) -> 5256099.23 | AI267: =VLOOKUP($U267,GTYF!$C:$AL,Figures!AI$262,FALSE) -> 5297967.27 | AJ267: =VLOOKUP($U267,GTYF!$C:$AL,Figures!AJ$262,FALSE) -> 5401863.42 | AK267: =VLOOKUP($U267,GTYF!$C:$AL,Figures!AK$262,FALSE) -> 5430673.59 | AL267: =VLOOKUP($U267,GTYF!$C:$AL,Figures!AL$262,FALSE) -> 5425012.48 | AM267: =VLOOKUP($U267,GTYF!$C:$AL,Figures!AM$262,FALSE) -> 5680564.36 | AN267: =VLOOKUP($U267,GTYF!$C:$AL,Figures!AN$262,FALSE) -> 5828832.59 | AO267: =VLOOKUP($U267,GTYF!$C:$AL,Figures!AO$262,FALSE) -> 6022740.61 | AP267: =VLOOKUP($U267,GTYF!$C:$AL,Figures!AP$262,FALSE) -> 5851238.84 | AQ267: =VLOOKUP($U267,GTYF!$C:$AL,Figures!AQ$262,FALSE) -> 5786008.34 | AR267: =VLOOKUP($U267,GTYF!$C:$AL,Figures!AR$262,FALSE) -> 5794807.08 | AS267: =VLOOKUP($U267,GTYF!$C:$AL,Figures!AS$262,FALSE) -> 5600956.97 | AT267: =VLOOKUP($U267,GTYF!$C:$AL,Figures!AT$262,FALSE) -> 5619229.38 | AU267: =VLOOKUP($U267,GTYF!$C:$AL,Figures!AU$262,FALSE) -> 5536216.61 | AV267: =VLOOKUP($U267,GTYF!$C:$AL,Figures!AV$262,FALSE) -> 5563458.81 | AW267: =VLOOKUP($U267,GTYF!$C:$AL,Figures!AW$262,FALSE) -> 5686129.62 | AX267: =VLOOKUP($U267,GTYF!$C:$AL,Figures!AX$262,FALSE) -> 5437465.92 | AY267: =VLOOKUP($U267,GTYF!$C:$AL,Figures!AY$262,FALSE) -> 5514025.34 | AZ267: =VLOOKUP($U267,GTYF!$C:$AL,Figures!AZ$262,FALSE) -> 5665783.49
S268: Figure 11b
S269: Figure 11b | T269: SEPM sur pied | U269: OVOLGSEPMPIEDINC(FCTYF_SEPM) | V269: =VLOOKUP($U269,GTYF!$C:$AL,Figures!V$262,FALSE) -> 8292402.35 | W269: =VLOOKUP($U269,GTYF!$C:$AL,Figures!W$262,FALSE) -> 8003972.1 | X269: =VLOOKUP($U269,GTYF!$C:$AL,Figures!X$262,FALSE) -> 7875116.45 | Y269: =VLOOKUP($U269,GTYF!$C:$AL,Figures!Y$262,FALSE) -> 7847834.83 | Z269: =VLOOKUP($U269,GTYF!$C:$AL,Figures!Z$262,FALSE) -> 7870073.23 | AA269: =VLOOKUP($U269,GTYF!$C:$AL,Figures!AA$262,FALSE) -> 7899075.84 | AB269: =VLOOKUP($U269,GTYF!$C:$AL,Figures!AB$262,FALSE) -> 7962292.32 | AC269: =VLOOKUP($U269,GTYF!$C:$AL,Figures!AC$262,FALSE) -> 7850256.9 | AD269: =VLOOKUP($U269,GTYF!$C:$AL,Figures!AD$262,FALSE) -> 7772299.09 | AE269: =VLOOKUP($U269,GTYF!$C:$AL,Figures!AE$262,FALSE) -> 7727724.62 | AF269: =VLOOKUP($U269,GTYF!$C:$AL,Figures!AF$262,FALSE) -> 7700456.48 | AG269: =VLOOKUP($U269,GTYF!$C:$AL,Figures!AG$262,FALSE) -> 7695939.59 | AH269: =VLOOKUP($U269,GTYF!$C:$AL,Figures!AH$262,FALSE) -> 7843700.91 | AI269: =VLOOKUP($U269,GTYF!$C:$AL,Figures!AI$262,FALSE) -> 8035979.54 | AJ269: =VLOOKUP($U269,GTYF!$C:$AL,Figures!AJ$262,FALSE) -> 8160068.63 | AK269: =VLOOKUP($U269,GTYF!$C:$AL,Figures!AK$262,FALSE) -> 8325489.02 | AL269: =VLOOKUP($U269,GTYF!$C:$AL,Figures!AL$262,FALSE) -> 8334029.33 | AM269: =VLOOKUP($U269,GTYF!$C:$AL,Figures!AM$262,FALSE) -> 8376054.22 | AN269: =VLOOKUP($U269,GTYF!$C:$AL,Figures!AN$262,FALSE) -> 8282877.31 | AO269: =VLOOKUP($U269,GTYF!$C:$AL,Figures!AO$262,FALSE) -> 8231424.83 | AP269: =VLOOKUP($U269,GTYF!$C:$AL,Figures!AP$262,FALSE) -> 8104669.69 | AQ269: =VLOOKUP($U269,GTYF!$C:$AL,Figures!AQ$262,FALSE) -> 8061026.28 | AR269: =VLOOKUP($U269,GTYF!$C:$AL,Figures!AR$262,FALSE) -> 8106294.93 | AS269: =VLOOKUP($U269,GTYF!$C:$AL,Figures!AS$262,FALSE) -> 8111738.06 | AT269: =VLOOKUP($U269,GTYF!$C:$AL,Figures!AT$262,FALSE) -> 8192694.6 | AU269: =VLOOKUP($U269,GTYF!$C:$AL,Figures!AU$262,FALSE) -> 8247193.41 | AV269: =VLOOKUP($U269,GTYF!$C:$AL,Figures!AV$262,FALSE) -> 8313130.19 | AW269: =VLOOKUP($U269,GTYF!$C:$AL,Figures!AW$262,FALSE) -> 8373628 | AX269: =VLOOKUP($U269,GTYF!$C:$AL,Figures!AX$262,FALSE) -> 8311311.2 | AY269: =VLOOKUP($U269,GTYF!$C:$AL,Figures!AY$262,FALSE) -> 8403584.14 | AZ269: =VLOOKUP($U269,GTYF!$C:$AL,Figures!AZ$262,FALSE) -> 8392691.98
S270: Figure 11b
S271: Figure 11b | T271: % Sapin | V271: =IF(ISERROR(V266),0,V266/V269) -> 0.05230491861 | W271: 0.05769455393 | X271: 0.05876503452 | Y271: 0.05746186302 | Z271: 0.05589397292 | AA271: 0.04904927334 | AB271: 0.05248657211 | AC271: 0.05129216981 | AD271: 0.04562065431 | AE271: 0.04407549916 | AF271: 0.03862774379 | AG271: 0.04284229055 | AH271: 0.04258320324 | AI271: 0.0417198225 | AJ271: 0.043097064 | AK271: 0.04085122558 | AL271: 0.04276888236 | AM271: 0.03776960747 | AN271: 0.03347032796 | AO271: 0.03167244255 | AP271: 0.0302331001 | AQ271: 0.03230261023 | AR271: 0.03530831317 | AS271: 0.03658584483 | AT271: 0.03934505016 | AU271: 0.04227426625 | AV271: 0.04385206194 | AW271: 0.04095352218 | AX271: 0.03851775758 | AY271: 0.0389415581 | AZ271: 0.02824600147
S272: Figure 11b | T272: % Épinettes | V272: =IF(ISERROR(V267),0,V267/V269) -> 0.7719098314 | W272: =IF(ISERROR(W267),0,W267/W269) -> 0.7616320402 | X272: 0.7515523253 | Y272: 0.7459502356 | Z272: 0.7490688495 | AA272: 0.7588900615 | AB272: 0.7653113632 | AC272: 0.7426542257 | AD272: 0.7264402521 | AE272: 0.7198106757 | AF272: 0.6972225613 | AG272: 0.6966709311 | AH272: 0.6701044941 | AI272: 0.6592808311 | AJ272: 0.6619874985 | AK272: 0.6522948474 | AL272: 0.6509471308 | AM272: 0.6781909728 | AN272: 0.7037207448 | AO272: 0.7316765608 | AP272: 0.7219589525 | AQ272: 0.7177756453 | AR272: 0.7148527324 | AS272: 0.6904755712 | AT272: 0.6858829304 | AU272: 0.671284925 | AV272: 0.6692375414 | AW272: 0.6790520931 | AX272: 0.6542248015 | AY272: 0.6561516191 | AZ272: 0.6750853604
S273: Figure 11b | T273: % Volume autre | V273: =1-(V272+V271) -> 0.17578525 | W273: 0.1806734059 | X273: 0.1896826402 | Y273: 0.1965879014 | Z273: 0.1950371776 | AA273: 0.1920606652 | AB273: 0.1822020646 | AC273: 0.2060536044 | AD273: 0.2279390936 | AE273: 0.2361138252 | AF273: 0.2641496949 | AG273: 0.2604867783 | AH273: 0.2873123027 | AI273: 0.2989993464 | AJ273: 0.2949154375 | AK273: 0.306853927 | AL273: 0.3062839869 | AM273: 0.2840394197 | AN273: 0.2628089272 | AO273: 0.2366509967 | AP273: 0.2478079474 | AQ273: 0.2499217445 | AR273: 0.2498389545 | AS273: 0.272938584 | AT273: 0.2747720195 | AU273: 0.2864408087 | AV273: 0.2869103966 | AW273: 0.2799943848 | AX273: 0.3072574409 | AY273: 0.3049068228 | AZ273: 0.2966686381
B278: Figure 14 Indicateur de productivité
... 127 more rows

Sheet UTA
M1: Jeune forêt | R1: Niveau d'altération des vieilles forêts | W1: Niveau d'altération combiné | AA1: Info à récupérer par le SSP Niveau d'altération des vieilles forêts
A2: Inscrire la liste des numéros d'UTA de l'UA: | B2: VieuxAlerte (%) | C2: VieuxAccept (%) | D2: RegeAlerte (%) | E2: RegeAccept (%) | G2: VieuxAlerte (ha) | H2: VieuxAccept (ha) | I2: RegeAlerte (ha) | J2: RegeAccept (ha) | K2: SupUTA | M2: OSUPJEUNEREGECO PERIOD1 (%) | N2: État Jeune 2023 | O2: OSUPJEUNEREGECO PERIOD6 (%) | P2: État Jeune 2048 | R2: OSUPVIEUXTOTREGECO PERIOD1 (%) | S2: État Vielle 2023 | T2: OSUPVIEUXTOTREGECO PERIOD6 (%) | U2: État Vielle 2048 | W2: UTA | X2: 2023 | Y2: 2048 | AA2: UA | AB2: UTA | AC2: 2023 | AD2: 2048 | AE2: Mode de répartition spatiale | AP2: Mode de répartition spatiale
A3: UTA1 | B3: =ROUND(G3/$K3,3) -> 0.147 | C3: =ROUND(H3/$K3,3) -> 0.245 | D3: =ROUND(I3/$K3,3) -> 0.35 | E3: =ROUND(J3/$K3,3) -> 0.25 | G3: =VLOOKUP(CONCATENATE("OSUPVIEUXALERTEREGECO_"&A3),Output!$C:$AQ,6,FALSE) -> 11495.93 | H3: =VLOOKUP(CONCATENATE("OSUPVIEUXACCEPTREGECO_"&A3),Output!$C:$AQ,6,FALSE) -> 19159.88 | I3: =VLOOKUP(CONCATENATE("OSUPJEUNEALERTEREGECO_"&A3),Output!$C:$AQ,6,FALSE) -> 27371.26 | J3: =VLOOKUP(CONCATENATE("OSUPJEUNEACCEPTREGECO_"&A3),Output!$C:$AQ,6,FALSE) -> 19550.9 | K3: =VLOOKUP(CONCATENATE("OSUPREGECO_"&A3),Output!$C:$AQ,6,FALSE) -> 78203.6 | M3: =ROUND(VLOOKUP("OSUPJEUNEREGECO_"&A3,Output!$C:$AQ,7,FALSE)/VLOOKUP("OSUPREGECO_"&A3,Output!$C:$AQ,6,FALSE),3) -> 0.154 | N3: =IF(M3<=$E3,"Faible",IF(M3<$D3,"Modéré","Supérieur")) -> Faible | O3: =ROUND(VLOOKUP("OSUPJEUNEREGECO_"&$A3,Output!$C:$AQ,12,FALSE)/VLOOKUP("OSUPREGECO_"&A3,Output!$C:$AQ,6,FALSE),3) -> 0.143 | P3: =IF(O3<=$E3,"Faible",IF(O3<$D3,"Modéré","Supérieur")) -> Faible | R3: =ROUND(VLOOKUP("OSUPVIEUXTOTREGECO_"&$A3,Output!$C:$AQ,7,FALSE)/VLOOKUP("OSUPREGECO_"&A3,Output!$C:$AQ,6,FALSE),3) -> 0.311 | S3: =IF(R3<$B3,"Supérieur",IF(R3<$C3,"Modéré","Faible")) -> Faible | T3: =ROUND(VLOOKUP("OSUPVIEUXTOTREGECO_"&$A3,Output!$C:$AQ,12,FALSE)/VLOOKUP("OSUPREGECO_"&A3,Output!$C:$AQ,6,FALSE),3) -> 0.322 | U3: =IF(T3<$B3,"Supérieur",IF(T3<$C3,"Modéré","Faible")) -> Faible | W3: =A3 -> UTA1 | X3: =IF(S3>N3,S3,N3) -> Faible | Y3: =IF(U3>P3,U3,P3) -> Faible | AA3: =Tableaux!$O$33 -> 02666 | AB3: =W3 -> UTA1 | AC3: =S3 -> Faible | AD3: =U3 -> Faible | AE3: CMO entente Cris | AG3: Note: "Élevé" a été renommé "Supérieur" pour le bon fonctionnement des formules. | AP3: COS sapinière
A4: UTA2 | B4: =ROUND(G4/$K4,3) -> 0.147 | C4: 0.245 | D4: 0.35 | E4: 0.25 | G4: =VLOOKUP(CONCATENATE("OSUPVIEUXALERTEREGECO_"&A4),Output!$C:$AQ,6,FALSE) -> 19091.05 | H4: =VLOOKUP(CONCATENATE("OSUPVIEUXACCEPTREGECO_"&A4),Output!$C:$AQ,6,FALSE) -> 31818.42 | I4: =VLOOKUP(CONCATENATE("OSUPJEUNEALERTEREGECO_"&A4),Output!$C:$AQ,6,FALSE) -> 45454.88 | J4: =VLOOKUP(CONCATENATE("OSUPJEUNEACCEPTREGECO_"&A4),Output!$C:$AQ,6,FALSE) -> 32467.77 | K4: =VLOOKUP(CONCATENATE("OSUPREGECO_"&A4),Output!$C:$AQ,6,FALSE) -> 129871.1 | M4: =ROUND(VLOOKUP("OSUPJEUNEREGECO_"&A4,Output!$C:$AQ,7,FALSE)/VLOOKUP("OSUPREGECO_"&A4,Output!$C:$AQ,6,FALSE),3) -> 0.188 | N4: =IF(M4<=$E4,"Faible",IF(M4<$D4,"Modéré","Supérieur")) -> Faible | O4: =ROUND(VLOOKUP("OSUPJEUNEREGECO_"&$A4,Output!$C:$AQ,12,FALSE)/VLOOKUP("OSUPREGECO_"&A4,Output!$C:$AQ,6,FALSE),3) -> 0.124 | P4: =IF(O4<=$E4,"Faible",IF(O4<$D4,"Modéré","Supérieur")) -> Faible | R4: =ROUND(VLOOKUP("OSUPVIEUXTOTREGECO_"&$A4,Output!$C:$AQ,7,FALSE)/VLOOKUP("OSUPREGECO_"&A4,Output!$C:$AQ,6,FALSE),3) -> 0.243 | S4: =IF(R4<$B4,"Supérieur",IF(R4<$C4,"Modéré","Faible")) -> Modéré | T4: =ROUND(VLOOKUP("OSUPVIEUXTOTREGECO_"&$A4,Output!$C:$AQ,12,FALSE)/VLOOKUP("OSUPREGECO_"&A4,Output!$C:$AQ,6,FALSE),3) -> 0.243 | U4: =IF(T4<$B4,"Supérieur",IF(T4<$C4,"Modéré","Faible")) -> Modéré | W4: =A4 -> UTA2 | X4: =IF(S4>N4,S4,N4) -> Modéré | Y4: =IF(U4>P4,U4,P4) -> Modéré | AA4: =Tableaux!$O$33 -> 02666 | AB4: =W4 -> UTA2 | AC4: =S4 -> Modéré | AD4: =U4 -> Modéré | AE4: CMO entente Cris | AP4: COS pessière
G5: =VLOOKUP(CONCATENATE("OSUPVIEUXALERTEREGECO_"&A5),Output!$C:$AQ,6,FALSE) ->  | H5: =VLOOKUP(CONCATENATE("OSUPVIEUXACCEPTREGECO_"&A5),Output!$C:$AQ,6,FALSE) ->  | I5: =VLOOKUP(CONCATENATE("OSUPJEUNEALERTEREGECO_"&A5),Output!$C:$AQ,6,FALSE) ->  | J5: =VLOOKUP(CONCATENATE("OSUPJEUNEACCEPTREGECO_"&A5),Output!$C:$AQ,6,FALSE) ->  | K5: =VLOOKUP(CONCATENATE("OSUPREGECO_"&A5),Output!$C:$AQ,6,FALSE) ->  | M5: =ROUND(VLOOKUP("OSUPJEUNEREGECO_"&A5,Output!$C:$AQ,7,FALSE)/VLOOKUP("OSUPREGECO_"&A5,Output!$C:$AQ,6,FALSE),3) ->  | O5: =ROUND(VLOOKUP("OSUPJEUNEREGECO_"&$A5,Output!$C:$AQ,12,FALSE)/VLOOKUP("OSUPREGECO_"&A5,Output!$C:$AQ,6,FALSE),3) ->  | R5: =ROUND(VLOOKUP("OSUPVIEUXTOTREGECO_"&$A5,Output!$C:$AQ,7,FALSE)/VLOOKUP("OSUPREGECO_"&A5,Output!$C:$AQ,6,FALSE),3) ->  | T5: =ROUND(VLOOKUP("OSUPVIEUXTOTREGECO_"&$A5,Output!$C:$AQ,12,FALSE)/VLOOKUP("OSUPREGECO_"&A5,Output!$C:$AQ,6,FALSE),3) ->  | W5: 0 | AA5: =Tableaux!$O$33 -> 02666 | AB5: =W5 -> 0 | AC5: =S5 ->  | AD5: =U5 ->  | AP5: CMO
G6: =VLOOKUP(CONCATENATE("OSUPVIEUXALERTEREGECO_"&A6),Output!$C:$AQ,6,FALSE) ->  | H6: =VLOOKUP(CONCATENATE("OSUPVIEUXACCEPTREGECO_"&A6),Output!$C:$AQ,6,FALSE) ->  | I6: =VLOOKUP(CONCATENATE("OSUPJEUNEALERTEREGECO_"&A6),Output!$C:$AQ,6,FALSE) ->  | J6: =VLOOKUP(CONCATENATE("OSUPJEUNEACCEPTREGECO_"&A6),Output!$C:$AQ,6,FALSE) ->  | K6: =VLOOKUP(CONCATENATE("OSUPREGECO_"&A6),Output!$C:$AQ,6,FALSE) ->  | M6: =ROUND(VLOOKUP("OSUPJEUNEREGECO_"&A6,Output!$C:$AQ,7,FALSE)/VLOOKUP("OSUPREGECO_"&A6,Output!$C:$AQ,6,FALSE),3) ->  | O6: =ROUND(VLOOKUP("OSUPJEUNEREGECO_"&$A6,Output!$C:$AQ,12,FALSE)/VLOOKUP("OSUPREGECO_"&A6,Output!$C:$AQ,6,FALSE),3) ->  | R6: =ROUND(VLOOKUP("OSUPVIEUXTOTREGECO_"&$A6,Output!$C:$AQ,7,FALSE)/VLOOKUP("OSUPREGECO_"&A6,Output!$C:$AQ,6,FALSE),3) ->  | T6: =ROUND(VLOOKUP("OSUPVIEUXTOTREGECO_"&$A6,Output!$C:$AQ,12,FALSE)/VLOOKUP("OSUPREGECO_"&A6,Output!$C:$AQ,6,FALSE),3) ->  | W6: 0 | AA6: =Tableaux!$O$33 -> 02666 | AB6: 0 | AD6: =U6 ->  | AP6: CMO entente Cris
G7: =VLOOKUP(CONCATENATE("OSUPVIEUXALERTEREGECO_"&A7),Output!$C:$AQ,6,FALSE) ->  | H7: =VLOOKUP(CONCATENATE("OSUPVIEUXACCEPTREGECO_"&A7),Output!$C:$AQ,6,FALSE) ->  | I7: =VLOOKUP(CONCATENATE("OSUPJEUNEALERTEREGECO_"&A7),Output!$C:$AQ,6,FALSE) ->  | J7: =VLOOKUP(CONCATENATE("OSUPJEUNEACCEPTREGECO_"&A7),Output!$C:$AQ,6,FALSE) ->  | K7: =VLOOKUP(CONCATENATE("OSUPREGECO_"&A7),Output!$C:$AQ,6,FALSE) ->  | M7: =ROUND(VLOOKUP("OSUPJEUNEREGECO_"&A7,Output!$C:$AQ,7,FALSE)/VLOOKUP("OSUPREGECO_"&A7,Output!$C:$AQ,6,FALSE),3) ->  | O7: =ROUND(VLOOKUP("OSUPJEUNEREGECO_"&$A7,Output!$C:$AQ,12,FALSE)/VLOOKUP("OSUPREGECO_"&A7,Output!$C:$AQ,6,FALSE),3) ->  | R7: =ROUND(VLOOKUP("OSUPVIEUXTOTREGECO_"&$A7,Output!$C:$AQ,7,FALSE)/VLOOKUP("OSUPREGECO_"&A7,Output!$C:$AQ,6,FALSE),3) ->  | T7: =ROUND(VLOOKUP("OSUPVIEUXTOTREGECO_"&$A7,Output!$C:$AQ,12,FALSE)/VLOOKUP("OSUPREGECO_"&A7,Output!$C:$AQ,6,FALSE),3) ->  | W7: 0 | AA7: =Tableaux!$O$33 -> 02666 | AB7: 0 | AC7: =S7 ->  | AD7: =U7 ->  | AG7: Voir à renommer "Élevé" dans la légende des figures | AP7: CMO entente BM
G8: =VLOOKUP(CONCATENATE("OSUPVIEUXALERTEREGECO_"&A8),Output!$C:$AQ,6,FALSE) ->  | H8: =VLOOKUP(CONCATENATE("OSUPVIEUXACCEPTREGECO_"&A8),Output!$C:$AQ,6,FALSE) ->  | I8: =VLOOKUP(CONCATENATE("OSUPJEUNEALERTEREGECO_"&A8),Output!$C:$AQ,6,FALSE) ->  | J8: =VLOOKUP(CONCATENATE("OSUPJEUNEACCEPTREGECO_"&A8),Output!$C:$AQ,6,FALSE) ->  | K8: =VLOOKUP(CONCATENATE("OSUPREGECO_"&A8),Output!$C:$AQ,6,FALSE) ->  | M8: =ROUND(VLOOKUP("OSUPJEUNEREGECO_"&A8,Output!$C:$AQ,7,FALSE)/VLOOKUP("OSUPREGECO_"&A8,Output!$C:$AQ,6,FALSE),3) ->  | O8: =ROUND(VLOOKUP("OSUPJEUNEREGECO_"&$A8,Output!$C:$AQ,12,FALSE)/VLOOKUP("OSUPREGECO_"&A8,Output!$C:$AQ,6,FALSE),3) ->  | R8: =ROUND(VLOOKUP("OSUPVIEUXTOTREGECO_"&$A8,Output!$C:$AQ,7,FALSE)/VLOOKUP("OSUPREGECO_"&A8,Output!$C:$AQ,6,FALSE),3) ->  | T8: =ROUND(VLOOKUP("OSUPVIEUXTOTREGECO_"&$A8,Output!$C:$AQ,12,FALSE)/VLOOKUP("OSUPREGECO_"&A8,Output!$C:$AQ,6,FALSE),3) ->  | W8: 0 | AA8: =Tableaux!$O$33 -> 02666 | AB8: 0
G9: =VLOOKUP(CONCATENATE("OSUPVIEUXALERTEREGECO_"&A9),Output!$C:$AQ,6,FALSE) ->  | H9: =VLOOKUP(CONCATENATE("OSUPVIEUXACCEPTREGECO_"&A9),Output!$C:$AQ,6,FALSE) ->  | I9: =VLOOKUP(CONCATENATE("OSUPJEUNEALERTEREGECO_"&A9),Output!$C:$AQ,6,FALSE) ->  | J9: =VLOOKUP(CONCATENATE("OSUPJEUNEACCEPTREGECO_"&A9),Output!$C:$AQ,6,FALSE) ->  | K9: =VLOOKUP(CONCATENATE("OSUPREGECO_"&A9),Output!$C:$AQ,6,FALSE) ->  | M9: =ROUND(VLOOKUP("OSUPJEUNEREGECO_"&A9,Output!$C:$AQ,7,FALSE)/VLOOKUP("OSUPREGECO_"&A9,Output!$C:$AQ,6,FALSE),3) ->  | O9: =ROUND(VLOOKUP("OSUPJEUNEREGECO_"&$A9,Output!$C:$AQ,12,FALSE)/VLOOKUP("OSUPREGECO_"&A9,Output!$C:$AQ,6,FALSE),3) ->  | R9: =ROUND(VLOOKUP("OSUPVIEUXTOTREGECO_"&$A9,Output!$C:$AQ,7,FALSE)/VLOOKUP("OSUPREGECO_"&A9,Output!$C:$AQ,6,FALSE),3) ->  | T9: =ROUND(VLOOKUP("OSUPVIEUXTOTREGECO_"&$A9,Output!$C:$AQ,12,FALSE)/VLOOKUP("OSUPREGECO_"&A9,Output!$C:$AQ,6,FALSE),3) ->  | W9: 0 | AA9: =Tableaux!$O$33 -> 02666 | AB9: 0
G10: =VLOOKUP(CONCATENATE("OSUPVIEUXALERTEREGECO_"&A10),Output!$C:$AQ,6,FALSE) ->  | H10: =VLOOKUP(CONCATENATE("OSUPVIEUXACCEPTREGECO_"&A10),Output!$C:$AQ,6,FALSE) ->  | I10: =VLOOKUP(CONCATENATE("OSUPJEUNEALERTEREGECO_"&A10),Output!$C:$AQ,6,FALSE) ->  | J10: =VLOOKUP(CONCATENATE("OSUPJEUNEACCEPTREGECO_"&A10),Output!$C:$AQ,6,FALSE) ->  | K10: =VLOOKUP(CONCATENATE("OSUPREGECO_"&A10),Output!$C:$AQ,6,FALSE) ->  | M10: =ROUND(VLOOKUP("OSUPJEUNEREGECO_"&A10,Output!$C:$AQ,7,FALSE)/VLOOKUP("OSUPREGECO_"&A10,Output!$C:$AQ,6,FALSE),3) ->  | O10: =ROUND(VLOOKUP("OSUPJEUNEREGECO_"&$A10,Output!$C:$AQ,12,FALSE)/VLOOKUP("OSUPREGECO_"&A10,Output!$C:$AQ,6,FALSE),3) ->  | R10: =ROUND(VLOOKUP("OSUPVIEUXTOTREGECO_"&$A10,Output!$C:$AQ,7,FALSE)/VLOOKUP("OSUPREGECO_"&A10,Output!$C:$AQ,6,FALSE),3) ->  | T10: =ROUND(VLOOKUP("OSUPVIEUXTOTREGECO_"&$A10,Output!$C:$AQ,12,FALSE)/VLOOKUP("OSUPREGECO_"&A10,Output!$C:$AQ,6,FALSE),3) ->  | W10: 0 | AA10: =Tableaux!$O$33 -> 02666 | AB10: 0
E11: =ROUND(J11/$K11,3) ->  | G11: =VLOOKUP(CONCATENATE("OSUPVIEUXALERTEREGECO_"&A11),Output!$C:$AQ,6,FALSE) ->  | H11: =VLOOKUP(CONCATENATE("OSUPVIEUXACCEPTREGECO_"&A11),Output!$C:$AQ,6,FALSE) ->  | I11: =VLOOKUP(CONCATENATE("OSUPJEUNEALERTEREGECO_"&A11),Output!$C:$AQ,6,FALSE) ->  | J11: =VLOOKUP(CONCATENATE("OSUPJEUNEACCEPTREGECO_"&A11),Output!$C:$AQ,6,FALSE) ->  | K11: =VLOOKUP(CONCATENATE("OSUPREGECO_"&A11),Output!$C:$AQ,6,FALSE) ->  | M11: =ROUND(VLOOKUP("OSUPJEUNEREGECO_"&A11,Output!$C:$AQ,7,FALSE)/VLOOKUP("OSUPREGECO_"&A11,Output!$C:$AQ,6,FALSE),3) ->  | O11: =ROUND(VLOOKUP("OSUPJEUNEREGECO_"&$A11,Output!$C:$AQ,12,FALSE)/VLOOKUP("OSUPREGECO_"&A11,Output!$C:$AQ,6,FALSE),3) ->  | R11: =ROUND(VLOOKUP("OSUPVIEUXTOTREGECO_"&$A11,Output!$C:$AQ,7,FALSE)/VLOOKUP("OSUPREGECO_"&A11,Output!$C:$AQ,6,FALSE),3) ->  | T11: =ROUND(VLOOKUP("OSUPVIEUXTOTREGECO_"&$A11,Output!$C:$AQ,12,FALSE)/VLOOKUP("OSUPREGECO_"&A11,Output!$C:$AQ,6,FALSE),3) ->  | W11: 0 | AA11: =Tableaux!$O$33 -> 02666 | AB11: 0
G12: =VLOOKUP(CONCATENATE("OSUPVIEUXALERTEREGECO_"&A12),Output!$C:$AQ,6,FALSE) ->  | H12: =VLOOKUP(CONCATENATE("OSUPVIEUXACCEPTREGECO_"&A12),Output!$C:$AQ,6,FALSE) ->  | I12: =VLOOKUP(CONCATENATE("OSUPJEUNEALERTEREGECO_"&A12),Output!$C:$AQ,6,FALSE) ->  | J12: =VLOOKUP(CONCATENATE("OSUPJEUNEACCEPTREGECO_"&A12),Output!$C:$AQ,6,FALSE) ->  | K12: =VLOOKUP(CONCATENATE("OSUPREGECO_"&A12),Output!$C:$AQ,6,FALSE) ->  | M12: =ROUND(VLOOKUP("OSUPJEUNEREGECO_"&A12,Output!$C:$AQ,7,FALSE)/VLOOKUP("OSUPREGECO_"&A12,Output!$C:$AQ,6,FALSE),3) ->  | O12: =ROUND(VLOOKUP("OSUPJEUNEREGECO_"&$A12,Output!$C:$AQ,12,FALSE)/VLOOKUP("OSUPREGECO_"&A12,Output!$C:$AQ,6,FALSE),3) ->  | R12: =ROUND(VLOOKUP("OSUPVIEUXTOTREGECO_"&$A12,Output!$C:$AQ,7,FALSE)/VLOOKUP("OSUPREGECO_"&A12,Output!$C:$AQ,6,FALSE),3) ->  | T12: =ROUND(VLOOKUP("OSUPVIEUXTOTREGECO_"&$A12,Output!$C:$AQ,12,FALSE)/VLOOKUP("OSUPREGECO_"&A12,Output!$C:$AQ,6,FALSE),3) ->  | W12: 0 | AA12: =Tableaux!$O$33 -> 02666 | AB12: 0 | AG12: Compléter cellules en jaune
G13: =VLOOKUP(CONCATENATE("OSUPVIEUXALERTEREGECO_"&A13),Output!$C:$AQ,6,FALSE) ->  | H13: =VLOOKUP(CONCATENATE("OSUPVIEUXACCEPTREGECO_"&A13),Output!$C:$AQ,6,FALSE) ->  | I13: =VLOOKUP(CONCATENATE("OSUPJEUNEALERTEREGECO_"&A13),Output!$C:$AQ,6,FALSE) ->  | J13: =VLOOKUP(CONCATENATE("OSUPJEUNEACCEPTREGECO_"&A13),Output!$C:$AQ,6,FALSE) ->  | K13: =VLOOKUP(CONCATENATE("OSUPREGECO_"&A13),Output!$C:$AQ,6,FALSE) ->  | M13: =ROUND(VLOOKUP("OSUPJEUNEREGECO_"&A13,Output!$C:$AQ,7,FALSE)/VLOOKUP("OSUPREGECO_"&A13,Output!$C:$AQ,6,FALSE),3) ->  | O13: =ROUND(VLOOKUP("OSUPJEUNEREGECO_"&$A13,Output!$C:$AQ,12,FALSE)/VLOOKUP("OSUPREGECO_"&A13,Output!$C:$AQ,6,FALSE),3) ->  | R13: =ROUND(VLOOKUP("OSUPVIEUXTOTREGECO_"&$A13,Output!$C:$AQ,7,FALSE)/VLOOKUP("OSUPREGECO_"&A13,Output!$C:$AQ,6,FALSE),3) ->  | T13: =ROUND(VLOOKUP("OSUPVIEUXTOTREGECO_"&$A13,Output!$C:$AQ,12,FALSE)/VLOOKUP("OSUPREGECO_"&A13,Output!$C:$AQ,6,FALSE),3) ->  | W13: 0 | AA13: =Tableaux!$O$33 -> 02666 | AB13: 0
G14: =VLOOKUP(CONCATENATE("OSUPVIEUXALERTEREGECO_"&A14),Output!$C:$AQ,6,FALSE) ->  | H14: =VLOOKUP(CONCATENATE("OSUPVIEUXACCEPTREGECO_"&A14),Output!$C:$AQ,6,FALSE) ->  | I14: =VLOOKUP(CONCATENATE("OSUPJEUNEALERTEREGECO_"&A14),Output!$C:$AQ,6,FALSE) ->  | J14: =VLOOKUP(CONCATENATE("OSUPJEUNEACCEPTREGECO_"&A14),Output!$C:$AQ,6,FALSE) ->  | K14: =VLOOKUP(CONCATENATE("OSUPREGECO_"&A14),Output!$C:$AQ,6,FALSE) ->  | M14: =ROUND(VLOOKUP("OSUPJEUNEREGECO_"&A14,Output!$C:$AQ,7,FALSE)/VLOOKUP("OSUPREGECO_"&A14,Output!$C:$AQ,6,FALSE),3) ->  | O14: =ROUND(VLOOKUP("OSUPJEUNEREGECO_"&$A14,Output!$C:$AQ,12,FALSE)/VLOOKUP("OSUPREGECO_"&A14,Output!$C:$AQ,6,FALSE),3) ->  | R14: =ROUND(VLOOKUP("OSUPVIEUXTOTREGECO_"&$A14,Output!$C:$AQ,7,FALSE)/VLOOKUP("OSUPREGECO_"&A14,Output!$C:$AQ,6,FALSE),3) ->  | T14: =ROUND(VLOOKUP("OSUPVIEUXTOTREGECO_"&$A14,Output!$C:$AQ,12,FALSE)/VLOOKUP("OSUPREGECO_"&A14,Output!$C:$AQ,6,FALSE),3) ->  | W14: 0 | AA14: =Tableaux!$O$33 -> 02666 | AB14: 0
G15: =VLOOKUP(CONCATENATE("OSUPVIEUXALERTEREGECO_"&A15),Output!$C:$AQ,6,FALSE) ->  | H15: =VLOOKUP(CONCATENATE("OSUPVIEUXACCEPTREGECO_"&A15),Output!$C:$AQ,6,FALSE) ->  | I15: =VLOOKUP(CONCATENATE("OSUPJEUNEALERTEREGECO_"&A15),Output!$C:$AQ,6,FALSE) ->  | J15: =VLOOKUP(CONCATENATE("OSUPJEUNEACCEPTREGECO_"&A15),Output!$C:$AQ,6,FALSE) ->  | K15: =VLOOKUP(CONCATENATE("OSUPREGECO_"&A15),Output!$C:$AQ,6,FALSE) ->  | M15: =ROUND(VLOOKUP("OSUPJEUNEREGECO_"&A15,Output!$C:$AQ,7,FALSE)/VLOOKUP("OSUPREGECO_"&A15,Output!$C:$AQ,6,FALSE),3) ->  | O15: =ROUND(VLOOKUP("OSUPJEUNEREGECO_"&$A15,Output!$C:$AQ,12,FALSE)/VLOOKUP("OSUPREGECO_"&A15,Output!$C:$AQ,6,FALSE),3) ->  | R15: =ROUND(VLOOKUP("OSUPVIEUXTOTREGECO_"&$A15,Output!$C:$AQ,7,FALSE)/VLOOKUP("OSUPREGECO_"&A15,Output!$C:$AQ,6,FALSE),3) ->  | T15: =ROUND(VLOOKUP("OSUPVIEUXTOTREGECO_"&$A15,Output!$C:$AQ,12,FALSE)/VLOOKUP("OSUPREGECO_"&A15,Output!$C:$AQ,6,FALSE),3) ->  | W15: 0 | AA15: =Tableaux!$O$33 -> 02666 | AB15: 0
G16: =VLOOKUP(CONCATENATE("OSUPVIEUXALERTEREGECO_"&A16),Output!$C:$AQ,6,FALSE) ->  | H16: =VLOOKUP(CONCATENATE("OSUPVIEUXACCEPTREGECO_"&A16),Output!$C:$AQ,6,FALSE) ->  | I16: =VLOOKUP(CONCATENATE("OSUPJEUNEALERTEREGECO_"&A16),Output!$C:$AQ,6,FALSE) ->  | J16: =VLOOKUP(CONCATENATE("OSUPJEUNEACCEPTREGECO_"&A16),Output!$C:$AQ,6,FALSE) ->  | K16: =VLOOKUP(CONCATENATE("OSUPREGECO_"&A16),Output!$C:$AQ,6,FALSE) ->  | M16: =ROUND(VLOOKUP("OSUPJEUNEREGECO_"&A16,Output!$C:$AQ,7,FALSE)/VLOOKUP("OSUPREGECO_"&A16,Output!$C:$AQ,6,FALSE),3) ->  | O16: =ROUND(VLOOKUP("OSUPJEUNEREGECO_"&$A16,Output!$C:$AQ,12,FALSE)/VLOOKUP("OSUPREGECO_"&A16,Output!$C:$AQ,6,FALSE),3) ->  | R16: =ROUND(VLOOKUP("OSUPVIEUXTOTREGECO_"&$A16,Output!$C:$AQ,7,FALSE)/VLOOKUP("OSUPREGECO_"&A16,Output!$C:$AQ,6,FALSE),3) ->  | T16: =ROUND(VLOOKUP("OSUPVIEUXTOTREGECO_"&$A16,Output!$C:$AQ,12,FALSE)/VLOOKUP("OSUPREGECO_"&A16,Output!$C:$AQ,6,FALSE),3) ->  | W16: 0 | AA16: =Tableaux!$O$33 -> 02666 | AB16: 0
G17: =VLOOKUP(CONCATENATE("OSUPVIEUXALERTEREGECO_"&A17),Output!$C:$AQ,6,FALSE) ->  | H17: =VLOOKUP(CONCATENATE("OSUPVIEUXACCEPTREGECO_"&A17),Output!$C:$AQ,6,FALSE) ->  | I17: =VLOOKUP(CONCATENATE("OSUPJEUNEALERTEREGECO_"&A17),Output!$C:$AQ,6,FALSE) ->  | J17: =VLOOKUP(CONCATENATE("OSUPJEUNEACCEPTREGECO_"&A17),Output!$C:$AQ,6,FALSE) ->  | K17: =VLOOKUP(CONCATENATE("OSUPREGECO_"&A17),Output!$C:$AQ,6,FALSE) ->  | M17: =ROUND(VLOOKUP("OSUPJEUNEREGECO_"&A17,Output!$C:$AQ,7,FALSE)/VLOOKUP("OSUPREGECO_"&A17,Output!$C:$AQ,6,FALSE),3) ->  | O17: =ROUND(VLOOKUP("OSUPJEUNEREGECO_"&$A17,Output!$C:$AQ,12,FALSE)/VLOOKUP("OSUPREGECO_"&A17,Output!$C:$AQ,6,FALSE),3) ->  | R17: =ROUND(VLOOKUP("OSUPVIEUXTOTREGECO_"&$A17,Output!$C:$AQ,7,FALSE)/VLOOKUP("OSUPREGECO_"&A17,Output!$C:$AQ,6,FALSE),3) ->  | T17: =ROUND(VLOOKUP("OSUPVIEUXTOTREGECO_"&$A17,Output!$C:$AQ,12,FALSE)/VLOOKUP("OSUPREGECO_"&A17,Output!$C:$AQ,6,FALSE),3) ->  | W17: 0 | AA17: =Tableaux!$O$33 -> 02666 | AB17: 0
G18: =VLOOKUP(CONCATENATE("OSUPVIEUXALERTEREGECO_"&A18),Output!$C:$AQ,6,FALSE) ->  | H18: =VLOOKUP(CONCATENATE("OSUPVIEUXACCEPTREGECO_"&A18),Output!$C:$AQ,6,FALSE) ->  | I18: =VLOOKUP(CONCATENATE("OSUPJEUNEALERTEREGECO_"&A18),Output!$C:$AQ,6,FALSE) ->  | J18: =VLOOKUP(CONCATENATE("OSUPJEUNEACCEPTREGECO_"&A18),Output!$C:$AQ,6,FALSE) ->  | K18: =VLOOKUP(CONCATENATE("OSUPREGECO_"&A18),Output!$C:$AQ,6,FALSE) ->  | M18: =ROUND(VLOOKUP("OSUPJEUNEREGECO_"&A18,Output!$C:$AQ,7,FALSE)/VLOOKUP("OSUPREGECO_"&A18,Output!$C:$AQ,6,FALSE),3) ->  | O18: =ROUND(VLOOKUP("OSUPJEUNEREGECO_"&$A18,Output!$C:$AQ,12,FALSE)/VLOOKUP("OSUPREGECO_"&A18,Output!$C:$AQ,6,FALSE),3) ->  | R18: =ROUND(VLOOKUP("OSUPVIEUXTOTREGECO_"&$A18,Output!$C:$AQ,7,FALSE)/VLOOKUP("OSUPREGECO_"&A18,Output!$C:$AQ,6,FALSE),3) ->  | T18: =ROUND(VLOOKUP("OSUPVIEUXTOTREGECO_"&$A18,Output!$C:$AQ,12,FALSE)/VLOOKUP("OSUPREGECO_"&A18,Output!$C:$AQ,6,FALSE),3) ->  | W18: 0 | AA18: =Tableaux!$O$33 -> 02666 | AB18: 0
G19: =VLOOKUP(CONCATENATE("OSUPVIEUXALERTEREGECO_"&A19),Output!$C:$AQ,6,FALSE) ->  | H19: =VLOOKUP(CONCATENATE("OSUPVIEUXACCEPTREGECO_"&A19),Output!$C:$AQ,6,FALSE) ->  | I19: =VLOOKUP(CONCATENATE("OSUPJEUNEALERTEREGECO_"&A19),Output!$C:$AQ,6,FALSE) ->  | J19: =VLOOKUP(CONCATENATE("OSUPJEUNEACCEPTREGECO_"&A19),Output!$C:$AQ,6,FALSE) ->  | K19: =VLOOKUP(CONCATENATE("OSUPREGECO_"&A19),Output!$C:$AQ,6,FALSE) ->  | M19: =ROUND(VLOOKUP("OSUPJEUNEREGECO_"&A19,Output!$C:$AQ,7,FALSE)/VLOOKUP("OSUPREGECO_"&A19,Output!$C:$AQ,6,FALSE),3) ->  | O19: =ROUND(VLOOKUP("OSUPJEUNEREGECO_"&$A19,Output!$C:$AQ,12,FALSE)/VLOOKUP("OSUPREGECO_"&A19,Output!$C:$AQ,6,FALSE),3) ->  | R19: =ROUND(VLOOKUP("OSUPVIEUXTOTREGECO_"&$A19,Output!$C:$AQ,7,FALSE)/VLOOKUP("OSUPREGECO_"&A19,Output!$C:$AQ,6,FALSE),3) ->  | T19: =ROUND(VLOOKUP("OSUPVIEUXTOTREGECO_"&$A19,Output!$C:$AQ,12,FALSE)/VLOOKUP("OSUPREGECO_"&A19,Output!$C:$AQ,6,FALSE),3) ->  | W19: 0 | AA19: =Tableaux!$O$33 -> 02666 | AB19: 0
G20: =VLOOKUP(CONCATENATE("OSUPVIEUXALERTEREGECO_"&A20),Output!$C:$AQ,6,FALSE) ->  | H20: =VLOOKUP(CONCATENATE("OSUPVIEUXACCEPTREGECO_"&A20),Output!$C:$AQ,6,FALSE) ->  | I20: =VLOOKUP(CONCATENATE("OSUPJEUNEALERTEREGECO_"&A20),Output!$C:$AQ,6,FALSE) ->  | J20: =VLOOKUP(CONCATENATE("OSUPJEUNEACCEPTREGECO_"&A20),Output!$C:$AQ,6,FALSE) ->  | K20: =VLOOKUP(CONCATENATE("OSUPREGECO_"&A20),Output!$C:$AQ,6,FALSE) ->  | M20: =ROUND(VLOOKUP("OSUPJEUNEREGECO_"&A20,Output!$C:$AQ,7,FALSE)/VLOOKUP("OSUPREGECO_"&A20,Output!$C:$AQ,6,FALSE),3) ->  | O20: =ROUND(VLOOKUP("OSUPJEUNEREGECO_"&$A20,Output!$C:$AQ,12,FALSE)/VLOOKUP("OSUPREGECO_"&A20,Output!$C:$AQ,6,FALSE),3) ->  | R20: =ROUND(VLOOKUP("OSUPVIEUXTOTREGECO_"&$A20,Output!$C:$AQ,7,FALSE)/VLOOKUP("OSUPREGECO_"&A20,Output!$C:$AQ,6,FALSE),3) ->  | T20: =ROUND(VLOOKUP("OSUPVIEUXTOTREGECO_"&$A20,Output!$C:$AQ,12,FALSE)/VLOOKUP("OSUPREGECO_"&A20,Output!$C:$AQ,6,FALSE),3) ->  | W20: 0 | AA20: =Tableaux!$O$33 -> 02666 | AB20: 0
B21: =ROUND(G21/$K21,2) ->  | C21: =H21/$K21 ->  | D21: =ROUND(I21/$K21,3) ->  | G21: =VLOOKUP(CONCATENATE("OSUPVIEUXALERTEREGECO_"&A21),Output!$C:$AQ,6,FALSE) ->  | H21: =VLOOKUP(CONCATENATE("OSUPVIEUXACCEPTREGECO_"&A21),Output!$C:$AQ,6,FALSE) ->  | I21: =VLOOKUP(CONCATENATE("OSUPJEUNEALERTEREGECO_"&A21),Output!$C:$AQ,6,FALSE) ->  | J21: =VLOOKUP(CONCATENATE("OSUPJEUNEACCEPTREGECO_"&A21),Output!$C:$AQ,6,FALSE) ->  | K21: =VLOOKUP(CONCATENATE("OSUPREGECO_"&A21),Output!$C:$AQ,6,FALSE) ->  | M21: =ROUND(VLOOKUP("OSUPJEUNEREGECO_"&A21,Output!$C:$AQ,7,FALSE)/VLOOKUP("OSUPREGECO_"&A21,Output!$C:$AQ,6,FALSE),3) ->  | O21: =ROUND(VLOOKUP("OSUPJEUNEREGECO_"&$A21,Output!$C:$AQ,12,FALSE)/VLOOKUP("OSUPREGECO_"&A21,Output!$C:$AQ,6,FALSE),3) ->  | R21: =ROUND(VLOOKUP("OSUPVIEUXTOTREGECO_"&$A21,Output!$C:$AQ,7,FALSE)/VLOOKUP("OSUPREGECO_"&A21,Output!$C:$AQ,6,FALSE),3) ->  | T21: =ROUND(VLOOKUP("OSUPVIEUXTOTREGECO_"&$A21,Output!$C:$AQ,12,FALSE)/VLOOKUP("OSUPREGECO_"&A21,Output!$C:$AQ,6,FALSE),3) ->  | W21: 0 | AA21: =Tableaux!$O$33 -> 02666 | AB21: 0
G22: =VLOOKUP(CONCATENATE("OSUPVIEUXALERTEREGECO_"&A22),Output!$C:$AQ,6,FALSE) ->  | H22: =VLOOKUP(CONCATENATE("OSUPVIEUXACCEPTREGECO_"&A22),Output!$C:$AQ,6,FALSE) ->  | I22: =VLOOKUP(CONCATENATE("OSUPJEUNEALERTEREGECO_"&A22),Output!$C:$AQ,6,FALSE) ->  | J22: =VLOOKUP(CONCATENATE("OSUPJEUNEACCEPTREGECO_"&A22),Output!$C:$AQ,6,FALSE) ->  | K22: =VLOOKUP(CONCATENATE("OSUPREGECO_"&A22),Output!$C:$AQ,6,FALSE) ->  | M22: =ROUND(VLOOKUP("OSUPJEUNEREGECO_"&A22,Output!$C:$AQ,7,FALSE)/VLOOKUP("OSUPREGECO_"&A22,Output!$C:$AQ,6,FALSE),3) ->  | O22: =ROUND(VLOOKUP("OSUPJEUNEREGECO_"&$A22,Output!$C:$AQ,12,FALSE)/VLOOKUP("OSUPREGECO_"&A22,Output!$C:$AQ,6,FALSE),3) ->  | R22: =ROUND(VLOOKUP("OSUPVIEUXTOTREGECO_"&$A22,Output!$C:$AQ,7,FALSE)/VLOOKUP("OSUPREGECO_"&A22,Output!$C:$AQ,6,FALSE),3) ->  | T22: =ROUND(VLOOKUP("OSUPVIEUXTOTREGECO_"&$A22,Output!$C:$AQ,12,FALSE)/VLOOKUP("OSUPREGECO_"&A22,Output!$C:$AQ,6,FALSE),3) ->  | W22: 0 | AA22: =Tableaux!$O$33 -> 02666 | AB22: 0
G23: =VLOOKUP(CONCATENATE("OSUPVIEUXALERTEREGECO_"&A23),Output!$C:$AQ,6,FALSE) ->  | H23: =VLOOKUP(CONCATENATE("OSUPVIEUXACCEPTREGECO_"&A23),Output!$C:$AQ,6,FALSE) ->  | I23: =VLOOKUP(CONCATENATE("OSUPJEUNEALERTEREGECO_"&A23),Output!$C:$AQ,6,FALSE) ->  | J23: =VLOOKUP(CONCATENATE("OSUPJEUNEACCEPTREGECO_"&A23),Output!$C:$AQ,6,FALSE) ->  | K23: =VLOOKUP(CONCATENATE("OSUPREGECO_"&A23),Output!$C:$AQ,6,FALSE) ->  | M23: =ROUND(VLOOKUP("OSUPJEUNEREGECO_"&A23,Output!$C:$AQ,7,FALSE)/VLOOKUP("OSUPREGECO_"&A23,Output!$C:$AQ,6,FALSE),3) ->  | O23: =ROUND(VLOOKUP("OSUPJEUNEREGECO_"&$A23,Output!$C:$AQ,12,FALSE)/VLOOKUP("OSUPREGECO_"&A23,Output!$C:$AQ,6,FALSE),3) ->  | R23: =ROUND(VLOOKUP("OSUPVIEUXTOTREGECO_"&$A23,Output!$C:$AQ,7,FALSE)/VLOOKUP("OSUPREGECO_"&A23,Output!$C:$AQ,6,FALSE),3) ->  | T23: =ROUND(VLOOKUP("OSUPVIEUXTOTREGECO_"&$A23,Output!$C:$AQ,12,FALSE)/VLOOKUP("OSUPREGECO_"&A23,Output!$C:$AQ,6,FALSE),3) ->  | W23: 0 | AA23: =Tableaux!$O$33 -> 02666 | AB23: 0
G24: =VLOOKUP(CONCATENATE("OSUPVIEUXALERTEREGECO_"&A24),Output!$C:$AQ,6,FALSE) ->  | H24: =VLOOKUP(CONCATENATE("OSUPVIEUXACCEPTREGECO_"&A24),Output!$C:$AQ,6,FALSE) ->  | I24: =VLOOKUP(CONCATENATE("OSUPJEUNEALERTEREGECO_"&A24),Output!$C:$AQ,6,FALSE) ->  | J24: =VLOOKUP(CONCATENATE("OSUPJEUNEACCEPTREGECO_"&A24),Output!$C:$AQ,6,FALSE) ->  | K24: =VLOOKUP(CONCATENATE("OSUPREGECO_"&A24),Output!$C:$AQ,6,FALSE) ->  | M24: =ROUND(VLOOKUP("OSUPJEUNEREGECO_"&A24,Output!$C:$AQ,7,FALSE)/VLOOKUP("OSUPREGECO_"&A24,Output!$C:$AQ,6,FALSE),3) ->  | O24: =ROUND(VLOOKUP("OSUPJEUNEREGECO_"&$A24,Output!$C:$AQ,12,FALSE)/VLOOKUP("OSUPREGECO_"&A24,Output!$C:$AQ,6,FALSE),3) ->  | R24: =ROUND(VLOOKUP("OSUPVIEUXTOTREGECO_"&$A24,Output!$C:$AQ,7,FALSE)/VLOOKUP("OSUPREGECO_"&A24,Output!$C:$AQ,6,FALSE),3) ->  | T24: =ROUND(VLOOKUP("OSUPVIEUXTOTREGECO_"&$A24,Output!$C:$AQ,12,FALSE)/VLOOKUP("OSUPREGECO_"&A24,Output!$C:$AQ,6,FALSE),3) ->  | W24: 0 | AA24: =Tableaux!$O$33 -> 02666 | AB24: 0
G25: =VLOOKUP(CONCATENATE("OSUPVIEUXALERTEREGECO_"&A25),Output!$C:$AQ,6,FALSE) ->  | H25: =VLOOKUP(CONCATENATE("OSUPVIEUXACCEPTREGECO_"&A25),Output!$C:$AQ,6,FALSE) ->  | I25: =VLOOKUP(CONCATENATE("OSUPJEUNEALERTEREGECO_"&A25),Output!$C:$AQ,6,FALSE) ->  | J25: =VLOOKUP(CONCATENATE("OSUPJEUNEACCEPTREGECO_"&A25),Output!$C:$AQ,6,FALSE) ->  | K25: =VLOOKUP(CONCATENATE("OSUPREGECO_"&A25),Output!$C:$AQ,6,FALSE) ->  | M25: =ROUND(VLOOKUP("OSUPJEUNEREGECO_"&A25,Output!$C:$AQ,7,FALSE)/VLOOKUP("OSUPREGECO_"&A25,Output!$C:$AQ,6,FALSE),3) ->  | O25: =ROUND(VLOOKUP("OSUPJEUNEREGECO_"&$A25,Output!$C:$AQ,12,FALSE)/VLOOKUP("OSUPREGECO_"&A25,Output!$C:$AQ,6,FALSE),3) ->  | R25: =ROUND(VLOOKUP("OSUPVIEUXTOTREGECO_"&$A25,Output!$C:$AQ,7,FALSE)/VLOOKUP("OSUPREGECO_"&A25,Output!$C:$AQ,6,FALSE),3) ->  | T25: =ROUND(VLOOKUP("OSUPVIEUXTOTREGECO_"&$A25,Output!$C:$AQ,12,FALSE)/VLOOKUP("OSUPREGECO_"&A25,Output!$C:$AQ,6,FALSE),3) ->  | W25: 0 | AA25: =Tableaux!$O$33 -> 02666 | AB25: 0
G26: =VLOOKUP(CONCATENATE("OSUPVIEUXALERTEREGECO_"&A26),Output!$C:$AQ,6,FALSE) ->  | H26: =VLOOKUP(CONCATENATE("OSUPVIEUXACCEPTREGECO_"&A26),Output!$C:$AQ,6,FALSE) ->  | I26: =VLOOKUP(CONCATENATE("OSUPJEUNEALERTEREGECO_"&A26),Output!$C:$AQ,6,FALSE) ->  | J26: =VLOOKUP(CONCATENATE("OSUPJEUNEACCEPTREGECO_"&A26),Output!$C:$AQ,6,FALSE) ->  | K26: =VLOOKUP(CONCATENATE("OSUPREGECO_"&A26),Output!$C:$AQ,6,FALSE) ->  | M26: =ROUND(VLOOKUP("OSUPJEUNEREGECO_"&A26,Output!$C:$AQ,7,FALSE)/VLOOKUP("OSUPREGECO_"&A26,Output!$C:$AQ,6,FALSE),3) ->  | O26: =ROUND(VLOOKUP("OSUPJEUNEREGECO_"&$A26,Output!$C:$AQ,12,FALSE)/VLOOKUP("OSUPREGECO_"&A26,Output!$C:$AQ,6,FALSE),3) ->  | R26: =ROUND(VLOOKUP("OSUPVIEUXTOTREGECO_"&$A26,Output!$C:$AQ,7,FALSE)/VLOOKUP("OSUPREGECO_"&A26,Output!$C:$AQ,6,FALSE),3) ->  | T26: =ROUND(VLOOKUP("OSUPVIEUXTOTREGECO_"&$A26,Output!$C:$AQ,12,FALSE)/VLOOKUP("OSUPREGECO_"&A26,Output!$C:$AQ,6,FALSE),3) ->  | W26: 0 | AA26: =Tableaux!$O$33 -> 02666 | AB26: 0
C27: =ROUND(H27/$K27,3) ->  | G27: =VLOOKUP(CONCATENATE("OSUPVIEUXALERTEREGECO_"&A27),Output!$C:$AQ,6,FALSE) ->  | H27: =VLOOKUP(CONCATENATE("OSUPVIEUXACCEPTREGECO_"&A27),Output!$C:$AQ,6,FALSE) ->  | I27: =VLOOKUP(CONCATENATE("OSUPJEUNEALERTEREGECO_"&A27),Output!$C:$AQ,6,FALSE) ->  | J27: =VLOOKUP(CONCATENATE("OSUPJEUNEACCEPTREGECO_"&A27),Output!$C:$AQ,6,FALSE) ->  | K27: =VLOOKUP(CONCATENATE("OSUPREGECO_"&A27),Output!$C:$AQ,6,FALSE) ->  | M27: =ROUND(VLOOKUP("OSUPJEUNEREGECO_"&A27,Output!$C:$AQ,7,FALSE)/VLOOKUP("OSUPREGECO_"&A27,Output!$C:$AQ,6,FALSE),3) ->  | O27: =ROUND(VLOOKUP("OSUPJEUNEREGECO_"&$A27,Output!$C:$AQ,12,FALSE)/VLOOKUP("OSUPREGECO_"&A27,Output!$C:$AQ,6,FALSE),3) ->  | R27: =ROUND(VLOOKUP("OSUPVIEUXTOTREGECO_"&$A27,Output!$C:$AQ,7,FALSE)/VLOOKUP("OSUPREGECO_"&A27,Output!$C:$AQ,6,FALSE),3) ->  | T27: =ROUND(VLOOKUP("OSUPVIEUXTOTREGECO_"&$A27,Output!$C:$AQ,12,FALSE)/VLOOKUP("OSUPREGECO_"&A27,Output!$C:$AQ,6,FALSE),3) ->  | W27: 0 | AA27: =Tableaux!$O$33 -> 02666 | AB27: 0
G28: =VLOOKUP(CONCATENATE("OSUPVIEUXALERTEREGECO_"&A28),Output!$C:$AQ,6,FALSE) ->  | H28: =VLOOKUP(CONCATENATE("OSUPVIEUXACCEPTREGECO_"&A28),Output!$C:$AQ,6,FALSE) ->  | I28: =VLOOKUP(CONCATENATE("OSUPJEUNEALERTEREGECO_"&A28),Output!$C:$AQ,6,FALSE) ->  | J28: =VLOOKUP(CONCATENATE("OSUPJEUNEACCEPTREGECO_"&A28),Output!$C:$AQ,6,FALSE) ->  | K28: =VLOOKUP(CONCATENATE("OSUPREGECO_"&A28),Output!$C:$AQ,6,FALSE) ->  | M28: =ROUND(VLOOKUP("OSUPJEUNEREGECO_"&A28,Output!$C:$AQ,7,FALSE)/VLOOKUP("OSUPREGECO_"&A28,Output!$C:$AQ,6,FALSE),3) ->  | O28: =ROUND(VLOOKUP("OSUPJEUNEREGECO_"&$A28,Output!$C:$AQ,12,FALSE)/VLOOKUP("OSUPREGECO_"&A28,Output!$C:$AQ,6,FALSE),3) ->  | R28: =ROUND(VLOOKUP("OSUPVIEUXTOTREGECO_"&$A28,Output!$C:$AQ,7,FALSE)/VLOOKUP("OSUPREGECO_"&A28,Output!$C:$AQ,6,FALSE),3) ->  | T28: =ROUND(VLOOKUP("OSUPVIEUXTOTREGECO_"&$A28,Output!$C:$AQ,12,FALSE)/VLOOKUP("OSUPREGECO_"&A28,Output!$C:$AQ,6,FALSE),3) ->  | W28: 0 | AA28: =Tableaux!$O$33 -> 02666 | AB28: 0
G29: =VLOOKUP(CONCATENATE("OSUPVIEUXALERTEREGECO_"&A29),Output!$C:$AQ,6,FALSE) ->  | H29: =VLOOKUP(CONCATENATE("OSUPVIEUXACCEPTREGECO_"&A29),Output!$C:$AQ,6,FALSE) ->  | I29: =VLOOKUP(CONCATENATE("OSUPJEUNEALERTEREGECO_"&A29),Output!$C:$AQ,6,FALSE) ->  | J29: =VLOOKUP(CONCATENATE("OSUPJEUNEACCEPTREGECO_"&A29),Output!$C:$AQ,6,FALSE) ->  | K29: =VLOOKUP(CONCATENATE("OSUPREGECO_"&A29),Output!$C:$AQ,6,FALSE) ->  | M29: =ROUND(VLOOKUP("OSUPJEUNEREGECO_"&A29,Output!$C:$AQ,7,FALSE)/VLOOKUP("OSUPREGECO_"&A29,Output!$C:$AQ,6,FALSE),3) ->  | O29: =ROUND(VLOOKUP("OSUPJEUNEREGECO_"&$A29,Output!$C:$AQ,12,FALSE)/VLOOKUP("OSUPREGECO_"&A29,Output!$C:$AQ,6,FALSE),3) ->  | R29: =ROUND(VLOOKUP("OSUPVIEUXTOTREGECO_"&$A29,Output!$C:$AQ,7,FALSE)/VLOOKUP("OSUPREGECO_"&A29,Output!$C:$AQ,6,FALSE),3) ->  | T29: =ROUND(VLOOKUP("OSUPVIEUXTOTREGECO_"&$A29,Output!$C:$AQ,12,FALSE)/VLOOKUP("OSUPREGECO_"&A29,Output!$C:$AQ,6,FALSE),3) ->  | W29: 0 | AA29: =Tableaux!$O$33 -> 02666 | AB29: 0
G30: =VLOOKUP(CONCATENATE("OSUPVIEUXALERTEREGECO_"&A30),Output!$C:$AQ,6,FALSE) ->  | H30: =VLOOKUP(CONCATENATE("OSUPVIEUXACCEPTREGECO_"&A30),Output!$C:$AQ,6,FALSE) ->  | I30: =VLOOKUP(CONCATENATE("OSUPJEUNEALERTEREGECO_"&A30),Output!$C:$AQ,6,FALSE) ->  | J30: =VLOOKUP(CONCATENATE("OSUPJEUNEACCEPTREGECO_"&A30),Output!$C:$AQ,6,FALSE) ->  | K30: =VLOOKUP(CONCATENATE("OSUPREGECO_"&A30),Output!$C:$AQ,6,FALSE) ->  | M30: =ROUND(VLOOKUP("OSUPJEUNEREGECO_"&A30,Output!$C:$AQ,7,FALSE)/VLOOKUP("OSUPREGECO_"&A30,Output!$C:$AQ,6,FALSE),3) ->  | O30: =ROUND(VLOOKUP("OSUPJEUNEREGECO_"&$A30,Output!$C:$AQ,12,FALSE)/VLOOKUP("OSUPREGECO_"&A30,Output!$C:$AQ,6,FALSE),3) ->  | R30: =ROUND(VLOOKUP("OSUPVIEUXTOTREGECO_"&$A30,Output!$C:$AQ,7,FALSE)/VLOOKUP("OSUPREGECO_"&A30,Output!$C:$AQ,6,FALSE),3) ->  | T30: =ROUND(VLOOKUP("OSUPVIEUXTOTREGECO_"&$A30,Output!$C:$AQ,12,FALSE)/VLOOKUP("OSUPREGECO_"&A30,Output!$C:$AQ,6,FALSE),3) ->  | W30: 0 | AA30: =Tableaux!$O$33 -> 02666 | AB30: 0
G31: =VLOOKUP(CONCATENATE("OSUPVIEUXALERTEREGECO_"&A31),Output!$C:$AQ,6,FALSE) ->  | H31: =VLOOKUP(CONCATENATE("OSUPVIEUXACCEPTREGECO_"&A31),Output!$C:$AQ,6,FALSE) ->  | I31: =VLOOKUP(CONCATENATE("OSUPJEUNEALERTEREGECO_"&A31),Output!$C:$AQ,6,FALSE) ->  | J31: =VLOOKUP(CONCATENATE("OSUPJEUNEACCEPTREGECO_"&A31),Output!$C:$AQ,6,FALSE) ->  | K31: =VLOOKUP(CONCATENATE("OSUPREGECO_"&A31),Output!$C:$AQ,6,FALSE) ->  | M31: =ROUND(VLOOKUP("OSUPJEUNEREGECO_"&A31,Output!$C:$AQ,7,FALSE)/VLOOKUP("OSUPREGECO_"&A31,Output!$C:$AQ,6,FALSE),3) ->  | O31: =ROUND(VLOOKUP("OSUPJEUNEREGECO_"&$A31,Output!$C:$AQ,12,FALSE)/VLOOKUP("OSUPREGECO_"&A31,Output!$C:$AQ,6,FALSE),3) ->  | R31: =ROUND(VLOOKUP("OSUPVIEUXTOTREGECO_"&$A31,Output!$C:$AQ,7,FALSE)/VLOOKUP("OSUPREGECO_"&A31,Output!$C:$AQ,6,FALSE),3) ->  | T31: =ROUND(VLOOKUP("OSUPVIEUXTOTREGECO_"&$A31,Output!$C:$AQ,12,FALSE)/VLOOKUP("OSUPREGECO_"&A31,Output!$C:$AQ,6,FALSE),3) ->  | W31: 0 | AA31: =Tableaux!$O$33 -> 02666 | AB31: 0
G32: =VLOOKUP(CONCATENATE("OSUPVIEUXALERTEREGECO_"&A32),Output!$C:$AQ,6,FALSE) ->  | H32: =VLOOKUP(CONCATENATE("OSUPVIEUXACCEPTREGECO_"&A32),Output!$C:$AQ,6,FALSE) ->  | I32: =VLOOKUP(CONCATENATE("OSUPJEUNEALERTEREGECO_"&A32),Output!$C:$AQ,6,FALSE) ->  | J32: =VLOOKUP(CONCATENATE("OSUPJEUNEACCEPTREGECO_"&A32),Output!$C:$AQ,6,FALSE) ->  | K32: =VLOOKUP(CONCATENATE("OSUPREGECO_"&A32),Output!$C:$AQ,6,FALSE) ->  | M32: =ROUND(VLOOKUP("OSUPJEUNEREGECO_"&A32,Output!$C:$AQ,7,FALSE)/VLOOKUP("OSUPREGECO_"&A32,Output!$C:$AQ,6,FALSE),3) ->  | O32: =ROUND(VLOOKUP("OSUPJEUNEREGECO_"&$A32,Output!$C:$AQ,12,FALSE)/VLOOKUP("OSUPREGECO_"&A32,Output!$C:$AQ,6,FALSE),3) ->  | R32: =ROUND(VLOOKUP("OSUPVIEUXTOTREGECO_"&$A32,Output!$C:$AQ,7,FALSE)/VLOOKUP("OSUPREGECO_"&A32,Output!$C:$AQ,6,FALSE),3) ->  | T32: =ROUND(VLOOKUP("OSUPVIEUXTOTREGECO_"&$A32,Output!$C:$AQ,12,FALSE)/VLOOKUP("OSUPREGECO_"&A32,Output!$C:$AQ,6,FALSE),3) ->  | W32: 0 | AA32: =Tableaux!$O$33 -> 02666 | AB32: 0
G33: =VLOOKUP(CONCATENATE("OSUPVIEUXALERTEREGECO_"&A33),Output!$C:$AQ,6,FALSE) ->  | H33: =VLOOKUP(CONCATENATE("OSUPVIEUXACCEPTREGECO_"&A33),Output!$C:$AQ,6,FALSE) ->  | I33: =VLOOKUP(CONCATENATE("OSUPJEUNEALERTEREGECO_"&A33),Output!$C:$AQ,6,FALSE) ->  | J33: =VLOOKUP(CONCATENATE("OSUPJEUNEACCEPTREGECO_"&A33),Output!$C:$AQ,6,FALSE) ->  | K33: =VLOOKUP(CONCATENATE("OSUPREGECO_"&A33),Output!$C:$AQ,6,FALSE) ->  | M33: =ROUND(VLOOKUP("OSUPJEUNEREGECO_"&A33,Output!$C:$AQ,7,FALSE)/VLOOKUP("OSUPREGECO_"&A33,Output!$C:$AQ,6,FALSE),3) ->  | O33: =ROUND(VLOOKUP("OSUPJEUNEREGECO_"&$A33,Output!$C:$AQ,12,FALSE)/VLOOKUP("OSUPREGECO_"&A33,Output!$C:$AQ,6,FALSE),3) ->  | R33: =ROUND(VLOOKUP("OSUPVIEUXTOTREGECO_"&$A33,Output!$C:$AQ,7,FALSE)/VLOOKUP("OSUPREGECO_"&A33,Output!$C:$AQ,6,FALSE),3) ->  | T33: =ROUND(VLOOKUP("OSUPVIEUXTOTREGECO_"&$A33,Output!$C:$AQ,12,FALSE)/VLOOKUP("OSUPREGECO_"&A33,Output!$C:$AQ,6,FALSE),3) ->  | W33: 0 | AA33: =Tableaux!$O$33 -> 02666 | AB33: =W33 -> 0
G34: =VLOOKUP(CONCATENATE("OSUPVIEUXALERTEREGECO_"&A34),Output!$C:$AQ,6,FALSE) ->  | H34: =VLOOKUP(CONCATENATE("OSUPVIEUXACCEPTREGECO_"&A34),Output!$C:$AQ,6,FALSE) ->  | I34: =VLOOKUP(CONCATENATE("OSUPJEUNEALERTEREGECO_"&A34),Output!$C:$AQ,6,FALSE) ->  | J34: =VLOOKUP(CONCATENATE("OSUPJEUNEACCEPTREGECO_"&A34),Output!$C:$AQ,6,FALSE) ->  | K34: =VLOOKUP(CONCATENATE("OSUPREGECO_"&A34),Output!$C:$AQ,6,FALSE) ->  | M34: =ROUND(VLOOKUP("OSUPJEUNEREGECO_"&A34,Output!$C:$AQ,7,FALSE)/VLOOKUP("OSUPREGECO_"&A34,Output!$C:$AQ,6,FALSE),3) ->  | O34: =ROUND(VLOOKUP("OSUPJEUNEREGECO_"&$A34,Output!$C:$AQ,12,FALSE)/VLOOKUP("OSUPREGECO_"&A34,Output!$C:$AQ,6,FALSE),3) ->  | R34: =ROUND(VLOOKUP("OSUPVIEUXTOTREGECO_"&$A34,Output!$C:$AQ,7,FALSE)/VLOOKUP("OSUPREGECO_"&A34,Output!$C:$AQ,6,FALSE),3) ->  | T34: =ROUND(VLOOKUP("OSUPVIEUXTOTREGECO_"&$A34,Output!$C:$AQ,12,FALSE)/VLOOKUP("OSUPREGECO_"&A34,Output!$C:$AQ,6,FALSE),3) ->  | W34: 0 | AA34: =Tableaux!$O$33 -> 02666 | AB34: 0
G35: =VLOOKUP(CONCATENATE("OSUPVIEUXALERTEREGECO_"&A35),Output!$C:$AQ,6,FALSE) ->  | H35: =VLOOKUP(CONCATENATE("OSUPVIEUXACCEPTREGECO_"&A35),Output!$C:$AQ,6,FALSE) ->  | I35: =VLOOKUP(CONCATENATE("OSUPJEUNEALERTEREGECO_"&A35),Output!$C:$AQ,6,FALSE) ->  | J35: =VLOOKUP(CONCATENATE("OSUPJEUNEACCEPTREGECO_"&A35),Output!$C:$AQ,6,FALSE) ->  | K35: =VLOOKUP(CONCATENATE("OSUPREGECO_"&A35),Output!$C:$AQ,6,FALSE) ->  | M35: =ROUND(VLOOKUP("OSUPJEUNEREGECO_"&A35,Output!$C:$AQ,7,FALSE)/VLOOKUP("OSUPREGECO_"&A35,Output!$C:$AQ,6,FALSE),3) ->  | O35: =ROUND(VLOOKUP("OSUPJEUNEREGECO_"&$A35,Output!$C:$AQ,12,FALSE)/VLOOKUP("OSUPREGECO_"&A35,Output!$C:$AQ,6,FALSE),3) ->  | R35: =ROUND(VLOOKUP("OSUPVIEUXTOTREGECO_"&$A35,Output!$C:$AQ,7,FALSE)/VLOOKUP("OSUPREGECO_"&A35,Output!$C:$AQ,6,FALSE),3) ->  | T35: =ROUND(VLOOKUP("OSUPVIEUXTOTREGECO_"&$A35,Output!$C:$AQ,12,FALSE)/VLOOKUP("OSUPREGECO_"&A35,Output!$C:$AQ,6,FALSE),3) ->  | W35: 0 | AA35: =Tableaux!$O$33 -> 02666 | AB35: 0
G36: =VLOOKUP(CONCATENATE("OSUPVIEUXALERTEREGECO_"&A36),Output!$C:$AQ,6,FALSE) ->  | H36: =VLOOKUP(CONCATENATE("OSUPVIEUXACCEPTREGECO_"&A36),Output!$C:$AQ,6,FALSE) ->  | I36: =VLOOKUP(CONCATENATE("OSUPJEUNEALERTEREGECO_"&A36),Output!$C:$AQ,6,FALSE) ->  | J36: =VLOOKUP(CONCATENATE("OSUPJEUNEACCEPTREGECO_"&A36),Output!$C:$AQ,6,FALSE) ->  | K36: =VLOOKUP(CONCATENATE("OSUPREGECO_"&A36),Output!$C:$AQ,6,FALSE) ->  | M36: =ROUND(VLOOKUP("OSUPJEUNEREGECO_"&A36,Output!$C:$AQ,7,FALSE)/VLOOKUP("OSUPREGECO_"&A36,Output!$C:$AQ,6,FALSE),3) ->  | O36: =ROUND(VLOOKUP("OSUPJEUNEREGECO_"&$A36,Output!$C:$AQ,12,FALSE)/VLOOKUP("OSUPREGECO_"&A36,Output!$C:$AQ,6,FALSE),3) ->  | R36: =ROUND(VLOOKUP("OSUPVIEUXTOTREGECO_"&$A36,Output!$C:$AQ,7,FALSE)/VLOOKUP("OSUPREGECO_"&A36,Output!$C:$AQ,6,FALSE),3) ->  | T36: =ROUND(VLOOKUP("OSUPVIEUXTOTREGECO_"&$A36,Output!$C:$AQ,12,FALSE)/VLOOKUP("OSUPREGECO_"&A36,Output!$C:$AQ,6,FALSE),3) ->  | W36: 0 | AA36: =Tableaux!$O$33 -> 02666 | AB36: 0
G37: =VLOOKUP(CONCATENATE("OSUPVIEUXALERTEREGECO_"&A37),Output!$C:$AQ,6,FALSE) ->  | H37: =VLOOKUP(CONCATENATE("OSUPVIEUXACCEPTREGECO_"&A37),Output!$C:$AQ,6,FALSE) ->  | I37: =VLOOKUP(CONCATENATE("OSUPJEUNEALERTEREGECO_"&A37),Output!$C:$AQ,6,FALSE) ->  | J37: =VLOOKUP(CONCATENATE("OSUPJEUNEACCEPTREGECO_"&A37),Output!$C:$AQ,6,FALSE) ->  | K37: =VLOOKUP(CONCATENATE("OSUPREGECO_"&A37),Output!$C:$AQ,6,FALSE) ->  | M37: =ROUND(VLOOKUP("OSUPJEUNEREGECO_"&A37,Output!$C:$AQ,7,FALSE)/VLOOKUP("OSUPREGECO_"&A37,Output!$C:$AQ,6,FALSE),3) ->  | O37: =ROUND(VLOOKUP("OSUPJEUNEREGECO_"&$A37,Output!$C:$AQ,12,FALSE)/VLOOKUP("OSUPREGECO_"&A37,Output!$C:$AQ,6,FALSE),3) ->  | R37: =ROUND(VLOOKUP("OSUPVIEUXTOTREGECO_"&$A37,Output!$C:$AQ,7,FALSE)/VLOOKUP("OSUPREGECO_"&A37,Output!$C:$AQ,6,FALSE),3) ->  | T37: =ROUND(VLOOKUP("OSUPVIEUXTOTREGECO_"&$A37,Output!$C:$AQ,12,FALSE)/VLOOKUP("OSUPREGECO_"&A37,Output!$C:$AQ,6,FALSE),3) ->  | W37: 0 | AA37: =Tableaux!$O$33 -> 02666 | AB37: 0
G38: =VLOOKUP(CONCATENATE("OSUPVIEUXALERTEREGECO_"&A38),Output!$C:$AQ,6,FALSE) ->  | H38: =VLOOKUP(CONCATENATE("OSUPVIEUXACCEPTREGECO_"&A38),Output!$C:$AQ,6,FALSE) ->  | I38: =VLOOKUP(CONCATENATE("OSUPJEUNEALERTEREGECO_"&A38),Output!$C:$AQ,6,FALSE) ->  | J38: =VLOOKUP(CONCATENATE("OSUPJEUNEACCEPTREGECO_"&A38),Output!$C:$AQ,6,FALSE) ->  | K38: =VLOOKUP(CONCATENATE("OSUPREGECO_"&A38),Output!$C:$AQ,6,FALSE) ->  | M38: =ROUND(VLOOKUP("OSUPJEUNEREGECO_"&A38,Output!$C:$AQ,7,FALSE)/VLOOKUP("OSUPREGECO_"&A38,Output!$C:$AQ,6,FALSE),3) ->  | O38: =ROUND(VLOOKUP("OSUPJEUNEREGECO_"&$A38,Output!$C:$AQ,12,FALSE)/VLOOKUP("OSUPREGECO_"&A38,Output!$C:$AQ,6,FALSE),3) ->  | R38: =ROUND(VLOOKUP("OSUPVIEUXTOTREGECO_"&$A38,Output!$C:$AQ,7,FALSE)/VLOOKUP("OSUPREGECO_"&A38,Output!$C:$AQ,6,FALSE),3) ->  | T38: =ROUND(VLOOKUP("OSUPVIEUXTOTREGECO_"&$A38,Output!$C:$AQ,12,FALSE)/VLOOKUP("OSUPREGECO_"&A38,Output!$C:$AQ,6,FALSE),3) ->  | W38: 0 | AA38: =Tableaux!$O$33 -> 02666 | AB38: 0
G39: =VLOOKUP(CONCATENATE("OSUPVIEUXALERTEREGECO_"&A39),Output!$C:$AQ,6,FALSE) ->  | H39: =VLOOKUP(CONCATENATE("OSUPVIEUXACCEPTREGECO_"&A39),Output!$C:$AQ,6,FALSE) ->  | I39: =VLOOKUP(CONCATENATE("OSUPJEUNEALERTEREGECO_"&A39),Output!$C:$AQ,6,FALSE) ->  | J39: =VLOOKUP(CONCATENATE("OSUPJEUNEACCEPTREGECO_"&A39),Output!$C:$AQ,6,FALSE) ->  | K39: =VLOOKUP(CONCATENATE("OSUPREGECO_"&A39),Output!$C:$AQ,6,FALSE) ->  | M39: =ROUND(VLOOKUP("OSUPJEUNEREGECO_"&A39,Output!$C:$AQ,7,FALSE)/VLOOKUP("OSUPREGECO_"&A39,Output!$C:$AQ,6,FALSE),3) ->  | O39: =ROUND(VLOOKUP("OSUPJEUNEREGECO_"&$A39,Output!$C:$AQ,12,FALSE)/VLOOKUP("OSUPREGECO_"&A39,Output!$C:$AQ,6,FALSE),3) ->  | R39: =ROUND(VLOOKUP("OSUPVIEUXTOTREGECO_"&$A39,Output!$C:$AQ,7,FALSE)/VLOOKUP("OSUPREGECO_"&A39,Output!$C:$AQ,6,FALSE),3) ->  | T39: =ROUND(VLOOKUP("OSUPVIEUXTOTREGECO_"&$A39,Output!$C:$AQ,12,FALSE)/VLOOKUP("OSUPREGECO_"&A39,Output!$C:$AQ,6,FALSE),3) ->  | W39: 0 | AA39: =Tableaux!$O$33 -> 02666 | AB39: 0
G40: =VLOOKUP(CONCATENATE("OSUPVIEUXALERTEREGECO_"&A40),Output!$C:$AQ,6,FALSE) ->  | H40: =VLOOKUP(CONCATENATE("OSUPVIEUXACCEPTREGECO_"&A40),Output!$C:$AQ,6,FALSE) ->  | I40: =VLOOKUP(CONCATENATE("OSUPJEUNEALERTEREGECO_"&A40),Output!$C:$AQ,6,FALSE) ->  | J40: =VLOOKUP(CONCATENATE("OSUPJEUNEACCEPTREGECO_"&A40),Output!$C:$AQ,6,FALSE) ->  | K40: =VLOOKUP(CONCATENATE("OSUPREGECO_"&A40),Output!$C:$AQ,6,FALSE) ->  | M40: =ROUND(VLOOKUP("OSUPJEUNEREGECO_"&A40,Output!$C:$AQ,7,FALSE)/VLOOKUP("OSUPREGECO_"&A40,Output!$C:$AQ,6,FALSE),3) ->  | O40: =ROUND(VLOOKUP("OSUPJEUNEREGECO_"&$A40,Output!$C:$AQ,12,FALSE)/VLOOKUP("OSUPREGECO_"&A40,Output!$C:$AQ,6,FALSE),3) ->  | R40: =ROUND(VLOOKUP("OSUPVIEUXTOTREGECO_"&$A40,Output!$C:$AQ,7,FALSE)/VLOOKUP("OSUPREGECO_"&A40,Output!$C:$AQ,6,FALSE),3) ->  | T40: =ROUND(VLOOKUP("OSUPVIEUXTOTREGECO_"&$A40,Output!$C:$AQ,12,FALSE)/VLOOKUP("OSUPREGECO_"&A40,Output!$C:$AQ,6,FALSE),3) ->  | W40: 0 | AA40: =Tableaux!$O$33 -> 02666 | AB40: 0
G41: =VLOOKUP(CONCATENATE("OSUPVIEUXALERTEREGECO_"&A41),Output!$C:$AQ,6,FALSE) ->  | H41: =VLOOKUP(CONCATENATE("OSUPVIEUXACCEPTREGECO_"&A41),Output!$C:$AQ,6,FALSE) ->  | I41: =VLOOKUP(CONCATENATE("OSUPJEUNEALERTEREGECO_"&A41),Output!$C:$AQ,6,FALSE) ->  | J41: =VLOOKUP(CONCATENATE("OSUPJEUNEACCEPTREGECO_"&A41),Output!$C:$AQ,6,FALSE) ->  | K41: =VLOOKUP(CONCATENATE("OSUPREGECO_"&A41),Output!$C:$AQ,6,FALSE) ->  | M41: =ROUND(VLOOKUP("OSUPJEUNEREGECO_"&A41,Output!$C:$AQ,7,FALSE)/VLOOKUP("OSUPREGECO_"&A41,Output!$C:$AQ,6,FALSE),3) ->  | O41: =ROUND(VLOOKUP("OSUPJEUNEREGECO_"&$A41,Output!$C:$AQ,12,FALSE)/VLOOKUP("OSUPREGECO_"&A41,Output!$C:$AQ,6,FALSE),3) ->  | R41: =ROUND(VLOOKUP("OSUPVIEUXTOTREGECO_"&$A41,Output!$C:$AQ,7,FALSE)/VLOOKUP("OSUPREGECO_"&A41,Output!$C:$AQ,6,FALSE),3) ->  | T41: =ROUND(VLOOKUP("OSUPVIEUXTOTREGECO_"&$A41,Output!$C:$AQ,12,FALSE)/VLOOKUP("OSUPREGECO_"&A41,Output!$C:$AQ,6,FALSE),3) ->  | W41: 0 | AA41: =Tableaux!$O$33 -> 02666 | AB41: 0
G42: =VLOOKUP(CONCATENATE("OSUPVIEUXALERTEREGECO_"&A42),Output!$C:$AQ,6,FALSE) ->  | H42: =VLOOKUP(CONCATENATE("OSUPVIEUXACCEPTREGECO_"&A42),Output!$C:$AQ,6,FALSE) ->  | I42: =VLOOKUP(CONCATENATE("OSUPJEUNEALERTEREGECO_"&A42),Output!$C:$AQ,6,FALSE) ->  | J42: =VLOOKUP(CONCATENATE("OSUPJEUNEACCEPTREGECO_"&A42),Output!$C:$AQ,6,FALSE) ->  | K42: =VLOOKUP(CONCATENATE("OSUPREGECO_"&A42),Output!$C:$AQ,6,FALSE) ->  | M42: =ROUND(VLOOKUP("OSUPJEUNEREGECO_"&A42,Output!$C:$AQ,7,FALSE)/VLOOKUP("OSUPREGECO_"&A42,Output!$C:$AQ,6,FALSE),3) ->  | O42: =ROUND(VLOOKUP("OSUPJEUNEREGECO_"&$A42,Output!$C:$AQ,12,FALSE)/VLOOKUP("OSUPREGECO_"&A42,Output!$C:$AQ,6,FALSE),3) ->  | R42: =ROUND(VLOOKUP("OSUPVIEUXTOTREGECO_"&$A42,Output!$C:$AQ,7,FALSE)/VLOOKUP("OSUPREGECO_"&A42,Output!$C:$AQ,6,FALSE),3) ->  | T42: =ROUND(VLOOKUP("OSUPVIEUXTOTREGECO_"&$A42,Output!$C:$AQ,12,FALSE)/VLOOKUP("OSUPREGECO_"&A42,Output!$C:$AQ,6,FALSE),3) ->  | W42: 0 | AA42: =Tableaux!$O$33 -> 02666 | AB42: 0

Sheet Output
C1: 1 | D1: 2 | E1: 3 | F1: 4 | G1: 5 | H1: 6 | I1: 7 | J1: 8 | K1: 9 | L1: 10 | M1: 11 | N1: 12 | O1: 13 | P1: 14 | Q1: 15 | R1: 16 | S1: 17 | T1: 18 | U1: 19 | V1: 20 | W1: 21 | X1: 22 | Y1: 23 | Z1: 24 | AA1: 25 | AB1: 26 | AC1: 27 | AD1: 28 | AE1: 29 | AF1: 30 | AG1: 31 | AH1: 32 | AI1: 33 | AJ1: 34 | AK1: 35 | AL1: 36 | AM1: 37 | AN1: 38 | AO1: 39 | AP1: 40 | AQ1: 41
A2: Record | B2: Group | C2: Name | D2: Description | E2: Attribute | F2: Minimum | G2: Maximum | H2: Period0 | I2: Period1 | J2: Period2 | K2: Period3 | L2: Period4 | M2: Period5 | N2: Period6 | O2: Period7 | P2: Period8 | Q2: Period9 | R2: Period10 | S2: Period11 | T2: Period12 | U2: Period13 | V2: Period14 | W2: Period15 | X2: Period16 | Y2: Period17 | Z2: Period18 | AA2: Period19 | AB2: Period20 | AC2: Period21 | AD2: Period22 | AE2: Period23 | AF2: Period24 | AG2: Period25 | AH2: Period26 | AI2: Period27 | AJ2: Period28 | AK2: Period29 | AL2: Period30 | AM2: Moyemme P2 à P6 | AN2: Moyenne P7 à P11 | AO2: Moyenne P12 à P20 | AP2: Moyenne P21 à P30 | AQ2: Moyenne P2 à P30
B3: <Not in Output group> | C3: OSUPTOT | D3: Superficie Totale | F3: 312137.5 | G3: 312137.5 | H3: 312137.5 | I3: 312137.5 | J3: 312137.5 | K3: 312137.5 | L3: 312137.5 | M3: 312137.5 | N3: 312137.5 | O3: 312137.5 | P3: 312137.5 | Q3: 312137.5 | R3: 312137.5 | S3: 312137.5 | T3: 312137.5 | U3: 312137.5 | V3: 312137.5 | W3: 312137.5 | X3: 312137.5 | Y3: 312137.5 | Z3: 312137.5 | AA3: 312137.5 | AB3: 312137.5 | AC3: 312137.5 | AD3: 312137.5 | AE3: 312137.5 | AF3: 312137.5 | AG3: 312137.5 | AH3: 312137.5 | AI3: 312137.5 | AJ3: 312137.5 | AK3: 312137.5 | AL3: 312137.5 | AM3: =AVERAGE(J3:N3) -> 312137.5 | AN3: =AVERAGE(O3:S3) -> 312137.5 | AO3: =AVERAGE(T3:AB3) -> 312137.5 | AP3: =AVERAGE(AC3:AL3) -> 312137.5 | AQ3: =AVERAGE(J3:AL3) -> 312137.5
B4: <Not in Output group> | C4: OSUPINC | D4: Superficie InclusActions par courbe | F4: 178316.73 | G4: 181655.9 | H4: 181655.9 | I4: 181154.51 | J4: 180830 | K4: 180478.99 | L4: 180121.34 | M4: 179863.37 | N4: 179717 | O4: 179286.11 | P4: 179022.06 | Q4: 178870.25 | R4: 178820 | S4: 178754.07 | T4: 178541.01 | U4: 178391.01 | V4: 178356.3 | W4: 178343.36 | X4: 178343.09 | Y4: 178340.13 | Z4: 178334.72 | AA4: 178332.4 | AB4: 178329.78 | AC4: 178329.1 | AD4: 178329.1 | AE4: 178324.39 | AF4: 178318.38 | AG4: 178317.71 | AH4: 178316.73 | AI4: 178316.73 | AJ4: 178316.73 | AK4: 178316.73 | AL4: 178316.73 | AM4: =AVERAGE(J4:N4) -> 180202.14 | AN4: =AVERAGE(O4:S4) -> 178950.498 | AO4: =AVERAGE(T4:AB4) -> 178367.9778 | AP4: =AVERAGE(AC4:AL4) -> 178320.233 | AQ4: =AVERAGE(J4:AL4) -> 178768.1834
B5: <Not in Output group> | C5: OSUPregECO | D5: Superficie Disponible aux RÚsultats ╔cologiques | F5: 204735.53 | G5: 208074.7 | H5: 208074.7 | I5: 207573.31 | J5: 207248.8 | K5: 206897.79 | L5: 206540.14 | M5: 206282.17 | N5: 206135.8 | O5: 205704.91 | P5: 205440.86 | Q5: 205289.05 | R5: 205238.8 | S5: 205172.87 | T5: 204959.81 | U5: 204809.81 | V5: 204775.1 | W5: 204762.16 | X5: 204761.89 | Y5: 204758.93 | Z5: 204753.52 | AA5: 204751.2 | AB5: 204748.58 | AC5: 204747.9 | AD5: 204747.9 | AE5: 204743.19 | AF5: 204737.18 | AG5: 204736.51 | AH5: 204735.53 | AI5: 204735.53 | AJ5: 204735.53 | AK5: 204735.53 | AL5: 204735.53 | AM5: 206620.94 | AN5: 205369.298 | AO5: 204786.7778 | AP5: 204739.033 | AQ5: 205186.9834
B6: <Not in Output group> | C6: OSUPEXIN | D6: Superficie ExcluActionsInclus | F6: 26418.8 | G6: 26418.8 | H6: 26418.8 | I6: 26418.8 | J6: 26418.8 | K6: 26418.8 | L6: 26418.8 | M6: 26418.8 | N6: 26418.8 | O6: 26418.8 | P6: 26418.8 | Q6: 26418.8 | R6: 26418.8 | S6: 26418.8 | T6: 26418.8 | U6: 26418.8 | V6: 26418.8 | W6: 26418.8 | X6: 26418.8 | Y6: 26418.8 | Z6: 26418.8 | AA6: 26418.8 | AB6: 26418.8 | AC6: 26418.8 | AD6: 26418.8 | AE6: 26418.8 | AF6: 26418.8 | AG6: 26418.8 | AH6: 26418.8 | AI6: 26418.8 | AJ6: 26418.8 | AK6: 26418.8 | AL6: 26418.8 | AM6: 26418.8 | AN6: 26418.8 | AO6: 26418.8 | AP6: 26418.8 | AQ6: 26418.8
B7: <Not in Output group> | C7: OSUPEXTI | D7: Superficie Improductive | F7: 43486.9 | G7: 43486.9 | H7: 43486.9 | I7: 43486.9 | J7: 43486.9 | K7: 43486.9 | L7: 43486.9 | M7: 43486.9 | N7: 43486.9 | O7: 43486.9 | P7: 43486.9 | Q7: 43486.9 | R7: 43486.9 | S7: 43486.9 | T7: 43486.9 | U7: 43486.9 | V7: 43486.9 | W7: 43486.9 | X7: 43486.9 | Y7: 43486.9 | Z7: 43486.9 | AA7: 43486.9 | AB7: 43486.9 | AC7: 43486.9 | AD7: 43486.9 | AE7: 43486.9 | AF7: 43486.9 | AG7: 43486.9 | AH7: 43486.9 | AI7: 43486.9 | AJ7: 43486.9 | AK7: 43486.9 | AL7: 43486.9 | AM7: 43486.9 | AN7: 43486.9 | AO7: 43486.9 | AP7: 43486.9 | AQ7: 43486.9
B8: <Not in Output group> | C8: OSUPLOCK | D8: Superficie Sous Verrous | F8: 2164.82 | G8: 31084.2 | H8: 31084.2 | I8: 31084.2 | J8: 27725.64 | K8: 24177.62 | L8: 19817.67 | M8: 11844.76 | N8: 12278.31 | O8: 10247.86 | P8: 9894.37 | Q8: 3930.02 | R8: 3483.42 | S8: 3277.58 | T8: 3092.28 | U8: 2781.51 | V8: 2533.38 | W8: 2323.92 | X8: 2448.5 | Y8: 2490.32 | Z8: 2350.67 | AA8: 2268.32 | AB8: 2349.11 | AC8: 2291.39 | AD8: 2209.32 | AE8: 2164.82 | AF8: 2255.99 | AG8: 2295.62 | AH8: 2231.84 | AI8: 2225.82 | AJ8: 2366.49 | AK8: 2547.47 | AL8: 2738.74 | AM8: 19168.8 | AN8: 6166.65 | AO8: 2515.334444 | AP8: 2332.75 | AQ8: 5953.198621
B9: Economique | C9: oSupTcsdDEG_1_T100% | D9: oSupTcsdDEG_1_T100% | F9: 0 | G9: 158 | H9: 0 | I9: 32.8 | J9: 143 | K9: 143 | L9: 143 | M9: 143 | N9: 143 | O9: 108.35 | P9: 158 | Q9: 130.42 | R9: 138.11 | S9: 91.74 | T9: 137.21 | U9: 146.9 | V9: 145.66 | W9: 59.19 | X9: 77.69 | Y9: 149 | Z9: 158 | AA9: 137 | AB9: 64.85 | AC9: 93 | AD9: 89.93 | AE9: 135.45 | AF9: 123.11 | AG9: 76.74 | AH9: 137.21 | AI9: 92.11 | AJ9: 157.66 | AK9: 102.59 | AL9: 113.3 | AM9: 143 | AN9: 125.324 | AO9: 119.5 | AP9: 112.11 | AQ9: 122.0075862
B10: Economique | C10: oSupTcsdDEG_2_T100% | D10: oSupTcsdDEG_2_T100% | F10: 0 | G10: 65.89 | H10: 0 | I10: 0 | J10: 0 | K10: 0 | L10: 0 | M10: 0 | N10: 0 | O10: 0 | P10: 0 | Q10: 0 | R10: 0 | S10: 0 | T10: 0 | U10: 0 | V10: 0 | W10: 0 | X10: 0 | Y10: 0 | Z10: 0 | AA10: 0 | AB10: 0 | AC10: 0 | AD10: 0 | AE10: 0 | AF10: 0 | AG10: 0 | AH10: 0 | AI10: 65.89 | AJ10: 0.34 | AK10: 40.41 | AL10: 44.7 | AM10: 0 | AN10: 0 | AO10: 0 | AP10: 15.134 | AQ10: 5.21862069
B11: Economique | C11: oSupDEG_1_T100% | D11: oSupDEG_1_T100% | F11: 0 | G11: 158 | H11: 0 | I11: 32.8 | J11: 143 | K11: 143 | L11: 143 | M11: 143 | N11: 143 | O11: 108.35 | P11: 158 | Q11: 130.42 | R11: 138.11 | S11: 91.74 | T11: 137.21 | U11: 146.9 | V11: 145.66 | W11: 59.19 | X11: 77.69 | Y11: 149 | Z11: 158 | AA11: 137 | AB11: 64.85 | AC11: 93 | AD11: 89.93 | AE11: 135.45 | AF11: 123.11 | AG11: 76.74 | AH11: 137.21 | AI11: 92.11 | AJ11: 157.66 | AK11: 102.59 | AL11: 113.3 | AM11: 143 | AN11: 125.324 | AO11: 119.5 | AP11: 112.11 | AQ11: 122.0075862
B12: Economique | C12: oSupDEG_2_T100% | D12: oSupDEG_2_T100% | F12: 0 | G12: 65.89 | H12: 0 | I12: 0 | J12: 0 | K12: 0 | L12: 0 | M12: 0 | N12: 0 | O12: 0 | P12: 0 | Q12: 0 | R12: 0 | S12: 0 | T12: 0 | U12: 0 | V12: 0 | W12: 0 | X12: 0 | Y12: 0 | Z12: 0 | AA12: 0 | AB12: 0 | AC12: 0 | AD12: 0 | AE12: 0 | AF12: 0 | AG12: 0 | AH12: 0 | AI12: 65.89 | AJ12: 0.34 | AK12: 40.41 | AL12: 44.7 | AM12: 0 | AN12: 0 | AO12: 0 | AP12: 15.134 | AQ12: 5.21862069
B13: Economique | C13: oSupDEG_1 | D13: oSupDEG_1 | F13: 0 | G13: 158 | H13: 0 | I13: 32.8 | J13: 143 | K13: 143 | L13: 143 | M13: 143 | N13: 143 | O13: 108.35 | P13: 158 | Q13: 130.42 | R13: 138.11 | S13: 91.74 | T13: 137.21 | U13: 146.9 | V13: 145.66 | W13: 59.19 | X13: 77.69 | Y13: 149 | Z13: 158 | AA13: 137 | AB13: 64.85 | AC13: 93 | AD13: 89.93 | AE13: 135.45 | AF13: 123.11 | AG13: 76.74 | AH13: 137.21 | AI13: 92.11 | AJ13: 157.66 | AK13: 102.59 | AL13: 113.3 | AM13: 143 | AN13: 125.324 | AO13: 119.5 | AP13: 112.11 | AQ13: 122.0075862
B14: Economique | C14: oSupDEG_2 | D14: oSupDEG_2 | F14: 0 | G14: 65.89 | H14: 0 | I14: 0 | J14: 0 | K14: 0 | L14: 0 | M14: 0 | N14: 0 | O14: 0 | P14: 0 | Q14: 0 | R14: 0 | S14: 0 | T14: 0 | U14: 0 | V14: 0 | W14: 0 | X14: 0 | Y14: 0 | Z14: 0 | AA14: 0 | AB14: 0 | AC14: 0 | AD14: 0 | AE14: 0 | AF14: 0 | AG14: 0 | AH14: 0 | AI14: 65.89 | AJ14: 0.34 | AK14: 40.41 | AL14: 44.7 | AM14: 0 | AN14: 0 | AO14: 0 | AP14: 15.134 | AQ14: 5.21862069
B15: Economique | C15: oSupTcsdSCA_LRD_T100% | D15: oSupTcsdSCA_LRD_T100% | F15: 0 | G15: 0 | H15: 0 | I15: 0 | J15: 0 | K15: 0 | L15: 0 | M15: 0 | N15: 0 | O15: 0 | P15: 0 | Q15: 0 | R15: 0 | S15: 0 | T15: 0 | U15: 0 | V15: 0 | W15: 0 | X15: 0 | Y15: 0 | Z15: 0 | AA15: 0 | AB15: 0 | AC15: 0 | AD15: 0 | AE15: 0 | AF15: 0 | AG15: 0 | AH15: 0 | AI15: 0 | AJ15: 0 | AK15: 0 | AL15: 0 | AM15: 0 | AN15: 0 | AO15: 0 | AP15: 0 | AQ15: 0
B16: Economique | C16: oSupTcsdSCA_PART_T100% | D16: oSupTcsdSCA_PART_T100% | F16: 0 | G16: 397.88 | H16: 0 | I16: 0 | J16: 302.27 | K16: 285 | L16: 285 | M16: 285 | N16: 285 | O16: 285 | P16: 285 | Q16: 118.53 | R16: 104.9 | S16: 169.26 | T16: 189.85 | U16: 122.19 | V16: 148.11 | W16: 165.22 | X16: 175.49 | Y16: 119.25 | Z16: 99.44 | AA16: 147.6 | AB16: 167.19 | AC16: 119.25 | AD16: 124.19 | AE16: 148.24 | AF16: 164.83 | AG16: 119.25 | AH16: 120.48 | AI16: 383.81 | AJ16: 190.71 | AK16: 344.36 | AL16: 397.88 | AM16: 288.454 | AN16: 192.538 | AO16: 148.26 | AP16: 211.3 | AQ16: 201.8034483
B17: Economique | C17: oSupTcsdSCA_REG_T100% | D17: oSupTcsdSCA_REG_T100% | F17: 0 | G17: 4177.72 | H17: 0 | I17: 4177.72 | J17: 2915.07 | K17: 2821.17 | L17: 2852.47 | M17: 2835.43 | N17: 2835.43 | O17: 2837.23 | P17: 2839.12 | Q17: 2940 | R17: 2940 | S17: 2940 | T17: 2940 | U17: 2940 | V17: 2940 | W17: 2940 | X17: 2940 | Y17: 2940 | Z17: 2940 | AA17: 2940 | AB17: 2940 | AC17: 2940 | AD17: 2940 | AE17: 2940 | AF17: 2940 | AG17: 2940 | AH17: 2940 | AI17: 2720.37 | AJ17: 2818.24 | AK17: 2739.32 | AL17: 2691.97 | AM17: 2851.914 | AN17: 2899.27 | AO17: 2940 | AP17: 2860.99 | AQ17: 2890.545517
B18: Economique | C18: oSupSCA_LRD_T100% | D18: oSupSCA_LRD_T100% | F18: 0 | G18: 0 | H18: 0 | I18: 0 | J18: 0 | K18: 0 | L18: 0 | M18: 0 | N18: 0 | O18: 0 | P18: 0 | Q18: 0 | R18: 0 | S18: 0 | T18: 0 | U18: 0 | V18: 0 | W18: 0 | X18: 0 | Y18: 0 | Z18: 0 | AA18: 0 | AB18: 0 | AC18: 0 | AD18: 0 | AE18: 0 | AF18: 0 | AG18: 0 | AH18: 0 | AI18: 0 | AJ18: 0 | AK18: 0 | AL18: 0 | AM18: 0 | AN18: 0 | AO18: 0 | AP18: 0 | AQ18: 0
B19: Economique | C19: oSupSCA_PART_T100% | D19: oSupSCA_PART_T100% | F19: 0 | G19: 397.88 | H19: 0 | I19: 0 | J19: 302.27 | K19: 285 | L19: 285 | M19: 285 | N19: 285 | O19: 285 | P19: 285 | Q19: 118.53 | R19: 104.9 | S19: 169.26 | T19: 189.85 | U19: 122.19 | V19: 148.11 | W19: 165.22 | X19: 175.49 | Y19: 119.25 | Z19: 99.44 | AA19: 147.6 | AB19: 167.19 | AC19: 119.25 | AD19: 124.19 | AE19: 148.24 | AF19: 164.83 | AG19: 119.25 | AH19: 120.48 | AI19: 383.81 | AJ19: 190.71 | AK19: 344.36 | AL19: 397.88 | AM19: 288.454 | AN19: 192.538 | AO19: 148.26 | AP19: 211.3 | AQ19: 201.8034483
B20: Economique | C20: oSupSCA_REG_T100% | D20: oSupSCA_REG_T100% | F20: 0 | G20: 4177.72 | H20: 0 | I20: 4177.72 | J20: 2915.07 | K20: 2821.17 | L20: 2852.47 | M20: 2835.43 | N20: 2835.43 | O20: 2837.23 | P20: 2839.12 | Q20: 2940 | R20: 2940 | S20: 2940 | T20: 2940 | U20: 2940 | V20: 2940 | W20: 2940 | X20: 2940 | Y20: 2940 | Z20: 2940 | AA20: 2940 | AB20: 2940 | AC20: 2940 | AD20: 2940 | AE20: 2940 | AF20: 2940 | AG20: 2940 | AH20: 2940 | AI20: 2720.37 | AJ20: 2818.24 | AK20: 2739.32 | AL20: 2691.97 | AM20: 2851.914 | AN20: 2899.27 | AO20: 2940 | AP20: 2860.99 | AQ20: 2890.545517
B21: Economique | C21: oSupSCA_LRD | D21: oSupSCA_LRD | F21: 0 | G21: 0 | H21: 0 | I21: 0 | J21: 0 | K21: 0 | L21: 0 | M21: 0 | N21: 0 | O21: 0 | P21: 0 | Q21: 0 | R21: 0 | S21: 0 | T21: 0 | U21: 0 | V21: 0 | W21: 0 | X21: 0 | Y21: 0 | Z21: 0 | AA21: 0 | AB21: 0 | AC21: 0 | AD21: 0 | AE21: 0 | AF21: 0 | AG21: 0 | AH21: 0 | AI21: 0 | AJ21: 0 | AK21: 0 | AL21: 0 | AM21: 0 | AN21: 0 | AO21: 0 | AP21: 0 | AQ21: 0
B22: Economique | C22: oSupSCA_PART | D22: oSupSCA_PART | F22: 0 | G22: 397.88 | H22: 0 | I22: 0 | J22: 302.27 | K22: 285 | L22: 285 | M22: 285 | N22: 285 | O22: 285 | P22: 285 | Q22: 118.53 | R22: 104.9 | S22: 169.26 | T22: 189.85 | U22: 122.19 | V22: 148.11 | W22: 165.22 | X22: 175.49 | Y22: 119.25 | Z22: 99.44 | AA22: 147.6 | AB22: 167.19 | AC22: 119.25 | AD22: 124.19 | AE22: 148.24 | AF22: 164.83 | AG22: 119.25 | AH22: 120.48 | AI22: 383.81 | AJ22: 190.71 | AK22: 344.36 | AL22: 397.88 | AM22: 288.454 | AN22: 192.538 | AO22: 148.26 | AP22: 211.3 | AQ22: 201.8034483
B23: Economique | C23: oSupSCA_REG | D23: oSupSCA_REG | F23: 0 | G23: 4177.72 | H23: 0 | I23: 4177.72 | J23: 2915.07 | K23: 2821.17 | L23: 2852.47 | M23: 2835.43 | N23: 2835.43 | O23: 2837.23 | P23: 2839.12 | Q23: 2940 | R23: 2940 | S23: 2940 | T23: 2940 | U23: 2940 | V23: 2940 | W23: 2940 | X23: 2940 | Y23: 2940 | Z23: 2940 | AA23: 2940 | AB23: 2940 | AC23: 2940 | AD23: 2940 | AE23: 2940 | AF23: 2940 | AG23: 2940 | AH23: 2940 | AI23: 2720.37 | AJ23: 2818.24 | AK23: 2739.32 | AL23: 2691.97 | AM23: 2851.914 | AN23: 2899.27 | AO23: 2940 | AP23: 2860.99 | AQ23: 2890.545517
B24: Economique | C24: oSupActREG_T100% | D24: oSupActREG_T100% | F24: 0 | G24: 219.63 | H24: 0 | I24: 0 | J24: 0 | K24: 0 | L24: 0 | M24: 0 | N24: 0 | O24: 0 | P24: 0 | Q24: 0 | R24: 0 | S24: 0 | T24: 0 | U24: 0 | V24: 0 | W24: 0 | X24: 0 | Y24: 0 | Z24: 0 | AA24: 0 | AB24: 0 | AC24: 0 | AD24: 0 | AE24: 0 | AF24: 0 | AG24: 0 | AH24: 0 | AI24: 219.63 | AJ24: 1.13 | AK24: 134.69 | AL24: 149 | AM24: 0 | AN24: 0 | AO24: 0 | AP24: 50.445 | AQ24: 17.39482759
B25: Economique | C25: oSupREG_T100% | D25: oSupREG_T100% | F25: 0 | G25: 219.63 | H25: 0 | I25: 0 | J25: 0 | K25: 0 | L25: 0 | M25: 0 | N25: 0 | O25: 0 | P25: 0 | Q25: 0 | R25: 0 | S25: 0 | T25: 0 | U25: 0 | V25: 0 | W25: 0 | X25: 0 | Y25: 0 | Z25: 0 | AA25: 0 | AB25: 0 | AC25: 0 | AD25: 0 | AE25: 0 | AF25: 0 | AG25: 0 | AH25: 0 | AI25: 219.63 | AJ25: 1.13 | AK25: 134.69 | AL25: 149 | AM25: 0 | AN25: 0 | AO25: 0 | AP25: 50.445 | AQ25: 17.39482759
B26: Economique | C26: oSupREG | D26: oSupREG | F26: 0 | G26: 219.63 | H26: 0 | I26: 0 | J26: 0 | K26: 0 | L26: 0 | M26: 0 | N26: 0 | O26: 0 | P26: 0 | Q26: 0 | R26: 0 | S26: 0 | T26: 0 | U26: 0 | V26: 0 | W26: 0 | X26: 0 | Y26: 0 | Z26: 0 | AA26: 0 | AB26: 0 | AC26: 0 | AD26: 0 | AE26: 0 | AF26: 0 | AG26: 0 | AH26: 0 | AI26: 219.63 | AJ26: 1.13 | AK26: 134.69 | AL26: 149 | AM26: 0 | AN26: 0 | AO26: 0 | AP26: 50.445 | AQ26: 17.39482759
B27: Economique | C27: oSupActCPIRL_FIN_T100% | D27: oSupActCPIRL_FIN_T100% | F27: 0 | G27: 431.13 | H27: 0 | I27: 0 | J27: 0 | K27: 0 | L27: 0 | M27: 0 | N27: 0 | O27: 0 | P27: 0 | Q27: 392.94 | R27: 420.2 | S27: 291.48 | T27: 250.3 | U27: 385.62 | V27: 333.78 | W27: 299.56 | X27: 279.03 | Y27: 391.5 | Z27: 431.13 | AA27: 334.8 | AB27: 295.62 | AC27: 391.5 | AD27: 381.63 | AE27: 333.53 | AF27: 300.33 | AG27: 391.5 | AH27: 389.04 | AI27: 301.64 | AJ27: 250.83 | AK27: 210.65 | AL27: 132.25 | AM27: 0 | AN27: 220.924 | AO27: 333.4822222 | AP27: 308.29 | AQ27: 247.8917241
B28: Economique | C28: oSupActCPIRL_INI_T100% | D28: oSupActCPIRL_INI_T100% | F28: 0 | G28: 604.55 | H28: 0 | I28: 0 | J28: 604.55 | K28: 570 | L28: 570 | M28: 570 | N28: 570 | O28: 570 | P28: 570 | Q28: 237.06 | R28: 209.8 | S28: 338.52 | T28: 379.7 | U28: 244.38 | V28: 296.22 | W28: 330.44 | X28: 350.97 | Y28: 238.5 | Z28: 198.87 | AA28: 295.2 | AB28: 334.38 | AC28: 238.5 | AD28: 248.37 | AE28: 296.47 | AF28: 329.67 | AG28: 238.5 | AH28: 240.96 | AI28: 328.36 | AJ28: 379.17 | AK28: 419.35 | AL28: 497.75 | AM28: 576.91 | AN28: 385.076 | AO28: 296.5177778 | AP28: 321.71 | AQ28: 368.8168966
B29: Economique | C29: oSupCPIRL_FIN_T100% | D29: oSupCPIRL_FIN_T100% | F29: 0 | G29: 431.13 | H29: 0 | I29: 0 | J29: 0 | K29: 0 | L29: 0 | M29: 0 | N29: 0 | O29: 0 | P29: 0 | Q29: 392.94 | R29: 420.2 | S29: 291.48 | T29: 250.3 | U29: 385.62 | V29: 333.78 | W29: 299.56 | X29: 279.03 | Y29: 391.5 | Z29: 431.13 | AA29: 334.8 | AB29: 295.62 | AC29: 391.5 | AD29: 381.63 | AE29: 333.53 | AF29: 300.33 | AG29: 391.5 | AH29: 389.04 | AI29: 301.64 | AJ29: 250.83 | AK29: 210.65 | AL29: 132.25 | AM29: 0 | AN29: 220.924 | AO29: 333.4822222 | AP29: 308.29 | AQ29: 247.8917241
B30: Economique | C30: oSupCPIRL_INI_T100% | D30: oSupCPIRL_INI_T100% | F30: 0 | G30: 604.55 | H30: 0 | I30: 0 | J30: 604.55 | K30: 570 | L30: 570 | M30: 570 | N30: 570 | O30: 570 | P30: 570 | Q30: 237.06 | R30: 209.8 | S30: 338.52 | T30: 379.7 | U30: 244.38 | V30: 296.22 | W30: 330.44 | X30: 350.97 | Y30: 238.5 | Z30: 198.87 | AA30: 295.2 | AB30: 334.38 | AC30: 238.5 | AD30: 248.37 | AE30: 296.47 | AF30: 329.67 | AG30: 238.5 | AH30: 240.96 | AI30: 328.36 | AJ30: 379.17 | AK30: 419.35 | AL30: 497.75 | AM30: 576.91 | AN30: 385.076 | AO30: 296.5177778 | AP30: 321.71 | AQ30: 368.8168966
B31: Economique | C31: oSupCPIRL_FIN | D31: oSupCPIRL_FIN | F31: 0 | G31: 431.13 | H31: 0 | I31: 0 | J31: 0 | K31: 0 | L31: 0 | M31: 0 | N31: 0 | O31: 0 | P31: 0 | Q31: 392.94 | R31: 420.2 | S31: 291.48 | T31: 250.3 | U31: 385.62 | V31: 333.78 | W31: 299.56 | X31: 279.03 | Y31: 391.5 | Z31: 431.13 | AA31: 334.8 | AB31: 295.62 | AC31: 391.5 | AD31: 381.63 | AE31: 333.53 | AF31: 300.33 | AG31: 391.5 | AH31: 389.04 | AI31: 301.64 | AJ31: 250.83 | AK31: 210.65 | AL31: 132.25 | AM31: 0 | AN31: 220.924 | AO31: 333.4822222 | AP31: 308.29 | AQ31: 247.8917241
B32: Economique | C32: oSupCPIRL_INI | D32: oSupCPIRL_INI | F32: 0 | G32: 604.55 | H32: 0 | I32: 0 | J32: 604.55 | K32: 570 | L32: 570 | M32: 570 | N32: 570 | O32: 570 | P32: 570 | Q32: 237.06 | R32: 209.8 | S32: 338.52 | T32: 379.7 | U32: 244.38 | V32: 296.22 | W32: 330.44 | X32: 350.97 | Y32: 238.5 | Z32: 198.87 | AA32: 295.2 | AB32: 334.38 | AC32: 238.5 | AD32: 248.37 | AE32: 296.47 | AF32: 329.67 | AG32: 238.5 | AH32: 240.96 | AI32: 328.36 | AJ32: 379.17 | AK32: 419.35 | AL32: 497.75 | AM32: 576.91 | AN32: 385.076 | AO32: 296.5177778 | AP32: 321.71 | AQ32: 368.8168966
B33: Economique | C33: oSupActCT_T100% | D33: oSupActCT_T100% | F33: 0 | G33: 11436.6 | H33: 0 | I33: 11142 | J33: 6606.68 | K33: 7357.28 | L33: 8154.13 | M33: 6311.99 | N33: 6493.41 | O33: 10358.07 | P33: 9643.48 | Q33: 8625.03 | R33: 8044.16 | S33: 8984.8 | T33: 10028.67 | U33: 9951.09 | V33: 8281.97 | W33: 8462.47 | X33: 8633.67 | Y33: 7480.97 | Z33: 8400.83 | AA33: 8393.61 | AB33: 9567 | AC33: 9596.04 | AD33: 10247.01 | AE33: 10988.3 | AF33: 10105.15 | AG33: 9654.46 | AH33: 9974.55 | AI33: 9652.45 | AJ33: 11436.6 | AK33: 9997.91 | AL33: 9217.38 | AM33: 6984.698 | AN33: 9131.108 | AO33: 8800.031111 | AP33: 10086.985 | AQ33: 8987.902069
B34: Economique | C34: oSupCT_T100% | D34: oSupCT_T100% | F34: 0 | G34: 11436.6 | H34: 0 | I34: 11142 | J34: 6606.68 | K34: 7357.28 | L34: 8154.13 | M34: 6311.99 | N34: 6493.41 | O34: 10358.07 | P34: 9643.48 | Q34: 8625.03 | R34: 8044.16 | S34: 8984.8 | T34: 10028.67 | U34: 9951.09 | V34: 8281.97 | W34: 8462.47 | X34: 8633.67 | Y34: 7480.97 | Z34: 8400.83 | AA34: 8393.61 | AB34: 9567 | AC34: 9596.04 | AD34: 10247.01 | AE34: 10988.3 | AF34: 10105.15 | AG34: 9654.46 | AH34: 9974.55 | AI34: 9652.45 | AJ34: 11436.6 | AK34: 9997.91 | AL34: 9217.38 | AM34: 6984.698 | AN34: 9131.108 | AO34: 8800.031111 | AP34: 10086.985 | AQ34: 8987.902069
B35: Economique | C35: oSupCT | D35: oSupCT | F35: 0 | G35: 11436.6 | H35: 0 | I35: 11142 | J35: 6606.68 | K35: 7357.28 | L35: 8154.13 | M35: 6311.99 | N35: 6493.41 | O35: 10358.07 | P35: 9643.48 | Q35: 8625.03 | R35: 8044.16 | S35: 8984.8 | T35: 10028.67 | U35: 9951.09 | V35: 8281.97 | W35: 8462.47 | X35: 8633.67 | Y35: 7480.97 | Z35: 8400.83 | AA35: 8393.61 | AB35: 9567 | AC35: 9596.04 | AD35: 10247.01 | AE35: 10988.3 | AF35: 10105.15 | AG35: 9654.46 | AH35: 9974.55 | AI35: 9652.45 | AJ35: 11436.6 | AK35: 9997.91 | AL35: 9217.38 | AM35: 6984.698 | AN35: 9131.108 | AO35: 8800.031111 | AP35: 10086.985 | AQ35: 8987.902069
B36: Economique | C36: oSupActPL_SEPM_E_T100% | D36: oSupActPL_SEPM_E_T100% | F36: 0 | G36: 4102.46 | H36: 0 | I36: 4102.46 | J36: 2869.88 | K36: 2646.61 | L36: 2852.47 | M36: 2740.43 | N36: 2740.43 | O36: 2732.23 | P36: 2839.12 | Q36: 2733.2 | R36: 2672.23 | S36: 2940 | T36: 2883.14 | U36: 2445.59 | V36: 2653.06 | W36: 2805 | X36: 2835 | Y36: 2530.07 | Z36: 2413.33 | AA36: 2631.83 | AB36: 2658.09 | AC36: 2493.17 | AD36: 2460.6 | AE36: 2715.93 | AF36: 2729.89 | AG36: 2615.5 | AH36: 2412.37 | AI36: 2413.33 | AJ36: 2364.56 | AK36: 2413.52 | AL36: 2420.67 | AM36: 2769.964 | AN36: 2783.356 | AO36: 2650.567778 | AP36: 2503.954 | AQ36: 2643.491379
B37: Economique | C37: oSupActPL_SEPM_I_T100% | D37: oSupActPL_SEPM_I_T100% | F37: 0 | G37: 527.63 | H37: 0 | I37: 75.25 | J37: 45.19 | K37: 174.56 | L37: 0 | M37: 95 | N37: 95 | O37: 105 | P37: 0 | Q37: 206.8 | R37: 267.77 | S37: 0 | T37: 56.86 | U37: 494.41 | V37: 286.94 | W37: 135 | X37: 105 | Y37: 409.93 | Z37: 526.67 | AA37: 308.17 | AB37: 281.91 | AC37: 446.83 | AD37: 479.4 | AE37: 224.07 | AF37: 210.11 | AG37: 324.5 | AH37: 527.63 | AI37: 307.04 | AJ37: 453.68 | AK37: 325.8 | AL37: 271.3 | AM37: 81.95 | AN37: 115.914 | AO37: 289.4322222 | AP37: 357.036 | AQ37: 247.0541379
B38: Economique | C38: oSupPL_SEPM_E_T100% | D38: oSupPL_SEPM_E_T100% | F38: 0 | G38: 4102.46 | H38: 0 | I38: 4102.46 | J38: 2869.88 | K38: 2646.61 | L38: 2852.47 | M38: 2740.43 | N38: 2740.43 | O38: 2732.23 | P38: 2839.12 | Q38: 2733.2 | R38: 2672.23 | S38: 2940 | T38: 2883.14 | U38: 2445.59 | V38: 2653.06 | W38: 2805 | X38: 2835 | Y38: 2530.07 | Z38: 2413.33 | AA38: 2631.83 | AB38: 2658.09 | AC38: 2493.17 | AD38: 2460.6 | AE38: 2715.93 | AF38: 2729.89 | AG38: 2615.5 | AH38: 2412.37 | AI38: 2413.33 | AJ38: 2364.56 | AK38: 2413.52 | AL38: 2420.67 | AM38: 2769.964 | AN38: 2783.356 | AO38: 2650.567778 | AP38: 2503.954 | AQ38: 2643.491379
B39: Economique | C39: oSupPL_SEPM_I_T100% | D39: oSupPL_SEPM_I_T100% | F39: 0 | G39: 527.63 | H39: 0 | I39: 75.25 | J39: 45.19 | K39: 174.56 | L39: 0 | M39: 95 | N39: 95 | O39: 105 | P39: 0 | Q39: 206.8 | R39: 267.77 | S39: 0 | T39: 56.86 | U39: 494.41 | V39: 286.94 | W39: 135 | X39: 105 | Y39: 409.93 | Z39: 526.67 | AA39: 308.17 | AB39: 281.91 | AC39: 446.83 | AD39: 479.4 | AE39: 224.07 | AF39: 210.11 | AG39: 324.5 | AH39: 527.63 | AI39: 307.04 | AJ39: 453.68 | AK39: 325.8 | AL39: 271.3 | AM39: 81.95 | AN39: 115.914 | AO39: 289.4322222 | AP39: 357.036 | AQ39: 247.0541379
B40: Economique | C40: oSupPL_SEPM_E | D40: oSupPL_SEPM_E | F40: 0 | G40: 4102.46 | H40: 0 | I40: 4102.46 | J40: 2869.88 | K40: 2646.61 | L40: 2852.47 | M40: 2740.43 | N40: 2740.43 | O40: 2732.23 | P40: 2839.12 | Q40: 2733.2 | R40: 2672.23 | S40: 2940 | T40: 2883.14 | U40: 2445.59 | V40: 2653.06 | W40: 2805 | X40: 2835 | Y40: 2530.07 | Z40: 2413.33 | AA40: 2631.83 | AB40: 2658.09 | AC40: 2493.17 | AD40: 2460.6 | AE40: 2715.93 | AF40: 2729.89 | AG40: 2615.5 | AH40: 2412.37 | AI40: 2413.33 | AJ40: 2364.56 | AK40: 2413.52 | AL40: 2420.67 | AM40: 2769.964 | AN40: 2783.356 | AO40: 2650.567778 | AP40: 2503.954 | AQ40: 2643.491379
B41: Economique | C41: oSupPL_SEPM_I | D41: oSupPL_SEPM_I | F41: 0 | G41: 527.63 | H41: 0 | I41: 75.25 | J41: 45.19 | K41: 174.56 | L41: 0 | M41: 95 | N41: 95 | O41: 105 | P41: 0 | Q41: 206.8 | R41: 267.77 | S41: 0 | T41: 56.86 | U41: 494.41 | V41: 286.94 | W41: 135 | X41: 105 | Y41: 409.93 | Z41: 526.67 | AA41: 308.17 | AB41: 281.91 | AC41: 446.83 | AD41: 479.4 | AE41: 224.07 | AF41: 210.11 | AG41: 324.5 | AH41: 527.63 | AI41: 307.04 | AJ41: 453.68 | AK41: 325.8 | AL41: 271.3 | AM41: 81.95 | AN41: 115.914 | AO41: 289.4322222 | AP41: 357.036 | AQ41: 247.0541379
B42: Economique | C42: oSupActEPC_1_T100% | D42: oSupActEPC_1_T100% | F42: 0 | G42: 0 | H42: 0 | I42: 0 | J42: 0 | K42: 0 | L42: 0 | M42: 0 | N42: 0 | O42: 0 | P42: 0 | Q42: 0 | R42: 0 | S42: 0 | T42: 0 | U42: 0 | V42: 0 | W42: 0 | X42: 0 | Y42: 0 | Z42: 0 | AA42: 0 | AB42: 0 | AC42: 0 | AD42: 0 | AE42: 0 | AF42: 0 | AG42: 0 | AH42: 0 | AI42: 0 | AJ42: 0 | AK42: 0 | AL42: 0 | AM42: 0 | AN42: 0 | AO42: 0 | AP42: 0 | AQ42: 0
B43: Economique | C43: oSupEPC_1_T100% | D43: oSupEPC_1_T100% | F43: 0 | G43: 0 | H43: 0 | I43: 0 | J43: 0 | K43: 0 | L43: 0 | M43: 0 | N43: 0 | O43: 0 | P43: 0 | Q43: 0 | R43: 0 | S43: 0 | T43: 0 | U43: 0 | V43: 0 | W43: 0 | X43: 0 | Y43: 0 | Z43: 0 | AA43: 0 | AB43: 0 | AC43: 0 | AD43: 0 | AE43: 0 | AF43: 0 | AG43: 0 | AH43: 0 | AI43: 0 | AJ43: 0 | AK43: 0 | AL43: 0 | AM43: 0 | AN43: 0 | AO43: 0 | AP43: 0 | AQ43: 0
B44: Economique | C44: oSupEPC_1 | D44: oSupEPC_1 | F44: 0 | G44: 0 | H44: 0 | I44: 0 | J44: 0 | K44: 0 | L44: 0 | M44: 0 | N44: 0 | O44: 0 | P44: 0 | Q44: 0 | R44: 0 | S44: 0 | T44: 0 | U44: 0 | V44: 0 | W44: 0 | X44: 0 | Y44: 0 | Z44: 0 | AA44: 0 | AB44: 0 | AC44: 0 | AD44: 0 | AE44: 0 | AF44: 0 | AG44: 0 | AH44: 0 | AI44: 0 | AJ44: 0 | AK44: 0 | AL44: 0 | AM44: 0 | AN44: 0 | AO44: 0 | AP44: 0 | AQ44: 0
B45: Economique | C45: oSupActEC_SEPM_T100% | D45: oSupActEC_SEPM_T100% | F45: 0 | G45: 105 | H45: 0 | I45: 0 | J45: 0 | K45: 95 | L45: 95 | M45: 95 | N45: 95 | O45: 95 | P45: 95 | Q45: 101.5 | R45: 105 | S45: 95 | T45: 95 | U45: 95 | V45: 95 | W45: 105 | X45: 105 | Y45: 105 | Z45: 105 | AA45: 105 | AB45: 95 | AC45: 105 | AD45: 105 | AE45: 105 | AF45: 105 | AG45: 105 | AH45: 95 | AI45: 105 | AJ45: 105 | AK45: 105 | AL45: 95 | AM45: 76 | AN45: 98.3 | AO45: 100.5555556 | AP45: 103 | AQ45: 96.77586207
B46: Economique | C46: oSupEC_SEPM_T100% | D46: oSupEC_SEPM_T100% | F46: 0 | G46: 105 | H46: 0 | I46: 0 | J46: 0 | K46: 95 | L46: 95 | M46: 95 | N46: 95 | O46: 95 | P46: 95 | Q46: 101.5 | R46: 105 | S46: 95 | T46: 95 | U46: 95 | V46: 95 | W46: 105 | X46: 105 | Y46: 105 | Z46: 105 | AA46: 105 | AB46: 95 | AC46: 105 | AD46: 105 | AE46: 105 | AF46: 105 | AG46: 105 | AH46: 95 | AI46: 105 | AJ46: 105 | AK46: 105 | AL46: 95 | AM46: 76 | AN46: 98.3 | AO46: 100.5555556 | AP46: 103 | AQ46: 96.77586207
B47: Economique | C47: oSupEC_SEPM | D47: oSupEC_SEPM | F47: 0 | G47: 105 | H47: 0 | I47: 0 | J47: 0 | K47: 95 | L47: 95 | M47: 95 | N47: 95 | O47: 95 | P47: 95 | Q47: 101.5 | R47: 105 | S47: 95 | T47: 95 | U47: 95 | V47: 95 | W47: 105 | X47: 105 | Y47: 105 | Z47: 105 | AA47: 105 | AB47: 95 | AC47: 105 | AD47: 105 | AE47: 105 | AF47: 105 | AG47: 105 | AH47: 95 | AI47: 105 | AJ47: 105 | AK47: 105 | AL47: 95 | AM47: 76 | AN47: 98.3 | AO47: 100.5555556 | AP47: 103 | AQ47: 96.77586207
B48: Economique | C48: oSupActNETT_T100% | D48: oSupActNETT_T100% | F48: 0 | G48: 105 | H48: 0 | I48: 0 | J48: 95 | K48: 95 | L48: 95 | M48: 95 | N48: 95 | O48: 95 | P48: 95 | Q48: 105 | R48: 105 | S48: 105 | T48: 105 | U48: 95 | V48: 95 | W48: 105 | X48: 95 | Y48: 95 | Z48: 95 | AA48: 95 | AB48: 95 | AC48: 95 | AD48: 95 | AE48: 95 | AF48: 95 | AG48: 95 | AH48: 95 | AI48: 95 | AJ48: 95 | AK48: 95 | AL48: 95 | AM48: 95 | AN48: 101 | AO48: 97.22222222 | AP48: 95 | AQ48: 96.72413793
B49: Economique | C49: oSupTcadNETT_T100% | D49: oSupTcadNETT_T100% | F49: 0 | G49: 98.81 | H49: 0 | I49: 0 | J49: 0 | K49: 0 | L49: 0 | M49: 0 | N49: 0 | O49: 34.65 | P49: 0 | Q49: 27.58 | R49: 19.89 | S49: 66.26 | T49: 5.79 | U49: 0 | V49: 12.34 | W49: 98.81 | X49: 80.31 | Y49: 9 | Z49: 0 | AA49: 6 | AB49: 78.15 | AC49: 63.95 | AD49: 53.07 | AE49: 7.55 | AF49: 19.89 | AG49: 66.26 | AH49: 5.79 | AI49: 0 | AJ49: 0 | AK49: 0 | AL49: 0 | AM49: 0 | AN49: 29.676 | AO49: 32.26666667 | AP49: 21.651 | AQ49: 22.5962069
B50: Economique | C50: oSupNETT_T100% | D50: oSupNETT_T100% | F50: 0 | G50: 203.81 | H50: 0 | I50: 0 | J50: 95 | K50: 95 | L50: 95 | M50: 95 | N50: 95 | O50: 129.65 | P50: 95 | Q50: 132.58 | R50: 124.89 | S50: 171.26 | T50: 110.79 | U50: 95 | V50: 107.34 | W50: 203.81 | X50: 175.31 | Y50: 104 | Z50: 95 | AA50: 101 | AB50: 173.15 | AC50: 158.95 | AD50: 148.07 | AE50: 102.55 | AF50: 114.89 | AG50: 161.26 | AH50: 100.79 | AI50: 95 | AJ50: 95 | AK50: 95 | AL50: 95 | AM50: 95 | AN50: 130.676 | AO50: 129.4888889 | AP50: 116.651 | AQ50: 119.3203448
B51: Economique | C51: oSupNETT | D51: oSupNETT | F51: 0 | G51: 203.81 | H51: 0 | I51: 0 | J51: 95 | K51: 95 | L51: 95 | M51: 95 | N51: 95 | O51: 129.65 | P51: 95 | Q51: 132.58 | R51: 124.89 | S51: 171.26 | T51: 110.79 | U51: 95 | V51: 107.34 | W51: 203.81 | X51: 175.31 | Y51: 104 | Z51: 95 | AA51: 101 | AB51: 173.15 | AC51: 158.95 | AD51: 148.07 | AE51: 102.55 | AF51: 114.89 | AG51: 161.26 | AH51: 100.79 | AI51: 95 | AJ51: 95 | AK51: 95 | AL51: 95 | AM51: 95 | AN51: 130.676 | AO51: 129.4888889 | AP51: 116.651 | AQ51: 119.3203448
B52: Economique | C52: oTauxDEG | D52: oTauxDEG | F52: 0 | G52: 203820 | H52: 0 | I52: 42317.48 | J52: 184470 | K52: 184470 | L52: 184470 | M52: 184470 | N52: 184470 | O52: 139771.5 | P52: 203820 | Q52: 168238.33 | R52: 178165.37 | S52: 118344.6 | T52: 177000.9 | U52: 189495.75 | V52: 187900.79 | W52: 76353.68 | X52: 100216.18 | Y52: 192210.85 | Z52: 203820 | AA52: 176729.15 | AB52: 83656.5 | AC52: 119972.36 | AD52: 116006.15 | AE52: 174735.55 | AF52: 158815.37 | AG52: 98994.6 | AH52: 177000.9 | AI52: 203820 | AJ52: 203820 | AK52: 184470 | AL52: 203820 | AM52: 184470 | AN52: 161667.96 | AO52: 154153.7556 | AP52: 164145.493 | AQ52: 164121.6734
B53: Economique | C53: oTauxSCA | D53: oTauxSCA | F53: 0 | G53: 1712864.49 | H53: 0 | I53: 1712864.49 | J53: 1358404.08 | K53: 1310579.24 | L53: 1323412.28 | M53: 1316428.14 | N53: 1316428.14 | O53: 1317162.6 | P53: 1317940.9 | Q53: 1269404.99 | R53: 1262047.23 | S53: 1296800.49 | T53: 1307920.23 | U53: 1271383.78 | V53: 1285379.62 | W53: 1294618.88 | X53: 1300162.22 | Y53: 1269794.3 | Z53: 1259095.12 | AA53: 1285102.69 | AB53: 1295683.31 | AC53: 1269794.3 | AD53: 1272460.12 | AE53: 1285447.43 | AF53: 1294410.46 | AG53: 1269794.3 | AH53: 1270457.94 | AI53: 1322608.53 | AJ53: 1258463.24 | AK53: 1309074.7 | AL53: 1318559.54 | AM53: 1325050.376 | AN53: 1292671.242 | AO53: 1285460.017 | AP53: 1287107.056 | AQ53: 1294097.2
B54: Economique | C54: oTauxREG | D54: oTauxREG | F54: 0 | G54: 103225.52 | H54: 0 | I54: 0 | J54: 0 | K54: 0 | L54: 0 | M54: 0 | N54: 0 | O54: 0 | P54: 0 | Q54: 0 | R54: 0 | S54: 0 | T54: 0 | U54: 0 | V54: 0 | W54: 0 | X54: 0 | Y54: 0 | Z54: 0 | AA54: 0 | AB54: 0 | AC54: 0 | AD54: 0 | AE54: 0 | AF54: 0 | AG54: 0 | AH54: 0 | AI54: 103225.52 | AJ54: 530.2 | AK54: 63302.49 | AL54: 70031.18 | AM54: 0 | AN54: 0 | AO54: 0 | AP54: 23708.939 | AQ54: 8175.496207
B55: Economique | C55: oTauxCPI | D55: oTauxCPI | F55: 0 | G55: 320409.09 | H55: 0 | I55: 0 | J55: 320409.09 | K55: 302100 | L55: 302100 | M55: 302100 | N55: 302100 | O55: 302100 | P55: 302100 | Q55: 125639.42 | R55: 111196.41 | S55: 179415.77 | T55: 201243.42 | U55: 129523.72 | V55: 156997.04 | W55: 175133.36 | X55: 186014.73 | Y55: 126403.62 | Z55: 105401.54 | AA55: 156453.43 | AB55: 177222.8 | AC55: 126403.62 | AD55: 131636.54 | AE55: 157130.15 | AF55: 174724.23 | AG55: 126403.62 | AH55: 127706.32 | AI55: 174030 | AJ55: 200959.23 | AK55: 222254.26 | AL55: 263805.56 | AM55: 305761.818 | AN55: 204090.32 | AO55: 157154.8511 | AP55: 170505.353 | AQ55: 195472.6855
B56: Economique | C56: oTauxCT | D56: oTauxCT | F56: 0 | G56: 0 | H56: 0 | I56: 0 | J56: 0 | K56: 0 | L56: 0 | M56: 0 | N56: 0 | O56: 0 | P56: 0 | Q56: 0 | R56: 0 | S56: 0 | T56: 0 | U56: 0 | V56: 0 | W56: 0 | X56: 0 | Y56: 0 | Z56: 0 | AA56: 0 | AB56: 0 | AC56: 0 | AD56: 0 | AE56: 0 | AF56: 0 | AG56: 0 | AH56: 0 | AI56: 0 | AJ56: 0 | AK56: 0 | AL56: 0 | AM56: 0 | AN56: 0 | AO56: 0 | AP56: 0 | AQ56: 0
B57: Economique | C57: oTauxPL | D57: oTauxPL | F57: 0 | G57: 4364393.03 | H57: 0 | I57: 4364393.03 | J57: 3043416.83 | K57: 2979400.76 | L57: 2966567.72 | M57: 2973551.86 | N57: 2973551.86 | O57: 2978014.9 | P57: 2952689.1 | Q57: 3111368 | R57: 3127219.47 | S57: 3057600 | T57: 3072384.85 | U57: 3186146.75 | V57: 3132204.4 | W57: 3092699.43 | X57: 3084900 | Y57: 3164181.98 | Z57: 3194533.33 | AA57: 3137723.97 | AB57: 3130896.38 | AC57: 3173775.89 | AD57: 3182244.25 | AE57: 3115857.33 | AF57: 3112228.41 | AG57: 3141971.08 | AH57: 3194784.25 | AI57: 2909015.95 | AJ57: 3048927.32 | AK57: 2933598.55 | AL57: 2870183.72 | AM57: 2987297.806 | AN57: 3045378.294 | AO57: 3132852.343 | AP57: 3068258.675 | AQ57: 3070401.322
B58: Economique | C58: oTauxEPC | D58: oTauxEPC | F58: 0 | G58: 0 | H58: 0 | I58: 0 | J58: 0 | K58: 0 | L58: 0 | M58: 0 | N58: 0 | O58: 0 | P58: 0 | Q58: 0 | R58: 0 | S58: 0 | T58: 0 | U58: 0 | V58: 0 | W58: 0 | X58: 0 | Y58: 0 | Z58: 0 | AA58: 0 | AB58: 0 | AC58: 0 | AD58: 0 | AE58: 0 | AF58: 0 | AG58: 0 | AH58: 0 | AI58: 0 | AJ58: 0 | AK58: 0 | AL58: 0 | AM58: 0 | AN58: 0 | AO58: 0 | AP58: 0 | AQ58: 0
B59: Economique | C59: oTauxEC | D59: oTauxEC | F59: 0 | G59: 143850 | H59: 0 | I59: 0 | J59: 0 | K59: 130150 | L59: 130150 | M59: 130150 | N59: 130150 | O59: 130150 | P59: 130150 | Q59: 139055 | R59: 143850 | S59: 130150 | T59: 130150 | U59: 130150 | V59: 130150 | W59: 143850 | X59: 143850 | Y59: 143850 | Z59: 143850 | AA59: 143850 | AB59: 130150 | AC59: 143850 | AD59: 143850 | AE59: 143850 | AF59: 143850 | AG59: 143850 | AH59: 130150 | AI59: 143850 | AJ59: 143850 | AK59: 143850 | AL59: 130150 | AM59: 104120 | AN59: 134671 | AO59: 137761.1111 | AP59: 141110 | AQ59: 132582.931
B60: Economique | C60: oTauxNET | D60: oTauxNET | F60: 0 | G60: 232344.66 | H60: 0 | I60: 0 | J60: 108300 | K60: 108300 | L60: 108300 | M60: 108300 | N60: 108300 | O60: 147801 | P60: 108300 | Q60: 151144.27 | R60: 142371.53 | S60: 195236.4 | T60: 126300.6 | U60: 108300 | V60: 122368.14 | W60: 232344.66 | X60: 199856.87 | Y60: 118559.25 | Z60: 108300 | AA60: 115140.75 | AB60: 197391 | AC60: 181203.84 | AD60: 168802.94 | AE60: 116902.54 | AF60: 130971.53 | AG60: 183836.4 | AH60: 114900.6 | AI60: 108300 | AJ60: 108300 | AK60: 108300 | AL60: 108300 | AM60: 108300 | AN60: 148970.64 | AO60: 147617.9189 | AP60: 132981.785 | AQ60: 136025.2524
B61: Economique | C61: oSupRealDEG | D61: oSupRealDEG | F61: 0 | G61: 158 | H61: 0 | I61: 32.8 | J61: 143 | K61: 143 | L61: 143 | M61: 143 | N61: 143 | O61: 108.35 | P61: 158 | Q61: 130.42 | R61: 138.11 | S61: 91.74 | T61: 137.21 | U61: 146.9 | V61: 145.66 | W61: 59.19 | X61: 77.69 | Y61: 149 | Z61: 158 | AA61: 137 | AB61: 64.85 | AC61: 93 | AD61: 89.93 | AE61: 135.45 | AF61: 123.11 | AG61: 76.74 | AH61: 137.21 | AI61: 158 | AJ61: 158 | AK61: 143 | AL61: 158 | AM61: 143 | AN61: 125.324 | AO61: 119.5 | AP61: 127.244 | AQ61: 127.2262069
B62: Economique | C62: oSupRealSCA | D62: oSupRealSCA | F62: 0 | G62: 4177.72 | H62: 0 | I62: 4177.72 | J62: 3217.34 | K62: 3106.17 | L62: 3137.47 | M62: 3120.43 | N62: 3120.43 | O62: 3122.23 | P62: 3124.12 | Q62: 3058.53 | R62: 3044.9 | S62: 3109.26 | T62: 3129.85 | U62: 3062.19 | V62: 3088.11 | W62: 3105.22 | X62: 3115.49 | Y62: 3059.25 | Z62: 3039.44 | AA62: 3087.6 | AB62: 3107.19 | AC62: 3059.25 | AD62: 3064.19 | AE62: 3088.24 | AF62: 3104.83 | AG62: 3059.25 | AH62: 3060.48 | AI62: 3104.18 | AJ62: 3008.95 | AK62: 3083.68 | AL62: 3089.84 | AM62: 3140.368 | AN62: 3091.808 | AO62: 3088.26 | AP62: 3072.289 | AQ62: 3092.348621
B63: Economique | C63: oSupRealREG | D63: oSupRealREG | F63: 0 | G63: 219.63 | H63: 0 | I63: 0 | J63: 0 | K63: 0 | L63: 0 | M63: 0 | N63: 0 | O63: 0 | P63: 0 | Q63: 0 | R63: 0 | S63: 0 | T63: 0 | U63: 0 | V63: 0 | W63: 0 | X63: 0 | Y63: 0 | Z63: 0 | AA63: 0 | AB63: 0 | AC63: 0 | AD63: 0 | AE63: 0 | AF63: 0 | AG63: 0 | AH63: 0 | AI63: 219.63 | AJ63: 1.13 | AK63: 134.69 | AL63: 149 | AM63: 0 | AN63: 0 | AO63: 0 | AP63: 50.445 | AQ63: 17.39482759
B64: Economique | C64: oSupRealCPI | D64: oSupRealCPI | F64: 0 | G64: 630 | H64: 0 | I64: 0 | J64: 604.55 | K64: 570 | L64: 570 | M64: 570 | N64: 570 | O64: 570 | P64: 570 | Q64: 630 | R64: 630 | S64: 630 | T64: 630 | U64: 630 | V64: 630 | W64: 630 | X64: 630 | Y64: 630 | Z64: 630 | AA64: 630 | AB64: 630 | AC64: 630 | AD64: 630 | AE64: 630 | AF64: 630 | AG64: 630 | AH64: 630 | AI64: 630 | AJ64: 630 | AK64: 630 | AL64: 630 | AM64: 576.91 | AN64: 606 | AO64: 630 | AP64: 630 | AQ64: 616.7086207
B65: Economique | C65: oSupRealCT | D65: oSupRealCT | F65: 0 | G65: 11436.6 | H65: 0 | I65: 11142 | J65: 6606.68 | K65: 7357.28 | L65: 8154.13 | M65: 6311.99 | N65: 6493.41 | O65: 10358.07 | P65: 9643.48 | Q65: 8625.03 | R65: 8044.16 | S65: 8984.8 | T65: 10028.67 | U65: 9951.09 | V65: 8281.97 | W65: 8462.47 | X65: 8633.67 | Y65: 7480.97 | Z65: 8400.83 | AA65: 8393.61 | AB65: 9567 | AC65: 9596.04 | AD65: 10247.01 | AE65: 10988.3 | AF65: 10105.15 | AG65: 9654.46 | AH65: 9974.55 | AI65: 9652.45 | AJ65: 11436.6 | AK65: 9997.91 | AL65: 9217.38 | AM65: 6984.698 | AN65: 9131.108 | AO65: 8800.031111 | AP65: 10086.985 | AQ65: 8987.902069
B66: Economique | C66: oSupRealPL | D66: oSupRealPL | F66: 0 | G66: 4177.72 | H66: 0 | I66: 4177.72 | J66: 2915.07 | K66: 2821.17 | L66: 2852.47 | M66: 2835.43 | N66: 2835.43 | O66: 2837.23 | P66: 2839.12 | Q66: 2940 | R66: 2940 | S66: 2940 | T66: 2940 | U66: 2940 | V66: 2940 | W66: 2940 | X66: 2940 | Y66: 2940 | Z66: 2940 | AA66: 2940 | AB66: 2940 | AC66: 2940 | AD66: 2940 | AE66: 2940 | AF66: 2940 | AG66: 2940 | AH66: 2940 | AI66: 2720.37 | AJ66: 2818.24 | AK66: 2739.32 | AL66: 2691.97 | AM66: 2851.914 | AN66: 2899.27 | AO66: 2940 | AP66: 2860.99 | AQ66: 2890.545517
B67: Economique | C67: oSupRealEPC | D67: oSupRealEPC | F67: 0 | G67: 0 | H67: 0 | I67: 0 | J67: 0 | K67: 0 | L67: 0 | M67: 0 | N67: 0 | O67: 0 | P67: 0 | Q67: 0 | R67: 0 | S67: 0 | T67: 0 | U67: 0 | V67: 0 | W67: 0 | X67: 0 | Y67: 0 | Z67: 0 | AA67: 0 | AB67: 0 | AC67: 0 | AD67: 0 | AE67: 0 | AF67: 0 | AG67: 0 | AH67: 0 | AI67: 0 | AJ67: 0 | AK67: 0 | AL67: 0 | AM67: 0 | AN67: 0 | AO67: 0 | AP67: 0 | AQ67: 0
B68: Economique | C68: oSupRealEC | D68: oSupRealEC | F68: 0 | G68: 105 | H68: 0 | I68: 0 | J68: 0 | K68: 95 | L68: 95 | M68: 95 | N68: 95 | O68: 95 | P68: 95 | Q68: 101.5 | R68: 105 | S68: 95 | T68: 95 | U68: 95 | V68: 95 | W68: 105 | X68: 105 | Y68: 105 | Z68: 105 | AA68: 105 | AB68: 95 | AC68: 105 | AD68: 105 | AE68: 105 | AF68: 105 | AG68: 105 | AH68: 95 | AI68: 105 | AJ68: 105 | AK68: 105 | AL68: 95 | AM68: =AVERAGE(J68:N68) -> 76 | AN68: =AVERAGE(O68:S68) -> 98.3 | AO68: =AVERAGE(T68:AB68) -> 100.5555556 | AP68: =AVERAGE(AC68:AL68) -> 103 | AQ68: =AVERAGE(J68:AL68) -> 96.77586207
B69: Economique | C69: oSupRealNET | D69: oSupRealNET | F69: 0 | G69: 203.81 | H69: 0 | I69: 0 | J69: 95 | K69: 95 | L69: 95 | M69: 95 | N69: 95 | O69: 129.65 | P69: 95 | Q69: 132.58 | R69: 124.89 | S69: 171.26 | T69: 110.79 | U69: 95 | V69: 107.34 | W69: 203.81 | X69: 175.31 | Y69: 104 | Z69: 95 | AA69: 101 | AB69: 173.15 | AC69: 158.95 | AD69: 148.07 | AE69: 102.55 | AF69: 114.89 | AG69: 161.26 | AH69: 100.79 | AI69: 95 | AJ69: 95 | AK69: 95 | AL69: 95 | AM69: 95 | AN69: 130.676 | AO69: 129.4888889 | AP69: 116.651 | AQ69: 119.3203448
B70: Economique | C70: oCoutProdPlants | D70: oCoutProdPlants | F70: 0 | G70: 0 | H70: 0 | I70: 0 | J70: 0 | K70: 0 | L70: 0 | M70: 0 | N70: 0 | O70: 0 | P70: 0 | Q70: 0 | R70: 0 | S70: 0 | T70: 0 | U70: 0 | V70: 0 | W70: 0 | X70: 0 | Y70: 0 | Z70: 0 | AA70: 0 | AB70: 0 | AC70: 0 | AD70: 0 | AE70: 0 | AF70: 0 | AG70: 0 | AH70: 0 | AI70: 0 | AJ70: 0 | AK70: 0 | AL70: 0 | AM70: 0 | AN70: 0 | AO70: 0 | AP70: 0 | AQ70: 0
B71: Economique | C71: oCoutTransPlants | D71: oCoutTransPlants | F71: 0 | G71: 0 | H71: 0 | I71: 0 | J71: 0 | K71: 0 | L71: 0 | M71: 0 | N71: 0 | O71: 0 | P71: 0 | Q71: 0 | R71: 0 | S71: 0 | T71: 0 | U71: 0 | V71: 0 | W71: 0 | X71: 0 | Y71: 0 | Z71: 0 | AA71: 0 | AB71: 0 | AC71: 0 | AD71: 0 | AE71: 0 | AF71: 0 | AG71: 0 | AH71: 0 | AI71: 0 | AJ71: 0 | AK71: 0 | AL71: 0 | AM71: 0 | AN71: 0 | AO71: 0 | AP71: 0 | AQ71: 0
B72: Economique | C72: o$InvestisTS | D72: o$InvestisTS | F72: 0 | G72: 6119575 | H72: 0 | I72: 6119575 | J72: 5015000 | K72: 5015000 | L72: 5015000 | M72: 5015000 | N72: 5015000 | O72: 5015000 | P72: 5015000 | Q72: 4964850 | R72: 4964850 | S72: 4977547.26 | T72: 5015000 | U72: 5015000 | V72: 5015000 | W72: 5015000 | X72: 5015000 | Y72: 5015000 | Z72: 5015000 | AA72: 5015000 | AB72: 5015000 | AC72: 5015000 | AD72: 5015000 | AE72: 4993923 | AF72: 5015000 | AG72: 4964850 | AH72: 5015000 | AI72: 4964850 | AJ72: 4964850 | AK72: 4964850 | AL72: 4964850 | AM72: 5015000 | AN72: 4987449.452 | AO72: 5015000 | AP72: 4987817.3 | AQ72: 5000876.561
B73: Economique | C73: oTauxREGAPAR | D73: oTauxREGAPAR | F73: 0 | G73: 432250 | H73: 0 | I73: 0 | J73: 320409.09 | K73: 432250 | L73: 432250 | M73: 432250 | N73: 432250 | O73: 432250 | P73: 432250 | Q73: 264694.42 | R73: 255046.41 | S73: 309565.77 | T73: 331393.42 | U73: 259673.72 | V73: 287147.04 | W73: 318983.36 | X73: 329864.73 | Y73: 270253.62 | Z73: 249251.54 | AA73: 300303.43 | AB73: 307372.8 | AC73: 270253.62 | AD73: 275486.54 | AE73: 300980.15 | AF73: 318574.23 | AG73: 270253.62 | AH73: 257856.32 | AI73: 317880 | AJ73: 344809.23 | AK73: 366104.26 | AL73: 393955.56 | AM73: 409881.818 | AN73: 338761.32 | AO73: 294915.9622 | AP73: 311615.353 | AQ73: 328055.6166
B74: Economique | C74: oTauxREGAEDU | D74: oTauxREGAEDU | F74: 0 | G74: 320536.9 | H74: 0 | I74: 42317.48 | J74: 292770 | K74: 292770 | L74: 292770 | M74: 292770 | N74: 292770 | O74: 287572.5 | P74: 312120 | Q74: 319382.6 | R74: 320536.9 | S74: 313581 | T74: 303301.5 | U74: 297795.75 | V74: 310268.93 | W74: 308698.33 | X74: 300073.04 | Y74: 310770.1 | Z74: 312120 | AA74: 291869.9 | AB74: 281047.5 | AC74: 301176.2 | AD74: 284809.09 | AE74: 291638.09 | AF74: 289786.9 | AG74: 282831 | AH74: 291901.5 | AI74: 312120 | AJ74: 312120 | AK74: 292770 | AL74: 312120 | AM74: 292770 | AN74: 310638.6 | AO74: 301771.6722 | AP74: 297127.278 | AQ74: 300146.9252
B75: Economique | C75: oTauxREGAFIN | D75: oTauxREGAFIN | F75: 0 | G75: 0 | H75: 0 | I75: 0 | J75: 0 | K75: 0 | L75: 0 | M75: 0 | N75: 0 | O75: 0 | P75: 0 | Q75: 0 | R75: 0 | S75: 0 | T75: 0 | U75: 0 | V75: 0 | W75: 0 | X75: 0 | Y75: 0 | Z75: 0 | AA75: 0 | AB75: 0 | AC75: 0 | AD75: 0 | AE75: 0 | AF75: 0 | AG75: 0 | AH75: 0 | AI75: 0 | AJ75: 0 | AK75: 0 | AL75: 0 | AM75: 0 | AN75: 0 | AO75: 0 | AP75: 0 | AQ75: 0
B76: Economique | C76: oTauxREGAREG | D76: oTauxREGAREG | F76: 0 | G76: 4364393.03 | H76: 0 | I76: 4364393.03 | J76: 3043416.83 | K76: 2979400.76 | L76: 2966567.72 | M76: 2973551.86 | N76: 2973551.86 | O76: 2978014.9 | P76: 2952689.1 | Q76: 3111368 | R76: 3127219.47 | S76: 3057600 | T76: 3072384.85 | U76: 3186146.75 | V76: 3132204.4 | W76: 3092699.43 | X76: 3084900 | Y76: 3164181.98 | Z76: 3194533.33 | AA76: 3137723.97 | AB76: 3130896.38 | AC76: 3173775.89 | AD76: 3182244.25 | AE76: 3115857.33 | AF76: 3112228.41 | AG76: 3141971.08 | AH76: 3194784.25 | AI76: 3012241.46 | AJ76: 3049457.52 | AK76: 2996901.04 | AL76: 2940214.9 | AM76: 2987297.806 | AN76: 3045378.294 | AO76: 3132852.343 | AP76: 3091967.613 | AQ76: 3078576.818
B77: Economique | C77: oTauxAUTRES | D77: oTauxAUTRES | F77: 0 | G77: 1712864.49 | H77: 0 | I77: 1712864.49 | J77: 1358404.08 | K77: 1310579.24 | L77: 1323412.28 | M77: 1316428.14 | N77: 1316428.14 | O77: 1317162.6 | P77: 1317940.9 | Q77: 1269404.99 | R77: 1262047.23 | S77: 1296800.49 | T77: 1307920.23 | U77: 1271383.78 | V77: 1285379.62 | W77: 1294618.88 | X77: 1300162.22 | Y77: 1269794.3 | Z77: 1259095.12 | AA77: 1285102.69 | AB77: 1295683.31 | AC77: 1269794.3 | AD77: 1272460.12 | AE77: 1285447.43 | AF77: 1294410.46 | AG77: 1269794.3 | AH77: 1270457.94 | AI77: 1322608.53 | AJ77: 1258463.24 | AK77: 1309074.7 | AL77: 1318559.54 | AM77: 1325050.376 | AN77: 1292671.242 | AO77: 1285460.017 | AP77: 1287107.056 | AQ77: 1294097.2
B78: Economique | C78: oSupRealREGAPAR | D78: oSupRealREGAPAR | F78: 0 | G78: 735 | H78: 0 | I78: 0 | J78: 604.55 | K78: 665 | L78: 665 | M78: 665 | N78: 665 | O78: 665 | P78: 665 | Q78: 731.5 | R78: 735 | S78: 725 | T78: 725 | U78: 725 | V78: 725 | W78: 735 | X78: 735 | Y78: 735 | Z78: 735 | AA78: 735 | AB78: 725 | AC78: 735 | AD78: 735 | AE78: 735 | AF78: 735 | AG78: 735 | AH78: 725 | AI78: 735 | AJ78: 735 | AK78: 735 | AL78: 725 | AM78: 652.91 | AN78: 704.3 | AO78: 730.5555556 | AP78: 733 | AQ78: 713.4844828
B79: Economique | C79: oSupRealREGAEDU | D79: oSupRealREGAEDU | F79: 0 | G79: 263 | H79: 0 | I79: 32.8 | J79: 238 | K79: 238 | L79: 238 | M79: 238 | N79: 238 | O79: 238 | P79: 253 | Q79: 263 | R79: 263 | S79: 263 | T79: 248 | U79: 241.9 | V79: 253 | W79: 263 | X79: 253 | Y79: 253 | Z79: 253 | AA79: 238 | AB79: 238 | AC79: 251.95 | AD79: 238 | AE79: 238 | AF79: 238 | AG79: 238 | AH79: 238 | AI79: 253 | AJ79: 253 | AK79: 238 | AL79: 253 | AM79: 238 | AN79: 256 | AO79: 248.9888889 | AP79: 243.895 | AQ79: 246.5465517
B80: Economique | C80: oSupRealREGAFIN | D80: oSupRealREGAFIN | F80: 0 | G80: 11436.6 | H80: 0 | I80: 11142 | J80: 6606.68 | K80: 7357.28 | L80: 8154.13 | M80: 6311.99 | N80: 6493.41 | O80: 10358.07 | P80: 9643.48 | Q80: 8625.03 | R80: 8044.16 | S80: 8984.8 | T80: 10028.67 | U80: 9951.09 | V80: 8281.97 | W80: 8462.47 | X80: 8633.67 | Y80: 7480.97 | Z80: 8400.83 | AA80: 8393.61 | AB80: 9567 | AC80: 9596.04 | AD80: 10247.01 | AE80: 10988.3 | AF80: 10105.15 | AG80: 9654.46 | AH80: 9974.55 | AI80: 9652.45 | AJ80: 11436.6 | AK80: 9997.91 | AL80: 9217.38 | AM80: 6984.698 | AN80: 9131.108 | AO80: 8800.031111 | AP80: 10086.985 | AQ80: 8987.902069
B81: Economique | C81: oSupRealREGAREG | D81: oSupRealREGAREG | F81: 0 | G81: 4177.72 | H81: 0 | I81: 4177.72 | J81: 2915.07 | K81: 2821.17 | L81: 2852.47 | M81: 2835.43 | N81: 2835.43 | O81: 2837.23 | P81: 2839.12 | Q81: 2940 | R81: 2940 | S81: 2940 | T81: 2940 | U81: 2940 | V81: 2940 | W81: 2940 | X81: 2940 | Y81: 2940 | Z81: 2940 | AA81: 2940 | AB81: 2940 | AC81: 2940 | AD81: 2940 | AE81: 2940 | AF81: 2940 | AG81: 2940 | AH81: 2940 | AI81: 2940 | AJ81: 2819.37 | AK81: 2874 | AL81: 2840.97 | AM81: 2851.914 | AN81: 2899.27 | AO81: 2940 | AP81: 2911.434 | AQ81: 2907.94
B82: Economique | C82: oSupRealAUTRES | D82: oSupRealAUTRES | F82: 0 | G82: 4177.72 | H82: 0 | I82: 4177.72 | J82: 3217.34 | K82: 3106.17 | L82: 3137.47 | M82: 3120.43 | N82: 3120.43 | O82: 3122.23 | P82: 3124.12 | Q82: 3058.53 | R82: 3044.9 | S82: 3109.26 | T82: 3129.85 | U82: 3062.19 | V82: 3088.11 | W82: 3105.22 | X82: 3115.49 | Y82: 3059.25 | Z82: 3039.44 | AA82: 3087.6 | AB82: 3107.19 | AC82: 3059.25 | AD82: 3064.19 | AE82: 3088.24 | AF82: 3104.83 | AG82: 3059.25 | AH82: 3060.48 | AI82: 3104.18 | AJ82: 3008.95 | AK82: 3083.68 | AL82: 3089.84 | AM82: 3140.368 | AN82: 3091.808 | AO82: 3088.26 | AP82: 3072.289 | AQ82: 3092.348621
B83: VolExpl | C83: OVOLBOJADMaEC | D83: Volume BOJ Admissible InclusActions aEC | F83: 0 | G83: 0 | H83: 0 | I83: 0 | J83: 0 | K83: 0 | L83: 0 | M83: 0 | N83: 0 | O83: 0 | P83: 0 | Q83: 0 | R83: 0 | S83: 0 | T83: 0 | U83: 0 | V83: 0 | W83: 0 | X83: 0 | Y83: 0 | Z83: 0 | AA83: 0 | AB83: 0 | AC83: 0 | AD83: 0 | AE83: 0 | AF83: 0 | AG83: 0 | AH83: 0 | AI83: 0 | AJ83: 0 | AK83: 0 | AL83: 0 | AM83: 0 | AN83: 0 | AO83: 0 | AP83: 0 | AQ83: 0
B84: VolExpl | C84: OVOLBOJADMaEC2 | D84: Volume BOJ Admissible InclusActions aEC2 | F84: 0 | G84: 0 | H84: 0 | I84: 0 | J84: 0 | K84: 0 | L84: 0 | M84: 0 | N84: 0 | O84: 0 | P84: 0 | Q84: 0 | R84: 0 | S84: 0 | T84: 0 | U84: 0 | V84: 0 | W84: 0 | X84: 0 | Y84: 0 | Z84: 0 | AA84: 0 | AB84: 0 | AC84: 0 | AD84: 0 | AE84: 0 | AF84: 0 | AG84: 0 | AH84: 0 | AI84: 0 | AJ84: 0 | AK84: 0 | AL84: 0 | AM84: 0 | AN84: 0 | AO84: 0 | AP84: 0 | AQ84: 0
B85: VolExpl | C85: OVOLBOJADMaEC3 | D85: Volume BOJ Admissible InclusActions aEC3 | F85: 0 | G85: 0 | H85: 0 | I85: 0 | J85: 0 | K85: 0 | L85: 0 | M85: 0 | N85: 0 | O85: 0 | P85: 0 | Q85: 0 | R85: 0 | S85: 0 | T85: 0 | U85: 0 | V85: 0 | W85: 0 | X85: 0 | Y85: 0 | Z85: 0 | AA85: 0 | AB85: 0 | AC85: 0 | AD85: 0 | AE85: 0 | AF85: 0 | AG85: 0 | AH85: 0 | AI85: 0 | AJ85: 0 | AK85: 0 | AL85: 0 | AM85: 0 | AN85: 0 | AO85: 0 | AP85: 0 | AQ85: 0
B86: VolExpl | C86: OVOLBOJADMaCA | D86: Volume BOJ Admissible InclusActions aCA | F86: 0 | G86: 0 | H86: 0 | I86: 0 | J86: 0 | K86: 0 | L86: 0 | M86: 0 | N86: 0 | O86: 0 | P86: 0 | Q86: 0 | R86: 0 | S86: 0 | T86: 0 | U86: 0 | V86: 0 | W86: 0 | X86: 0 | Y86: 0 | Z86: 0 | AA86: 0 | AB86: 0 | AC86: 0 | AD86: 0 | AE86: 0 | AF86: 0 | AG86: 0 | AH86: 0 | AI86: 0 | AJ86: 0 | AK86: 0 | AL86: 0 | AM86: 0 | AN86: 0 | AO86: 0 | AP86: 0 | AQ86: 0
B87: VolExpl | C87: OVOLBOJADMaCA2 | D87: Volume BOJ Admissible InclusActions aCA2 | F87: 0 | G87: 0 | H87: 0 | I87: 0 | J87: 0 | K87: 0 | L87: 0 | M87: 0 | N87: 0 | O87: 0 | P87: 0 | Q87: 0 | R87: 0 | S87: 0 | T87: 0 | U87: 0 | V87: 0 | W87: 0 | X87: 0 | Y87: 0 | Z87: 0 | AA87: 0 | AB87: 0 | AC87: 0 | AD87: 0 | AE87: 0 | AF87: 0 | AG87: 0 | AH87: 0 | AI87: 0 | AJ87: 0 | AK87: 0 | AL87: 0 | AM87: 0 | AN87: 0 | AO87: 0 | AP87: 0 | AQ87: 0
B88: VolExpl | C88: OVOLBOJADMaCPROG | D88: Volume BOJ Admissible InclusActions aCPROG | F88: 0 | G88: 0 | H88: 0 | I88: 0 | J88: 0 | K88: 0 | L88: 0 | M88: 0 | N88: 0 | O88: 0 | P88: 0 | Q88: 0 | R88: 0 | S88: 0 | T88: 0 | U88: 0 | V88: 0 | W88: 0 | X88: 0 | Y88: 0 | Z88: 0 | AA88: 0 | AB88: 0 | AC88: 0 | AD88: 0 | AE88: 0 | AF88: 0 | AG88: 0 | AH88: 0 | AI88: 0 | AJ88: 0 | AK88: 0 | AL88: 0 | AM88: 0 | AN88: 0 | AO88: 0 | AP88: 0 | AQ88: 0
B89: VolExpl | C89: OVOLBOJADMaCPIL | D89: Volume BOJ Admissible InclusActions aCPIL | F89: 0 | G89: 0 | H89: 0 | I89: 0 | J89: 0 | K89: 0 | L89: 0 | M89: 0 | N89: 0 | O89: 0 | P89: 0 | Q89: 0 | R89: 0 | S89: 0 | T89: 0 | U89: 0 | V89: 0 | W89: 0 | X89: 0 | Y89: 0 | Z89: 0 | AA89: 0 | AB89: 0 | AC89: 0 | AD89: 0 | AE89: 0 | AF89: 0 | AG89: 0 | AH89: 0 | AI89: 0 | AJ89: 0 | AK89: 0 | AL89: 0 | AM89: 0 | AN89: 0 | AO89: 0 | AP89: 0 | AQ89: 0
B90: VolExpl | C90: OVOLBOJADMaCPIP | D90: Volume BOJ Admissible InclusActions aCPIP | F90: 0 | G90: 0 | H90: 0 | I90: 0 | J90: 0 | K90: 0 | L90: 0 | M90: 0 | N90: 0 | O90: 0 | P90: 0 | Q90: 0 | R90: 0 | S90: 0 | T90: 0 | U90: 0 | V90: 0 | W90: 0 | X90: 0 | Y90: 0 | Z90: 0 | AA90: 0 | AB90: 0 | AC90: 0 | AD90: 0 | AE90: 0 | AF90: 0 | AG90: 0 | AH90: 0 | AI90: 0 | AJ90: 0 | AK90: 0 | AL90: 0 | AM90: 0 | AN90: 0 | AO90: 0 | AP90: 0 | AQ90: 0
B91: VolExpl | C91: OVOLBOJADMaCPFORT | D91: Volume BOJ Admissible InclusActions aCPFORT | F91: 0 | G91: 0 | H91: 0 | I91: 0 | J91: 0 | K91: 0 | L91: 0 | M91: 0 | N91: 0 | O91: 0 | P91: 0 | Q91: 0 | R91: 0 | S91: 0 | T91: 0 | U91: 0 | V91: 0 | W91: 0 | X91: 0 | Y91: 0 | Z91: 0 | AA91: 0 | AB91: 0 | AC91: 0 | AD91: 0 | AE91: 0 | AF91: 0 | AG91: 0 | AH91: 0 | AI91: 0 | AJ91: 0 | AK91: 0 | AL91: 0 | AM91: 0 | AN91: 0 | AO91: 0 | AP91: 0 | AQ91: 0
B92: VolExpl | C92: OVOLBOJADMaCPFAIBL | D92: Volume BOJ Admissible InclusActions aCPFAIBL | F92: 0 | G92: 0 | H92: 0 | I92: 0 | J92: 0 | K92: 0 | L92: 0 | M92: 0 | N92: 0 | O92: 0 | P92: 0 | Q92: 0 | R92: 0 | S92: 0 | T92: 0 | U92: 0 | V92: 0 | W92: 0 | X92: 0 | Y92: 0 | Z92: 0 | AA92: 0 | AB92: 0 | AC92: 0 | AD92: 0 | AE92: 0 | AF92: 0 | AG92: 0 | AH92: 0 | AI92: 0 | AJ92: 0 | AK92: 0 | AL92: 0 | AM92: 0 | AN92: 0 | AO92: 0 | AP92: 0 | AQ92: 0
B93: VolExpl | C93: OVOLBOJADMaCP | D93: Volume BOJ Admissible InclusActions aCP | F93: 0 | G93: 0 | H93: 0 | I93: 0 | J93: 0 | K93: 0 | L93: 0 | M93: 0 | N93: 0 | O93: 0 | P93: 0 | Q93: 0 | R93: 0 | S93: 0 | T93: 0 | U93: 0 | V93: 0 | W93: 0 | X93: 0 | Y93: 0 | Z93: 0 | AA93: 0 | AB93: 0 | AC93: 0 | AD93: 0 | AE93: 0 | AF93: 0 | AG93: 0 | AH93: 0 | AI93: 0 | AJ93: 0 | AK93: 0 | AL93: 0 | AM93: 0 | AN93: 0 | AO93: 0 | AP93: 0 | AQ93: 0
B94: VolExpl | C94: OVOLBOJADMaCPJ | D94: Volume BOJ Admissible InclusActions aCPJ | F94: 0 | G94: 0 | H94: 0 | I94: 0 | J94: 0 | K94: 0 | L94: 0 | M94: 0 | N94: 0 | O94: 0 | P94: 0 | Q94: 0 | R94: 0 | S94: 0 | T94: 0 | U94: 0 | V94: 0 | W94: 0 | X94: 0 | Y94: 0 | Z94: 0 | AA94: 0 | AB94: 0 | AC94: 0 | AD94: 0 | AE94: 0 | AF94: 0 | AG94: 0 | AH94: 0 | AI94: 0 | AJ94: 0 | AK94: 0 | AL94: 0 | AM94: 0 | AN94: 0 | AO94: 0 | AP94: 0 | AQ94: 0
B95: VolExpl | C95: OVOLBOJADMaCJ | D95: Volume BOJ Admissible InclusActions aCJ | F95: 0 | G95: 0 | H95: 0 | I95: 0 | J95: 0 | K95: 0 | L95: 0 | M95: 0 | N95: 0 | O95: 0 | P95: 0 | Q95: 0 | R95: 0 | S95: 0 | T95: 0 | U95: 0 | V95: 0 | W95: 0 | X95: 0 | Y95: 0 | Z95: 0 | AA95: 0 | AB95: 0 | AC95: 0 | AD95: 0 | AE95: 0 | AF95: 0 | AG95: 0 | AH95: 0 | AI95: 0 | AJ95: 0 | AK95: 0 | AL95: 0 | AM95: 0 | AN95: 0 | AO95: 0 | AP95: 0 | AQ95: 0
B96: VolExpl | C96: OVOLBOJADMaCRV | D96: Volume BOJ Admissible InclusActions aCRV | F96: 0 | G96: 0 | H96: 0 | I96: 0 | J96: 0 | K96: 0 | L96: 0 | M96: 0 | N96: 0 | O96: 0 | P96: 0 | Q96: 0 | R96: 0 | S96: 0 | T96: 0 | U96: 0 | V96: 0 | W96: 0 | X96: 0 | Y96: 0 | Z96: 0 | AA96: 0 | AB96: 0 | AC96: 0 | AD96: 0 | AE96: 0 | AF96: 0 | AG96: 0 | AH96: 0 | AI96: 0 | AJ96: 0 | AK96: 0 | AL96: 0 | AM96: 0 | AN96: 0 | AO96: 0 | AP96: 0 | AQ96: 0
B97: VolExpl | C97: OVOLBOJADMaCRS | D97: Volume BOJ Admissible InclusActions aCRS | F97: 0 | G97: 0 | H97: 0 | I97: 0 | J97: 0 | K97: 0 | L97: 0 | M97: 0 | N97: 0 | O97: 0 | P97: 0 | Q97: 0 | R97: 0 | S97: 0 | T97: 0 | U97: 0 | V97: 0 | W97: 0 | X97: 0 | Y97: 0 | Z97: 0 | AA97: 0 | AB97: 0 | AC97: 0 | AD97: 0 | AE97: 0 | AF97: 0 | AG97: 0 | AH97: 0 | AI97: 0 | AJ97: 0 | AK97: 0 | AL97: 0 | AM97: 0 | AN97: 0 | AO97: 0 | AP97: 0 | AQ97: 0
B98: VolExpl | C98: OVOLBOJADMaCFP | D98: Volume BOJ Admissible InclusActions aCFP | F98: 0 | G98: 0 | H98: 0 | I98: 0 | J98: 0 | K98: 0 | L98: 0 | M98: 0 | N98: 0 | O98: 0 | P98: 0 | Q98: 0 | R98: 0 | S98: 0 | T98: 0 | U98: 0 | V98: 0 | W98: 0 | X98: 0 | Y98: 0 | Z98: 0 | AA98: 0 | AB98: 0 | AC98: 0 | AD98: 0 | AE98: 0 | AF98: 0 | AG98: 0 | AH98: 0 | AI98: 0 | AJ98: 0 | AK98: 0 | AL98: 0 | AM98: 0 | AN98: 0 | AO98: 0 | AP98: 0 | AQ98: 0
B99: VolExpl | C99: OVOLBOJADMaCPPTM | D99: Volume BOJ Admissible InclusActions aCPPTM | F99: 0 | G99: 0 | H99: 0 | I99: 0 | J99: 0 | K99: 0 | L99: 0 | M99: 0 | N99: 0 | O99: 0 | P99: 0 | Q99: 0 | R99: 0 | S99: 0 | T99: 0 | U99: 0 | V99: 0 | W99: 0 | X99: 0 | Y99: 0 | Z99: 0 | AA99: 0 | AB99: 0 | AC99: 0 | AD99: 0 | AE99: 0 | AF99: 0 | AG99: 0 | AH99: 0 | AI99: 0 | AJ99: 0 | AK99: 0 | AL99: 0 | AM99: 0 | AN99: 0 | AO99: 0 | AP99: 0 | AQ99: 0
B100: VolExpl | C100: OVOLBOJADMaCT | D100: Volume BOJ Admissible InclusActions aCT | F100: 0 | G100: 0 | H100: 0 | I100: 0 | J100: 0 | K100: 0 | L100: 0 | M100: 0 | N100: 0 | O100: 0 | P100: 0 | Q100: 0 | R100: 0 | S100: 0 | T100: 0 | U100: 0 | V100: 0 | W100: 0 | X100: 0 | Y100: 0 | Z100: 0 | AA100: 0 | AB100: 0 | AC100: 0 | AD100: 0 | AE100: 0 | AF100: 0 | AG100: 0 | AH100: 0 | AI100: 0 | AJ100: 0 | AK100: 0 | AL100: 0 | AM100: 0 | AN100: 0 | AO100: 0 | AP100: 0 | AQ100: 0
B101: VolExpl | C101: OVOLBOJADMregaPRE | D101: Volume BOJ Admissible InclusActions regaPRE | F101: 0 | G101: 0 | H101: 0 | I101: 0 | J101: 0 | K101: 0 | L101: 0 | M101: 0 | N101: 0 | O101: 0 | P101: 0 | Q101: 0 | R101: 0 | S101: 0 | T101: 0 | U101: 0 | V101: 0 | W101: 0 | X101: 0 | Y101: 0 | Z101: 0 | AA101: 0 | AB101: 0 | AC101: 0 | AD101: 0 | AE101: 0 | AF101: 0 | AG101: 0 | AH101: 0 | AI101: 0 | AJ101: 0 | AK101: 0 | AL101: 0 | AM101: 0 | AN101: 0 | AO101: 0 | AP101: 0 | AQ101: 0
B102: VolExpl | C102: OVOLERSADMaEC | D102: Volume ERS Admissible InclusActions aEC | F102: 0 | G102: 0 | H102: 0 | I102: 0 | J102: 0 | K102: 0 | L102: 0 | M102: 0 | N102: 0 | O102: 0 | P102: 0 | Q102: 0 | R102: 0 | S102: 0 | T102: 0 | U102: 0 | V102: 0 | W102: 0 | X102: 0 | Y102: 0 | Z102: 0 | AA102: 0 | AB102: 0 | AC102: 0 | AD102: 0 | AE102: 0 | AF102: 0 | AG102: 0 | AH102: 0 | AI102: 0 | AJ102: 0 | AK102: 0 | AL102: 0 | AM102: 0 | AN102: 0 | AO102: 0 | AP102: 0 | AQ102: 0
B103: VolExpl | C103: OVOLERSADMaEC2 | D103: Volume ERS Admissible InclusActions aEC2 | F103: 0 | G103: 0 | H103: 0 | I103: 0 | J103: 0 | K103: 0 | L103: 0 | M103: 0 | N103: 0 | O103: 0 | P103: 0 | Q103: 0 | R103: 0 | S103: 0 | T103: 0 | U103: 0 | V103: 0 | W103: 0 | X103: 0 | Y103: 0 | Z103: 0 | AA103: 0 | AB103: 0 | AC103: 0 | AD103: 0 | AE103: 0 | AF103: 0 | AG103: 0 | AH103: 0 | AI103: 0 | AJ103: 0 | AK103: 0 | AL103: 0 | AM103: 0 | AN103: 0 | AO103: 0 | AP103: 0 | AQ103: 0
B104: VolExpl | C104: OVOLERSADMaEC3 | D104: Volume ERS Admissible InclusActions aEC3 | F104: 0 | G104: 0 | H104: 0 | I104: 0 | J104: 0 | K104: 0 | L104: 0 | M104: 0 | N104: 0 | O104: 0 | P104: 0 | Q104: 0 | R104: 0 | S104: 0 | T104: 0 | U104: 0 | V104: 0 | W104: 0 | X104: 0 | Y104: 0 | Z104: 0 | AA104: 0 | AB104: 0 | AC104: 0 | AD104: 0 | AE104: 0 | AF104: 0 | AG104: 0 | AH104: 0 | AI104: 0 | AJ104: 0 | AK104: 0 | AL104: 0 | AM104: 0 | AN104: 0 | AO104: 0 | AP104: 0 | AQ104: 0
B105: VolExpl | C105: OVOLERSADMaCA | D105: Volume ERS Admissible InclusActions aCA | F105: 0 | G105: 0 | H105: 0 | I105: 0 | J105: 0 | K105: 0 | L105: 0 | M105: 0 | N105: 0 | O105: 0 | P105: 0 | Q105: 0 | R105: 0 | S105: 0 | T105: 0 | U105: 0 | V105: 0 | W105: 0 | X105: 0 | Y105: 0 | Z105: 0 | AA105: 0 | AB105: 0 | AC105: 0 | AD105: 0 | AE105: 0 | AF105: 0 | AG105: 0 | AH105: 0 | AI105: 0 | AJ105: 0 | AK105: 0 | AL105: 0 | AM105: 0 | AN105: 0 | AO105: 0 | AP105: 0 | AQ105: 0
B106: VolExpl | C106: OVOLERSADMaCA2 | D106: Volume ERS Admissible InclusActions aCA2 | F106: 0 | G106: 0 | H106: 0 | I106: 0 | J106: 0 | K106: 0 | L106: 0 | M106: 0 | N106: 0 | O106: 0 | P106: 0 | Q106: 0 | R106: 0 | S106: 0 | T106: 0 | U106: 0 | V106: 0 | W106: 0 | X106: 0 | Y106: 0 | Z106: 0 | AA106: 0 | AB106: 0 | AC106: 0 | AD106: 0 | AE106: 0 | AF106: 0 | AG106: 0 | AH106: 0 | AI106: 0 | AJ106: 0 | AK106: 0 | AL106: 0 | AM106: 0 | AN106: 0 | AO106: 0 | AP106: 0 | AQ106: 0
B107: VolExpl | C107: OVOLERSADMaCPROG | D107: Volume ERS Admissible InclusActions aCPROG | F107: 0 | G107: 0 | H107: 0 | I107: 0 | J107: 0 | K107: 0 | L107: 0 | M107: 0 | N107: 0 | O107: 0 | P107: 0 | Q107: 0 | R107: 0 | S107: 0 | T107: 0 | U107: 0 | V107: 0 | W107: 0 | X107: 0 | Y107: 0 | Z107: 0 | AA107: 0 | AB107: 0 | AC107: 0 | AD107: 0 | AE107: 0 | AF107: 0 | AG107: 0 | AH107: 0 | AI107: 0 | AJ107: 0 | AK107: 0 | AL107: 0 | AM107: 0 | AN107: 0 | AO107: 0 | AP107: 0 | AQ107: 0
B108: VolExpl | C108: OVOLERSADMaCPIL | D108: Volume ERS Admissible InclusActions aCPIL | F108: 0 | G108: 0 | H108: 0 | I108: 0 | J108: 0 | K108: 0 | L108: 0 | M108: 0 | N108: 0 | O108: 0 | P108: 0 | Q108: 0 | R108: 0 | S108: 0 | T108: 0 | U108: 0 | V108: 0 | W108: 0 | X108: 0 | Y108: 0 | Z108: 0 | AA108: 0 | AB108: 0 | AC108: 0 | AD108: 0 | AE108: 0 | AF108: 0 | AG108: 0 | AH108: 0 | AI108: 0 | AJ108: 0 | AK108: 0 | AL108: 0 | AM108: 0 | AN108: 0 | AO108: 0 | AP108: 0 | AQ108: 0
B109: VolExpl | C109: OVOLERSADMaCPIP | D109: Volume ERS Admissible InclusActions aCPIP | F109: 0 | G109: 0 | H109: 0 | I109: 0 | J109: 0 | K109: 0 | L109: 0 | M109: 0 | N109: 0 | O109: 0 | P109: 0 | Q109: 0 | R109: 0 | S109: 0 | T109: 0 | U109: 0 | V109: 0 | W109: 0 | X109: 0 | Y109: 0 | Z109: 0 | AA109: 0 | AB109: 0 | AC109: 0 | AD109: 0 | AE109: 0 | AF109: 0 | AG109: 0 | AH109: 0 | AI109: 0 | AJ109: 0 | AK109: 0 | AL109: 0 | AM109: 0 | AN109: 0 | AO109: 0 | AP109: 0 | AQ109: 0
B110: VolExpl | C110: OVOLERSADMaCPFORT | D110: Volume ERS Admissible InclusActions aCPFORT | F110: 0 | G110: 0 | H110: 0 | I110: 0 | J110: 0 | K110: 0 | L110: 0 | M110: 0 | N110: 0 | O110: 0 | P110: 0 | Q110: 0 | R110: 0 | S110: 0 | T110: 0 | U110: 0 | V110: 0 | W110: 0 | X110: 0 | Y110: 0 | Z110: 0 | AA110: 0 | AB110: 0 | AC110: 0 | AD110: 0 | AE110: 0 | AF110: 0 | AG110: 0 | AH110: 0 | AI110: 0 | AJ110: 0 | AK110: 0 | AL110: 0 | AM110: 0 | AN110: 0 | AO110: 0 | AP110: 0 | AQ110: 0
B111: VolExpl | C111: OVOLERSADMaCPFAIBL | D111: Volume ERS Admissible InclusActions aCPFAIBL | F111: 0 | G111: 0 | H111: 0 | I111: 0 | J111: 0 | K111: 0 | L111: 0 | M111: 0 | N111: 0 | O111: 0 | P111: 0 | Q111: 0 | R111: 0 | S111: 0 | T111: 0 | U111: 0 | V111: 0 | W111: 0 | X111: 0 | Y111: 0 | Z111: 0 | AA111: 0 | AB111: 0 | AC111: 0 | AD111: 0 | AE111: 0 | AF111: 0 | AG111: 0 | AH111: 0 | AI111: 0 | AJ111: 0 | AK111: 0 | AL111: 0 | AM111: 0 | AN111: 0 | AO111: 0 | AP111: 0 | AQ111: 0
B112: VolExpl | C112: OVOLERSADMaCP | D112: Volume ERS Admissible InclusActions aCP | F112: 0 | G112: 0 | H112: 0 | I112: 0 | J112: 0 | K112: 0 | L112: 0 | M112: 0 | N112: 0 | O112: 0 | P112: 0 | Q112: 0 | R112: 0 | S112: 0 | T112: 0 | U112: 0 | V112: 0 | W112: 0 | X112: 0 | Y112: 0 | Z112: 0 | AA112: 0 | AB112: 0 | AC112: 0 | AD112: 0 | AE112: 0 | AF112: 0 | AG112: 0 | AH112: 0 | AI112: 0 | AJ112: 0 | AK112: 0 | AL112: 0 | AM112: 0 | AN112: 0 | AO112: 0 | AP112: 0 | AQ112: 0
B113: VolExpl | C113: OVOLERSADMaCPJ | D113: Volume ERS Admissible InclusActions aCPJ | F113: 0 | G113: 0 | H113: 0 | I113: 0 | J113: 0 | K113: 0 | L113: 0 | M113: 0 | N113: 0 | O113: 0 | P113: 0 | Q113: 0 | R113: 0 | S113: 0 | T113: 0 | U113: 0 | V113: 0 | W113: 0 | X113: 0 | Y113: 0 | Z113: 0 | AA113: 0 | AB113: 0 | AC113: 0 | AD113: 0 | AE113: 0 | AF113: 0 | AG113: 0 | AH113: 0 | AI113: 0 | AJ113: 0 | AK113: 0 | AL113: 0 | AM113: 0 | AN113: 0 | AO113: 0 | AP113: 0 | AQ113: 0
B114: VolExpl | C114: OVOLERSADMaCJ | D114: Volume ERS Admissible InclusActions aCJ | F114: 0 | G114: 0 | H114: 0 | I114: 0 | J114: 0 | K114: 0 | L114: 0 | M114: 0 | N114: 0 | O114: 0 | P114: 0 | Q114: 0 | R114: 0 | S114: 0 | T114: 0 | U114: 0 | V114: 0 | W114: 0 | X114: 0 | Y114: 0 | Z114: 0 | AA114: 0 | AB114: 0 | AC114: 0 | AD114: 0 | AE114: 0 | AF114: 0 | AG114: 0 | AH114: 0 | AI114: 0 | AJ114: 0 | AK114: 0 | AL114: 0 | AM114: 0 | AN114: 0 | AO114: 0 | AP114: 0 | AQ114: 0
B115: VolExpl | C115: OVOLERSADMaCRV | D115: Volume ERS Admissible InclusActions aCRV | F115: 0 | G115: 0 | H115: 0 | I115: 0 | J115: 0 | K115: 0 | L115: 0 | M115: 0 | N115: 0 | O115: 0 | P115: 0 | Q115: 0 | R115: 0 | S115: 0 | T115: 0 | U115: 0 | V115: 0 | W115: 0 | X115: 0 | Y115: 0 | Z115: 0 | AA115: 0 | AB115: 0 | AC115: 0 | AD115: 0 | AE115: 0 | AF115: 0 | AG115: 0 | AH115: 0 | AI115: 0 | AJ115: 0 | AK115: 0 | AL115: 0 | AM115: 0 | AN115: 0 | AO115: 0 | AP115: 0 | AQ115: 0
B116: VolExpl | C116: OVOLERSADMaCRS | D116: Volume ERS Admissible InclusActions aCRS | F116: 0 | G116: 0 | H116: 0 | I116: 0 | J116: 0 | K116: 0 | L116: 0 | M116: 0 | N116: 0 | O116: 0 | P116: 0 | Q116: 0 | R116: 0 | S116: 0 | T116: 0 | U116: 0 | V116: 0 | W116: 0 | X116: 0 | Y116: 0 | Z116: 0 | AA116: 0 | AB116: 0 | AC116: 0 | AD116: 0 | AE116: 0 | AF116: 0 | AG116: 0 | AH116: 0 | AI116: 0 | AJ116: 0 | AK116: 0 | AL116: 0 | AM116: 0 | AN116: 0 | AO116: 0 | AP116: 0 | AQ116: 0
B117: VolExpl | C117: OVOLERSADMaCFP | D117: Volume ERS Admissible InclusActions aCFP | F117: 0 | G117: 0 | H117: 0 | I117: 0 | J117: 0 | K117: 0 | L117: 0 | M117: 0 | N117: 0 | O117: 0 | P117: 0 | Q117: 0 | R117: 0 | S117: 0 | T117: 0 | U117: 0 | V117: 0 | W117: 0 | X117: 0 | Y117: 0 | Z117: 0 | AA117: 0 | AB117: 0 | AC117: 0 | AD117: 0 | AE117: 0 | AF117: 0 | AG117: 0 | AH117: 0 | AI117: 0 | AJ117: 0 | AK117: 0 | AL117: 0 | AM117: 0 | AN117: 0 | AO117: 0 | AP117: 0 | AQ117: 0
B118: VolExpl | C118: OVOLERSADMaCPPTM | D118: Volume ERS Admissible InclusActions aCPPTM | F118: 0 | G118: 0 | H118: 0 | I118: 0 | J118: 0 | K118: 0 | L118: 0 | M118: 0 | N118: 0 | O118: 0 | P118: 0 | Q118: 0 | R118: 0 | S118: 0 | T118: 0 | U118: 0 | V118: 0 | W118: 0 | X118: 0 | Y118: 0 | Z118: 0 | AA118: 0 | AB118: 0 | AC118: 0 | AD118: 0 | AE118: 0 | AF118: 0 | AG118: 0 | AH118: 0 | AI118: 0 | AJ118: 0 | AK118: 0 | AL118: 0 | AM118: 0 | AN118: 0 | AO118: 0 | AP118: 0 | AQ118: 0
B119: VolExpl | C119: OVOLERSADMaCT | D119: Volume ERS Admissible InclusActions aCT | F119: 0 | G119: 0 | H119: 0 | I119: 0 | J119: 0 | K119: 0 | L119: 0 | M119: 0 | N119: 0 | O119: 0 | P119: 0 | Q119: 0 | R119: 0 | S119: 0 | T119: 0 | U119: 0 | V119: 0 | W119: 0 | X119: 0 | Y119: 0 | Z119: 0 | AA119: 0 | AB119: 0 | AC119: 0 | AD119: 0 | AE119: 0 | AF119: 0 | AG119: 0 | AH119: 0 | AI119: 0 | AJ119: 0 | AK119: 0 | AL119: 0 | AM119: 0 | AN119: 0 | AO119: 0 | AP119: 0 | AQ119: 0
B120: VolExpl | C120: OVOLERSADMregaPRE | D120: Volume ERS Admissible InclusActions regaPRE | F120: 0 | G120: 0 | H120: 0 | I120: 0 | J120: 0 | K120: 0 | L120: 0 | M120: 0 | N120: 0 | O120: 0 | P120: 0 | Q120: 0 | R120: 0 | S120: 0 | T120: 0 | U120: 0 | V120: 0 | W120: 0 | X120: 0 | Y120: 0 | Z120: 0 | AA120: 0 | AB120: 0 | AC120: 0 | AD120: 0 | AE120: 0 | AF120: 0 | AG120: 0 | AH120: 0 | AI120: 0 | AJ120: 0 | AK120: 0 | AL120: 0 | AM120: 0 | AN120: 0 | AO120: 0 | AP120: 0 | AQ120: 0
B121: VolExpl | C121: OVOLSABADMaEC | D121: Volume SAB Admissible InclusActions aEC | F121: 0 | G121: 8148.25 | H121: 0 | I121: 0 | J121: 0 | K121: 103.6 | L121: 4934.8 | M121: 8148.25 | N121: 4374.79 | O121: 2169.55 | P121: 1762.11 | Q121: 2037.15 | R121: 376.12 | S121: 298.89 | T121: 190.92 | U121: 145.78 | V121: 145.78 | W121: 161.12 | X121: 2.34 | Y121: 156.93 | Z121: 405.98 | AA121: 320.68 | AB121: 25.45 | AC121: 135.93 | AD121: 23.56 | AE121: 23.56 | AF121: 87.5 | AG121: 59.73 | AH121: 21.32 | AI121: 9.72 | AJ121: 66.18 | AK121: 28.6 | AL121: 141.59 | AM121: 3512.288 | AN121: 1328.764 | AO121: 172.7755556 | AP121: 59.769 | AQ121: 908.8941379
B122: VolExpl | C122: OVOLSABADMaEC2 | D122: Volume SAB Admissible InclusActions aEC2 | F122: 0 | G122: 0 | H122: 0 | I122: 0 | J122: 0 | K122: 0 | L122: 0 | M122: 0 | N122: 0 | O122: 0 | P122: 0 | Q122: 0 | R122: 0 | S122: 0 | T122: 0 | U122: 0 | V122: 0 | W122: 0 | X122: 0 | Y122: 0 | Z122: 0 | AA122: 0 | AB122: 0 | AC122: 0 | AD122: 0 | AE122: 0 | AF122: 0 | AG122: 0 | AH122: 0 | AI122: 0 | AJ122: 0 | AK122: 0 | AL122: 0 | AM122: 0 | AN122: 0 | AO122: 0 | AP122: 0 | AQ122: 0
B123: VolExpl | C123: OVOLSABADMaEC3 | D123: Volume SAB Admissible InclusActions aEC3 | F123: 0 | G123: 0 | H123: 0 | I123: 0 | J123: 0 | K123: 0 | L123: 0 | M123: 0 | N123: 0 | O123: 0 | P123: 0 | Q123: 0 | R123: 0 | S123: 0 | T123: 0 | U123: 0 | V123: 0 | W123: 0 | X123: 0 | Y123: 0 | Z123: 0 | AA123: 0 | AB123: 0 | AC123: 0 | AD123: 0 | AE123: 0 | AF123: 0 | AG123: 0 | AH123: 0 | AI123: 0 | AJ123: 0 | AK123: 0 | AL123: 0 | AM123: 0 | AN123: 0 | AO123: 0 | AP123: 0 | AQ123: 0
B124: VolExpl | C124: OVOLSABADMaCA | D124: Volume SAB Admissible InclusActions aCA | F124: 0 | G124: 0 | H124: 0 | I124: 0 | J124: 0 | K124: 0 | L124: 0 | M124: 0 | N124: 0 | O124: 0 | P124: 0 | Q124: 0 | R124: 0 | S124: 0 | T124: 0 | U124: 0 | V124: 0 | W124: 0 | X124: 0 | Y124: 0 | Z124: 0 | AA124: 0 | AB124: 0 | AC124: 0 | AD124: 0 | AE124: 0 | AF124: 0 | AG124: 0 | AH124: 0 | AI124: 0 | AJ124: 0 | AK124: 0 | AL124: 0 | AM124: 0 | AN124: 0 | AO124: 0 | AP124: 0 | AQ124: 0
B125: VolExpl | C125: OVOLSABADMaCA2 | D125: Volume SAB Admissible InclusActions aCA2 | F125: 0 | G125: 0 | H125: 0 | I125: 0 | J125: 0 | K125: 0 | L125: 0 | M125: 0 | N125: 0 | O125: 0 | P125: 0 | Q125: 0 | R125: 0 | S125: 0 | T125: 0 | U125: 0 | V125: 0 | W125: 0 | X125: 0 | Y125: 0 | Z125: 0 | AA125: 0 | AB125: 0 | AC125: 0 | AD125: 0 | AE125: 0 | AF125: 0 | AG125: 0 | AH125: 0 | AI125: 0 | AJ125: 0 | AK125: 0 | AL125: 0 | AM125: 0 | AN125: 0 | AO125: 0 | AP125: 0 | AQ125: 0
